Workbook

Sheet Pdiss & Compensation
A1: A4411 Estimated Power Dissipation and Compensation Worksheet | G1: Reset = | H1: 0 | AM1: 0
B2: = Design Entry | D2: If any cells give an error try clicking on "Converge" | G2: Buck | H2: Vin | I2: =Vin_nom -> 12 | J2: =Vin_min -> 3.5 | K2: =J2+(Vin_max-Vin_min)/49 -> 3.795918367 | L2: 4.091836735 | M2: 4.387755102 | N2: 4.683673469 | O2: 4.979591837 | P2: 5.275510204 | Q2: 5.571428571 | R2: 5.867346939 | S2: 6.163265306 | T2: 6.459183673 | U2: 6.755102041 | V2: 7.051020408 | W2: 7.346938776 | X2: 7.642857143 | Y2: 7.93877551 | Z2: 8.234693878 | AA2: 8.530612245 | AB2: 8.826530612 | AC2: 9.12244898 | AD2: 9.418367347 | AE2: 9.714285714 | AF2: 10.01020408 | AG2: 10.30612245 | AH2: 10.60204082 | AI2: 10.89795918 | AJ2: 11.19387755 | AK2: 11.48979592 | AL2: 11.78571429 | AM2: 12.08163265 | AN2: 12.37755102 | AO2: 12.67346939 | AP2: 12.96938776 | AQ2: =AP2+(Vin_max-Vin_min)/49 -> 13.26530612 | AR2: 13.56122449 | AS2: 13.85714286 | AT2: 14.15306122 | AU2: 14.44897959 | AV2: 14.74489796 | AW2: 15.04081633 | AX2: 15.33673469 | AY2: 15.63265306 | AZ2: 15.92857143 | BA2: 16.2244898 | BB2: 16.52040816 | BC2: 16.81632653 | BD2: 17.1122449 | BE2: 17.40816327 | BF2: 17.70408163 | BG2: 18 | BH2: =V_AbsMax -> 36 | BI2: Vin
B3: ** Ensure iterative calculations are enabled ** | G3: Buck-Boost | H3: Pdiss total | I3: =I33+I36+I59+I62+I65+I68+I21*Icc+I52+I56 -> 0.6183470409 | J3: 0.9658594764 | K3: 0.8543505475 | L3: 0.7731356177 | M3: 0.7125505983 | N3: 0.6665932448 | O3: 0.6313574403 | P3: 0.6042019759 | Q3: 0.5832838053 | R3: 0.5672825052 | S3: 0.5552307135 | T3: 0.5464053444 | U3: 0.5402369946 | V3: 0.5278747614 | W3: 0.5212415846 | X3: 0.5241744553 | Y3: 0.5276371488 | Z3: 0.5316014931 | AA3: 0.5360430944 | AB3: 0.5409407278 | AC3: 0.5462758416 | AD3: 0.5520321514 | AE3: 0.5581953054 | AF3: 0.564752607 | AG3: 0.571692784 | AH3: 0.5790057947 | AI3: 0.5866826655 | AJ3: 0.5947153523 | AK3: 0.6030966244 | AL3: 0.6118199636 | AM3: 0.6208794796 | AN3: 0.6302698358 | AO3: =AO33+AO36+AO59+AO62+AO65+AO68+AO21*Icc+AO52+AO56 -> 0.6399861861 | AP3: 0.6500241198 | AQ3: 0.6603796143 | AR3: 0.6710489927 | AS3: 0.6820288883 | AT3: 0.6933162119 | AU3: 0.7049081245 | AV3: 0.716802012 | AW3: 0.7289954635 | AX3: 0.7414862524 | AY3: 0.7542723185 | AZ3: 0.7673517531 | BA3: 0.7807227854 | BB3: 0.7943837702 | BC3: 0.8083331768 | BD3: 0.8225695796 | BE3: 0.8370916489 | BF3: 0.8518981431 | BG3: 0.8669879016 | BH3: 1.377450439 | BI3: Pdiss total | BJ3: Buck-Boost
B4: Select Topology: | C4: Buck-Boost | D4: Select either Buck or Buck-Boost operation | H4: Tj | I4: =IF(Reset=1,150,Ta+Rth_ja*I3) -> 143.5504112 | J4: =IF(Reset=1,150,Ta+Rth_ja*J3) -> 153.9757843 | K4: =IF(Reset=1,150,Ta+Rth_ja*K3) -> 150.6305164 | L4: 148.1940685 | M4: 146.3765179 | N4: 144.9977973 | O4: 143.9407232 | P4: 143.1260593 | Q4: 142.4985142 | R4: 142.0184752 | S4: 141.6569214 | T4: 141.3921603 | U4: 141.2071098 | V4: 140.8362428 | W4: 140.6372475 | X4: 140.7252337 | Y4: 140.8291145 | Z4: 140.9480448 | AA4: 141.0812928 | AB4: 141.2282218 | AC4: 141.3882752 | AD4: 141.5609645 | AE4: 141.7458592 | AF4: 141.9425782 | AG4: 142.1507835 | AH4: 142.3701738 | AI4: 142.60048 | AJ4: 142.8414606 | AK4: 143.0928987 | AL4: 143.3545989 | AM4: 143.6263844 | AN4: 143.9080951 | AO4: 144.1995856 | AP4: =IF(Reset=1,150,Ta+Rth_ja*AP3) -> 144.5007236 | AQ4: 144.8113884 | AR4: 145.1314698 | AS4: 145.4608666 | AT4: 145.7994864 | AU4: 146.1472437 | AV4: 146.5040604 | AW4: 146.8698639 | AX4: 147.2445876 | AY4: 147.6281696 | AZ4: 148.0205526 | BA4: 148.4216836 | BB4: 148.8315131 | BC4: 149.2499953 | BD4: 149.6770874 | BE4: 150.1127495 | BF4: 150.5569443 | BG4: 151.009637 | BH4: =IF(Reset=1,150,Ta+Rth_ja*BH3) -> 166.3235132 | BI4: Tj
G5: Yes | J5: =J2 -> 3.5 | K5: =K2 -> 3.795918367 | L5: 4.091836735 | M5: 4.387755102 | N5: 4.683673469 | O5: 4.979591837 | P5: 5.275510204 | Q5: 5.571428571 | R5: 5.867346939 | S5: 6.163265306 | T5: 6.459183673 | U5: 6.755102041 | V5: 7.051020408 | W5: 7.346938776 | X5: 7.642857143 | Y5: 7.93877551 | Z5: 8.234693878 | AA5: 8.530612245 | AB5: 8.826530612 | AC5: 9.12244898 | AD5: 9.418367347 | AE5: 9.714285714 | AF5: 10.01020408 | AG5: 10.30612245 | AH5: 10.60204082 | AI5: 10.89795918 | AJ5: 11.19387755 | AK5: 11.48979592 | AL5: 11.78571429 | AM5: 12.08163265 | AN5: 12.37755102 | AO5: 12.67346939 | AP5: 12.96938776 | AQ5: 13.26530612 | AR5: 13.56122449 | AS5: 13.85714286 | AT5: 14.15306122 | AU5: 14.44897959 | AV5: 14.74489796 | AW5: 15.04081633 | AX5: 15.33673469 | AY5: 15.63265306 | AZ5: 15.92857143 | BA5: 16.2244898 | BB5: 16.52040816 | BC5: 16.81632653 | BD5: 17.1122449 | BE5: 17.40816327 | BF5: 17.70408163 | BG5: 18 | BH5: 36
B6: Vin nom | C6: 12 | D6: Enter nominal operating voltage here | G6: No
B7: Vin min (Buck Boost) | C7: 3.5 | D7: Enter minimum voltage for Buck Boost mode
B8: Vin min (Buck) | C8: 6 | D8: Enter minimum voltage for Buck mode | G8: Buck Boost Mode Calculations | I8: =IF(I14>I12,"Boost >","buck >") -> buck > | J8: buck > | K8: buck > | L8: buck > | M8: buck > | N8: buck > | O8: buck > | P8: buck > | Q8: buck > | R8: buck > | S8: buck > | T8: buck > | U8: buck > | V8: buck > | W8: buck > | X8: buck > | Y8: buck > | Z8: buck > | AA8: buck > | AB8: buck > | AC8: buck > | AD8: buck > | AE8: buck > | AF8: buck > | AG8: buck > | AH8: buck > | AI8: buck > | AJ8: buck > | AK8: buck > | AL8: buck > | AM8: buck > | AN8: buck > | AO8: =IF(AO14>AO12,"Boost >","buck >") -> buck > | AP8: buck > | AQ8: buck > | AR8: buck > | AS8: buck > | AT8: buck > | AU8: buck > | AV8: buck > | AW8: buck > | AX8: buck > | AY8: buck > | AZ8: buck > | BA8: buck > | BB8: buck > | BC8: buck > | BD8: buck > | BE8: buck > | BF8: buck > | BG8: buck > | BH8: buck > | BJ8: Buck Boost Mode Calculations
B9: Vin max (operating) | C9: 18 | D9: Enter maximum operating voltage. This is used for plots. | H9: V1 | I9: =IF(Reset=1,I2-Vreg,IF(I14=0,I2-(I22-I23/2)*(I30+dcr*10^-3)-I21-I75,I2-(I22-I23/2)*(I30+R_ds_ON_boost+dcr*10^-3))) -> 6.112572686 | J9: =IF(Reset=1,J2,IF(J14=0,J2-(J22-J23/2)*(J30+dcr*10^-3)-J21-J75,J2-(J22-J23/2)*(J30+R_ds_ON_boost+dcr*10^-3))) -> 3.019700693 | K9: 3.359552302 | L9: 3.692022076 | M9: 4.018822622 | N9: 4.341136866 | O9: 4.6598142 | P9: 4.975483309 | Q9: 5.288621115 | R9: 5.599596884 | S9: 5.908701518 | T9: 6.216167531 | U9: 6.522181383 | V9: 6.838884645 | W9: 1.462901025 | X9: 1.758381567 | Y9: 2.053921638 | Z9: 2.349510763 | AA9: 2.645140397 | AB9: 2.94080353 | AC9: 3.236494375 | AD9: 3.532208133 | AE9: 3.8279408 | AF9: 4.123689026 | AG9: 4.419449993 | AH9: 4.715221321 | AI9: 5.011000995 | AJ9: 5.306787302 | AK9: 5.60257878 | AL9: 5.898374181 | AM9: 6.194172433 | AN9: 6.489972616 | AO9: 6.785773937 | AP9: =IF(Reset=1,AP2,IF(AP14=0,AP2-(AP22-AP23/2)*(AP30+dcr*10^-3)-AP21-AP75,AP2-(AP22-AP23/2)*(AP30+R_ds_ON_boost+dcr*10^-3))) -> 7.081575712 | AQ9: 7.377377348 | AR9: 7.673178334 | AS9: 7.968978224 | AT9: 8.264776632 | AU9: 8.560573223 | AV9: 8.856367703 | AW9: 9.152159819 | AX9: 9.447949347 | AY9: 9.743736095 | AZ9: 10.03951989 | BA9: 10.3353006 | BB9: 10.63107807 | BC9: 10.92685221 | BD9: 11.22262291 | BE9: 11.5183901 | BF9: 11.81415369 | BG9: 12.10991362 | BH9: 30.10220449 | BI9: V1
B10: Vin abs max | C10: 36 | D10: Enter abs maximum voltage. | H10: V2 | I10: =IF(Reset=1,0,IF(I12>I14,IF(I14=0,0,Vreg+I71+(I22-I23/2)*(I30+dcr*10^-3)-I2),I71+(I22-I23/2)*(R_ds_ON_boost+dcr*10^-3))) -> 0 | J10: =IF(Reset=1,J71,IF(J12>J14,IF(J14=0,0,Vreg+J71+(J22-J23/2)*(J30+dcr*10^-3)-J2),J71+(J22-J23/2)*(R_ds_ON_boost+dcr*10^-3))) -> 2.747786312 | K10: 2.396402147 | L10: 2.054594043 | M10: 1.720054605 | N10: 1.39121652 | O10: 1.066969673 | P10: 0.7465012469 | Q10: 0.4291999482 | R10: 0.1145957537 | S10: -0.1976795314 | T10: -0.5079542478 | U10: -0.8175901132 | V10: -1.137515344 | W10: 0 | X10: 0 | Y10: 0 | Z10: 0 | AA10: 0 | AB10: 0 | AC10: 0 | AD10: 0 | AE10: 0 | AF10: 0 | AG10: 0 | AH10: 0 | AI10: 0 | AJ10: 0 | AK10: 0 | AL10: 0 | AM10: 0 | AN10: 0 | AO10: 0 | AP10: =IF(Reset=1,AP71,IF(AP12>AP14,IF(AP14=0,0,Vreg+AP71+(AP22-AP23/2)*(AP30+dcr*10^-3)-AP2),AP71+(AP22-AP23/2)*(R_ds_ON_boost+dcr*10^-3))) -> 0 | AQ10: 0 | AR10: 0 | AS10: 0 | AT10: 0 | AU10: 0 | AV10: 0 | AW10: 0 | AX10: 0 | AY10: 0 | AZ10: 0 | BA10: 0 | BB10: 0 | BC10: 0 | BD10: 0 | BE10: 0 | BF10: 0 | BG10: 0 | BH10: 0 | BI10: V2
B11: Switching frequency | C11: 2000 | D11: Enter nominal switching frequency | G11: ton min (LG) | H11: V3 | I11: =IF(Reset=1,Vreg,Vreg+I71+I75+(I22-I23/2)*dcr*10^-3) -> 6.089525812 | J11: =Vreg+J71+J75+(J22-J23/2)*dcr*10^-3 -> 6.328746891 | K11: 6.295483144 | L11: 6.267321596 | M11: 6.243326286 | N11: 6.222628604 | O11: 6.204601346 | P11: 6.18877783 | Q11: 6.174802291 | R11: 6.162398014 | S11: 6.151346073 | T11: 6.141435397 | U11: 6.131397171 | V11: 6.121529261 | W11: 6.099956489 | X11: 6.099078007 | Y11: 6.098233216 | Z11: 6.097421671 | AA11: 6.096642574 | AB11: 6.095894899 | AC11: 6.09517748 | AD11: 6.094489072 | AE11: 6.093828399 | AF11: 6.093194181 | AG11: 6.092585159 | AH11: 6.092000105 | AI11: 6.091437835 | AJ11: 6.090897212 | AK11: 6.090377153 | AL11: 6.089876627 | AM11: 6.089394653 | AN11: 6.088930306 | AO11: 6.088482711 | AP11: =Vreg+AP71+AP75+(AP22-AP23/2)*dcr*10^-3 -> 6.08805104 | AQ11: 6.087634513 | AR11: 6.087232395 | AS11: 6.08684399 | AT11: 6.086468646 | AU11: 6.086105746 | AV11: 6.085754708 | AW11: 6.085414984 | AX11: 6.085086057 | AY11: 6.084767439 | AZ11: 6.08445867 | BA11: 6.084159314 | BB11: 6.083868962 | BC11: 6.083587223 | BD11: 6.083313732 | BE11: 6.08304814 | BF11: 6.082790119 | BG11: 6.082539356 | BH11: 6.077315904 | BI11: V3
B12: FSET Resistor (RFSET) = | C12: =(fsw/12724)^-1.175 -> 8.794730912 | D12: Required frequency setting resistor (KΩ), use the closest available 1% value | G12: 55 | H12: Buck duty | I12: =IF(Reset=1,0.7,IF(I14=0,IF(I11/(I9+I11)>1,1,I11/(I9+I11)),IF(IF((I11*(1-I14)+I10*I14)/(I9+I10)>I14,(I10*I14-I11+I9*I14)/(I10-I11),(I11*(1-I14)+I10*I14)/(I9+I10))>$M$169,$M$169,IF((I11*(1-I14)+I10*I14)/(I9+I10)>I14,(I10*I14-I11+I9*I14)/(I10-I11),(I11*(1-I14)+I10*I14)/(I9+I10))))) -> 0.4990556184 | J12: 0.8331854994 | K12: 0.813725072 | L12: 0.7987900832 | M12: 0.787064902 | N12: 0.7776870668 | O12: 0.7700730524 | P12: 0.7638144393 | Q12: 0.7586173129 | R12: 0.7542651756 | S12: 0.7505953515 | T12: 0.7474792657 | U12: 0.7446856263 | V12: 0.7410324637 | W12: 0.8065676866 | X12: 0.776215003 | Y12: 0.74805169 | Z12: 0.7218504136 | AA12: 0.6974140852 | AB12: 0.6745710225 | AC12: 0.6531710045 | AD12: 0.6330820366 | AE12: 0.6141876793 | AF12: 0.5963848326 | AG12: 0.579581886 | AH12: 0.5636971674 | AI12: 0.5486576353 | AJ12: 0.5343977722 | AK12: 0.5208586424 | AL12: 0.5079870887 | AM12: 0.4957350426 | AN12: 0.4840589314 | AO12: =IF(Reset=1,0.7,IF(AO14=0,IF(AO11/(AO9+AO11)>1,1,AO11/(AO9+AO11)),IF(IF((AO11*(1-AO14)+AO10*AO14)/(AO9+AO10)>AO14,(AO10*AO14-AO11+AO9*AO14)/(AO10-AO11),(AO11*(1-AO14)+AO10*AO14)/(AO9+AO10))>$M$169,$M$169,IF((AO11*(1-AO14)+AO10*AO14)/(AO9+AO10)>AO14,(AO10*AO14-AO11+AO9*AO14)/(AO10-AO11),(AO11*(1-AO14)+AO10*AO14)/(AO9+AO10))))) -> 0.4729191655 | AP12: 0.4622796952 | AQ12: 0.4521076235 | AR12: 0.4423728706 | AS12: 0.4330478785 | AT12: 0.4241073529 | AU12: 0.415528036 | AV12: 0.4072885056 | AW12: 0.3993689982 | AX12: 0.3917512514 | AY12: 0.3844183644 | AZ12: 0.3773546737 | BA12: 0.370545642 | BB12: 0.3639777589 | BC12: 0.3576384518 | BD12: 0.3515160061 | BE12: 0.3455994935 | BF12: 0.3398787069 | BG12: 0.3343441022 | BH12: 0.1679766851 | BI12: Buck duty
B13: TAMB | C13: 125 | D13: Enter maximum ambient operating temperature | G13: Min Boost Duty | I13: =IF(m_*I2+b_<0,0,m_*I2+b_) -> 0 | J13: 0.58 | K13: 0.5425170068 | L13: 0.5050340136 | M13: 0.4675510204 | N13: 0.4300680272 | O13: 0.392585034 | P13: 0.3551020408 | Q13: 0.3176190476 | R13: 0.2801360544 | S13: 0.2426530612 | T13: 0.205170068 | U13: 0.1676870748 | V13: 0.1302040816 | W13: 0.09272108844 | X13: 0.05523809524 | Y13: 0.01775510204 | Z13: 0 | AA13: 0 | AB13: 0 | AC13: 0 | AD13: 0 | AE13: 0 | AF13: 0 | AG13: 0 | AH13: 0 | AI13: 0 | AJ13: 0 | AK13: 0 | AL13: 0 | AM13: 0 | AN13: 0 | AO13: =IF(m_*AO2+b_<0,0,m_*AO2+b_) -> 0 | AP13: 0 | AQ13: 0 | AR13: 0 | AS13: 0 | AT13: 0 | AU13: 0 | AV13: 0 | AW13: 0 | AX13: 0 | AY13: 0 | AZ13: 0 | BA13: 0 | BB13: 0 | BC13: 0 | BD13: 0 | BE13: 0 | BF13: 0 | BG13: 0 | BH13: 0
G14: =t_on_min_Boost*I19*10^-6 -> 0.11 | H14: Boost duty | I14: =IF(I13<D_boost_min,0,I13) -> 0 | J14: 0.58 | K14: 0.5425170068 | L14: 0.5050340136 | M14: 0.4675510204 | N14: 0.4300680272 | O14: 0.392585034 | P14: 0.3551020408 | Q14: 0.3176190476 | R14: 0.2801360544 | S14: 0.2426530612 | T14: 0.205170068 | U14: 0.1676870748 | V14: 0.1302040816 | W14: 0 | X14: 0 | Y14: 0 | Z14: 0 | AA14: 0 | AB14: 0 | AC14: 0 | AD14: 0 | AE14: 0 | AF14: 0 | AG14: 0 | AH14: 0 | AI14: 0 | AJ14: 0 | AK14: 0 | AL14: 0 | AM14: 0 | AN14: 0 | AO14: =IF(AO13<D_boost_min,0,AO13) -> 0 | AP14: 0 | AQ14: 0 | AR14: 0 | AS14: 0 | AT14: 0 | AU14: 0 | AV14: 0 | AW14: 0 | AX14: 0 | AY14: 0 | AZ14: 0 | BA14: 0 | BB14: 0 | BC14: 0 | BD14: 0 | BE14: 0 | BF14: 0 | BG14: 0 | BH14: =IF(BH13<D_boost_min,0,BH13) -> 0 | BI14: Boost duty
B15: VREG | C15: 5.35 | D15: VREG is fixed at 5.35V | H15: ton buck | I15: =IF(I12>1,1000/fsw,IF(I12*1000/fsw<0.16,0.16,I12*1000/fsw)) -> 0.2495278092 | J15: =IF(J12>1,1000/fsw,IF(J12*1000/fsw<0.16,0.16,J12*1000/fsw)) -> 0.4165927497 | K15: 0.406862536 | L15: 0.3993950416 | M15: 0.393532451 | N15: 0.3888435334 | O15: 0.3850365262 | P15: 0.3819072196 | Q15: 0.3793086565 | R15: 0.3771325878 | S15: 0.3752976757 | T15: 0.3737396329 | U15: 0.3723428131 | V15: 0.3705162318 | W15: 0.4032838433 | X15: 0.3881075015 | Y15: 0.374025845 | Z15: 0.3609252068 | AA15: 0.3487070426 | AB15: 0.3372855112 | AC15: 0.3265855023 | AD15: 0.3165410183 | AE15: 0.3070938397 | AF15: 0.2981924163 | AG15: 0.289790943 | AH15: 0.2818485837 | AI15: 0.2743288177 | AJ15: 0.2671988861 | AK15: 0.2604293212 | AL15: 0.2539935444 | AM15: 0.2478675213 | AN15: 0.2420294657 | AO15: =IF(AO12>1,1000/fsw,IF(AO12*1000/fsw<0.16,0.16,AO12*1000/fsw)) -> 0.2364595828 | AP15: 0.2311398476 | AQ15: 0.2260538118 | AR15: 0.2211864353 | AS15: 0.2165239393 | AT15: 0.2120536765 | AU15: 0.207764018 | AV15: 0.2036442528 | AW15: 0.1996844991 | AX15: 0.1958756257 | AY15: 0.1922091822 | AZ15: 0.1886773369 | BA15: 0.185272821 | BB15: 0.1819888795 | BC15: 0.1788192259 | BD15: 0.1757580031 | BE15: 0.1727997468 | BF15: 0.1699393535 | BG15: 0.1671720511 | BH15: =IF(BH12>1,1000/fsw,IF(BH12*1000/fsw<0.16,0.16,BH12*1000/fsw)) -> 0.16 | BI15: ton buck
B16: Vout sync buck | C16: 3.3 | D16: Enter sync buck output voltage, minimum is 0.800V | H16: toff buck | I16: =I15/I12-I15 -> 0.2504721908 | J16: =J15/J12-J15 -> 0.08340725032 | K16: 0.09313746401 | L16: 0.1006049584 | M16: 0.106467549 | N16: 0.1111564666 | O16: 0.1149634738 | P16: 0.1180927804 | Q16: 0.1206913435 | R16: 0.1228674122 | S16: 0.1247023243 | T16: 0.1262603671 | U16: 0.1276571869 | V16: 0.1294837682 | W16: 0.09671615669 | X16: 0.1118924985 | Y16: 0.125974155 | Z16: 0.1390747932 | AA16: 0.1512929574 | AB16: 0.1627144888 | AC16: 0.1734144977 | AD16: 0.1834589817 | AE16: 0.1929061603 | AF16: 0.2018075837 | AG16: 0.210209057 | AH16: 0.2181514163 | AI16: 0.2256711823 | AJ16: 0.2328011139 | AK16: 0.2395706788 | AL16: 0.2460064556 | AM16: 0.2521324787 | AN16: 0.2579705343 | AO16: 0.2635404172 | AP16: 0.2688601524 | AQ16: 0.2739461882 | AR16: 0.2788135647 | AS16: 0.2834760607 | AT16: 0.2879463235 | AU16: 0.292235982 | AV16: 0.2963557472 | AW16: 0.3003155009 | AX16: 0.3041243743 | AY16: 0.3077908178 | AZ16: 0.3113226631 | BA16: 0.314727179 | BB16: 0.3180111205 | BC16: 0.3211807741 | BD16: 0.3242419969 | BE16: 0.3272002532 | BF16: 0.3300606465 | BG16: 0.3328279489 | BH16: 0.7925131414 | BI16: toff buck
B17: I out ext | C17: 0 | D17: Enter VREG external load current | H17: ton boost | I17: =I14/(fsw*10^-3) -> 0 | J17: =J14/(fsw*10^-3) -> 0.29 | K17: =K14/(fsw*10^-3) -> 0.2712585034 | L17: 0.2525170068 | M17: 0.2337755102 | N17: 0.2150340136 | O17: 0.196292517 | P17: 0.1775510204 | Q17: 0.1588095238 | R17: 0.1400680272 | S17: 0.1213265306 | T17: 0.102585034 | U17: 0.08384353741 | V17: 0.06510204082 | W17: 0 | X17: 0 | Y17: 0 | Z17: 0 | AA17: 0 | AB17: 0 | AC17: 0 | AD17: 0 | AE17: 0 | AF17: 0 | AG17: 0 | AH17: 0 | AI17: 0 | AJ17: 0 | AK17: 0 | AL17: 0 | AM17: =AM14/(fsw*10^-3) -> 0 | AN17: 0 | AO17: 0 | AP17: 0 | AQ17: 0 | AR17: 0 | AS17: 0 | AT17: 0 | AU17: 0 | AV17: 0 | AW17: 0 | AX17: 0 | AY17: 0 | AZ17: 0 | BA17: 0 | BB17: 0 | BC17: 0 | BD17: 0 | BE17: 0 | BF17: 0 | BG17: 0 | BH17: =BH14/(fsw*10^-3) -> 0 | BI17: ton boost
B18: Iout Sync Buck | C18: 0.7 | D18: Enter synchronous buck load current | H18: toff boost | I18: =1/fsw*10^3-I17 -> 0.5 | J18: =1/fsw*10^3-J17 -> 0.21 | K18: 0.2287414966 | L18: 0.2474829932 | M18: 0.2662244898 | N18: 0.2849659864 | O18: 0.303707483 | P18: 0.3224489796 | Q18: 0.3411904762 | R18: 0.3599319728 | S18: 0.3786734694 | T18: 0.397414966 | U18: 0.4161564626 | V18: 0.4348979592 | W18: 0.5 | X18: 0.5 | Y18: 0.5 | Z18: 0.5 | AA18: 0.5 | AB18: 0.5 | AC18: 0.5 | AD18: 0.5 | AE18: 0.5 | AF18: 0.5 | AG18: 0.5 | AH18: 0.5 | AI18: 0.5 | AJ18: 0.5 | AK18: 0.5 | AL18: 0.5 | AM18: =1/fsw*10^3-AM17 -> 0.5 | AN18: 0.5 | AO18: 0.5 | AP18: 0.5 | AQ18: 0.5 | AR18: 0.5 | AS18: 0.5 | AT18: 0.5 | AU18: 0.5 | AV18: 0.5 | AW18: 0.5 | AX18: 0.5 | AY18: 0.5 | AZ18: 0.5 | BA18: 0.5 | BB18: 0.5 | BC18: 0.5 | BD18: 0.5 | BE18: 0.5 | BF18: 0.5 | BG18: 0.5 | BH18: =1/fsw*10^3-BH17 -> 0.5 | BI18: toff boost
B19: Iout 3V3 | C19: 0 | H19: fsw | I19: =1/(I15+I16)*10^3 -> 2000 | J19: =1/(J15+J16)*10^3 -> 2000 | K19: 2000 | L19: 2000 | M19: 2000 | N19: 2000 | O19: 2000 | P19: 2000 | Q19: 2000 | R19: 2000 | S19: 2000 | T19: 2000 | U19: 2000 | V19: 2000 | W19: 2000 | X19: 2000 | Y19: 2000 | Z19: 2000 | AA19: 2000 | AB19: 2000 | AC19: 2000 | AD19: 2000 | AE19: 2000 | AF19: 2000 | AG19: 2000 | AH19: 2000 | AI19: 2000 | AJ19: 2000 | AK19: 2000 | AL19: 2000 | AM19: =1/(AM15+AM16)*10^3 -> 2000 | AN19: 2000 | AO19: 2000 | AP19: 2000 | AQ19: 2000 | AR19: 2000 | AS19: 2000 | AT19: 2000 | AU19: 2000 | AV19: 2000 | AW19: 2000 | AX19: 2000 | AY19: 2000 | AZ19: 2000 | BA19: 2000 | BB19: 2000 | BC19: 2000 | BD19: 2000 | BE19: 2000 | BF19: 2000 | BG19: 2000 | BH19: =1/(BH15+BH16)*10^3 -> 1049.854282 | BI19: fsw
B20: Iout V5A | C20: 0 | H20: V out buck | BI20: V out buck | BL20: buck | BN20: 0.54
B21: RFB1 = | C21: =(Vout_sync_buck-VFB_adj)/VFB_adj*RFB2_adj -> 4.75 | D21: Calculated value of the ADJ feedback resistor (in KΩ) from VOUT,ADJ to VFB2 | H21: VREG | I21: =IF(I14>0,IF(I12/(1-I14)*I9>Vreg,Vreg,I12/(1-I14)*I9),IF(I12*(I9+I11)>Vreg,Vreg,I12*(I9+I11))) -> 5.35 | J21: 5.35 | K21: 5.35 | L21: 5.35 | M21: 5.35 | N21: 5.35 | O21: 5.35 | P21: 5.35 | Q21: 5.35 | R21: 5.35 | S21: 5.35 | T21: 5.35 | U21: 5.35 | V21: 5.35 | W21: 5.35 | X21: 5.35 | Y21: 5.35 | Z21: 5.35 | AA21: 5.35 | AB21: 5.35 | AC21: 5.35 | AD21: 5.35 | AE21: 5.35 | AF21: 5.35 | AG21: 5.35 | AH21: 5.35 | AI21: 5.35 | AJ21: 5.35 | AK21: 5.35 | AL21: 5.35 | AM21: 5.35 | AN21: 5.35 | AO21: =IF(AO14>0,IF(AO12/(1-AO14)*AO9>Vreg,Vreg,AO12/(1-AO14)*AO9),IF(AO12*(AO9+AO11)>Vreg,Vreg,AO12*(AO9+AO11))) -> 5.35 | AP21: 5.35 | AQ21: 5.35 | AR21: 5.35 | AS21: 5.35 | AT21: 5.35 | AU21: 5.35 | AV21: 5.35 | AW21: 5.35 | AX21: 5.35 | AY21: 5.35 | AZ21: 5.35 | BA21: 5.35 | BB21: 5.35 | BC21: 5.35 | BD21: 5.35 | BE21: 5.35 | BF21: 5.35 | BG21: 5.35 | BH21: 5.35 | BI21: VREG | BL21: Boost duty | BM21: 0.54 | BN21: 0
B22: RFB2 = | C22: 1.52 | D22: Enter the value of the ADJ feedback resistor (in KΩ) from VFB2 to ground | G22: Circuit Currents | H22: Ilpk | I22: =IF(I14=0,Iout_PreReg+I23/2,IF(I$12>I$14,(Iout_PreReg+I23/2*(1-I12))/(1-I14),Iout_PreReg/(1-I14)+I23/2)) -> 0.9929155749 | J22: 2.014749542 | K22: 1.855179579 | L22: 1.718522817 | M22: 1.600033945 | N22: 1.496198889 | O22: 1.404357442 | P22: 1.322458328 | Q22: 1.24889415 | R22: 1.182387344 | S22: 1.121909624 | T22: 1.066624322 | U22: 1.015852371 | V22: 0.9691009459 | W22: 0.8934163702 | X22: 0.9032543201 | Y22: 0.9123797137 | Z22: 0.9208667224 | AA22: 0.9287796402 | AB22: 0.9361744633 | AC22: 0.9431001781 | AD22: 0.9495998183 | AE22: 0.9557113373 | AF22: 0.9614683327 | AG22: 0.9669006504 | AH22: 0.9720348919 | AI22: 0.9768948416 | AJ22: 0.9815018286 | AK22: 0.9858750342 | AL22: 0.990031755 | AM22: 0.9939876277 | AN22: 0.9977568231 | AO22: =IF(AO14=0,Iout_PreReg+AO23/2,IF(AO$12>AO$14,(Iout_PreReg+AO23/2*(1-AO12))/(1-AO14),Iout_PreReg/(1-AO14)+AO23/2)) -> 1.001352213 | AP22: 1.004785517 | AQ22: 1.008067426 | AR22: 1.011207712 | AS22: 1.014215329 | AT22: 1.01709849 | AU22: 1.019864747 | AV22: 1.022521055 | AW22: 1.025073828 | AX22: 1.027528992 | AY22: 1.02989203 | AZ22: 1.032168022 | BA22: 1.034361684 | BB22: 1.036477396 | BC22: 1.038519233 | BD22: 1.040490992 | BE22: 1.042396215 | BF22: 1.04423821 | BG22: 1.046020067 | BH22: 1.343032154 | BI22: Ilpk | BJ22: Circuit Currents | BL22: Ipk | BM22: 1.734 | BN22: 0.9
B23: Iout V5SNR | C23: 0.05 | D23: Enter V5SNR typical load current | H23: ΔIL | I23: =IF(I$12>I$14,IF(I14=0,I9*I12/(L_buck*10^-6*I19*10^3),(I9*(I14)/(L_buck*10^-6*I19*10^3))),I9*(I12)/(L_buck*10^-6*I19*10^3)) -> 0.3245227385 | J23: 0.1863219576 | K23: 0.1938951339 | L23: 0.198361354 | M23: 0.1998941083 | N23: 0.198615337 | O23: 0.1946141826 | P23: 0.1879579018 | Q23: 0.1786985959 | R23: 0.1668775508 | S23: 0.1525281395 | T23: 0.1356778208 | U23: 0.1163495232 | V23: 0.0947287973 | W23: 0.1255243293 | X23: 0.1452002291 | Y23: 0.1634510162 | Z23: 0.1804250336 | AA23: 0.1962508692 | AB23: 0.2110405153 | AC23: 0.2248919449 | AD23: 0.2378912253 | AE23: 0.2501142635 | AF23: 0.2616282542 | AG23: 0.2724928896 | AH23: 0.2827613726 | AI23: 0.292481272 | AJ23: 0.3016952459 | AK23: 0.3104416572 | AL23: 0.3187550988 | AM23: 0.3266668442 | AN23: 0.334205235 | AO23: =IF(AO$12>AO$14,IF(AO14=0,AO9*AO12/(L_buck*10^-6*AO19*10^3),(AO9*(AO14)/(L_buck*10^-6*AO19*10^3))),AO9*(AO12)/(L_buck*10^-6*AO19*10^3)) -> 0.3413960157 | AP23: 0.3482626235 | AQ23: 0.3548264405 | AR23: 0.3611070134 | AS23: 0.3671222461 | AT23: 0.3728885681 | AU23: 0.3784210828 | AV23: 0.3837336986 | AW23: 0.3888392445 | AX23: 0.3937495723 | AY23: 0.3984756482 | AZ23: 0.4030276334 | BA23: 0.4074149569 | BB23: 0.4116463799 | BC23: 0.415730054 | BD23: 0.4196735728 | BE23: 0.4234840195 | BF23: 0.4271680084 | BG23: 0.430731723 | BH23: 1.024755897 | BI23: ΔIL | BL23: DI | BM23: 0.178 | BN23: 0.252
B24: Iout V5CAN | C24: 0.2 | D24: Enter V5CAN typical load current | H24: IL RMS | I24: =IF(I12>I14,SQRT((I22-I23/2)^2+I23^2/12+(I12-I14)*I23^2/12),SQRT((I22-I23/2)^2+I23^2/12+(I14-I12)*I23^2/12)) -> 0.8385359248 | J24: 1.92253168 | K24: 1.759364212 | L24: 1.620651446 | M24: 1.501550666 | N24: 1.398476014 | O24: 1.308712451 | P24: 1.230166188 | Q24: 1.161197185 | R24: 1.100503945 | S24: 1.047042562 | T24: 0.9999691299 | U24: 0.9586059759 | V24: 0.9223897401 | W24: 0.8320808173 | X24: 0.8325305321 | Y24: 0.8329935109 | Z24: 0.8334610889 | AA24: 0.8339270453 | AB24: 0.8343869567 | AC24: 0.8348377251 | AD24: 0.8352772331 | AE24: 0.8357040886 | AF24: 0.8361174362 | AG24: 0.8365168168 | AH24: 0.8369020624 | AI24: 0.8372732173 | AJ24: 0.8376304789 | AK24: 0.8379741532 | AL24: 0.8383046213 | AM24: 0.8386223143 | AN24: 0.8389276942 | AO24: =IF(AO12>AO14,SQRT((AO22-AO23/2)^2+AO23^2/12+(AO12-AO14)*AO23^2/12),SQRT((AO22-AO23/2)^2+AO23^2/12+(AO14-AO12)*AO23^2/12)) -> 0.8392212395 | AP24: 0.8395034354 | AQ24: 0.8397747654 | AR24: 0.8400357059 | AS24: 0.8402867221 | AT24: 0.8405282653 | AU24: 0.8407607709 | AV24: 0.8409846574 | AW24: 0.8412003253 | AX24: 0.8414081576 | AY24: 0.8416085192 | AZ24: 0.8418017574 | BA24: 0.8419882025 | BB24: 0.8421681682 | BC24: 0.8423419521 | BD24: 0.8425098365 | BE24: 0.842672089 | BF24: 0.8428289634 | BG24: 0.8429807001 | BH24: 0.8900542127 | BI24: IL RMS | BL24: IC rms | BM24: =SQRT(((BM22-BM23/2-Iout_PreReg)^2+BM23^2/12)*(1-BM21)+Iout_PreReg^2*BM21) -> 0.823929844 | BN24: =SQRT(((BN22-BN23/2-Iout_PreReg)^2+BN23^2/12)*(1-BN21)+Iout_PreReg^2*BN21) -> 0.0922046583
B25: Iout V5P | C25: 0.075 | D25: Enter V5P typical load current | H25: Isw buck RMS | I25: =IF(I12>I14,SQRT(I12*(I22-I23/2)^2+I14*I23^2/12),SQRT(I12*(I22-I23/2)^2+I12*I23^2/12)) -> 0.5868062663 | J25: 1.754484985 | K25: 1.586579003 | L25: 1.447859945 | M25: 1.331412053 | N25: 1.232444118 | O25: 1.147526455 | P25: 1.074134457 | Q25: 1.010366157 | R25: 0.9547602176 | S25: 0.9061745698 | T25: 0.8637009596 | U25: 0.8265439564 | V25: 0.79352206 | W25: 0.7460031782 | X25: 0.7318318132 | Y25: 0.7184326688 | Z25: 0.7057386024 | AA25: 0.6936903059 | AB25: 0.6822351776 | AC25: 0.6713263857 | AD25: 0.6609220841 | AE25: 0.6509847552 | AF25: 0.6414806538 | AG25: 0.6323793359 | AH25: 0.6236532566 | AI25: 0.6152774266 | AJ25: 0.6072291165 | AK25: 0.5994876016 | AL25: 0.592033941 | AM25: 0.5848507861 | AN25: 0.5779222127 | AO25: =IF(AO12>AO14,SQRT(AO12*(AO22-AO23/2)^2+AO14*AO23^2/12),SQRT(AO12*(AO22-AO23/2)^2+AO12*AO23^2/12)) -> 0.5712335747 | AP25: 0.5647713758 | AQ25: 0.558523156 | AR25: 0.5524773919 | AS25: 0.5466234085 | AT25: 0.5409513006 | AU25: 0.5354518629 | AV25: 0.5301165283 | AW25: 0.5249373115 | AX25: 0.5199067602 | AY25: 0.5150179093 | AZ25: 0.5102642417 | BA25: 0.5056396514 | BB25: 0.501138411 | BC25: 0.4967551421 | BD25: 0.4924847885 | BE25: 0.4883225917 | BF25: 0.4842640691 | BG25: 0.4803049933 | BH25: 0.3404432843 | BI25: Isw buck RMS | BN25: =SQRT(BN20/3*BN23^2) -> 0.1069145453
B26: Rth,j-a | C26: 30 | D26: Enter junction to ambient thermal resistance | H26: I buck Diode avg | I26: =IF(I$12>I$14,(I22-I23/2)*(1-I12),I22*(I14-I12)+(I22-I23/2)*(1-I14)) -> 0.4161115573 | J26: 0.3205488367 | K26: 0.3275145414 | L26: 0.3258276972 | M26: 0.3194211491 | N26: 0.3105469846 | O26: 0.3005260976 | P26: 0.2901490905 | Q26: 0.2798940521 | R26: 0.2700499334 | S26: 0.2607888619 | T26: 0.2522140254 | U26: 0.2445088591 | V26: 0.2386998428 | W26: 0.1606753646 | X26: 0.1858879489 | Y26: 0.2092819233 | Z26: 0.2310461238 | AA26: 0.2513442627 | AB26: 0.2703189488 | AC26: 0.2880949637 | AD26: 0.3047819494 | AE26: 0.3204766268 | AF26: 0.3352646362 | AG26: 0.3492220745 | AH26: 0.3624167828 | AI26: 0.3749094334 | AJ26: 0.3867544487 | AK26: 0.3980007838 | AL26: 0.408692594 | AM26: 0.4188698076 | AN26: 0.4285686185 | AO26: =IF(AO$12>AO$14,(AO22-AO23/2)*(1-AO12),AO22*(AO14-AO12)+(AO22-AO23/2)*(1-AO14)) -> 0.4378219118 | AP26: 0.4466596327 | AQ26: 0.4551091067 | AR26: 0.4631953202 | AS26: 0.4709411641 | AT26: 0.4783676493 | AU26: 0.4854940949 | AV26: 0.4923382955 | AW26: 0.4989166677 | AX26: 0.5052443811 | AY26: 0.5113354745 | AZ26: 0.5172029589 | BA26: 0.5228589097 | BB26: 0.5283145494 | BC26: 0.5335803215 | BD26: 0.5386659568 | BE26: 0.5435805329 | BF26: 0.5483325283 | BG26: 0.552929871 | BH26: 0.6911236657 | BI26: I buck Diode avg
B27: Iout_PreReg | C27: =I_reg_ext+Vout_sync_buck*Iout_sync_buck/(0.88*Vreg)+Iout_3V3+Iout_V5A+Iout_V5B+Iout_V5CAN+Iout_V5P+Icc -> 0.8306542056 | D27: Total VREG current | H27: I boost SW RMS | I27: =IF(I12>I14,SQRT(I14*(I22-I23/2)^2+I14*I23^2/12),SQRT(I14*(I22-I23/2)^2+I12*I23^2/12)) -> 0 | J27: 1.464011423 | K27: 1.295695101 | L27: 1.151516824 | M27: 1.026483576 | N27: 0.91684661 | O27: 0.8197095522 | P27: 0.7327699383 | Q27: 0.6541391932 | R27: 0.5822087633 | S27: 0.515539659 | T27: 0.452754586 | U27: 0.3924063781 | V27: 0.3327439369 | W27: 0 | X27: 0 | Y27: 0 | Z27: 0 | AA27: 0 | AB27: 0 | AC27: 0 | AD27: 0 | AE27: 0 | AF27: 0 | AG27: 0 | AH27: 0 | AI27: 0 | AJ27: 0 | AK27: 0 | AL27: 0 | AM27: 0 | AN27: 0 | AO27: =IF(AO12>AO14,SQRT(AO14*(AO22-AO23/2)^2+AO14*AO23^2/12),SQRT(AO14*(AO22-AO23/2)^2+AO12*AO23^2/12)) -> 0 | AP27: 0 | AQ27: 0 | AR27: 0 | AS27: 0 | AT27: 0 | AU27: 0 | AV27: 0 | AW27: 0 | AX27: 0 | AY27: 0 | AZ27: 0 | BA27: 0 | BB27: 0 | BC27: 0 | BD27: 0 | BE27: 0 | BF27: 0 | BG27: 0 | BH27: 0 | BI27: I boost SW RMS
H28: I boost Diode avg | I28: =IF(I$12>I$14,I22*(1-I14)+I23/2*(I12-1),(I22-I23/2)*(1-I14)) -> 0.9116316536 | J28: 0.8306542056 | K28: 0.8306542056 | L28: 0.8306542056 | M28: 0.8306542056 | N28: 0.8306542056 | O28: 0.8306542056 | P28: 0.8306542056 | Q28: 0.8306542056 | R28: 0.8306542056 | S28: 0.8306542056 | T28: 0.8306542056 | U28: 0.8306542056 | V28: 0.8306542056 | W28: 0.8812761395 | X28: 0.8870075037 | Y28: 0.8917891101 | Z28: 0.8957741482 | AA28: 0.8990882658 | AB28: 0.9018351137 | AC28: 0.9041006544 | AD28: 0.9059565363 | AE28: 0.9074627551 | AF28: 0.9086697669 | AG28: 0.909620177 | AH28: 0.910350098 | AI28: 0.9108902471 | AJ28: 0.9112668393 | AK28: 0.9115023157 | AL28: 0.9116159429 | AM28: 0.9116243066 | AN28: 0.9115417201 | AO28: =IF(AO$12>AO$14,AO22*(1-AO14)+AO23/2*(AO12-1),(AO22-AO23/2)*(1-AO14)) -> 0.9113805651 | AP28: 0.9111515753 | AQ28: 0.910864075 | AR28: 0.9105261787 | AS28: 0.9101449605 | AT28: 0.9097265974 | AU28: 0.9092764903 | AV28: 0.9087993679 | AW28: 0.9082993754 | AX28: 0.9077801494 | AY28: 0.9072448841 | AZ28: 0.9066963862 | BA28: 0.906137124 | BB28: 0.905569269 | BC28: 0.904994732 | BD28: 0.9044151947 | BE28: 0.9038321369 | BF28: 0.9032468608 | BG28: 0.9026605112 | BH28: 0.916721755 | BI28: I boost Diode avg
B29: A4411 Operating at Vin nom | H29: I Cout RMS | I29: =SQRT(((I22-I23/2-Iout_PreReg)^2+I23^2/12)*(1-I14)+Iout_PreReg^2*I14) -> 0.09368164522 | J29: 0.9493497973 | K29: 0.8771438113 | L29: 0.8111550996 | M29: 0.7503256296 | N29: 0.6937929988 | O29: 0.6408200205 | P29: 0.5907443277 | Q29: 0.542937578 | R29: 0.4967673409 | S29: 0.4515541552 | T29: 0.4065122295 | U29: 0.3606522688 | V29: 0.3125784653 | W29: 0.03623575265 | X29: 0.04191569567 | Y29: 0.04718424411 | Z29: 0.05208422086 | AA29: 0.05665274608 | AB29: 0.06092214917 | AC29: 0.06492071247 | AD29: 0.0686732815 | AE29: 0.07220176867 | AF29: 0.0755255715 | AG29: 0.07866192157 | AH29: 0.08162617729 | AI29: 0.08443207056 | AJ29: 0.08709191572 | AK29: 0.08961678717 | AL29: 0.09201667104 | AM29: 0.09430059521 | AN29: 0.0964767412 | AO29: =SQRT(((AO22-AO23/2-Iout_PreReg)^2+AO23^2/12)*(1-AO14)+Iout_PreReg^2*AO14) -> 0.09855254079 | AP29: 0.1005347597 | AQ29: 0.1024295705 | AR29: 0.1042426157 | AS29: 0.1059790638 | AT29: 0.1076436576 | AU29: 0.109240757 | AV29: 0.1107743771 | AW29: 0.1122482212 | AX29: 0.1136657108 | AY29: 0.1150300114 | AZ29: 0.1163440563 | BA29: 0.1176105675 | BB29: 0.1188320741 | BC29: 0.1200109293 | BD29: 0.1211493251 | BE29: 0.1222493063 | BF29: 0.1233127823 | BG29: 0.1243415381 | BH29: 0.2958215466
B30: Pdiss Total | C30: =IF(Topology="Buck",I88,I3) -> 0.6183470409 | D30: A4411 Power dissipation at nominal input voltage | G30: BUCK FET | H30: Rds_On Buck | I30: =IF(I2>7,Buck_RdsON_factor_7V*(I4-150)+Rds_ON_150_7V,Buck_RdsON_factor_6V*(I4-150)+Rds_ON_150_6V) -> 0.1765850446 | J30: 0.1949490871 | K30: 0.1931845754 | L30: 0.1918994343 | M30: 0.19094074 | N30: 0.1902135131 | O30: 0.1896559435 | P30: 0.1892262367 | Q30: 0.1888952286 | R30: 0.1886420249 | S30: 0.1884513179 | T30: 0.1883116657 | U30: 0.188214058 | V30: 0.1751479353 | W30: 0.1750425704 | X30: 0.1750891577 | Y30: 0.1751441609 | Z30: 0.1752071326 | AA30: 0.1752776854 | AB30: 0.175355482 | AC30: 0.1754402277 | AD30: 0.175531664 | AE30: 0.1756295628 | AF30: 0.1757337224 | AG30: 0.1758439638 | AH30: 0.1759601275 | AI30: 0.176082071 | AJ30: 0.1762096664 | AK30: 0.1763427989 | AL30: 0.176481365 | AM30: 0.1766252712 | AN30: 0.1767744325 | AO30: =IF(AO2>7,Buck_RdsON_factor_7V*(AO4-150)+Rds_ON_150_7V,Buck_RdsON_factor_6V*(AO4-150)+Rds_ON_150_6V) -> 0.1769287722 | AP30: 0.17708822 | AQ30: 0.1772527121 | AR30: 0.1774221901 | AS30: 0.1775966006 | AT30: 0.1777758944 | AU30: 0.1779600264 | AV30: 0.1781489552 | AW30: 0.1783426424 | AX30: 0.1785410526 | AY30: 0.1787441532 | AZ30: 0.1789519139 | BA30: 0.1791643064 | BB30: 0.1793813046 | BC30: 0.1796028844 | BD30: 0.1798290229 | BE30: 0.1800596991 | BF30: 0.1802948932 | BG30: 0.1805345869 | BH30: 0.1886430425 | BI30: Rds_On Buck | BJ30: BUCK FET
B31: Tj estimate | C31: =IF(Reset=1,150,Ta+Rth_ja*Pdiss_total) -> 143.5504112 | D31: Estimated A4411 junction temperature at nominal input voltage | H31: Conduction Losses | I31: =I25^2*I30 -> 0.06080557576 | J31: 0.6000957038 | K31: 0.486290575 | L31: 0.4022784811 | M31: 0.3384726408 | N31: 0.288918825 | O31: 0.2497421638 | P31: 0.2183225771 | Q31: 0.1928317621 | R31: 0.1719598585 | S31: 0.1547472427 | T31: 0.1404766135 | U31: 0.1285831225 | V31: 0.1102866719 | W31: 0.09741482115 | X31: 0.09377386635 | Y31: 0.09039987043 | Z31: 0.08726488654 | AA31: 0.08434471601 | AB31: 0.08161830382 | AC31: 0.07906724675 | AD31: 0.07667539061 | AE31: 0.07442849834 | AF31: 0.07231397499 | AG31: 0.07032063846 | AH31: 0.06843852752 | AI31: 0.06665874017 | AJ31: 0.0649732969 | AK31: 0.06337502459 | AL31: 0.06185745743 | AM31: 0.06041475207 | AN31: 0.05904161466 | AO31: =AO25^2*AO30 -> 0.05773323785 | AP31: 0.05648524636 | AQ31: 0.05529364955 | AR31: 0.05415480016 | AS31: 0.05306535823 | AT31: 0.05202225945 | AU31: 0.05102268738 | AV31: 0.05006404888 | AW31: 0.04914395248 | AX31: 0.04826018916 | AY31: 0.04741071532 | AZ31: 0.04659363758 | BA31: 0.04580719926 | BB31: 0.04504976828 | BC31: 0.0443198263 | BD31: 0.04361595903 | BE31: 0.04293684742 | BF31: 0.04228125985 | BG31: 0.04164804497 | BH31: 0.02186403607 | BI31: Conduction Losses
B32: T rise | C32: =Tj-Ta -> 18.55041123 | D32: A4411 temperature rise at nominal input voltage | H32: Switching Losses | I32: =0.5*I2*Iout_PreReg*I19*10^3*(I2/SLEW_rate+I2/1.5)*10^-9 -> 0.2126474766 | J32: 0.0180898027 | K32: 0.0212780326 | L32: 0.02472488813 | M32: 0.02843036931 | N32: 0.03239447613 | O32: 0.0366172086 | P32: 0.0410985667 | Q32: 0.04583855045 | R32: 0.05083715984 | S32: 0.05609439487 | T32: 0.06161025554 | U32: 0.06738474185 | V32: 0.07341785381 | W32: 0.07970959141 | X32: 0.08625995465 | Y32: 0.09306894353 | Z32: 0.1001365581 | AA32: 0.1074627982 | AB32: 0.115047664 | AC32: 0.1228911555 | AD32: 0.1309932726 | AE32: 0.1393540153 | AF32: 0.1479733837 | AG32: 0.1568513777 | AH32: 0.1659879974 | AI32: 0.1753832427 | AJ32: 0.1850371136 | AK32: 0.1949496102 | AL32: 0.2051207324 | AM32: 0.2155504803 | AN32: 0.2262388538 | AO32: =0.5*AO2*Iout_PreReg*AO19*10^3*(AO2/SLEW_rate+AO2/1.5)*10^-9 -> 0.2371858529 | AP32: 0.2483914777 | AQ32: 0.2598557282 | AR32: 0.2715786042 | AS32: 0.283560106 | AT32: 0.2958002333 | AU32: 0.3082989863 | AV32: 0.321056365 | AW32: 0.3340723693 | AX32: 0.3473469992 | AY32: 0.3608802548 | AZ32: 0.374672136 | BA32: 0.3887226428 | BB32: 0.4030317753 | BC32: 0.4175995335 | BD32: 0.4324259172 | BE32: 0.4475109267 | BF32: 0.4628545617 | BG32: 0.4784568224 | BH32: 1.004619887 | BI32: Switching Losses
H33: Total Buck FET Losses | I33: =I31+I32 -> 0.2734530524 | J33: =J31+J32 -> 0.6181855065 | K33: =IF(K15=1/fsw*10^3,K30*K25^2,K31+K32) -> 0.5075686076 | L33: 0.4270033692 | M33: 0.3669030101 | N33: 0.3213133011 | O33: 0.2863593724 | P33: 0.2594211438 | Q33: 0.2386703125 | R33: 0.2227970183 | S33: 0.2108416376 | T33: 0.2020868691 | U33: 0.1959678644 | V33: 0.1837045257 | W33: 0.1771244126 | X33: 0.180033821 | Y33: 0.183468814 | Z33: 0.1874014446 | AA33: 0.1918075142 | AB33: 0.1966659679 | AC33: 0.2019584022 | AD33: 0.2076686632 | AE33: 0.2137825136 | AF33: 0.2202873587 | AG33: 0.2271720162 | AH33: 0.2344265249 | AI33: 0.2420419828 | AJ33: 0.2500104105 | AK33: 0.2583246348 | AL33: 0.2669781898 | AM33: 0.2759652323 | AN33: 0.2852804684 | AO33: 0.2949190908 | AP33: 0.3048767241 | AQ33: =IF(AQ15=1/fsw*10^3,AQ30*AQ25^2,AQ31+AQ32) -> 0.3151493777 | AR33: 0.3257334044 | AS33: 0.3366254642 | AT33: 0.3478224928 | AU33: 0.3593216737 | AV33: 0.3711204138 | AW33: 0.3832163217 | AX33: 0.3956071883 | AY33: 0.4082909701 | AZ33: 0.4212657735 | BA33: 0.4345298421 | BB33: 0.4480815436 | BC33: 0.4619193598 | BD33: 0.4760418763 | BE33: 0.4904477741 | BF33: 0.5051358216 | BG33: 0.5201048674 | BH33: 1.026483923 | BI33: Total Buck FET Losses
B34: Tj (MAX): | C34: =IF(Topology="Buck",MAX(J89:BH89),MAX(J4:BH4)) -> 166.3235132 | D34: Maximum junction temperature at worse case input voltage | G34: 3V3 LDO | H34: Output voltage | I34: =IF(I21-Iout_3V3*I35>3.3,3.3,I21-Iout_3V3*I35) -> 3.3 | J34: 3.3 | K34: 3.3 | L34: 3.3 | M34: 3.3 | N34: 3.3 | O34: 3.3 | P34: 3.3 | Q34: 3.3 | R34: 3.3 | S34: 3.3 | T34: 3.3 | U34: 3.3 | V34: 3.3 | W34: 3.3 | X34: 3.3 | Y34: 3.3 | Z34: 3.3 | AA34: 3.3 | AB34: 3.3 | AC34: 3.3 | AD34: 3.3 | AE34: 3.3 | AF34: 3.3 | AG34: 3.3 | AH34: 3.3 | AI34: 3.3 | AJ34: 3.3 | AK34: 3.3 | AL34: 3.3 | AM34: 3.3 | AN34: 3.3 | AO34: =IF(AO21-Iout_3V3*AO35>3.3,3.3,AO21-Iout_3V3*AO35) -> 3.3 | AP34: 3.3 | AQ34: 3.3 | AR34: 3.3 | AS34: 3.3 | AT34: 3.3 | AU34: 3.3 | AV34: 3.3 | AW34: 3.3 | AX34: 3.3 | AY34: 3.3 | AZ34: 3.3 | BA34: 3.3 | BB34: 3.3 | BC34: 3.3 | BD34: 3.3 | BE34: 3.3 | BF34: 3.3 | BG34: 3.3 | BH34: 3.3 | BI34: Output voltage | BJ34: 5V0 LDO
C35: =IF(Topology="Buck",HLOOKUP(C34,J89:BH90,2,FALSE),HLOOKUP(C34,J4:BH5,2,FALSE)) -> 36 | H35: Series pass resistance | I35: =(Rds_ON_3V3_150-Rds_ON_3V3_min40)/190*(I4-150)+Rds_ON_3V3_150 -> 0.4970358276 | J35: 0.5066765542 | K35: 0.5035830618 | L35: 0.5013299886 | M35: 0.4996492327 | N35: 0.4983742789 | O35: 0.4973967635 | P35: 0.4966434138 | Q35: 0.4960630997 | R35: 0.4956191899 | S35: 0.4952848478 | T35: 0.4950400135 | U35: 0.4948688905 | V35: 0.4945259361 | W35: 0.4943419179 | X35: 0.4944232819 | Y35: 0.4945193443 | Z35: 0.4946293235 | AA35: 0.4947525429 | AB35: 0.4948884136 | AC35: 0.4950364208 | AD35: 0.495196113 | AE35: 0.4953670919 | AF35: 0.4955490052 | AG35: 0.4957415403 | AH35: 0.4959444187 | AI35: 0.4961573912 | AJ35: 0.4963802349 | AK35: 0.496612749 | AL35: 0.4968547528 | AM35: 0.4971060828 | AN35: 0.4973665911 | AO35: =(Rds_ON_3V3_150-Rds_ON_3V3_min40)/190*(AO4-150)+Rds_ON_3V3_150 -> 0.4976361431 | AP35: 0.4979146165 | AQ35: 0.4982018997 | AR35: 0.4984978907 | AS35: 0.4988024962 | AT35: 0.4991156303 | AU35: 0.4994372143 | AV35: 0.4997671758 | AW35: 0.5001054478 | AX35: 0.5004519686 | AY35: 0.500806681 | AZ35: 0.5011695321 | BA35: 0.5015404726 | BB35: 0.5019194571 | BC35: 0.502306443 | BD35: 0.5027013908 | BE35: 0.5031042636 | BF35: 0.5035150269 | BG35: 0.5039336486 | BH35: 0.518094954 | BI35: Series pass resistance
H36: Power dissipated | I36: =(I21-I34)*Iout_3V3 -> 0 | J36: 0 | K36: 0 | L36: 0 | M36: 0 | N36: 0 | O36: 0 | P36: 0 | Q36: 0 | R36: 0 | S36: 0 | T36: 0 | U36: 0 | V36: 0 | W36: 0 | X36: 0 | Y36: 0 | Z36: 0 | AA36: 0 | AB36: 0 | AC36: 0 | AD36: 0 | AE36: 0 | AF36: 0 | AG36: 0 | AH36: 0 | AI36: 0 | AJ36: 0 | AK36: 0 | AL36: 0 | AM36: 0 | AN36: 0 | AO36: =(AO21-AO34)*Iout_3V3 -> 0 | AP36: 0 | AQ36: 0 | AR36: 0 | AS36: 0 | AT36: 0 | AU36: 0 | AV36: 0 | AW36: 0 | AX36: 0 | AY36: 0 | AZ36: 0 | BA36: 0 | BB36: 0 | BC36: 0 | BD36: 0 | BE36: 0 | BF36: 0 | BG36: 0 | BH36: 0 | BI36: Power dissipated
B37: Inductor Calculation, Pre-Regulator | G37: Adj BUCK | H37: V1 | I37: =IF(Reset=1,Vreg-Vout_sync_buck,Vreg-Iout_sync_buck*(I49+DCR2*10^-3)-Vout_sync_buck) -> 1.842390469 | J37: 1.838526419 | K37: 1.839766306 | L37: 1.840669349 | M37: 1.841343004 | N37: 1.841854011 | O37: 1.842245804 | P37: 1.84254775 | Q37: 1.842780343 | R37: 1.842958264 | S37: 1.84309227 | T37: 1.843190401 | U37: 1.843258988 | V37: 1.843396445 | W37: 1.843470201 | X37: 1.84343759 | Y37: 1.843399087 | Z37: 1.843355007 | AA37: 1.84330562 | AB37: 1.843251163 | AC37: 1.843191841 | AD37: 1.843127835 | AE37: 1.843059306 | AF37: 1.842986394 | AG37: 1.842909225 | AH37: 1.842827911 | AI37: 1.84274255 | AJ37: 1.842653234 | AK37: 1.842560041 | AL37: 1.842463044 | AM37: 1.84236231 | AN37: 1.842257897 | AO37: =IF(Reset=1,Vreg-Vout_sync_buck,Vreg-Iout_sync_buck*(AO49+DDX2*10^-3)-Vout_sync_buck) -> 1.842149859 | AP37: 1.842038246 | AQ37: 1.841923102 | AR37: 1.841804467 | AS37: 1.84168238 | AT37: 1.841556874 | AU37: 1.841427982 | AV37: 1.841295731 | AW37: 1.84116015 | AX37: 1.841021263 | AY37: 1.840879093 | AZ37: 1.84073366 | BA37: 1.840584986 | BB37: 1.840433087 | BC37: 1.840277981 | BD37: 1.840119684 | BE37: 1.839958211 | BF37: 1.839793575 | BG37: 1.839625789 | BH37: 1.83394987
B38: Ripple Current | C38: 0.35 | D38: Select desired inductor ripple current, 20% to 45% | H38: V3 | I38: =IF(Reset=1,Vout_sync_buck,Vout_sync_buck+Iout_sync_buck*(I53+dcr_2*10^-3)) -> 3.441109531 | J38: 3.444973581 | K38: 3.443733694 | L38: 3.442830651 | M38: 3.442156996 | N38: 3.441645989 | O38: 3.441254196 | P38: 3.44095225 | Q38: 3.440719657 | R38: 3.440541736 | S38: 3.44040773 | T38: 3.440309599 | U38: 3.440241012 | V38: 3.440103555 | W38: 3.440029799 | X38: 3.44006241 | Y38: 3.440100913 | Z38: 3.440144993 | AA38: 3.44019438 | AB38: 3.440248837 | AC38: 3.440308159 | AD38: 3.440372165 | AE38: 3.440440694 | AF38: 3.440513606 | AG38: 3.440590775 | AH38: 3.440672089 | AI38: 3.44075745 | AJ38: 3.440846766 | AK38: 3.440939959 | AL38: 3.441036956 | AM38: 3.44113769 | AN38: 3.441242103 | AO38: =IF(Reset=1,Vout_sync_buck,Vout_sync_buck+Iout_sync_buck*(AO53+dcr_2*10^-3)) -> 3.441350141 | AP38: 3.441461754 | AQ38: 3.441576898 | AR38: 3.441695533 | AS38: 3.44181762 | AT38: 3.441943126 | AU38: 3.442072018 | AV38: 3.442204269 | AW38: 3.44233985 | AX38: 3.442478737 | AY38: 3.442620907 | AZ38: 3.44276634 | BA38: 3.442915014 | BB38: 3.443066913 | BC38: 3.443222019 | BD38: 3.443380316 | BE38: 3.443541789 | BF38: 3.443706425 | BG38: 3.443874211 | BH38: 3.44955013
B39: L calculated | C39: =ROUNDUP((Vin_nom-Vreg)*Vreg/(Vin_nom*fsw*10^-3*k_ripple*Iout_PreReg),2) -> 5.1 | D39: Recommended minimum inductor value | H39: Required Buck duty | I39: =IF(Reset=1,Vout_sync_buck/Vreg,I38/(I37+I38)) -> 0.6512935613 | J39: 0.652024904 | K39: 0.6517902326 | L39: 0.6516193151 | M39: 0.6514918135 | N39: 0.6513950958 | O39: 0.6513209418 | P39: 0.6512637929 | Q39: 0.6512197705 | R39: 0.6511860956 | S39: 0.6511607325 | T39: 0.6511421594 | U39: 0.6511291781 | V39: 0.6511031617 | W39: 0.6510892021 | X39: 0.6510953743 | Y39: 0.6511026616 | Z39: 0.6511110046 | AA39: 0.651120352 | AB39: 0.6511306591 | AC39: 0.6511418869 | AD39: 0.6511540011 | AE39: 0.6511669715 | AF39: 0.6511807714 | AG39: 0.6511953771 | AH39: 0.6512107673 | AI39: 0.6512269234 | AJ39: 0.6512438282 | AK39: 0.6512614667 | AL39: 0.651279825 | AM39: 0.6512988909 | AN39: 0.6513186529 | AO39: =IF(Reset=1,Vout_sync_buck/Vreg,AO38/(AO37+AO38)) -> 0.6513391011 | AP39: 0.651360226 | AQ39: 0.6513820192 | AR39: 0.651404473 | AS39: 0.6514275803 | AT39: 0.6514513345 | AU39: 0.6514757298 | AV39: 0.6515007606 | AW39: 0.6515264218 | AX39: 0.6515527088 | AY39: 0.6515796172 | AZ39: 0.6516071429 | BA39: 0.6516352824 | BB39: 0.651664032 | BC39: 0.6516933887 | BD39: 0.6517233493 | BE39: 0.6517539111 | BF39: 0.6517850715 | BG39: 0.651816828 | BH39: 0.6528911005
B40: Irms | C40: =IF(Topology="buck",MAX(J104:BG104),MAX(J24:BG24)) -> 1.92253168 | D40: Maximum RMS inductor current, must be less than inductor DC rating | H40: ton buck | I40: =I39/(fsw*10^3)*10^6 -> 0.3256467807 | J40: 0.326012452 | K40: 0.3258951163 | L40: 0.3258096576 | M40: 0.3257459067 | N40: 0.3256975479 | O40: 0.3256604709 | P40: 0.3256318965 | Q40: 0.3256098852 | R40: 0.3255930478 | S40: 0.3255803662 | T40: 0.3255710797 | U40: 0.325564589 | V40: 0.3255515808 | W40: 0.325544601 | X40: 0.3255476872 | Y40: 0.3255513308 | Z40: 0.3255555023 | AA40: 0.325560176 | AB40: 0.3255653296 | AC40: 0.3255709434 | AD40: 0.3255770005 | AE40: 0.3255834858 | AF40: 0.3255903857 | AG40: 0.3255976885 | AH40: 0.3256053837 | AI40: 0.3256134617 | AJ40: 0.3256219141 | AK40: 0.3256307333 | AL40: 0.3256399125 | AM40: 0.3256494454 | AN40: 0.3256593265 | AO40: =AO39/(fsw*10^3)*10^6 -> 0.3256695505 | AP40: 0.325680113 | AQ40: 0.3256910096 | AR40: 0.3257022365 | AS40: 0.3257137901 | AT40: 0.3257256673 | AU40: 0.3257378649 | AV40: 0.3257503803 | AW40: 0.3257632109 | AX40: 0.3257763544 | AY40: 0.3257898086 | AZ40: 0.3258035715 | BA40: 0.3258176412 | BB40: 0.325832016 | BC40: 0.3258466943 | BD40: 0.3258616746 | BE40: 0.3258769556 | BF40: 0.3258925357 | BG40: 0.325908414 | BH40: 0.3264455503
B41: Ipk | C41: =IF(Topology="buck",MAX(J102:BG102),MAX(J22:BG22)) -> 2.014749542 | D41: Maximum peak inductor current, must be less than inductor saturation current | H41: toff buck | I41: =1/(fsw*10^-3)-I40 -> 0.1743532193 | J41: 0.173987548 | K41: 0.1741048837 | L41: 0.1741903424 | M41: 0.1742540933 | N41: 0.1743024521 | O41: 0.1743395291 | P41: 0.1743681035 | Q41: 0.1743901148 | R41: 0.1744069522 | S41: 0.1744196338 | T41: 0.1744289203 | U41: 0.174435411 | V41: 0.1744484192 | W41: 0.174455399 | X41: 0.1744523128 | Y41: 0.1744486692 | Z41: 0.1744444977 | AA41: 0.174439824 | AB41: 0.1744346704 | AC41: 0.1744290566 | AD41: 0.1744229995 | AE41: 0.1744165142 | AF41: 0.1744096143 | AG41: 0.1744023115 | AH41: 0.1743946163 | AI41: 0.1743865383 | AJ41: 0.1743780859 | AK41: 0.1743692667 | AL41: 0.1743600875 | AM41: 0.1743505546 | AN41: 0.1743406735 | AO41: =1/(fsw*10^-3)-AO40 -> 0.1743304495 | AP41: 0.174319887 | AQ41: 0.1743089904 | AR41: 0.1742977635 | AS41: 0.1742862099 | AT41: 0.1742743327 | AU41: 0.1742621351 | AV41: 0.1742496197 | AW41: 0.1742367891 | AX41: 0.1742236456 | AY41: 0.1742101914 | AZ41: 0.1741964285 | BA41: 0.1741823588 | BB41: 0.174167984 | BC41: 0.1741533057 | BD41: 0.1741383254 | BE41: 0.1741230444 | BF41: 0.1741074643 | BG41: 0.174091586 | BH41: 0.1735544497
B42: DCR < | C42: =ROUNDDOWN(0.033*Vreg*Iout_PreReg/C40^2*1000,0) -> 39 | D42: Recommended inductor DC resistance | H42: VREG_actual | I42: =I37*I39/(1-I39)-Iout_sync_buck*(I53+dcr_2*10^-3) -> 3.3 | J42: 3.3 | K42: 3.3 | L42: 3.3 | M42: 3.3 | N42: 3.3 | O42: 3.3 | P42: 3.3 | Q42: 3.3 | R42: 3.3 | S42: 3.3 | T42: 3.3 | U42: 3.3 | V42: 3.3 | W42: 3.3 | X42: 3.3 | Y42: 3.3 | Z42: 3.3 | AA42: 3.3 | AB42: 3.3 | AC42: 3.3 | AD42: 3.3 | AE42: 3.3 | AF42: 3.3 | AG42: 3.3 | AH42: 3.3 | AI42: 3.3 | AJ42: 3.3 | AK42: 3.3 | AL42: 3.3 | AM42: 3.3 | AN42: 3.3 | AO42: =AO37*AO39/(1-AO39)-Iout_sync_buck*(AO53+dcr_2*10^-3) -> 3.3 | AP42: 3.3 | AQ42: 3.3 | AR42: 3.3 | AS42: 3.3 | AT42: 3.3 | AU42: 3.3 | AV42: 3.3 | AW42: 3.3 | AX42: 3.3 | AY42: 3.3 | AZ42: 3.3 | BA42: 3.3 | BB42: 3.3 | BC42: 3.3 | BD42: 3.3 | BE42: 3.3 | BF42: 3.3 | BG42: 3.3 | BH42: 3.3
B43: Lout = | C43: 4.7 | D43: Enter selected inductor value at total VREG current | H43: Ilpk | I43: =Iout_sync_buck+I44/2 -> 0.7638264388 | J43: 0.7637640964 | K43: 0.7637841334 | L43: 0.7637987075 | M43: 0.7638095688 | N43: 0.7638178016 | O43: 0.7638241102 | P43: 0.76382897 | Q43: 0.7638327123 | R43: 0.7638355743 | S43: 0.7638377294 | T43: 0.7638393073 | U43: 0.7638404101 | V43: 0.7638426199 | W43: 0.7638438054 | X43: 0.7638432813 | Y43: 0.7638426624 | Z43: 0.7638419538 | AA43: 0.7638411598 | AB43: 0.7638402843 | AC43: 0.7638393305 | AD43: 0.7638383013 | AE43: 0.7638371993 | AF43: 0.7638360267 | AG43: 0.7638347855 | AH43: 0.7638334775 | AI43: 0.7638321043 | AJ43: 0.7638306673 | AK43: 0.7638291678 | AL43: 0.7638276069 | AM43: 0.7638259856 | AN43: 0.7638243049 | AO43: =Iout_sync_buck+AO44/2 -> 0.7638225656 | AP43: 0.7638207685 | AQ43: 0.7638189143 | AR43: 0.7638170036 | AS43: 0.763815037 | AT43: 0.7638130151 | AU43: 0.7638109382 | AV43: 0.7638088069 | AW43: 0.7638066215 | AX43: 0.7638043825 | AY43: 0.7638020901 | AZ43: 0.7637997447 | BA43: 0.7637973466 | BB43: 0.7637948961 | BC43: 0.7637923933 | BD43: 0.7637898385 | BE43: 0.7637872319 | BF43: 0.7637845738 | BG43: 0.7637818642 | BH43: 0.7636898696
B44: Lout DCR | C44: 37 | D44: Enter selected inductor DC resistance | H44: ΔIL | I44: =I37*I39/(L_buck2*10^-6*fsw*10^3) -> 0.1276528776 | J44: 0.1275281928 | K44: 0.1275682669 | L44: 0.1275974149 | M44: 0.1276191375 | N44: 0.1276356032 | O44: 0.1276482204 | P44: 0.12765794 | Q44: 0.1276654247 | R44: 0.1276711485 | S44: 0.1276754588 | T44: 0.1276786147 | U44: 0.1276808202 | V44: 0.1276852398 | W44: 0.1276876109 | X44: 0.1276865625 | Y44: 0.1276853247 | Z44: 0.1276839075 | AA44: 0.1276823196 | AB44: 0.1276805686 | AC44: 0.127678661 | AD44: 0.1276766026 | AE44: 0.1276743986 | AF44: 0.1276720534 | AG44: 0.127669571 | AH44: 0.1276669551 | AI44: 0.1276642087 | AJ44: 0.1276613347 | AK44: 0.1276583356 | AL44: 0.1276552137 | AM44: 0.1276519712 | AN44: 0.1276486098 | AO44: =AO37*AO39/(L_buck2*10^-6*fsw*10^3) -> 0.1276451312 | AP44: 0.127641537 | AQ44: 0.1276378286 | AR44: 0.1276340072 | AS44: 0.1276300741 | AT44: 0.1276260301 | AU44: 0.1276218764 | AV44: 0.1276176138 | AW44: 0.1276132431 | AX44: 0.127608765 | AY44: 0.1276041803 | AZ44: 0.1275994895 | BA44: 0.1275946933 | BB44: 0.1275897921 | BC44: 0.1275847865 | BD44: 0.127579677 | BE44: 0.1275744638 | BF44: 0.1275691475 | BG44: 0.1275637284 | BH44: 0.1273797393
B45: Ripple | C45: =I103/Iout_PreReg -> 0.3892515551 | D45: Actual inductor ripple current at nominal input voltage | H45: IL RMS | I45: =SQRT((I43-I44/2)^2+I44^2/12) -> 0.7009692847 | J45: =SQRT((J43-J44/2)^2+J44^2/12) -> 0.7009673934 | K45: 0.7009680011 | L45: 0.7009684432 | M45: 0.7009687727 | N45: 0.7009690226 | O45: 0.700969214 | P45: 0.7009693615 | Q45: 0.7009694751 | R45: 0.700969562 | S45: 0.7009696274 | T45: 0.7009696753 | U45: 0.7009697088 | V45: 0.7009697759 | W45: 0.7009698119 | X45: 0.700969796 | Y45: 0.7009697772 | Z45: 0.7009697557 | AA45: 0.7009697316 | AB45: 0.700969705 | AC45: 0.700969676 | AD45: 0.7009696448 | AE45: 0.7009696113 | AF45: 0.7009695757 | AG45: 0.7009695381 | AH45: 0.7009694984 | AI45: 0.7009694567 | AJ45: 0.700969413 | AK45: 0.7009693675 | AL45: 0.7009693202 | AM45: 0.7009692709 | AN45: 0.7009692199 | AO45: 0.7009691671 | AP45: 0.7009691126 | AQ45: 0.7009690563 | AR45: 0.7009689984 | AS45: 0.7009689387 | AT45: 0.7009688773 | AU45: 0.7009688143 | AV45: 0.7009687496 | AW45: 0.7009686833 | AX45: 0.7009686154 | AY45: 0.7009685458 | AZ45: 0.7009684747 | BA45: 0.7009684019 | BB45: 0.7009683276 | BC45: 0.7009682516 | BD45: 0.7009681741 | BE45: 0.7009680951 | BF45: 0.7009680145 | BG45: 0.7009679323 | BH45: 0.700965144
H46: I_hi_sw buck RMS | I46: =SQRT(I39*((I43-I44/2)^2+I44^2/12)) -> 0.5657015657 | J46: =SQRT(J39*((J43-J44/2)^2+J44^2/12)) -> 0.5660175648 | K46: 0.565916188 | L46: 0.5658423406 | M46: 0.5657872449 | N46: 0.5657454479 | O46: 0.5657133996 | P46: 0.5656886994 | Q46: 0.5656696717 | R46: 0.5656551161 | S46: 0.5656441529 | T46: 0.5656361246 | U46: 0.5656305132 | V46: 0.5656192671 | W46: 0.5656132327 | X46: 0.5656159009 | Y46: 0.565619051 | Z46: 0.5656226574 | AA46: 0.565626698 | AB46: 0.5656311534 | AC46: 0.5656360068 | AD46: 0.5656412433 | AE46: 0.5656468498 | AF46: 0.5656528148 | AG46: 0.565659128 | AH46: 0.5656657803 | AI46: 0.5656727634 | AJ46: 0.5656800702 | AK46: 0.5656876939 | AL46: 0.5656956287 | AM46: 0.5657038691 | AN46: 0.5657124103 | AO46: 0.5657212479 | AP46: 0.5657303779 | AQ46: 0.5657397965 | AR46: 0.5657495004 | AS46: 0.5657594866 | AT46: 0.5657697521 | AU46: 0.5657802945 | AV46: 0.5657911113 | AW46: 0.5658022004 | AX46: 0.5658135595 | AY46: 0.565825187 | AZ46: 0.565837081 | BA46: 0.5658492399 | BB46: 0.5658616621 | BC46: 0.5658743464 | BD46: 0.5658872913 | BE46: 0.5659004956 | BF46: 0.5659139582 | BG46: 0.565927678 | BH46: 0.5663915915
B47: Output Capacitor, Pre-Regulator | H47: I_lo_sw buck RMS | I47: =SQRT((1-I39)*((I43-I44/2)^2+I44^2/12)) -> 0.4139319711 | J47: =SQRT((1-J39)*((J43-J44/2)^2+J44^2/12)) -> 0.4134965575 | K47: 0.4136363218 | L47: 0.4137380862 | M47: 0.4138139845 | N47: 0.4138715487 | O47: 0.4139156781 | P47: 0.4139496844 | Q47: 0.413975878 | R47: 0.4139959136 | S47: 0.4140110033 | T47: 0.4140220529 | U47: 0.4140297757 | V47: 0.4140452528 | W47: 0.414053557 | X47: 0.4140498853 | Y47: 0.4140455502 | Z47: 0.4140405871 | AA47: 0.4140350264 | AB47: 0.4140288946 | AC47: 0.414022215 | AD47: 0.414015008 | AE47: 0.4140072914 | AF47: 0.4139990812 | AG47: 0.4139903915 | AH47: 0.4139812347 | AI47: 0.4139716221 | AJ47: 0.4139615637 | AK47: 0.4139510686 | AL47: 0.4139401448 | AM47: 0.4139287998 | AN47: 0.4139170401 | AO47: 0.4139048718 | AP47: 0.4138923005 | AQ47: 0.413879331 | AR47: 0.413865968 | AS47: 0.4138522156 | AT47: 0.4138380777 | AU47: 0.4138235577 | AV47: 0.413808659 | AW47: 0.4137933845 | AX47: 0.4137777369 | AY47: 0.4137617189 | AZ47: 0.4137453326 | BA47: 0.4137285804 | BB47: 0.4137114642 | BC47: 0.4136939858 | BD47: 0.4136761472 | BE47: 0.4136579497 | BF47: 0.4136393951 | BG47: 0.4136204846 | BH47: 0.4129802637
B48: Vripple | C48: 0.01 | D48: Enter VREG maximum output switching frequency ripple | H48: I cout RMS | I48: =SQRT(((I43-I44/2-Iout_sync_buck)^2+I44^2/12)) -> 0.03685021163 | J48: 0.03681421822 | K48: 0.03682578661 | L48: 0.03683420093 | M48: 0.0368404717 | N48: 0.03684522493 | O48: 0.03684886721 | P48: 0.03685167302 | Q48: 0.03685383365 | R48: 0.03685548599 | S48: 0.03685673025 | T48: 0.03685764127 | U48: 0.03685827795 | V48: 0.03685955377 | W48: 0.03686023825 | X48: 0.03685993562 | Y48: 0.03685957829 | Z48: 0.03685916918 | AA48: 0.0368587108 | AB48: 0.03685820531 | AC48: 0.03685765464 | AD48: 0.03685706044 | AE48: 0.03685642419 | AF48: 0.0368557472 | AG48: 0.03685503061 | AH48: 0.03685427544 | AI48: 0.03685348262 | AJ48: 0.03685265297 | AK48: 0.03685178721 | AL48: 0.03685088601 | AM48: 0.03684994996 | AN48: 0.03684897961 | AO48: =SQRT(((AO43-AO44/2-Iout_sync_buck)^2+AO44^2/12)) -> 0.03684797544 | AP48: 0.03684693789 | AQ48: 0.03684586736 | AR48: 0.03684476422 | AS48: 0.03684362881 | AT48: 0.03684246142 | AU48: 0.03684126235 | AV48: 0.03684003183 | AW48: 0.03683877012 | AX48: 0.03683747741 | AY48: 0.03683615391 | AZ48: 0.03683479981 | BA48: 0.03683341526 | BB48: 0.03683200042 | BC48: 0.03683055543 | BD48: 0.03682908042 | BE48: 0.03682757552 | BF48: 0.03682604083 | BG48: 0.03682447646 | BH48: 0.03677136338
B49: I Step | C49: 0.7 | D49: Enter worst case transient load step | G49: Adj BUCK High Side FET | H49: Rds_On Buck | I49: =Buck_RdsON_factor_7V*(I4-150)+Adj_buck_hi_rdsON_150 -> 0.2965850446 | J49: 0.302105115 | K49: 0.3003338485 | L49: 0.2990437878 | M49: 0.2980814235 | N49: 0.2973514127 | O49: 0.2967917086 | P49: 0.2963603569 | Q49: 0.2960280817 | R49: 0.2957739086 | S49: 0.2955824716 | T49: 0.2954422848 | U49: 0.2953443035 | V49: 0.2951479353 | W49: 0.2950425704 | X49: 0.2950891577 | Y49: 0.2951441609 | Z49: 0.2952071326 | AA49: 0.2952776854 | AB49: 0.295355482 | AC49: 0.2954402277 | AD49: 0.295531664 | AE49: 0.2956295628 | AF49: 0.2957337224 | AG49: 0.2958439638 | AH49: 0.2959601275 | AI49: 0.296082071 | AJ49: 0.2962096664 | AK49: 0.2963427989 | AL49: 0.296481365 | AM49: 0.2966252712 | AN49: 0.2967744325 | AO49: =Buck_RdsON_factor_7V*(AO4-150)+Adj_buck_hi_rdsON_150 -> 0.2969287722 | AP49: 0.29708822 | AQ49: 0.2972527121 | AR49: 0.2974221901 | AS49: 0.2975966006 | AT49: 0.2977758944 | AU49: 0.2979600264 | AV49: 0.2981489552 | AW49: 0.2983426424 | AX49: 0.2985410526 | AY49: 0.2987441532 | AZ49: 0.2989519139 | BA49: 0.2991643064 | BB49: 0.2993813046 | BC49: 0.2996028844 | BD49: 0.2998290229 | BE49: 0.3000596991 | BF49: 0.3002948932 | BG49: 0.3005345869 | BH49: 0.3086430425
B50: V transient | C50: 0.05 | D50: Enter maximum VREG deviation due to load step | H50: Conduction Losses | I50: =I46^2*I49 -> 0.09491263032 | J50: =J46^2*J49 -> 0.09678719317 | K50: 0.09618525825 | L50: 0.09574710863 | M50: 0.09542039644 | N50: 0.09517264572 | O50: 0.09498274035 | P50: 0.09483641211 | Q50: 0.09472371018 | R50: 0.09463750879 | S50: 0.09457258951 | T50: 0.09452505298 | U50: 0.0944918296 | V50: 0.09442524905 | W50: 0.09438952613 | X50: 0.0944053209 | Y50: 0.09442396936 | Z50: 0.09444531996 | AA50: 0.09446924152 | AB50: 0.09449561991 | AC50: 0.09452435545 | AD50: 0.09455536064 | AE50: 0.09458855841 | AF50: 0.09462388061 | AG50: 0.09466126678 | AH50: 0.09470066308 | AI50: 0.09474202143 | AJ50: 0.09478529876 | AK50: 0.09483045639 | AL50: 0.09487745949 | AM50: 0.09492627661 | AN50: 0.09497687929 | AO50: 0.09502924172 | AP50: 0.09508334043 | AQ50: 0.09513915406 | AR50: 0.09519666312 | AS50: 0.09525584978 | AT50: 0.09531669772 | AU50: 0.09537919198 | AV50: 0.0954433188 | AW50: 0.09550906555 | AX50: 0.09557642056 | AY50: 0.0956453731 | AZ50: 0.09571591325 | BA50: 0.09578803181 | BB50: 0.09586172031 | BC50: 0.09593697087 | BD50: 0.09601377619 | BE50: 0.09609212951 | BF50: 0.09617202452 | BG50: 0.09625345538 | BH50: 0.09901251364
B51: VIN min for transient | C51: 6 | D51: Enter minimum input voltage for load transient spec | H51: Switching Losses | I51: =0.5*Vreg*Iout_sync_buck*fsw*10^3*(Vreg/SLEW_rate+Vreg/1.5)*10^-9 -> 0.03561911111 | J51: 0.03561911111 | K51: 0.03561911111 | L51: 0.03561911111 | M51: 0.03561911111 | N51: 0.03561911111 | O51: 0.03561911111 | P51: 0.03561911111 | Q51: 0.03561911111 | R51: 0.03561911111 | S51: 0.03561911111 | T51: 0.03561911111 | U51: 0.03561911111 | V51: 0.03561911111 | W51: 0.03561911111 | X51: 0.03561911111 | Y51: 0.03561911111 | Z51: 0.03561911111 | AA51: 0.03561911111 | AB51: 0.03561911111 | AC51: 0.03561911111 | AD51: 0.03561911111 | AE51: 0.03561911111 | AF51: 0.03561911111 | AG51: 0.03561911111 | AH51: 0.03561911111 | AI51: 0.03561911111 | AJ51: 0.03561911111 | AK51: 0.03561911111 | AL51: 0.03561911111 | AM51: 0.03561911111 | AN51: 0.03561911111 | AO51: =0.5*Vreg*Iout_sync_buck*fsw*10^3*(Vreg/SLEW_rate+Vreg/1.5)*10^-9 -> 0.03561911111 | AP51: 0.03561911111 | AQ51: 0.03561911111 | AR51: 0.03561911111 | AS51: 0.03561911111 | AT51: 0.03561911111 | AU51: 0.03561911111 | AV51: 0.03561911111 | AW51: 0.03561911111 | AX51: 0.03561911111 | AY51: 0.03561911111 | AZ51: 0.03561911111 | BA51: 0.03561911111 | BB51: 0.03561911111 | BC51: 0.03561911111 | BD51: 0.03561911111 | BE51: 0.03561911111 | BF51: 0.03561911111 | BG51: 0.03561911111 | BH51: 0.03561911111
B52: Output Capacitor | C52: =ROUNDUP(MAX(X166:X168),0) -> 43 | D52: Minimum output capacitance required | H52: Total Buck FET Losses | I52: =I50+I51 -> 0.1305317414 | J52: =J50+J51 -> 0.1324063043 | K52: 0.1318043694 | L52: 0.1313662197 | M52: 0.1310395076 | N52: 0.1307917568 | O52: 0.1306018515 | P52: 0.1304555232 | Q52: 0.1303428213 | R52: 0.1302566199 | S52: 0.1301917006 | T52: 0.1301441641 | U52: 0.1301109407 | V52: 0.1300443602 | W52: 0.1300086372 | X52: 0.130024432 | Y52: 0.1300430805 | Z52: 0.1300644311 | AA52: 0.1300883526 | AB52: 0.130114731 | AC52: 0.1301434666 | AD52: 0.1301744717 | AE52: 0.1302076695 | AF52: 0.1302429917 | AG52: 0.1302803779 | AH52: 0.1303197742 | AI52: 0.1303611325 | AJ52: 0.1304044099 | AK52: 0.1304495675 | AL52: 0.1304965706 | AM52: 0.1305453877 | AN52: 0.1305959904 | AO52: 0.1306483528 | AP52: 0.1307024515 | AQ52: 0.1307582652 | AR52: 0.1308157742 | AS52: 0.1308749609 | AT52: 0.1309358088 | AU52: 0.1309983031 | AV52: 0.1310624299 | AW52: 0.1311281767 | AX52: 0.1311955317 | AY52: 0.1312644842 | AZ52: 0.1313350244 | BA52: 0.1314071429 | BB52: 0.1314808314 | BC52: 0.131556082 | BD52: 0.1316328873 | BE52: 0.1317112406 | BF52: 0.1317911356 | BG52: 0.1318725665 | BH52: 0.1346316248
B53: ESR | C53: =ROUNDUP(C48/(2*C54)*1000,0) -> 6 | D53: Maximum series equivalent resistance for output capacitor | G53: Adj BUCK Low Side FET | H53: Rds_On Buck | I53: =Buck_RdsON_factor_7V*(I4-150)+Adj_buck_lo_rdsON_150 -> 0.1065850446 | J53: 0.112105115 | K53: 0.1103338485 | L53: 0.1090437878 | M53: 0.1080814235 | N53: 0.1073514127 | O53: 0.1067917086 | P53: 0.1063603569 | Q53: 0.1060280817 | R53: 0.1057739086 | S53: 0.1055824716 | T53: 0.1054422848 | U53: 0.1053443035 | V53: 0.1051479353 | W53: 0.1050425704 | X53: 0.1050891577 | Y53: 0.1051441609 | Z53: 0.1052071326 | AA53: 0.1052776854 | AB53: 0.105355482 | AC53: 0.1054402277 | AD53: 0.105531664 | AE53: 0.1056295628 | AF53: 0.1057337224 | AG53: 0.1058439638 | AH53: 0.1059601275 | AI53: 0.106082071 | AJ53: 0.1062096664 | AK53: 0.1063427989 | AL53: 0.106481365 | AM53: 0.1066252712 | AN53: 0.1067744325 | AO53: =Buck_RdsON_factor_7V*(AO4-150)+Adj_buck_lo_rdsON_150 -> 0.1069287722 | AP53: 0.10708822 | AQ53: 0.1072527121 | AR53: 0.1074221901 | AS53: 0.1075966006 | AT53: 0.1077758944 | AU53: 0.1079600264 | AV53: 0.1081489552 | AW53: 0.1083426424 | AX53: 0.1085410526 | AY53: 0.1087441532 | AZ53: 0.1089519139 | BA53: 0.1091643064 | BB53: 0.1093813046 | BC53: 0.1096028844 | BD53: 0.1098290229 | BE53: 0.1100596991 | BF53: 0.1102948932 | BG53: 0.1105345869 | BH53: 0.1186430425
B54: I RMS | C54: =ROUNDUP(IF(Topology="Buck",MAX(J107:BG107),MAX(J29:BG29)),3) -> 0.95 | D54: Maximum RMS current in output capacitor | H54: Conduction Losses | I54: =I47^2*I53 -> 0.01826224708 | J54: =J47^2*J53 -> 0.01916766564 | K54: 0.01887757055 | L54: 0.0186660288 | M54: 0.01850808061 | N54: 0.01838818685 | O54: 0.0182962164 | P54: 0.01822530889 | Q54: 0.01817067145 | R54: 0.01812886695 | S54: 0.01809737525 | T54: 0.01807431125 | U54: 0.01805818952 | V54: 0.01802587555 | W54: 0.01800853484 | X54: 0.01801620224 | Y54: 0.0180252544 | Z54: 0.01803561748 | AA54: 0.01804722754 | AB54: 0.01806002888 | AC54: 0.01807397279 | AD54: 0.0180890165 | AE54: 0.01810512226 | AF54: 0.01812225665 | AG54: 0.01814038995 | AH54: 0.01815949568 | AI54: 0.01817955012 | AJ54: 0.01820053199 | AK54: 0.01822242212 | AL54: 0.0182452032 | AM54: 0.01826885955 | AN54: 0.01829337695 | AO54: 0.01831874244 | AP54: 0.01834494418 | AQ54: 0.01837197136 | AR54: 0.01839981407 | AS54: 0.01842846319 | AT54: 0.01845791032 | AU54: 0.01848814771 | AV54: 0.0185191682 | AW54: 0.01855096515 | AX54: 0.01858353239 | AY54: 0.01861686419 | AZ54: 0.01865095519 | BA54: 0.01868580041 | BB54: 0.01872139516 | BC54: 0.01875773508 | BD54: 0.01879481605 | BE54: 0.01883263421 | BF54: 0.01887118592 | BG54: 0.01891046772 | BH54: 0.02023489102
B55: Actual Capacitor value = | C55: 8.5 | D55: Enter minimum capacitance value of ceramic capacitor with tolerance and DC bias | H55: Body Diode Losses | I55: =(I43-I44/2)*(2*td*10^-9*(fsw*10^3))*0.05 -> 0.0021 | J55: 0.0021 | K55: 0.0021 | L55: 0.0021 | M55: 0.0021 | N55: 0.0021 | O55: 0.0021 | P55: 0.0021 | Q55: 0.0021 | R55: 0.0021 | S55: 0.0021 | T55: 0.0021 | U55: 0.0021 | V55: 0.0021 | W55: 0.0021 | X55: 0.0021 | Y55: 0.0021 | Z55: 0.0021 | AA55: 0.0021 | AB55: 0.0021 | AC55: 0.0021 | AD55: 0.0021 | AE55: 0.0021 | AF55: 0.0021 | AG55: 0.0021 | AH55: 0.0021 | AI55: 0.0021 | AJ55: 0.0021 | AK55: 0.0021 | AL55: 0.0021 | AM55: 0.0021 | AN55: 0.0021 | AO55: =(AO43-AO44/2)*(2*td*10^-9*(fsw*10^3))*0.05 -> 0.0021 | AP55: 0.0021 | AQ55: 0.0021 | AR55: 0.0021 | AS55: 0.0021 | AT55: 0.0021 | AU55: 0.0021 | AV55: 0.0021 | AW55: 0.0021 | AX55: 0.0021 | AY55: 0.0021 | AZ55: 0.0021 | BA55: 0.0021 | BB55: 0.0021 | BC55: 0.0021 | BD55: 0.0021 | BE55: 0.0021 | BF55: 0.0021 | BG55: 0.0021 | BH55: 0.0021
B56: Estimated ESR | C56: 3 | D56: Enter estimated equivalent series resistance of output capacitor used | H56: Total Buck FET Losses | I56: =I54+I55 -> 0.02036224708 | J56: =J54+J55 -> 0.02126766564 | K56: 0.02097757055 | L56: 0.0207660288 | M56: 0.02060808061 | N56: 0.02048818685 | O56: 0.0203962164 | P56: 0.02032530889 | Q56: 0.02027067145 | R56: 0.02022886695 | S56: 0.02019737525 | T56: 0.02017431125 | U56: 0.02015818952 | V56: 0.02012587555 | W56: 0.02010853484 | X56: 0.02011620224 | Y56: 0.0201252544 | Z56: 0.02013561748 | AA56: 0.02014722754 | AB56: 0.02016002888 | AC56: 0.02017397279 | AD56: 0.0201890165 | AE56: 0.02020512226 | AF56: 0.02022225665 | AG56: 0.02024038995 | AH56: 0.02025949568 | AI56: 0.02027955012 | AJ56: 0.02030053199 | AK56: 0.02032242212 | AL56: 0.0203452032 | AM56: 0.02036885955 | AN56: 0.02039337695 | AO56: 0.02041874244 | AP56: 0.02044494418 | AQ56: 0.02047197136 | AR56: 0.02049981407 | AS56: 0.02052846319 | AT56: 0.02055791032 | AU56: 0.02058814771 | AV56: 0.0206191682 | AW56: 0.02065096515 | AX56: 0.02068353239 | AY56: 0.02071686419 | AZ56: 0.02075095519 | BA56: 0.02078580041 | BB56: 0.02082139516 | BC56: 0.02085773508 | BD56: 0.02089481605 | BE56: 0.02093263421 | BF56: 0.02097118592 | BG56: 0.02101046772 | BH56: 0.02233489102
B57: Number of capacitors = | C57: 5 | D57: Enter the number of parallel ceramic capacitors | G57: V5A LDO | H57: Output voltage | I57: =IF(I21-5<I58*Iout_V5A,I21-I58*Iout_V5A,5) -> 5 | J57: 5 | K57: 5 | L57: 5 | M57: 5 | N57: 5 | O57: 5 | P57: 5 | Q57: 5 | R57: 5 | S57: 5 | T57: 5 | U57: 5 | V57: 5 | W57: 5 | X57: 5 | Y57: 5 | Z57: 5 | AA57: 5 | AB57: 5 | AC57: 5 | AD57: 5 | AE57: 5 | AF57: 5 | AG57: 5 | AH57: 5 | AI57: 5 | AJ57: 5 | AK57: 5 | AL57: 5 | AM57: 5 | AN57: 5 | AO57: =IF(AO21-5<AO58*Iout_V5A,AO21-AO58*Iout_V5A,5) -> 5 | AP57: 5 | AQ57: 5 | AR57: 5 | AS57: 5 | AT57: 5 | AU57: 5 | AV57: 5 | AW57: 5 | AX57: 5 | AY57: 5 | AZ57: 5 | BA57: 5 | BB57: 5 | BC57: 5 | BD57: 5 | BE57: 5 | BF57: 5 | BG57: 5 | BH57: 5 | BI57: Output voltage | BJ57: V5 LDO
H58: Series pass resistance | I58: =(Rds_ON_V5A_150-Rds_ON_V5A_min40)/190*(I4-150)+Rds_ON_V5A_150 -> 0.6834259404 | J58: 0.7086004728 | K58: 0.7005225312 | L58: 0.6946391508 | M58: 0.6902502444 | N58: 0.686920997 | O58: 0.6843684411 | P58: 0.6824012421 | Q58: 0.6808858858 | R58: 0.6797267179 | S58: 0.6788536607 | T58: 0.6782143324 | U58: 0.6777674842 | V58: 0.676871938 | W58: 0.6763914167 | X58: 0.67660388 | Y58: 0.6768547248 | Z58: 0.6771419103 | AA58: 0.6774636692 | AB58: 0.6778184641 | AC58: 0.678204951 | AD58: 0.6786219502 | AE58: 0.679068422 | AF58: 0.6795434468 | AG58: 0.6800462078 | AH58: 0.6805759777 | AI58: 0.6811321064 | AJ58: 0.6817140111 | AK58: 0.6823211681 | AL58: 0.6829531052 | AM58: 0.6836093956 | AN58: 0.6842896527 | AO58: =(Rds_ON_V5A_150-Rds_ON_V5A_min40)/190*(AO4-150)+Rds_ON_V5A_150 -> 0.6849935256 | AP58: 0.6857206947 | AQ58: 0.6864708685 | AR58: 0.6872437807 | AS58: 0.6880391875 | AT58: 0.688856865 | AU58: 0.6896966075 | AV58: 0.6905582258 | AW58: 0.6914415451 | AX58: 0.6923464041 | AY58: 0.6932726536 | AZ58: 0.6942201554 | BA58: 0.6951887811 | BB58: 0.6961784116 | BC58: 0.697188936 | BD58: 0.698220251 | BE58: 0.6992722603 | BF58: 0.7003448739 | BG58: 0.7014380078 | BH58: 0.7384169887 | BI58: Series pass resistance
B59: Boost FET | H59: Power dissipated | I59: =(I21-I57)*Iout_V5A -> 0 | J59: 0 | K59: 0 | L59: 0 | M59: 0 | N59: 0 | O59: 0 | P59: 0 | Q59: 0 | R59: 0 | S59: 0 | T59: 0 | U59: 0 | V59: 0 | W59: 0 | X59: 0 | Y59: 0 | Z59: 0 | AA59: 0 | AB59: 0 | AC59: 0 | AD59: 0 | AE59: 0 | AF59: 0 | AG59: 0 | AH59: 0 | AI59: 0 | AJ59: 0 | AK59: 0 | AL59: 0 | AM59: 0 | AN59: 0 | AO59: =(AO21-AO57)*Iout_V5A -> 0 | AP59: 0 | AQ59: 0 | AR59: 0 | AS59: 0 | AT59: 0 | AU59: 0 | AV59: 0 | AW59: 0 | AX59: 0 | AY59: 0 | AZ59: 0 | BA59: 0 | BB59: 0 | BC59: 0 | BD59: 0 | BE59: 0 | BF59: 0 | BG59: 0 | BH59: 0 | BI59: Power dissipated
B60: Rds ON boost | C60: 0.02 | D60: Recommended boost MOSFET Rds On at 25C | G60: V5SNR LDO | H60: Output voltage | I60: =IF(I21-5<I61*Iout_V5B,I21-I61*Iout_V5B,5) -> 5 | J60: 5 | K60: 5 | L60: 5 | M60: 5 | N60: 5 | O60: 5 | P60: 5 | Q60: 5 | R60: 5 | S60: 5 | T60: 5 | U60: 5 | V60: 5 | W60: 5 | X60: 5 | Y60: 5 | Z60: 5 | AA60: 5 | AB60: 5 | AC60: 5 | AD60: 5 | AE60: 5 | AF60: 5 | AG60: 5 | AH60: 5 | AI60: 5 | AJ60: 5 | AK60: 5 | AL60: 5 | AM60: 5 | AN60: 5 | AO60: =IF(AO21-5<AO61*Iout_V5B,AO21-AO61*Iout_V5B,5) -> 5 | AP60: 5 | AQ60: 5 | AR60: 5 | AS60: 5 | AT60: 5 | AU60: 5 | AV60: 5 | AW60: 5 | AX60: 5 | AY60: 5 | AZ60: 5 | BA60: 5 | BB60: 5 | BC60: 5 | BD60: 5 | BE60: 5 | BF60: 5 | BG60: 5 | BH60: 5 | BI60: Output voltage | BJ60: V5 LDO
C61: 0.018 | D61: Enter Rds ON at 25C of selected boost MOSFET | H61: Series pass resistance | I61: =(Rds_ON_V5B_150-Rds_ON_V5B_min40)/190*(I4-150)+Rds_ON_V5B_150 -> 0.6834259404 | J61: 0.7086004728 | K61: 0.7005225312 | L61: 0.6946391508 | M61: 0.6902502444 | N61: 0.686920997 | O61: 0.6843684411 | P61: 0.6824012421 | Q61: 0.6808858858 | R61: 0.6797267179 | S61: 0.6788536607 | T61: 0.6782143324 | U61: 0.6777674842 | V61: 0.676871938 | W61: 0.6763914167 | X61: 0.67660388 | Y61: 0.6768547248 | Z61: 0.6771419103 | AA61: 0.6774636692 | AB61: 0.6778184641 | AC61: 0.678204951 | AD61: 0.6786219502 | AE61: 0.679068422 | AF61: 0.6795434468 | AG61: 0.6800462078 | AH61: 0.6805759777 | AI61: 0.6811321064 | AJ61: 0.6817140111 | AK61: 0.6823211681 | AL61: 0.6829531052 | AM61: 0.6836093956 | AN61: 0.6842896527 | AO61: =(Rds_ON_V5B_150-Rds_ON_V5B_min40)/190*(AO4-150)+Rds_ON_V5B_150 -> 0.6849935256 | AP61: 0.6857206947 | AQ61: 0.6864708685 | AR61: 0.6872437807 | AS61: 0.6880391875 | AT61: 0.688856865 | AU61: 0.6896966075 | AV61: 0.6905582258 | AW61: 0.6914415451 | AX61: 0.6923464041 | AY61: 0.6932726536 | AZ61: 0.6942201554 | BA61: 0.6951887811 | BB61: 0.6961784116 | BC61: 0.697188936 | BD61: 0.698220251 | BE61: 0.6992722603 | BF61: 0.7003448739 | BG61: 0.7014380078 | BH61: 0.7384169887 | BI61: Series pass resistance
B62: Rthj-a | C62: 60 | D62: Enter MOSFET junction to ambient thermal resistance | H62: Power dissipated | I62: =(I21-I60)*Iout_V5B -> 0.0175 | J62: 0.0175 | K62: 0.0175 | L62: 0.0175 | M62: 0.0175 | N62: 0.0175 | O62: 0.0175 | P62: 0.0175 | Q62: 0.0175 | R62: 0.0175 | S62: 0.0175 | T62: 0.0175 | U62: 0.0175 | V62: 0.0175 | W62: 0.0175 | X62: 0.0175 | Y62: 0.0175 | Z62: 0.0175 | AA62: 0.0175 | AB62: 0.0175 | AC62: 0.0175 | AD62: 0.0175 | AE62: 0.0175 | AF62: 0.0175 | AG62: 0.0175 | AH62: 0.0175 | AI62: 0.0175 | AJ62: 0.0175 | AK62: 0.0175 | AL62: 0.0175 | AM62: 0.0175 | AN62: 0.0175 | AO62: =(AO21-AO60)*Iout_V5B -> 0.0175 | AP62: 0.0175 | AQ62: 0.0175 | AR62: 0.0175 | AS62: 0.0175 | AT62: 0.0175 | AU62: 0.0175 | AV62: 0.0175 | AW62: 0.0175 | AX62: 0.0175 | AY62: 0.0175 | AZ62: 0.0175 | BA62: 0.0175 | BB62: 0.0175 | BC62: 0.0175 | BD62: 0.0175 | BE62: 0.0175 | BF62: 0.0175 | BG62: 0.0175 | BH62: 0.0175 | BI62: Power dissipated
B63: t rise boost | C63: 22 | D63: Enter estimated boost switch rise time | G63: V5CAN LDO | H63: Output voltage | I63: =IF(I21-5<I64*Iout_V5CAN,I21-I64*Iout_V5CAN,5) -> 5 | J63: 5 | K63: 5 | L63: 5 | M63: 5 | N63: 5 | O63: 5 | P63: 5 | Q63: 5 | R63: 5 | S63: 5 | T63: 5 | U63: 5 | V63: 5 | W63: 5 | X63: 5 | Y63: 5 | Z63: 5 | AA63: 5 | AB63: 5 | AC63: 5 | AD63: 5 | AE63: 5 | AF63: 5 | AG63: 5 | AH63: 5 | AI63: 5 | AJ63: 5 | AK63: 5 | AL63: 5 | AM63: 5 | AN63: 5 | AO63: =IF(AO21-5<AO64*Iout_V5CAN,AO21-AO64*Iout_V5CAN,5) -> 5 | AP63: 5 | AQ63: 5 | AR63: 5 | AS63: 5 | AT63: 5 | AU63: 5 | AV63: 5 | AW63: 5 | AX63: 5 | AY63: 5 | AZ63: 5 | BA63: 5 | BB63: 5 | BC63: 5 | BD63: 5 | BE63: 5 | BF63: 5 | BG63: 5 | BH63: 5 | BI63: Output voltage | BJ63: V5 LDO
B64: t fall boost | C64: 22 | D64: Enter estimated boost switch fall time | H64: Series pass resistance | I64: =(Rds_ON_V5CAN_150-Rds_ON_V5CAN_min40)/190*(I4-150)+Rds_ON_V5CAN_150 -> 0.4940792004 | J64: 0.5084991374 | K64: 0.5038721038 | L64: 0.5005021116 | M64: 0.4979881522 | N64: 0.4960811639 | O64: 0.4946190635 | P64: 0.4934922546 | Q64: 0.4926242606 | R64: 0.4919602909 | S64: 0.491460205 | T64: 0.4910939986 | U64: 0.4908380446 | V64: 0.4903250769 | W64: 0.490049835 | X64: 0.4901715337 | Y64: 0.4903152173 | Z64: 0.4904797167 | AA64: 0.4906640198 | AB64: 0.4908672458 | AC64: 0.4910886249 | AD64: 0.4913274815 | AE64: 0.4915832199 | AF64: 0.4918553134 | AG64: 0.4921432943 | AH64: 0.4924467457 | AI64: 0.4927652954 | AJ64: 0.4930986097 | AK64: 0.4934463884 | AL64: 0.493808361 | AM64: 0.4941842832 | AN64: 0.4945739336 | AO64: =(Rds_ON_V5CAN_150-Rds_ON_V5CAN_min40)/190*(AO4-150)+Rds_ON_V5CAN_150 -> 0.494977111 | AP64: 0.4953936324 | AQ64: 0.4958233309 | AR64: 0.496266054 | AS64: 0.4967216619 | AT64: 0.4971900264 | AU64: 0.4976710298 | AV64: 0.4981645635 | AW64: 0.4986705276 | AX64: 0.4991888295 | AY64: 0.499719384 | AZ64: 0.5002621117 | BA64: 0.5008169392 | BB64: 0.5013837981 | BC64: 0.5019626251 | BD64: 0.5025533609 | BE64: 0.5031559503 | BF64: 0.5037703419 | BG64: 0.5043964875 | BH64: 0.5255779961 | BI64: Series pass resistance
B65: Max Peak current | C65: =IF(Topology="Buck","-",MAX(J22:BH22)) -> 2.014749542 | D65: =IF(Topology="Buck","","Maximum peak MOSFET current") -> Maximum peak MOSFET current | H65: Power dissipated | I65: =(I21-I63)*Iout_V5CAN -> 0.07 | J65: 0.07 | K65: 0.07 | L65: 0.07 | M65: 0.07 | N65: 0.07 | O65: 0.07 | P65: 0.07 | Q65: 0.07 | R65: 0.07 | S65: 0.07 | T65: 0.07 | U65: 0.07 | V65: 0.07 | W65: 0.07 | X65: 0.07 | Y65: 0.07 | Z65: 0.07 | AA65: 0.07 | AB65: 0.07 | AC65: 0.07 | AD65: 0.07 | AE65: 0.07 | AF65: 0.07 | AG65: 0.07 | AH65: 0.07 | AI65: 0.07 | AJ65: 0.07 | AK65: 0.07 | AL65: 0.07 | AM65: 0.07 | AN65: 0.07 | AO65: =(AO21-AO63)*Iout_V5CAN -> 0.07 | AP65: 0.07 | AQ65: 0.07 | AR65: 0.07 | AS65: 0.07 | AT65: 0.07 | AU65: 0.07 | AV65: 0.07 | AW65: 0.07 | AX65: 0.07 | AY65: 0.07 | AZ65: 0.07 | BA65: 0.07 | BB65: 0.07 | BC65: 0.07 | BD65: 0.07 | BE65: 0.07 | BF65: 0.07 | BG65: 0.07 | BH65: 0.07 | BI65: Power dissipated
B66: Max RMS current | C66: =IF(Topology="Buck","-",MAX(J27:BH27)) -> 1.464011423 | D66: =IF(Topology="Buck","","Maximum RMS MOSFET current") -> Maximum RMS MOSFET current | G66: V5P LDO | H66: Output voltage | I66: =IF(I21-5<I67*Iout_V5P,I21-I67*Iout_V5P,5) -> 5 | J66: 5 | K66: 5 | L66: 5 | M66: 5 | N66: 5 | O66: 5 | P66: 5 | Q66: 5 | R66: 5 | S66: 5 | T66: 5 | U66: 5 | V66: 5 | W66: 5 | X66: 5 | Y66: 5 | Z66: 5 | AA66: 5 | AB66: 5 | AC66: 5 | AD66: 5 | AE66: 5 | AF66: 5 | AG66: 5 | AH66: 5 | AI66: 5 | AJ66: 5 | AK66: 5 | AL66: 5 | AM66: 5 | AN66: 5 | AO66: =IF(AO21-5<AO67*Iout_V5P,AO21-AO67*Iout_V5P,5) -> 5 | AP66: 5 | AQ66: 5 | AR66: 5 | AS66: 5 | AT66: 5 | AU66: 5 | AV66: 5 | AW66: 5 | AX66: 5 | AY66: 5 | AZ66: 5 | BA66: 5 | BB66: 5 | BC66: 5 | BD66: 5 | BE66: 5 | BF66: 5 | BG66: 5 | BH66: 5 | BI66: Output voltage | BJ66: V5 LDO
B67: Maximum gate charge | C67: 6.5 | D67: At Vgs = 5V | H67: Series pass resistance | I67: =(Rds_ON_V5P_150-Rds_ON_V5P_min40)/190*(I4-150)+Rds_ON_V5P_150 -> 0.6834259404 | J67: 0.7086004728 | K67: 0.7005225312 | L67: 0.6946391508 | M67: 0.6902502444 | N67: 0.686920997 | O67: 0.6843684411 | P67: 0.6824012421 | Q67: 0.6808858858 | R67: 0.6797267179 | S67: 0.6788536607 | T67: 0.6782143324 | U67: 0.6777674842 | V67: 0.676871938 | W67: 0.6763914167 | X67: 0.67660388 | Y67: 0.6768547248 | Z67: 0.6771419103 | AA67: 0.6774636692 | AB67: 0.6778184641 | AC67: 0.678204951 | AD67: 0.6786219502 | AE67: 0.679068422 | AF67: 0.6795434468 | AG67: 0.6800462078 | AH67: 0.6805759777 | AI67: 0.6811321064 | AJ67: 0.6817140111 | AK67: 0.6823211681 | AL67: 0.6829531052 | AM67: 0.6836093956 | AN67: 0.6842896527 | AO67: =(Rds_ON_V5P_150-Rds_ON_V5P_min40)/190*(AO4-150)+Rds_ON_V5P_150 -> 0.6849935256 | AP67: 0.6857206947 | AQ67: 0.6864708685 | AR67: 0.6872437807 | AS67: 0.6880391875 | AT67: 0.688856865 | AU67: 0.6896966075 | AV67: 0.6905582258 | AW67: 0.6914415451 | AX67: 0.6923464041 | AY67: 0.6932726536 | AZ67: 0.6942201554 | BA67: 0.6951887811 | BB67: 0.6961784116 | BC67: 0.697188936 | BD67: 0.698220251 | BE67: 0.6992722603 | BF67: 0.7003448739 | BG67: 0.7014380078 | BH67: 0.7384169887 | BI67: Series pass resistance
B68: Max Power diss | C68: =IF(Topology="Buck","-",MAX(J82:BH82)) -> 0.2566697001 | D68: =IF(Topology="Buck","","Maximum MOSFET power dissipation") -> Maximum MOSFET power dissipation | H68: Power dissipated | I68: =(I21-I66)*Iout_V5P -> 0.02625 | J68: 0.02625 | K68: 0.02625 | L68: 0.02625 | M68: 0.02625 | N68: 0.02625 | O68: 0.02625 | P68: 0.02625 | Q68: 0.02625 | R68: 0.02625 | S68: 0.02625 | T68: 0.02625 | U68: 0.02625 | V68: 0.02625 | W68: 0.02625 | X68: 0.02625 | Y68: 0.02625 | Z68: 0.02625 | AA68: 0.02625 | AB68: 0.02625 | AC68: 0.02625 | AD68: 0.02625 | AE68: 0.02625 | AF68: 0.02625 | AG68: 0.02625 | AH68: 0.02625 | AI68: 0.02625 | AJ68: 0.02625 | AK68: 0.02625 | AL68: 0.02625 | AM68: 0.02625 | AN68: 0.02625 | AO68: =(AO21-AO66)*Iout_V5P -> 0.02625 | AP68: 0.02625 | AQ68: 0.02625 | AR68: 0.02625 | AS68: 0.02625 | AT68: 0.02625 | AU68: 0.02625 | AV68: 0.02625 | AW68: 0.02625 | AX68: 0.02625 | AY68: 0.02625 | AZ68: 0.02625 | BA68: 0.02625 | BB68: 0.02625 | BC68: 0.02625 | BD68: 0.02625 | BE68: 0.02625 | BF68: 0.02625 | BG68: 0.02625 | BH68: 0.02625 | BI68: Power dissipated
B69: Max Vds | C69: =IF(Topology="Buck","-",Vreg+4) -> 9.35 | D69: =IF(Topology="Buck","","Select MOSFET with higher VDS rating") -> Select MOSFET with higher VDS rating | G69: Buck Diode | H69: Tj Diode | I69: =I72*RTHavg_Vd+Ta -> 142.4157471 | J69: =J72*RTHavg_Vd+Ta -> 142.3894769 | K69: 142.1985468 | L69: 141.6470953 | M69: 140.9408578 | N69: 140.1856517 | O69: 139.4364604 | P69: 138.7216328 | Q69: 138.0551387 | R69: 137.4430491 | S69: 136.8870778 | T69: 136.3856903 | U69: 135.9098718 | V69: 135.5398553 | W69: 131.9665995 | X69: 133.0312734 | Y69: 134.0124392 | Z69: 134.9195059 | AA69: 135.7605266 | AB69: 136.5424327 | AC69: 137.2712219 | AD69: 137.9521102 | AE69: 138.5896544 | AF69: 139.1878528 | AG69: 139.7502282 | AH69: 140.2798959 | AI69: 140.7796213 | AJ69: 141.2518673 | AK69: 141.6988347 | AL69: 142.1224955 | AM69: 142.5246226 | AN69: =AN72*RTHavg_Vd+Ta -> 142.9068138 | AO69: 143.2705127 | AP69: 143.6170275 | AQ69: 143.9475456 | AR69: 144.263148 | AS69: 144.5648204 | AT69: 144.8534638 | AU69: =AU72*RTHavg_Vd+Ta -> 145.1299031 | AV69: 145.3948951 | AW69: 145.6491356 | AX69: 145.893265 | AY69: 146.1278739 | AZ69: 146.3535079 | BA69: 146.5706718 | BB69: 146.7798331 | BC69: 146.9814258 | BD69: 147.1758528 | BE69: 147.3634892 | BF69: 147.5446842 | BG69: 147.7197638 | BH69: =BH72*RTHavg_Vd+Ta -> 152.8841469 | BI69: Tj Diode | BJ69: Buck Diode
B70: Max TJ | C70: =IF(Topology="Buck","-",IF(ROUNDUP(MAX(J77:BH77),0)>175,"Too High",ROUNDUP(MAX(J77:BH77),0))) -> 141 | D70: =IF(Topology="Buck","",IF(C70>175,"Boost MOSFET temperature too high","Estimated worse case boost MOSFET temperature, 175C max rated")) -> Estimated worse case boost MOSFET temperature, 175C max rated | H70: I Buck diode ON | I70: =I22-I23/2 -> 0.8306542056 | J70: 1.921588563 | K70: 1.758232012 | L70: 1.61934214 | M70: 1.500086891 | N70: 1.396891221 | O70: 1.307050351 | P70: 1.228479377 | Q70: 1.159544852 | R70: 1.098948568 | S70: 1.045645554 | T70: 0.9987854113 | U70: 0.9576776094 | V70: 0.9217365473 | W70: 0.8306542056 | X70: 0.8306542056 | Y70: 0.8306542056 | Z70: 0.8306542056 | AA70: 0.8306542056 | AB70: 0.8306542056 | AC70: 0.8306542056 | AD70: 0.8306542056 | AE70: 0.8306542056 | AF70: 0.8306542056 | AG70: 0.8306542056 | AH70: 0.8306542056 | AI70: 0.8306542056 | AJ70: 0.8306542056 | AK70: 0.8306542056 | AL70: 0.8306542056 | AM70: 0.8306542056 | AN70: 0.8306542056 | AO70: =AO22-AO23/2 -> 0.8306542056 | AP70: 0.8306542056 | AQ70: 0.8306542056 | AR70: 0.8306542056 | AS70: 0.8306542056 | AT70: 0.8306542056 | AU70: 0.8306542056 | AV70: 0.8306542056 | AW70: 0.8306542056 | AX70: 0.8306542056 | AY70: 0.8306542056 | AZ70: 0.8306542056 | BA70: 0.8306542056 | BB70: 0.8306542056 | BC70: 0.8306542056 | BD70: 0.8306542056 | BE70: 0.8306542056 | BF70: 0.8306542056 | BG70: 0.8306542056 | BH70: 0.8306542056 | BI70: I Buck diode ON
H71: Vf buck diode | I71: =IF(Reset=1,0.45,FORECAST(I70, OFFSET(Vd_1:Vd_3,MATCH(I70,I_Vd1:I_Vd3,1)-1,0,2), OFFSET(I_Vd1:I_Vd3,MATCH(I70,I_Vd1:I_Vd3,1)-1,0,2))+(I69-25)*vd_temp_coeff/1000) -> 0.3487796081 | J71: =IF(Reset=1,0.45,FORECAST(J70, OFFSET(Vd_1:Vd_3,MATCH(J70,I_Vd1:I_Vd3,1)-1,0,2), OFFSET(I_Vd1:I_Vd3,MATCH(J70,I_Vd1:I_Vd3,1)-1,0,2))+(J69-25)*vd_temp_coeff/1000) -> 0.4520755985 | K71: =IF(Reset=1,0.45,FORECAST(K70, OFFSET(Vd_1:Vd_3,MATCH(K70,I_Vd1:I_Vd3,1)-1,0,2), OFFSET(I_Vd1:I_Vd3,MATCH(K70,I_Vd1:I_Vd3,1)-1,0,2))+(K69-25)*vd_temp_coeff/1000) -> 0.437602625 | L71: =IF(Reset=1,0.45,FORECAST(L70, OFFSET(Vd_1:Vd_3,MATCH(L70,I_Vd1:I_Vd3,1)-1,0,2), OFFSET(I_Vd1:I_Vd3,MATCH(L70,I_Vd1:I_Vd3,1)-1,0,2))+(L69-25)*vd_temp_coeff/1000) -> 0.4257642782 | M71: =IF(Reset=1,0.45,FORECAST(M70, OFFSET(Vd_1:Vd_3,MATCH(M70,I_Vd1:I_Vd3,1)-1,0,2), OFFSET(I_Vd1:I_Vd3,MATCH(M70,I_Vd1:I_Vd3,1)-1,0,2))+(M69-25)*vd_temp_coeff/1000) -> 0.4158787909 | N71: =IF(Reset=1,0.45,FORECAST(N70, OFFSET(Vd_1:Vd_3,MATCH(N70,I_Vd1:I_Vd3,1)-1,0,2), OFFSET(I_Vd1:I_Vd3,MATCH(N70,I_Vd1:I_Vd3,1)-1,0,2))+(N69-25)*vd_temp_coeff/1000) -> 0.4074974278 | O71: =IF(Reset=1,0.45,FORECAST(O70, OFFSET(Vd_1:Vd_3,MATCH(O70,I_Vd1:I_Vd3,1)-1,0,2), OFFSET(I_Vd1:I_Vd3,MATCH(O70,I_Vd1:I_Vd3,1)-1,0,2))+(O69-25)*vd_temp_coeff/1000) -> 0.4003107792 | P71: =IF(Reset=1,0.45,FORECAST(P70, OFFSET(Vd_1:Vd_3,MATCH(P70,I_Vd1:I_Vd3,1)-1,0,2), OFFSET(I_Vd1:I_Vd3,MATCH(P70,I_Vd1:I_Vd3,1)-1,0,2))+(P69-25)*vd_temp_coeff/1000) -> 0.3940971846 | Q71: =IF(Reset=1,0.45,FORECAST(Q70, OFFSET(Vd_1:Vd_3,MATCH(Q70,I_Vd1:I_Vd3,1)-1,0,2), OFFSET(I_Vd1:I_Vd3,MATCH(Q70,I_Vd1:I_Vd3,1)-1,0,2))+(Q69-25)*vd_temp_coeff/1000) -> 0.3886928702 | R71: =IF(Reset=1,0.45,FORECAST(R70, OFFSET(Vd_1:Vd_3,MATCH(R70,I_Vd1:I_Vd3,1)-1,0,2), OFFSET(I_Vd1:I_Vd3,MATCH(R70,I_Vd1:I_Vd3,1)-1,0,2))+(R69-25)*vd_temp_coeff/1000) -> 0.3839737123 | S71: =IF(Reset=1,0.45,FORECAST(S70, OFFSET(Vd_1:Vd_3,MATCH(S70,I_Vd1:I_Vd3,1)-1,0,2), OFFSET(I_Vd1:I_Vd3,MATCH(S70,I_Vd1:I_Vd3,1)-1,0,2))+(S69-25)*vd_temp_coeff/1000) -> 0.3798436065 | T71: =IF(Reset=1,0.45,FORECAST(T70, OFFSET(Vd_1:Vd_3,MATCH(T70,I_Vd1:I_Vd3,1)-1,0,2), OFFSET(I_Vd1:I_Vd3,MATCH(T70,I_Vd1:I_Vd3,1)-1,0,2))+(T69-25)*vd_temp_coeff/1000) -> 0.376191421 | U71: =IF(Reset=1,0.45,FORECAST(U70, OFFSET(Vd_1:Vd_3,MATCH(U70,I_Vd1:I_Vd3,1)-1,0,2), OFFSET(I_Vd1:I_Vd3,MATCH(U70,I_Vd1:I_Vd3,1)-1,0,2))+(U69-25)*vd_temp_coeff/1000) -> 0.3718294669 | V71: =IF(Reset=1,0.45,FORECAST(V70, OFFSET(Vd_1:Vd_3,MATCH(V70,I_Vd1:I_Vd3,1)-1,0,2), OFFSET(I_Vd1:I_Vd3,MATCH(V70,I_Vd1:I_Vd3,1)-1,0,2))+(V69-25)*vd_temp_coeff/1000) -> 0.3679605593 | W71: =IF(Reset=1,0.45,FORECAST(W70, OFFSET(Vd_1:Vd_3,MATCH(W70,I_Vd1:I_Vd3,1)-1,0,2), OFFSET(I_Vd1:I_Vd3,MATCH(W70,I_Vd1:I_Vd3,1)-1,0,2))+(W69-25)*vd_temp_coeff/1000) -> 0.3613185853 | X71: =IF(Reset=1,0.45,FORECAST(X70, OFFSET(Vd_1:Vd_3,MATCH(X70,I_Vd1:I_Vd3,1)-1,0,2), OFFSET(I_Vd1:I_Vd3,MATCH(X70,I_Vd1:I_Vd3,1)-1,0,2))+(X69-25)*vd_temp_coeff/1000) -> 0.3600409765 | Y71: =IF(Reset=1,0.45,FORECAST(Y70, OFFSET(Vd_1:Vd_3,MATCH(Y70,I_Vd1:I_Vd3,1)-1,0,2), OFFSET(I_Vd1:I_Vd3,MATCH(Y70,I_Vd1:I_Vd3,1)-1,0,2))+(Y69-25)*vd_temp_coeff/1000) -> 0.3588635777 | Z71: =IF(Reset=1,0.45,FORECAST(Z70, OFFSET(Vd_1:Vd_3,MATCH(Z70,I_Vd1:I_Vd3,1)-1,0,2), OFFSET(I_Vd1:I_Vd3,MATCH(Z70,I_Vd1:I_Vd3,1)-1,0,2))+(Z69-25)*vd_temp_coeff/1000) -> 0.3577750975 | AA71: =IF(Reset=1,0.45,FORECAST(AA70, OFFSET(Vd_1:Vd_3,MATCH(AA70,I_Vd1:I_Vd3,1)-1,0,2), OFFSET(I_Vd1:I_Vd3,MATCH(AA70,I_Vd1:I_Vd3,1)-1,0,2))+(AA69-25)*vd_temp_coeff/1000) -> 0.3567658727 | AB71: =IF(Reset=1,0.45,FORECAST(AB70, OFFSET(Vd_1:Vd_3,MATCH(AB70,I_Vd1:I_Vd3,1)-1,0,2), OFFSET(I_Vd1:I_Vd3,MATCH(AB70,I_Vd1:I_Vd3,1)-1,0,2))+(AB69-25)*vd_temp_coeff/1000) -> 0.3558275855 | AC71: =IF(Reset=1,0.45,FORECAST(AC70, OFFSET(Vd_1:Vd_3,MATCH(AC70,I_Vd1:I_Vd3,1)-1,0,2), OFFSET(I_Vd1:I_Vd3,MATCH(AC70,I_Vd1:I_Vd3,1)-1,0,2))+(AC69-25)*vd_temp_coeff/1000) -> 0.3549530384 | AD71: =IF(Reset=1,0.45,FORECAST(AD70, OFFSET(Vd_1:Vd_3,MATCH(AD70,I_Vd1:I_Vd3,1)-1,0,2), OFFSET(I_Vd1:I_Vd3,MATCH(AD70,I_Vd1:I_Vd3,1)-1,0,2))+(AD69-25)*vd_temp_coeff/1000) -> 0.3541359724 | AE71: =IF(Reset=1,0.45,FORECAST(AE70, OFFSET(Vd_1:Vd_3,MATCH(AE70,I_Vd1:I_Vd3,1)-1,0,2), OFFSET(I_Vd1:I_Vd3,MATCH(AE70,I_Vd1:I_Vd3,1)-1,0,2))+(AE69-25)*vd_temp_coeff/1000) -> 0.3533709194 | AF71: =IF(Reset=1,0.45,FORECAST(AF70, OFFSET(Vd_1:Vd_3,MATCH(AF70,I_Vd1:I_Vd3,1)-1,0,2), OFFSET(I_Vd1:I_Vd3,MATCH(AF70,I_Vd1:I_Vd3,1)-1,0,2))+(AF69-25)*vd_temp_coeff/1000) -> 0.3526530813 | AG71: =IF(Reset=1,0.45,FORECAST(AG70, OFFSET(Vd_1:Vd_3,MATCH(AG70,I_Vd1:I_Vd3,1)-1,0,2), OFFSET(I_Vd1:I_Vd3,MATCH(AG70,I_Vd1:I_Vd3,1)-1,0,2))+(AG69-25)*vd_temp_coeff/1000) -> 0.3519782309 | AH71: =IF(Reset=1,0.45,FORECAST(AH70, OFFSET(Vd_1:Vd_3,MATCH(AH70,I_Vd1:I_Vd3,1)-1,0,2), OFFSET(I_Vd1:I_Vd3,MATCH(AH70,I_Vd1:I_Vd3,1)-1,0,2))+(AH69-25)*vd_temp_coeff/1000) -> 0.3513426296 | AI71: =IF(Reset=1,0.45,FORECAST(AI70, OFFSET(Vd_1:Vd_3,MATCH(AI70,I_Vd1:I_Vd3,1)-1,0,2), OFFSET(I_Vd1:I_Vd3,MATCH(AI70,I_Vd1:I_Vd3,1)-1,0,2))+(AI69-25)*vd_temp_coeff/1000) -> 0.3507429591 | AJ71: =IF(Reset=1,0.45,FORECAST(AJ70, OFFSET(Vd_1:Vd_3,MATCH(AJ70,I_Vd1:I_Vd3,1)-1,0,2), OFFSET(I_Vd1:I_Vd3,MATCH(AJ70,I_Vd1:I_Vd3,1)-1,0,2))+(AJ69-25)*vd_temp_coeff/1000) -> 0.3501762639 | AK71: =IF(Reset=1,0.45,FORECAST(AK70, OFFSET(Vd_1:Vd_3,MATCH(AK70,I_Vd1:I_Vd3,1)-1,0,2), OFFSET(I_Vd1:I_Vd3,MATCH(AK70,I_Vd1:I_Vd3,1)-1,0,2))+(AK69-25)*vd_temp_coeff/1000) -> 0.3496399031 | AL71: =IF(Reset=1,0.45,FORECAST(AL70, OFFSET(Vd_1:Vd_3,MATCH(AL70,I_Vd1:I_Vd3,1)-1,0,2), OFFSET(I_Vd1:I_Vd3,MATCH(AL70,I_Vd1:I_Vd3,1)-1,0,2))+(AL69-25)*vd_temp_coeff/1000) -> 0.3491315101 | AM71: =IF(Reset=1,0.45,FORECAST(AM70, OFFSET(Vd_1:Vd_3,MATCH(AM70,I_Vd1:I_Vd3,1)-1,0,2), OFFSET(I_Vd1:I_Vd3,MATCH(AM70,I_Vd1:I_Vd3,1)-1,0,2))+(AM69-25)*vd_temp_coeff/1000) -> 0.3486489575 | AN71: =IF(Reset=1,0.45,FORECAST(AN70, OFFSET(Vd_1:Vd_3,MATCH(AN70,I_Vd1:I_Vd3,1)-1,0,2), OFFSET(I_Vd1:I_Vd3,MATCH(AN70,I_Vd1:I_Vd3,1)-1,0,2))+(AN69-25)*vd_temp_coeff/1000) -> 0.3481903282 | AO71: =IF(Reset=1,0.45,FORECAST(AO70, OFFSET(Vd_1:Vd_3,MATCH(AO70,I_Vd1:I_Vd3,1)-1,0,2), OFFSET(I_Vd1:I_Vd3,MATCH(AO70,I_Vd1:I_Vd3,1)-1,0,2))+(AO69-25)*vd_temp_coeff/1000) -> 0.3477538894 | AP71: =IF(Reset=1,0.45,FORECAST(AP70, OFFSET(Vd_1:Vd_3,MATCH(AP70,I_Vd1:I_Vd3,1)-1,0,2), OFFSET(I_Vd1:I_Vd3,MATCH(AP70,I_Vd1:I_Vd3,1)-1,0,2))+(AP69-25)*vd_temp_coeff/1000) -> 0.3473380717 | AQ71: =IF(Reset=1,0.45,FORECAST(AQ70, OFFSET(Vd_1:Vd_3,MATCH(AQ70,I_Vd1:I_Vd3,1)-1,0,2), OFFSET(I_Vd1:I_Vd3,MATCH(AQ70,I_Vd1:I_Vd3,1)-1,0,2))+(AQ69-25)*vd_temp_coeff/1000) -> 0.3469414499 | AR71: =IF(Reset=1,0.45,FORECAST(AR70, OFFSET(Vd_1:Vd_3,MATCH(AR70,I_Vd1:I_Vd3,1)-1,0,2), OFFSET(I_Vd1:I_Vd3,MATCH(AR70,I_Vd1:I_Vd3,1)-1,0,2))+(AR69-25)*vd_temp_coeff/1000) -> 0.3465627271 | AS71: =IF(Reset=1,0.45,FORECAST(AS70, OFFSET(Vd_1:Vd_3,MATCH(AS70,I_Vd1:I_Vd3,1)-1,0,2), OFFSET(I_Vd1:I_Vd3,MATCH(AS70,I_Vd1:I_Vd3,1)-1,0,2))+(AS69-25)*vd_temp_coeff/1000) -> 0.3462007202 | AT71: =IF(Reset=1,0.45,FORECAST(AT70, OFFSET(Vd_1:Vd_3,MATCH(AT70,I_Vd1:I_Vd3,1)-1,0,2), OFFSET(I_Vd1:I_Vd3,MATCH(AT70,I_Vd1:I_Vd3,1)-1,0,2))+(AT69-25)*vd_temp_coeff/1000) -> 0.3458543481 | AU71: =IF(Reset=1,0.45,FORECAST(AU70, OFFSET(Vd_1:Vd_3,MATCH(AU70,I_Vd1:I_Vd3,1)-1,0,2), OFFSET(I_Vd1:I_Vd3,MATCH(AU70,I_Vd1:I_Vd3,1)-1,0,2))+(AU69-25)*vd_temp_coeff/1000) -> 0.345522621 | AV71: =IF(Reset=1,0.45,FORECAST(AV70, OFFSET(Vd_1:Vd_3,MATCH(AV70,I_Vd1:I_Vd3,1)-1,0,2), OFFSET(I_Vd1:I_Vd3,MATCH(AV70,I_Vd1:I_Vd3,1)-1,0,2))+(AV69-25)*vd_temp_coeff/1000) -> 0.3452046305 | AW71: =IF(Reset=1,0.45,FORECAST(AW70, OFFSET(Vd_1:Vd_3,MATCH(AW70,I_Vd1:I_Vd3,1)-1,0,2), OFFSET(I_Vd1:I_Vd3,MATCH(AW70,I_Vd1:I_Vd3,1)-1,0,2))+(AW69-25)*vd_temp_coeff/1000) -> 0.3448995419 | AX71: =IF(Reset=1,0.45,FORECAST(AX70, OFFSET(Vd_1:Vd_3,MATCH(AX70,I_Vd1:I_Vd3,1)-1,0,2), OFFSET(I_Vd1:I_Vd3,MATCH(AX70,I_Vd1:I_Vd3,1)-1,0,2))+(AX69-25)*vd_temp_coeff/1000) -> 0.3446065867 | AY71: =IF(Reset=1,0.45,FORECAST(AY70, OFFSET(Vd_1:Vd_3,MATCH(AY70,I_Vd1:I_Vd3,1)-1,0,2), OFFSET(I_Vd1:I_Vd3,MATCH(AY70,I_Vd1:I_Vd3,1)-1,0,2))+(AY69-25)*vd_temp_coeff/1000) -> 0.344325056 | AZ71: =IF(Reset=1,0.45,FORECAST(AZ70, OFFSET(Vd_1:Vd_3,MATCH(AZ70,I_Vd1:I_Vd3,1)-1,0,2), OFFSET(I_Vd1:I_Vd3,MATCH(AZ70,I_Vd1:I_Vd3,1)-1,0,2))+(AZ69-25)*vd_temp_coeff/1000) -> 0.3440542951 | BA71: =IF(Reset=1,0.45,FORECAST(BA70, OFFSET(Vd_1:Vd_3,MATCH(BA70,I_Vd1:I_Vd3,1)-1,0,2), OFFSET(I_Vd1:I_Vd3,MATCH(BA70,I_Vd1:I_Vd3,1)-1,0,2))+(BA69-25)*vd_temp_coeff/1000) -> 0.3437936985 | BB71: =IF(Reset=1,0.45,FORECAST(BB70, OFFSET(Vd_1:Vd_3,MATCH(BB70,I_Vd1:I_Vd3,1)-1,0,2), OFFSET(I_Vd1:I_Vd3,MATCH(BB70,I_Vd1:I_Vd3,1)-1,0,2))+(BB69-25)*vd_temp_coeff/1000) -> 0.3435427049 | BC71: =IF(Reset=1,0.45,FORECAST(BC70, OFFSET(Vd_1:Vd_3,MATCH(BC70,I_Vd1:I_Vd3,1)-1,0,2), OFFSET(I_Vd1:I_Vd3,MATCH(BC70,I_Vd1:I_Vd3,1)-1,0,2))+(BC69-25)*vd_temp_coeff/1000) -> 0.3433007938 | BD71: =IF(Reset=1,0.45,FORECAST(BD70, OFFSET(Vd_1:Vd_3,MATCH(BD70,I_Vd1:I_Vd3,1)-1,0,2), OFFSET(I_Vd1:I_Vd3,MATCH(BD70,I_Vd1:I_Vd3,1)-1,0,2))+(BD69-25)*vd_temp_coeff/1000) -> 0.3430674813 | BE71: =IF(Reset=1,0.45,FORECAST(BE70, OFFSET(Vd_1:Vd_3,MATCH(BE70,I_Vd1:I_Vd3,1)-1,0,2), OFFSET(I_Vd1:I_Vd3,MATCH(BE70,I_Vd1:I_Vd3,1)-1,0,2))+(BE69-25)*vd_temp_coeff/1000) -> 0.3428423177 | BF71: =IF(Reset=1,0.45,FORECAST(BF70, OFFSET(Vd_1:Vd_3,MATCH(BF70,I_Vd1:I_Vd3,1)-1,0,2), OFFSET(I_Vd1:I_Vd3,MATCH(BF70,I_Vd1:I_Vd3,1)-1,0,2))+(BF69-25)*vd_temp_coeff/1000) -> 0.3426248836 | BG71: =IF(Reset=1,0.45,FORECAST(BG70, OFFSET(Vd_1:Vd_3,MATCH(BG70,I_Vd1:I_Vd3,1)-1,0,2), OFFSET(I_Vd1:I_Vd3,MATCH(BG70,I_Vd1:I_Vd3,1)-1,0,2))+(BG69-25)*vd_temp_coeff/1000) -> 0.3424147882 | BH71: =IF(Reset=1,0.45,FORECAST(BH70, OFFSET(Vd_1:Vd_3,MATCH(BH70,I_Vd1:I_Vd3,1)-1,0,2), OFFSET(I_Vd1:I_Vd3,MATCH(BH70,I_Vd1:I_Vd3,1)-1,0,2))+(BH69-25)*vd_temp_coeff/1000) -> 0.3362175284 | BI71: Vf buck diode
B72: Buck Diode (based on SS3P5) | H72: Pdiss buck diode | I72: =I71*I26 -> 0.1451312259 | J72: 0.1449123072 | K72: 0.143321223 | L72: 0.1387257943 | M72: 0.1328404813 | N72: 0.1265470975 | O72: 0.1203038363 | P72: 0.1143469397 | Q72: 0.1087928224 | R72: 0.1036920754 | S72: 0.09905898182 | T72: 0.09488075263 | U72: 0.09091559872 | V72: 0.08783212766 | W72: 0.05805499544 | X72: 0.06692727864 | Y72: 0.07510365974 | Z72: 0.08266254947 | AA72: 0.08967105523 | AB72: 0.09618693887 | AC72: 0.1022601827 | AD72: 0.107934252 | AE72: 0.1132471202 | AF72: 0.118232107 | AG72: 0.122918568 | AH72: 0.1273324655 | AI72: 0.1314968441 | AJ72: 0.1354322279 | AK72: 0.1391569555 | AL72: 0.1426874625 | AM72: 0.1460385218 | AN72: 0.1492234479 | AO72: =AO71*AO26 -> 0.1522542727 | AP72: 0.1551418955 | AQ72: 0.1578962134 | AR72: 0.1605262333 | AS72: 0.1630401702 | AT72: 0.1654455315 | AU72: 0.1677491922 | AV72: 0.1699574594 | AW72: 0.1720761301 | AX72: 0.1741105416 | AY72: 0.1760656159 | AZ72: 0.1779458995 | BA72: 0.1797555984 | BB72: 0.1814986094 | BC72: 0.1831785479 | BD72: 0.1847987731 | BE72: 0.1863624097 | BF72: 0.1878723687 | BG72: 0.1893313646 | BH72: 0.2323678907 | BI72: Pdiss buck diode
B73: Max Peak current | C73: =IF(Topology="Buck",MAX(J102:BH102),MAX(J22:BH22)) -> 2.014749542 | D73: Maximum peak diode current | G73: Boost Diode | H73: Tj Boost Diode | I73: =I76*RTHavg_Vd_boost+Ta -> 164.3838 | J73: =J76*RTHavg_Vd_boost+Ta -> 170.4107871 | K73: 169.140227 | L73: 168.0253951 | M73: 167.0587749 | N73: 166.2116991 | O73: 165.4624659 | P73: 164.7943412 | Q73: 164.1942122 | R73: 163.6516564 | S73: 163.1582853 | T73: 162.7072734 | U73: 162.293081 | V73: 161.8276639 | W73: 162.8494387 | X73: 163.1380753 | Y73: 163.3792608 | Z73: 163.5805304 | AA73: 163.7480964 | AB73: 163.8871057 | AC73: 164.0018429 | AD73: 164.0958905 | AE73: 164.1722568 | AF73: 164.2334776 | AG73: 164.2816987 | AH73: 164.3187421 | AI73: 164.3461596 | AJ73: 164.3652778 | AK73: 164.3772331 | AL73: 164.3830023 | AM73: =AM76*RTHavg_Vd_boost+Ta -> 164.383427 | AN73: 164.3792337 | AO73: 164.3710516 | AP73: 164.359426 | AQ73: 164.3448311 | AR73: 164.3276793 | AS73: 164.3083306 | AT73: 164.2870991 | AU73: =AU76*RTHavg_Vd_boost+Ta -> 164.2642595 | AV73: 164.2400524 | AW73: 164.2146887 | AX73: 164.1883532 | AY73: 164.1612085 | AZ73: 164.1333971 | BA73: 164.1050446 | BB73: 164.0762613 | BC73: 164.0471442 | BD73: 164.0177787 | BE73: 163.9882399 | BF73: 163.9585939 | BG73: 163.9288986 | BH73: =BH76*RTHavg_Vd_boost+Ta -> 164.6424409 | BI73: Tj Boost Diode | BJ73: Boost Diode
B74: Max Average current | C74: =IF(Topology="Buck",MAX(J106:BH106),MAX(J26:BH26)) -> 0.6911236657 | D74: Maximum average diode current | H74: I boost diode ON | I74: =IF(I17=0,I28,IF(I$12>I$14,I22,I22-I23/2)) -> 0.9116316536 | J74: 2.014749542 | K74: 1.855179579 | L74: 1.718522817 | M74: 1.600033945 | N74: 1.496198889 | O74: 1.404357442 | P74: 1.322458328 | Q74: 1.24889415 | R74: 1.182387344 | S74: 1.121909624 | T74: 1.066624322 | U74: 1.015852371 | V74: 0.9691009459 | W74: 0.8812761395 | X74: 0.8870075037 | Y74: 0.8917891101 | Z74: 0.8957741482 | AA74: 0.8990882658 | AB74: 0.9018351137 | AC74: 0.9041006544 | AD74: 0.9059565363 | AE74: 0.9074627551 | AF74: 0.9086697669 | AG74: 0.909620177 | AH74: 0.910350098 | AI74: 0.9108902471 | AJ74: 0.9112668393 | AK74: 0.9115023157 | AL74: 0.9116159429 | AM74: 0.9116243066 | AN74: 0.9115417201 | AO74: =IF(AO17=0,AO28,IF(AO$12>AO$14,AO22,AO22-AO23/2)) -> 0.9113805651 | AP74: 0.9111515753 | AQ74: 0.910864075 | AR74: 0.9105261787 | AS74: 0.9101449605 | AT74: 0.9097265974 | AU74: 0.9092764903 | AV74: 0.9087993679 | AW74: 0.9082993754 | AX74: 0.9077801494 | AY74: 0.9072448841 | AZ74: 0.9066963862 | BA74: 0.906137124 | BB74: 0.905569269 | BC74: 0.904994732 | BD74: 0.9044151947 | BE74: 0.9038321369 | BF74: 0.9032468608 | BG74: 0.9026605112 | BH74: 0.916721755 | BI74: I boost diode ON
B75: max Power diss | C75: =MAX(J72:BH72) -> 0.2323678907 | D75: Maximum diode power dissipation | H75: Vf boost diode | I75: =IF(Reset=1,0.45,FORECAST(I74, OFFSET(Vd_1_boost:Vd_3_boost,MATCH(I74,I_Vd1_boost:I_Vd3_boost,1)-1,0,2), OFFSET(I_Vd1_boost:I_Vd3_boost,MATCH(I74,I_Vd1_boost:I_Vd3_boost,1)-1,0,2))+(I73-25)*vd_boost_temp_coeff/1000) -> 0.3600119984 | J75: =IF(Reset=1,0.45,FORECAST(J74, OFFSET(Vd_1_boost:Vd_3_boost,MATCH(J74,I_Vd1_boost:I_Vd3_boost,1)-1,0,2), OFFSET(I_Vd1_boost:I_Vd3_boost,MATCH(J74,I_Vd1_boost:I_Vd3_boost,1)-1,0,2))+(J73-25)*vd_boost_temp_coeff/1000) -> 0.4555725157 | K75: =IF(Reset=1,0.45,FORECAST(K74, OFFSET(Vd_1_boost:Vd_3_boost,MATCH(K74,I_Vd1_boost:I_Vd3_boost,1)-1,0,2), OFFSET(I_Vd1_boost:I_Vd3_boost,MATCH(K74,I_Vd1_boost:I_Vd3_boost,1)-1,0,2))+(K73-25)*vd_boost_temp_coeff/1000) -> 0.4428259351 | L75: =IF(Reset=1,0.45,FORECAST(L74, OFFSET(Vd_1_boost:Vd_3_boost,MATCH(L74,I_Vd1_boost:I_Vd3_boost,1)-1,0,2), OFFSET(I_Vd1_boost:I_Vd3_boost,MATCH(L74,I_Vd1_boost:I_Vd3_boost,1)-1,0,2))+(L73-25)*vd_boost_temp_coeff/1000) -> 0.4316416585 | M75: =IF(Reset=1,0.45,FORECAST(M74, OFFSET(Vd_1_boost:Vd_3_boost,MATCH(M74,I_Vd1_boost:I_Vd3_boost,1)-1,0,2), OFFSET(I_Vd1_boost:I_Vd3_boost,MATCH(M74,I_Vd1_boost:I_Vd3_boost,1)-1,0,2))+(M73-25)*vd_boost_temp_coeff/1000) -> 0.4219442802 | N75: =IF(Reset=1,0.45,FORECAST(N74, OFFSET(Vd_1_boost:Vd_3_boost,MATCH(N74,I_Vd1_boost:I_Vd3_boost,1)-1,0,2), OFFSET(I_Vd1_boost:I_Vd3_boost,MATCH(N74,I_Vd1_boost:I_Vd3_boost,1)-1,0,2))+(N73-25)*vd_boost_temp_coeff/1000) -> 0.413446201 | O75: =IF(Reset=1,0.45,FORECAST(O74, OFFSET(Vd_1_boost:Vd_3_boost,MATCH(O74,I_Vd1_boost:I_Vd3_boost,1)-1,0,2), OFFSET(I_Vd1_boost:I_Vd3_boost,MATCH(O74,I_Vd1_boost:I_Vd3_boost,1)-1,0,2))+(O73-25)*vd_boost_temp_coeff/1000) -> 0.4059297039 | P75: =IF(Reset=1,0.45,FORECAST(P74, OFFSET(Vd_1_boost:Vd_3_boost,MATCH(P74,I_Vd1_boost:I_Vd3_boost,1)-1,0,2), OFFSET(I_Vd1_boost:I_Vd3_boost,MATCH(P74,I_Vd1_boost:I_Vd3_boost,1)-1,0,2))+(P73-25)*vd_boost_temp_coeff/1000) -> 0.3992269083 | Q75: =IF(Reset=1,0.45,FORECAST(Q74, OFFSET(Vd_1_boost:Vd_3_boost,MATCH(Q74,I_Vd1_boost:I_Vd3_boost,1)-1,0,2), OFFSET(I_Vd1_boost:I_Vd3_boost,MATCH(Q74,I_Vd1_boost:I_Vd3_boost,1)-1,0,2))+(Q73-25)*vd_boost_temp_coeff/1000) -> 0.3932062613 | R75: =IF(Reset=1,0.45,FORECAST(R74, OFFSET(Vd_1_boost:Vd_3_boost,MATCH(R74,I_Vd1_boost:I_Vd3_boost,1)-1,0,2), OFFSET(I_Vd1_boost:I_Vd3_boost,MATCH(R74,I_Vd1_boost:I_Vd3_boost,1)-1,0,2))+(R73-25)*vd_boost_temp_coeff/1000) -> 0.3877632045 | S75: =IF(Reset=1,0.45,FORECAST(S74, OFFSET(Vd_1_boost:Vd_3_boost,MATCH(S74,I_Vd1_boost:I_Vd3_boost,1)-1,0,2), OFFSET(I_Vd1_boost:I_Vd3_boost,MATCH(S74,I_Vd1_boost:I_Vd3_boost,1)-1,0,2))+(S73-25)*vd_boost_temp_coeff/1000) -> 0.3828135808 | T75: =IF(Reset=1,0.45,FORECAST(T74, OFFSET(Vd_1_boost:Vd_3_boost,MATCH(T74,I_Vd1_boost:I_Vd3_boost,1)-1,0,2), OFFSET(I_Vd1_boost:I_Vd3_boost,MATCH(T74,I_Vd1_boost:I_Vd3_boost,1)-1,0,2))+(T73-25)*vd_boost_temp_coeff/1000) -> 0.3782889155 | U75: =IF(Reset=1,0.45,FORECAST(U74, OFFSET(Vd_1_boost:Vd_3_boost,MATCH(U74,I_Vd1_boost:I_Vd3_boost,1)-1,0,2), OFFSET(I_Vd1_boost:I_Vd3_boost,MATCH(U74,I_Vd1_boost:I_Vd3_boost,1)-1,0,2))+(U73-25)*vd_boost_temp_coeff/1000) -> 0.3741336324 | V75: =IF(Reset=1,0.45,FORECAST(V74, OFFSET(Vd_1_boost:Vd_3_boost,MATCH(V74,I_Vd1_boost:I_Vd3_boost,1)-1,0,2), OFFSET(I_Vd1_boost:I_Vd3_boost,MATCH(V74,I_Vd1_boost:I_Vd3_boost,1)-1,0,2))+(V73-25)*vd_boost_temp_coeff/1000) -> 0.3694644496 | W75: =IF(Reset=1,0.45,FORECAST(W74, OFFSET(Vd_1_boost:Vd_3_boost,MATCH(W74,I_Vd1_boost:I_Vd3_boost,1)-1,0,2), OFFSET(I_Vd1_boost:I_Vd3_boost,MATCH(W74,I_Vd1_boost:I_Vd3_boost,1)-1,0,2))+(W73-25)*vd_boost_temp_coeff/1000) -> 0.357903698 | X75: =IF(Reset=1,0.45,FORECAST(X74, OFFSET(Vd_1_boost:Vd_3_boost,MATCH(X74,I_Vd1_boost:I_Vd3_boost,1)-1,0,2), OFFSET(I_Vd1_boost:I_Vd3_boost,MATCH(X74,I_Vd1_boost:I_Vd3_boost,1)-1,0,2))+(X73-25)*vd_boost_temp_coeff/1000) -> 0.3583028251 | Y75: =IF(Reset=1,0.45,FORECAST(Y74, OFFSET(Vd_1_boost:Vd_3_boost,MATCH(Y74,I_Vd1_boost:I_Vd3_boost,1)-1,0,2), OFFSET(I_Vd1_boost:I_Vd3_boost,MATCH(Y74,I_Vd1_boost:I_Vd3_boost,1)-1,0,2))+(Y73-25)*vd_boost_temp_coeff/1000) -> 0.3586354324 | Z75: =IF(Reset=1,0.45,FORECAST(Z74, OFFSET(Vd_1_boost:Vd_3_boost,MATCH(Z74,I_Vd1_boost:I_Vd3_boost,1)-1,0,2), OFFSET(I_Vd1_boost:I_Vd3_boost,MATCH(Z74,I_Vd1_boost:I_Vd3_boost,1)-1,0,2))+(Z73-25)*vd_boost_temp_coeff/1000) -> 0.3589123674 | AA75: =IF(Reset=1,0.45,FORECAST(AA74, OFFSET(Vd_1_boost:Vd_3_boost,MATCH(AA74,I_Vd1_boost:I_Vd3_boost,1)-1,0,2), OFFSET(I_Vd1_boost:I_Vd3_boost,MATCH(AA74,I_Vd1_boost:I_Vd3_boost,1)-1,0,2))+(AA73-25)*vd_boost_temp_coeff/1000) -> 0.3591424955 | AB75: =IF(Reset=1,0.45,FORECAST(AB74, OFFSET(Vd_1_boost:Vd_3_boost,MATCH(AB74,I_Vd1_boost:I_Vd3_boost,1)-1,0,2), OFFSET(I_Vd1_boost:I_Vd3_boost,MATCH(AB74,I_Vd1_boost:I_Vd3_boost,1)-1,0,2))+(AB73-25)*vd_boost_temp_coeff/1000) -> 0.3593331079 | AC75: =IF(Reset=1,0.45,FORECAST(AC74, OFFSET(Vd_1_boost:Vd_3_boost,MATCH(AC74,I_Vd1_boost:I_Vd3_boost,1)-1,0,2), OFFSET(I_Vd1_boost:I_Vd3_boost,MATCH(AC74,I_Vd1_boost:I_Vd3_boost,1)-1,0,2))+(AC73-25)*vd_boost_temp_coeff/1000) -> 0.3594902357 | AD75: =IF(Reset=1,0.45,FORECAST(AD74, OFFSET(Vd_1_boost:Vd_3_boost,MATCH(AD74,I_Vd1_boost:I_Vd3_boost,1)-1,0,2), OFFSET(I_Vd1_boost:I_Vd3_boost,MATCH(AD74,I_Vd1_boost:I_Vd3_boost,1)-1,0,2))+(AD73-25)*vd_boost_temp_coeff/1000) -> 0.3596188939 | AE75: =IF(Reset=1,0.45,FORECAST(AE74, OFFSET(Vd_1_boost:Vd_3_boost,MATCH(AE74,I_Vd1_boost:I_Vd3_boost,1)-1,0,2), OFFSET(I_Vd1_boost:I_Vd3_boost,MATCH(AE74,I_Vd1_boost:I_Vd3_boost,1)-1,0,2))+(AE73-25)*vd_boost_temp_coeff/1000) -> 0.3597232738 | AF75: =IF(Reset=1,0.45,FORECAST(AF74, OFFSET(Vd_1_boost:Vd_3_boost,MATCH(AF74,I_Vd1_boost:I_Vd3_boost,1)-1,0,2), OFFSET(I_Vd1_boost:I_Vd3_boost,MATCH(AF74,I_Vd1_boost:I_Vd3_boost,1)-1,0,2))+(AF73-25)*vd_boost_temp_coeff/1000) -> 0.3598068944 | AG75: =IF(Reset=1,0.45,FORECAST(AG74, OFFSET(Vd_1_boost:Vd_3_boost,MATCH(AG74,I_Vd1_boost:I_Vd3_boost,1)-1,0,2), OFFSET(I_Vd1_boost:I_Vd3_boost,MATCH(AG74,I_Vd1_boost:I_Vd3_boost,1)-1,0,2))+(AG73-25)*vd_boost_temp_coeff/1000) -> 0.3598727225 | AH75: =IF(Reset=1,0.45,FORECAST(AH74, OFFSET(Vd_1_boost:Vd_3_boost,MATCH(AH74,I_Vd1_boost:I_Vd3_boost,1)-1,0,2), OFFSET(I_Vd1_boost:I_Vd3_boost,MATCH(AH74,I_Vd1_boost:I_Vd3_boost,1)-1,0,2))+(AH73-25)*vd_boost_temp_coeff/1000) -> 0.3599232697 | AI75: =IF(Reset=1,0.45,FORECAST(AI74, OFFSET(Vd_1_boost:Vd_3_boost,MATCH(AI74,I_Vd1_boost:I_Vd3_boost,1)-1,0,2), OFFSET(I_Vd1_boost:I_Vd3_boost,MATCH(AI74,I_Vd1_boost:I_Vd3_boost,1)-1,0,2))+(AI73-25)*vd_boost_temp_coeff/1000) -> 0.35996067 | AJ75: =IF(Reset=1,0.45,FORECAST(AJ74, OFFSET(Vd_1_boost:Vd_3_boost,MATCH(AJ74,I_Vd1_boost:I_Vd3_boost,1)-1,0,2), OFFSET(I_Vd1_boost:I_Vd3_boost,MATCH(AJ74,I_Vd1_boost:I_Vd3_boost,1)-1,0,2))+(AJ73-25)*vd_boost_temp_coeff/1000) -> 0.3599867429 | AK75: =IF(Reset=1,0.45,FORECAST(AK74, OFFSET(Vd_1_boost:Vd_3_boost,MATCH(AK74,I_Vd1_boost:I_Vd3_boost,1)-1,0,2), OFFSET(I_Vd1_boost:I_Vd3_boost,MATCH(AK74,I_Vd1_boost:I_Vd3_boost,1)-1,0,2))+(AK73-25)*vd_boost_temp_coeff/1000) -> 0.3600030448 | AL75: =IF(Reset=1,0.45,FORECAST(AL74, OFFSET(Vd_1_boost:Vd_3_boost,MATCH(AL74,I_Vd1_boost:I_Vd3_boost,1)-1,0,2), OFFSET(I_Vd1_boost:I_Vd3_boost,MATCH(AL74,I_Vd1_boost:I_Vd3_boost,1)-1,0,2))+(AL73-25)*vd_boost_temp_coeff/1000) -> 0.3600109108 | AM75: =IF(Reset=1,0.45,FORECAST(AM74, OFFSET(Vd_1_boost:Vd_3_boost,MATCH(AM74,I_Vd1_boost:I_Vd3_boost,1)-1,0,2), OFFSET(I_Vd1_boost:I_Vd3_boost,MATCH(AM74,I_Vd1_boost:I_Vd3_boost,1)-1,0,2))+(AM73-25)*vd_boost_temp_coeff/1000) -> 0.3600114898 | AN75: =IF(Reset=1,0.45,FORECAST(AN74, OFFSET(Vd_1_boost:Vd_3_boost,MATCH(AN74,I_Vd1_boost:I_Vd3_boost,1)-1,0,2), OFFSET(I_Vd1_boost:I_Vd3_boost,MATCH(AN74,I_Vd1_boost:I_Vd3_boost,1)-1,0,2))+(AN73-25)*vd_boost_temp_coeff/1000) -> 0.3600057727 | AO75: =IF(Reset=1,0.45,FORECAST(AO74, OFFSET(Vd_1_boost:Vd_3_boost,MATCH(AO74,I_Vd1_boost:I_Vd3_boost,1)-1,0,2), OFFSET(I_Vd1_boost:I_Vd3_boost,MATCH(AO74,I_Vd1_boost:I_Vd3_boost,1)-1,0,2))+(AO73-25)*vd_boost_temp_coeff/1000) -> 0.3599946162 | AP75: =IF(Reset=1,0.45,FORECAST(AP74, OFFSET(Vd_1_boost:Vd_3_boost,MATCH(AP74,I_Vd1_boost:I_Vd3_boost,1)-1,0,2), OFFSET(I_Vd1_boost:I_Vd3_boost,MATCH(AP74,I_Vd1_boost:I_Vd3_boost,1)-1,0,2))+(AP73-25)*vd_boost_temp_coeff/1000) -> 0.359978763 | AQ75: =IF(Reset=1,0.45,FORECAST(AQ74, OFFSET(Vd_1_boost:Vd_3_boost,MATCH(AQ74,I_Vd1_boost:I_Vd3_boost,1)-1,0,2), OFFSET(I_Vd1_boost:I_Vd3_boost,MATCH(AQ74,I_Vd1_boost:I_Vd3_boost,1)-1,0,2))+(AQ73-25)*vd_boost_temp_coeff/1000) -> 0.3599588579 | AR75: =IF(Reset=1,0.45,FORECAST(AR74, OFFSET(Vd_1_boost:Vd_3_boost,MATCH(AR74,I_Vd1_boost:I_Vd3_boost,1)-1,0,2), OFFSET(I_Vd1_boost:I_Vd3_boost,MATCH(AR74,I_Vd1_boost:I_Vd3_boost,1)-1,0,2))+(AR73-25)*vd_boost_temp_coeff/1000) -> 0.3599354621 | AS75: =IF(Reset=1,0.45,FORECAST(AS74, OFFSET(Vd_1_boost:Vd_3_boost,MATCH(AS74,I_Vd1_boost:I_Vd3_boost,1)-1,0,2), OFFSET(I_Vd1_boost:I_Vd3_boost,MATCH(AS74,I_Vd1_boost:I_Vd3_boost,1)-1,0,2))+(AS73-25)*vd_boost_temp_coeff/1000) -> 0.3599090647 | AT75: =IF(Reset=1,0.45,FORECAST(AT74, OFFSET(Vd_1_boost:Vd_3_boost,MATCH(AT74,I_Vd1_boost:I_Vd3_boost,1)-1,0,2), OFFSET(I_Vd1_boost:I_Vd3_boost,MATCH(AT74,I_Vd1_boost:I_Vd3_boost,1)-1,0,2))+(AT73-25)*vd_boost_temp_coeff/1000) -> 0.3598800926 | AU75: =IF(Reset=1,0.45,FORECAST(AU74, OFFSET(Vd_1_boost:Vd_3_boost,MATCH(AU74,I_Vd1_boost:I_Vd3_boost,1)-1,0,2), OFFSET(I_Vd1_boost:I_Vd3_boost,MATCH(AU74,I_Vd1_boost:I_Vd3_boost,1)-1,0,2))+(AU73-25)*vd_boost_temp_coeff/1000) -> 0.3598489193 | AV75: =IF(Reset=1,0.45,FORECAST(AV74, OFFSET(Vd_1_boost:Vd_3_boost,MATCH(AV74,I_Vd1_boost:I_Vd3_boost,1)-1,0,2), OFFSET(I_Vd1_boost:I_Vd3_boost,MATCH(AV74,I_Vd1_boost:I_Vd3_boost,1)-1,0,2))+(AV73-25)*vd_boost_temp_coeff/1000) -> 0.3598158717 | AW75: =IF(Reset=1,0.45,FORECAST(AW74, OFFSET(Vd_1_boost:Vd_3_boost,MATCH(AW74,I_Vd1_boost:I_Vd3_boost,1)-1,0,2), OFFSET(I_Vd1_boost:I_Vd3_boost,MATCH(AW74,I_Vd1_boost:I_Vd3_boost,1)-1,0,2))+(AW73-25)*vd_boost_temp_coeff/1000) -> 0.3597812364 | AX75: =IF(Reset=1,0.45,FORECAST(AX74, OFFSET(Vd_1_boost:Vd_3_boost,MATCH(AX74,I_Vd1_boost:I_Vd3_boost,1)-1,0,2), OFFSET(I_Vd1_boost:I_Vd3_boost,MATCH(AX74,I_Vd1_boost:I_Vd3_boost,1)-1,0,2))+(AX73-25)*vd_boost_temp_coeff/1000) -> 0.3597452647 | AY75: =IF(Reset=1,0.45,FORECAST(AY74, OFFSET(Vd_1_boost:Vd_3_boost,MATCH(AY74,I_Vd1_boost:I_Vd3_boost,1)-1,0,2), OFFSET(I_Vd1_boost:I_Vd3_boost,MATCH(AY74,I_Vd1_boost:I_Vd3_boost,1)-1,0,2))+(AY73-25)*vd_boost_temp_coeff/1000) -> 0.3597081776 | AZ75: =IF(Reset=1,0.45,FORECAST(AZ74, OFFSET(Vd_1_boost:Vd_3_boost,MATCH(AZ74,I_Vd1_boost:I_Vd3_boost,1)-1,0,2), OFFSET(I_Vd1_boost:I_Vd3_boost,MATCH(AZ74,I_Vd1_boost:I_Vd3_boost,1)-1,0,2))+(AZ73-25)*vd_boost_temp_coeff/1000) -> 0.3596701692 | BA75: =IF(Reset=1,0.45,FORECAST(BA74, OFFSET(Vd_1_boost:Vd_3_boost,MATCH(BA74,I_Vd1_boost:I_Vd3_boost,1)-1,0,2), OFFSET(I_Vd1_boost:I_Vd3_boost,MATCH(BA74,I_Vd1_boost:I_Vd3_boost,1)-1,0,2))+(BA73-25)*vd_boost_temp_coeff/1000) -> 0.3596314103 | BB75: =IF(Reset=1,0.45,FORECAST(BB74, OFFSET(Vd_1_boost:Vd_3_boost,MATCH(BB74,I_Vd1_boost:I_Vd3_boost,1)-1,0,2), OFFSET(I_Vd1_boost:I_Vd3_boost,MATCH(BB74,I_Vd1_boost:I_Vd3_boost,1)-1,0,2))+(BB73-25)*vd_boost_temp_coeff/1000) -> 0.359592051 | BC75: =IF(Reset=1,0.45,FORECAST(BC74, OFFSET(Vd_1_boost:Vd_3_boost,MATCH(BC74,I_Vd1_boost:I_Vd3_boost,1)-1,0,2), OFFSET(I_Vd1_boost:I_Vd3_boost,MATCH(BC74,I_Vd1_boost:I_Vd3_boost,1)-1,0,2))+(BC73-25)*vd_boost_temp_coeff/1000) -> 0.3595522236 | BD75: =IF(Reset=1,0.45,FORECAST(BD74, OFFSET(Vd_1_boost:Vd_3_boost,MATCH(BD74,I_Vd1_boost:I_Vd3_boost,1)-1,0,2), OFFSET(I_Vd1_boost:I_Vd3_boost,MATCH(BD74,I_Vd1_boost:I_Vd3_boost,1)-1,0,2))+(BD73-25)*vd_boost_temp_coeff/1000) -> 0.3595120447 | BE75: =IF(Reset=1,0.45,FORECAST(BE74, OFFSET(Vd_1_boost:Vd_3_boost,MATCH(BE74,I_Vd1_boost:I_Vd3_boost,1)-1,0,2), OFFSET(I_Vd1_boost:I_Vd3_boost,MATCH(BE74,I_Vd1_boost:I_Vd3_boost,1)-1,0,2))+(BE73-25)*vd_boost_temp_coeff/1000) -> 0.3594716165 | BF75: =IF(Reset=1,0.45,FORECAST(BF74, OFFSET(Vd_1_boost:Vd_3_boost,MATCH(BF74,I_Vd1_boost:I_Vd3_boost,1)-1,0,2), OFFSET(I_Vd1_boost:I_Vd3_boost,MATCH(BF74,I_Vd1_boost:I_Vd3_boost,1)-1,0,2))+(BF73-25)*vd_boost_temp_coeff/1000) -> 0.3594310294 | BG75: =IF(Reset=1,0.45,FORECAST(BG74, OFFSET(Vd_1_boost:Vd_3_boost,MATCH(BG74,I_Vd1_boost:I_Vd3_boost,1)-1,0,2), OFFSET(I_Vd1_boost:I_Vd3_boost,MATCH(BG74,I_Vd1_boost:I_Vd3_boost,1)-1,0,2))+(BG73-25)*vd_boost_temp_coeff/1000) -> 0.3593903627 | BH75: =IF(Reset=1,0.45,FORECAST(BH74, OFFSET(Vd_1_boost:Vd_3_boost,MATCH(BH74,I_Vd1_boost:I_Vd3_boost,1)-1,0,2), OFFSET(I_Vd1_boost:I_Vd3_boost,MATCH(BH74,I_Vd1_boost:I_Vd3_boost,1)-1,0,2))+(BH73-25)*vd_boost_temp_coeff/1000) -> 0.3603641697 | BI75: Vf boost diode
B76: Max reverse voltage | C76: =V_AbsMax+4 -> 40 | D76: Select diode with higher reverse voltage rating | H76: Pdiss boost diode | I76: =I75*I28 -> 0.3281983334 | J76: 0.3784232261 | K76: 0.3678352253 | L76: 0.3585449589 | M76: 0.3504897908 | N76: 0.3434308256 | O76: 0.3371872157 | P76: 0.3316195104 | Q76: 0.3266184346 | R76: 0.3220971366 | S76: 0.3179857109 | T76: 0.3142272786 | U76: 0.3107756752 | V76: 0.3068971989 | W76: 0.3154119893 | X76: 0.3178172945 | Y76: 0.3198271731 | Z76: 0.3215044201 | AA76: 0.3229008034 | AB76: 0.3240592143 | AC76: 0.3250153573 | AD76: 0.3257990875 | AE76: 0.3264354732 | AF76: 0.3269456469 | AG76: 0.3273474895 | AH76: 0.3276561838 | AI76: 0.3278846637 | AJ76: 0.3280439814 | AK76: 0.328143609 | AL76: 0.3281916859 | AM76: 0.3281952248 | AN76: 0.3281602812 | AO76: =AO75*AO28 -> 0.3280920967 | AP76: 0.327995217 | AQ76: 0.3278735922 | AR76: 0.3277306609 | AS76: 0.3275694215 | AT76: 0.3273924921 | AU76: 0.3272021624 | AV76: 0.3270004368 | AW76: 0.3267890723 | AX76: 0.3265696102 | AY76: 0.3263434039 | AZ76: 0.3261116426 | BA76: 0.3258753718 | BB76: 0.3256355108 | BC76: 0.3253928683 | BD76: 0.3251481559 | BE76: 0.3249019993 | BF76: 0.324654949 | BG76: 0.3244074885 | BH76: 0.3303536741 | BI76: Pdiss boost diode
B77: Max TJ | C77: =IF(Topology="Buck",ROUNDUP(MAX(J152:BH152),0),ROUNDUP(MAX(J69:BH69),0)) -> 153 | D77: =IF(C77>150,"Buck diode temperature too high","Estimated worse case buck diode temperature") -> Buck diode temperature too high | G77: Boost FET | H77: Tj Boost FET | I77: =IF(Reset=1,150,IF(Ta+Rthj_a_boost_FET*I82>190,190,Ta+Rthj_a_boost_FET*I82)) -> 125 | J77: 140.400182 | K77: 139.5989757 | L77: 138.9927164 | M77: 138.5261681 | N77: 138.1619771 | O77: 137.8741555 | P77: 137.6441827 | Q77: 137.4585828 | R77: 137.3073697 | S77: 137.1830229 | T77: 137.0797945 | U77: 136.9932354 | V77: 136.9198437 | W77: 125 | X77: 125 | Y77: 125 | Z77: 125 | AA77: 125 | AB77: 125 | AC77: 125 | AD77: 125 | AE77: 125 | AF77: 125 | AG77: 125 | AH77: 125 | AI77: 125 | AJ77: 125 | AK77: 125 | AL77: 125 | AM77: 125 | AN77: 125 | AO77: =IF(Reset=1,150,IF(Ta+Rthj_a_boost_FET*AO82>190,190,Ta+Rthj_a_boost_FET*AO82)) -> 125 | AP77: 125 | AQ77: 125 | AR77: 125 | AS77: 125 | AT77: 125 | AU77: 125 | AV77: 125 | AW77: 125 | AX77: 125 | AY77: 125 | AZ77: 125 | BA77: 125 | BB77: 125 | BC77: 125 | BD77: 125 | BE77: 125 | BF77: 125 | BG77: 125 | BH77: 125 | BI77: Tj Boost FET | BJ77: Boost FET
H78: Rds thermal Coeff | I78: =(I77+40)*(1.34655999666222-0.667409045393858)/0.828125/(190)+0.667409045393858/0.828125 -> 1.518125922 | J78: =(J77+40)*(1.34655999666222-0.667409045393858)/0.828125/(190)+0.667409045393858/0.828125 -> 1.584598523 | K78: =(K77+40)*(1.34655999666222-0.667409045393858)/0.828125/(190)+0.667409045393858/0.828125 -> 1.581140235 | L78: 1.578523407 | M78: 1.57650962 | N78: 1.574937644 | O78: 1.573695304 | P78: 1.572702661 | Q78: 1.571901546 | R78: 1.571248858 | S78: 1.570712133 | T78: 1.570266563 | U78: 1.569892943 | V78: 1.569576159 | W78: 1.518125922 | X78: 1.518125922 | Y78: 1.518125922 | Z78: 1.518125922 | AA78: 1.518125922 | AB78: 1.518125922 | AC78: 1.518125922 | AD78: 1.518125922 | AE78: 1.518125922 | AF78: 1.518125922 | AG78: 1.518125922 | AH78: 1.518125922 | AI78: 1.518125922 | AJ78: 1.518125922 | AK78: 1.518125922 | AL78: 1.518125922 | AM78: 1.518125922 | AN78: 1.518125922 | AO78: 1.518125922 | AP78: 1.518125922 | AQ78: 1.518125922 | AR78: 1.518125922 | AS78: 1.518125922 | AT78: 1.518125922 | AU78: 1.518125922 | AV78: 1.518125922 | AW78: 1.518125922 | AX78: 1.518125922 | AY78: 1.518125922 | AZ78: 1.518125922 | BA78: 1.518125922 | BB78: 1.518125922 | BC78: 1.518125922 | BD78: 1.518125922 | BE78: 1.518125922 | BF78: 1.518125922 | BG78: 1.518125922 | BH78: =(BH77+40)*(1.34655999666222-0.667409045393858)/0.828125/(190)+0.667409045393858/0.828125 -> 1.518125922 | BI78: Rds thermal Coeff
B79: Boost Diode (based on SS3P5) | H79: Rds_On Boost FET | I79: =R_ds_ON_boost*I78 -> 0.0273262666 | J79: =R_ds_ON_boost*J78 -> 0.02852277341 | K79: 0.02846052423 | L79: 0.02841342132 | M79: 0.02837717316 | N79: 0.02834887758 | O79: 0.02832651548 | P79: 0.0283086479 | Q79: 0.02829422783 | R79: 0.02828247944 | S79: 0.0282728184 | T79: 0.02826479813 | U79: 0.02825807298 | V79: 0.02825237086 | W79: 0.0273262666 | X79: 0.0273262666 | Y79: 0.0273262666 | Z79: 0.0273262666 | AA79: 0.0273262666 | AB79: 0.0273262666 | AC79: 0.0273262666 | AD79: 0.0273262666 | AE79: 0.0273262666 | AF79: 0.0273262666 | AG79: 0.0273262666 | AH79: 0.0273262666 | AI79: 0.0273262666 | AJ79: 0.0273262666 | AK79: 0.0273262666 | AL79: 0.0273262666 | AM79: =R_ds_ON_boost*AM78 -> 0.0273262666 | AN79: 0.0273262666 | AO79: 0.0273262666 | AP79: 0.0273262666 | AQ79: 0.0273262666 | AR79: 0.0273262666 | AS79: 0.0273262666 | AT79: 0.0273262666 | AU79: =R_ds_ON_boost*AU78 -> 0.0273262666 | AV79: 0.0273262666 | AW79: 0.0273262666 | AX79: 0.0273262666 | AY79: 0.0273262666 | AZ79: 0.0273262666 | BA79: 0.0273262666 | BB79: 0.0273262666 | BC79: 0.0273262666 | BD79: 0.0273262666 | BE79: 0.0273262666 | BF79: 0.0273262666 | BG79: 0.0273262666 | BH79: =R_ds_ON_boost*BH78 -> 0.0273262666 | BI79: Rds_On Boost FET
B80: Max Peak current | C80: =IF(Topology="Buck","-",MAX(J22:BH22)) -> 2.014749542 | D80: =IF(Topology="Buck","","Maximum peak diode current") -> Maximum peak diode current | H80: Conduction Losses | I80: =I27^2*I79 -> 0 | J80: 0.06113370014 | K80: 0.04778026222 | L80: 0.03767594081 | M80: 0.02990013435 | N80: 0.02383028496 | O80: 0.0190332585 | P80: 0.01520037895 | Q80: 0.01210704588 | R80: 0.009586828452 | S80: 0.007514381903 | T80: 0.005793908124 | U80: 0.004351256226 | V80: 0.003128060901 | W80: 0 | X80: 0 | Y80: 0 | Z80: 0 | AA80: 0 | AB80: 0 | AC80: 0 | AD80: 0 | AE80: 0 | AF80: 0 | AG80: 0 | AH80: 0 | AI80: 0 | AJ80: 0 | AK80: 0 | AL80: 0 | AM80: 0 | AN80: 0 | AO80: =AO27^2*AO79 -> 0 | AP80: 0 | AQ80: 0 | AR80: 0 | AS80: 0 | AT80: 0 | AU80: 0 | AV80: 0 | AW80: 0 | AX80: 0 | AY80: 0 | AZ80: 0 | BA80: 0 | BB80: 0 | BC80: 0 | BD80: 0 | BE80: 0 | BF80: 0 | BG80: 0 | BH80: 0 | BI80: Conduction Losses
B81: Max Average current | C81: =IF(Topology="Buck","-",MAX(J28:BG28)) -> 0.9116243066 | D81: =IF(Topology="Buck","","Maximum average diode current") -> Maximum average diode current | H81: Switching Losses | I81: =IF(I14=0,0,0.5*Vreg*Iout_PreReg*I19*10^3*(t_rise_boost+t_fall_boost)*10^-9) -> 0 | J81: 0.195536 | K81: 0.195536 | L81: 0.195536 | M81: 0.195536 | N81: 0.195536 | O81: 0.195536 | P81: 0.195536 | Q81: 0.195536 | R81: 0.195536 | S81: 0.195536 | T81: 0.195536 | U81: 0.195536 | V81: 0.195536 | W81: 0 | X81: 0 | Y81: 0 | Z81: 0 | AA81: 0 | AB81: 0 | AC81: 0 | AD81: 0 | AE81: 0 | AF81: 0 | AG81: 0 | AH81: 0 | AI81: 0 | AJ81: 0 | AK81: 0 | AL81: 0 | AM81: 0 | AN81: 0 | AO81: =IF(AO14=0,0,0.5*Vreg*Iout_PreReg*AO19*10^3*(t_rise_boost+t_fall_boost)*10^-9) -> 0 | AP81: 0 | AQ81: 0 | AR81: 0 | AS81: 0 | AT81: 0 | AU81: 0 | AV81: 0 | AW81: 0 | AX81: 0 | AY81: 0 | AZ81: 0 | BA81: 0 | BB81: 0 | BC81: 0 | BD81: 0 | BE81: 0 | BF81: 0 | BG81: 0 | BH81: 0 | BI81: Switching Losses
B82: max Power diss | C82: =IF(Topology="Buck","-",MAX(J76:BH76)) -> 0.3784232261 | D82: =IF(Topology="Buck","","Maximum diode power dissipation") -> Maximum diode power dissipation | H82: Total Boost FET Losses | I82: =I80+I81 -> 0 | J82: =J80+J81 -> 0.2566697001 | K82: =K80+K81 -> 0.2433162622 | L82: 0.2332119408 | M82: 0.2254361343 | N82: 0.219366285 | O82: 0.2145692585 | P82: 0.2107363789 | Q82: 0.2076430459 | R82: 0.2051228285 | S82: 0.2030503819 | T82: 0.2013299081 | U82: 0.1998872562 | V82: 0.1986640609 | W82: 0 | X82: 0 | Y82: 0 | Z82: 0 | AA82: 0 | AB82: 0 | AC82: 0 | AD82: 0 | AE82: 0 | AF82: 0 | AG82: 0 | AH82: 0 | AI82: 0 | AJ82: 0 | AK82: 0 | AL82: 0 | AM82: =AM80+AM81 -> 0 | AN82: 0 | AO82: 0 | AP82: 0 | AQ82: 0 | AR82: 0 | AS82: 0 | AT82: 0 | AU82: 0 | AV82: 0 | AW82: 0 | AX82: 0 | AY82: 0 | AZ82: 0 | BA82: 0 | BB82: 0 | BC82: 0 | BD82: 0 | BE82: 0 | BF82: 0 | BG82: 0 | BH82: =BH80+BH81 -> 0 | BI82: Total Boost FET Losses
B83: Max reverse voltage | C83: =IF(Topology="Buck","-",Vreg+4) -> 9.35 | D83: =IF(Topology="Buck","","Select diode with higher reverse voltage rating") -> Select diode with higher reverse voltage rating | H83: Pout | I83: =I21*Iout_PreReg -> 4.444 | J83: 4.444 | K83: 4.444 | L83: 4.444 | M83: 4.444 | N83: 4.444 | O83: 4.444 | P83: 4.444 | Q83: 4.444 | R83: 4.444 | S83: 4.444 | T83: 4.444 | U83: 4.444 | V83: 4.444 | W83: 4.444 | X83: 4.444 | Y83: 4.444 | Z83: 4.444 | AA83: 4.444 | AB83: 4.444 | AC83: 4.444 | AD83: 4.444 | AE83: 4.444 | AF83: 4.444 | AG83: 4.444 | AH83: 4.444 | AI83: 4.444 | AJ83: 4.444 | AK83: 4.444 | AL83: 4.444 | AM83: 4.444 | AN83: 4.444 | AO83: =AO21*Iout_PreReg -> 4.444 | AP83: 4.444 | AQ83: 4.444 | AR83: 4.444 | AS83: 4.444 | AT83: 4.444 | AU83: 4.444 | AV83: 4.444 | AW83: 4.444 | AX83: 4.444 | AY83: 4.444 | AZ83: 4.444 | BA83: 4.444 | BB83: 4.444 | BC83: 4.444 | BD83: 4.444 | BE83: 4.444 | BF83: 4.444 | BG83: 4.444 | BH83: 4.444
B84: Max TJ | C84: =IF(Topology="Buck","-",ROUNDUP(MAX(J73:BH73),0)) -> 171 | D84: =IF(Topology="Buck","",IF(C84>150,"Boost diode temperature too high","Estimated worse case boost diode temperature")) -> Boost diode temperature too high | H84: P loss | I84: =I82+I76+I72+I3+I24^2*dcr*10^-3 -> 1.117692873 | J84: 1.882621448 | K84: 1.723351668 | L84: 1.600799223 | M84: 1.504739218 | N84: 1.428299654 | O84: 1.366788697 | P84: 1.316897232 | Q84: 1.276228128 | R84: 1.243005576 | S84: 1.215888819 | T84: 1.193840999 | U84: 1.175815765 | V84: 1.152747854 | W84: 0.9203258334 | X84: 0.9345639906 | Y84: 0.9482414747 | Z84: 0.9614707861 | AA84: 0.9743460228 | AB84: 0.9869463398 | AC84: 0.9993386806 | AD84: 1.011579949 | AE84: 1.023718748 | AF84: 1.035796778 | AG84: 1.047849976 | AH84: 1.059909431 | AI84: 1.072002152 | AJ84: 1.08415168 | AK84: 1.096378614 | AL84: 1.108701034 | AM84: 1.121134859 | AN84: 1.133694153 | AO84: =AO82+AO76+AO72+AO3+AO24^2*dcr*10^-3 -> 1.14639137 | AP84: 1.159237575 | AQ84: 1.172242621 | AR84: 1.185415306 | AS84: 1.198763506 | AT84: 1.212294283 | AU84: 1.22601399 | AV84: 1.23992835 | AW84: 1.254042531 | AX84: 1.268361209 | AY84: 1.28288862 | AZ84: 1.297628613 | BA84: 1.312584688 | BB84: 1.327760038 | BC84: 1.343157572 | BD84: 1.358779953 | BE84: 1.374629619 | BF84: 1.390708805 | BG84: 1.407019564 | BH84: 1.969483275
H85: Efficiency | I85: =I83/(I83+I84) -> 0.7990372899 | J85: =J83/(J83+J84) -> 0.7024286243 | K85: 0.720568607 | L85: 0.735177437 | M85: 0.7470490531 | N85: 0.7567733702 | O85: 0.7647843058 | P85: 0.771407616 | Q85: 0.7768920926 | R85: 0.7814305684 | S85: 0.785174434 | T85: 0.7882450038 | U85: 0.7907732541 | V85: 0.7940325554 | W85: 0.8284358814 | X85: 0.8262428425 | Y85: 0.8241470678 | Z85: 0.822130056 | AA85: 0.8201764858 | AB85: 0.8182735976 | AC85: 0.8164107106 | AD85: 0.8145788425 | AE85: 0.8127704085 | AF85: 0.8109789796 | AG85: 0.8091990895 | AH85: 0.8074260769 | AI85: 0.8056559584 | AJ85: 0.8038853232 | AK85: 0.8021112472 | AL85: 0.8003312213 | AM85: 0.7985430924 | AN85: 0.7967450129 | AO85: 0.7949354 | AP85: 0.7931128996 | AQ85: 0.7912763568 | AR85: 0.7894247907 | AS85: 0.7875573725 | AT85: 0.785673407 | AU85: 0.7837723166 | AV85: 0.7818536276 | AW85: 0.7799169584 | AX85: 0.7779620086 | AY85: 0.7759885507 | AZ85: 0.7739964216 | BA85: 0.7719855158 | BB85: 0.7699557797 | BC85: 0.7679072057 | BD85: 0.7658398278 | BE85: 0.7637537171 | BF85: 0.7616489783 | BG85: 0.7595257462 | BH85: 0.6929151928
B86: Compensation Components, Pre-Regulator | L86: =L80/L83 -> 0.008477934477
B87: fcMAX | C87: =ROUNDDOWN(fsw/40,0) -> 50 | D87: Recommended maximum 0dB crossover frequency | G87: Buck Only Mode Calculations | I87: =I2 -> 12 | J87: =Vin_min_Buck -> 6 | K87: =J87+(Vin_max-Vin_min_Buck)/49 -> 6.244897959 | L87: 6.489795918 | M87: 6.734693878 | N87: 6.979591837 | O87: 7.224489796 | P87: 7.469387755 | Q87: 7.714285714 | R87: 7.959183673 | S87: 8.204081633 | T87: 8.448979592 | U87: 8.693877551 | V87: 8.93877551 | W87: 9.183673469 | X87: 9.428571429 | Y87: 9.673469388 | Z87: 9.918367347 | AA87: 10.16326531 | AB87: 10.40816327 | AC87: 10.65306122 | AD87: 10.89795918 | AE87: 11.14285714 | AF87: 11.3877551 | AG87: 11.63265306 | AH87: 11.87755102 | AI87: 12.12244898 | AJ87: 12.36734694 | AK87: 12.6122449 | AL87: 12.85714286 | AM87: 13.10204082 | AN87: 13.34693878 | AO87: 13.59183673 | AP87: 13.83673469 | AQ87: =AP87+(Vin_max-Vin_min_Buck)/49 -> 14.08163265 | AR87: 14.32653061 | AS87: 14.57142857 | AT87: 14.81632653 | AU87: 15.06122449 | AV87: 15.30612245 | AW87: 15.55102041 | AX87: 15.79591837 | AY87: 16.04081633 | AZ87: 16.28571429 | BA87: 16.53061224 | BB87: 16.7755102 | BC87: 17.02040816 | BD87: 17.26530612 | BE87: 17.51020408 | BF87: 17.75510204 | BG87: 18 | BH87: =BH2 -> 36 | BJ87: Buck Only Mode Calculations
B88: fc = | C88: 40 | D88: Choose fc considering recommended fcMAX | G88: Buck | H88: Pdiss total | I88: =I111+I115+I139+I143+I147+I151+IF(I99<5,I2*Icc,I99*Icc) -> 0.4637592981 | J88: 0.3655675641 | K88: 0.3655349215 | L88: 0.3660173317 | M88: 0.3669771037 | N88: 0.368382053 | O88: 0.3631305826 | P88: 0.3655751468 | Q88: 0.368377935 | R88: 0.3715221561 | S88: 0.3749930647 | T88: 0.3787776547 | U88: 0.3828644072 | V88: 0.3872430813 | W88: 0.3919045393 | X88: 0.3968406009 | Y88: 0.4020439191 | Z88: 0.4075078757 | AA88: 0.4132264926 | AB88: 0.419194355 | AC88: 0.425406546 | AD88: 0.4318585903 | AE88: 0.4385464052 | AF88: 0.445466258 | AG88: 0.4526147291 | AH88: 0.4599886795 | AI88: 0.4675852223 | AJ88: 0.4754016979 | AK88: 0.4834356516 | AL88: 0.4916848145 | AM88: 0.5001470856 | AN88: 0.5088205169 | AO88: =AO111+AO115+AO139+AO143+AO147+AO151+IF(AO99<5,AO2*Icc,AO99*Icc) -> 0.5177032996 | AP88: 0.5267937515 | AQ88: 0.5360903061 | AR88: 0.5455915032 | AS88: 0.5552959795 | AT88: 0.5652024607 | AU88: 0.5753097547 | AV88: 0.5856167446 | AW88: 0.596122383 | AX88: 0.6068256867 | AY88: 0.6177257317 | AZ88: 0.6288216491 | BA88: 0.6401126206 | BB88: 0.6515978751 | BC88: 0.6632766854 | BD88: 0.6751483649 | BE88: 0.6872122649 | BF88: 0.6994677721 | BG88: 0.7119143061 | BH88: 1.161738579 | BI88: Pdiss total | BJ88: Buck
B89: R_LOADTYP | C89: =Vreg/Iout_PreReg -> 6.440706571 | H89: Tj | I89: =IF(Reset=1,150,Ta+Rth_ja*I88) -> 138.9127789 | J89: =IF(Reset=1,150,Ta+Rth_ja*J88) -> 135.9670269 | K89: =IF(Reset=1,150,Ta+Rth_ja*K88) -> 135.9660476 | L89: 135.98052 | M89: 136.0093131 | N89: 136.0514616 | O89: 135.8939175 | P89: 135.9672544 | Q89: 136.0513381 | R89: 136.1456647 | S89: 136.2497919 | T89: 136.3633296 | U89: 136.4859322 | V89: 136.6172924 | W89: 136.7571362 | X89: 136.905218 | Y89: 137.0613176 | Z89: 137.2252363 | AA89: 137.3967948 | AB89: 137.5758306 | AC89: 137.7621964 | AD89: 137.9557577 | AE89: 138.1563922 | AF89: 138.3639877 | AG89: 138.5784419 | AH89: 138.7996604 | AI89: 139.0275567 | AJ89: 139.2620509 | AK89: 139.5030695 | AL89: 139.7505444 | AM89: 140.0044126 | AN89: 140.2646155 | AO89: 140.531099 | AP89: =IF(Reset=1,150,Ta+Rth_ja*AP88) -> 140.8038125 | AQ89: 141.0827092 | AR89: 141.3677451 | AS89: 141.6588794 | AT89: 141.9560738 | AU89: 142.2592926 | AV89: 142.5685023 | AW89: 142.8836715 | AX89: 143.2047706 | AY89: 143.531772 | AZ89: 143.8646495 | BA89: 144.2033786 | BB89: 144.5479363 | BC89: 144.8983006 | BD89: 145.2544509 | BE89: 145.6163679 | BF89: 145.9840332 | BG89: =IF(Reset=1,150,Ta+Rth_ja*BG88) -> 146.3574292 | BH89: =IF(Reset=1,150,Ta+Rth_ja*BH88) -> 159.8521574 | BI89: Tj
B90: fP1 | C90: =wp/(2*PI()) -> 0.83433033 | D90: Dominant pole formed by Co and RLOAD. | J90: =J87 -> 6 | K90: =K87 -> 6.244897959 | L90: 6.489795918 | M90: 6.734693878 | N90: 6.979591837 | O90: 7.224489796 | P90: 7.469387755 | Q90: 7.714285714 | R90: 7.959183673 | S90: 8.204081633 | T90: 8.448979592 | U90: 8.693877551 | V90: 8.93877551 | W90: 9.183673469 | X90: 9.428571429 | Y90: 9.673469388 | Z90: 9.918367347 | AA90: 10.16326531 | AB90: 10.40816327 | AC90: 10.65306122 | AD90: 10.89795918 | AE90: 11.14285714 | AF90: 11.3877551 | AG90: 11.63265306 | AH90: 11.87755102 | AI90: 12.12244898 | AJ90: 12.36734694 | AK90: 12.6122449 | AL90: 12.85714286 | AM90: 13.10204082 | AN90: 13.34693878 | AO90: 13.59183673 | AP90: 13.83673469 | AQ90: 14.08163265 | AR90: 14.32653061 | AS90: 14.57142857 | AT90: 14.81632653 | AU90: 15.06122449 | AV90: 15.30612245 | AW90: 15.55102041 | AX90: 15.79591837 | AY90: 16.04081633 | AZ90: 16.28571429 | BA90: 16.53061224 | BB90: 16.7755102 | BC90: 17.02040816 | BD90: 17.26530612 | BE90: 17.51020408 | BF90: 17.75510204 | BG90: 18 | BH90: 36
B91: fZ1 | C91: =wz/(2*PI()) -> 6241.370317 | D91: Zero formed by the output capacitance and its ESR | H91: V1 | I91: =IF(Reset=1,I2-Vreg,I2-Iout_PreReg*(I108+dcr*10^-3)-Vreg) -> 6.4746244 | J91: =IF(Reset=1,J87-Vreg,J87-Iout_PreReg*(J108+dcr*10^-3)-Vreg) -> 0.4652208909 | K91: 0.7101192791 | L91: 0.9550108974 | M91: 1.199896241 | N91: 1.444775733 | O91: 1.700441946 | P91: 1.945307651 | Q91: 2.190168628 | R91: 2.435025101 | S91: 2.679877263 | T91: 2.924725286 | U91: 3.169569323 | V91: 3.414409507 | W91: 3.65924596 | X91: 3.904078791 | Y91: 4.148908094 | Z91: 4.393733959 | AA91: 4.638556464 | AB91: 4.88337568 | AC91: 5.128191672 | AD91: 5.373004499 | AE91: 5.617814216 | AF91: 5.86262087 | AG91: 6.107424509 | AH91: 6.352225172 | AI91: 6.597022898 | AJ91: 6.841817723 | AK91: 7.086609677 | AL91: 7.331398793 | AM91: 7.576185096 | AN91: 7.820968613 | AO91: 8.065749368 | AP91: =IF(Reset=1,AP87-Vreg,AP87-Iout_PreReg*(AP108+dcr*10^-3)-Vreg) -> 8.310527383 | AQ91: 8.555302678 | AR91: 8.800075273 | AS91: 9.044845186 | AT91: 9.289612434 | AU91: 9.534377032 | AV91: 9.779138995 | AW91: 10.02389834 | AX91: 10.26865507 | AY91: 10.51340921 | AZ91: 10.75816076 | BA91: 11.00290974 | BB91: 11.24765616 | BC91: 11.49240002 | BD91: 11.73714134 | BE91: 11.98188012 | BF91: 12.22661637 | BG91: 12.47135011 | BH91: 30.46541488 | BI91: V1
B92: fP2 | C92: =IF(fz_1>10*fc,MAX(fsw/2,5*fc),fz_1) -> 1000 | H92: V3 | I92: =IF(Reset=1,Vreg,Vreg+I154+Iout_PreReg*dcr*10^-3) -> 5.728351326 | J92: =IF(Reset=1,Vreg,Vreg+J154+Iout_PreReg*dcr*10^-3) -> 5.74713072 | K92: 5.745611885 | L92: 5.744214766 | M92: 5.742925358 | N92: 5.741731715 | O92: 5.740576575 | P92: 5.739548333 | Q92: 5.738588783 | R92: 5.737691285 | S92: 5.736850025 | T92: 5.736059892 | U92: 5.735316374 | V92: 5.734615473 | W92: 5.733953636 | X92: 5.733327692 | Y92: 5.732734804 | Z92: 5.732172426 | AA92: 5.731638266 | AB92: 5.731130256 | AC92: 5.730646524 | AD92: 5.730185374 | AE92: 5.729745262 | AF92: 5.729324784 | AG92: 5.728922655 | AH92: 5.728537702 | AI92: 5.728168849 | AJ92: 5.727815107 | AK92: 5.727475568 | AL92: 5.727149394 | AM92: 5.726835812 | AN92: 5.726534107 | AO92: =IF(Reset=1,Vreg,Vreg+AO154+Iout_PreReg*dcr*10^-3) -> 5.726243618 | AP92: 5.725963732 | AQ92: 5.725693878 | AR92: 5.725433528 | AS92: 5.725182188 | AT92: 5.724939399 | AU92: 5.724704733 | AV92: 5.724477788 | AW92: 5.72425819 | AX92: 5.724045589 | AY92: 5.723839655 | AZ92: 5.723640079 | BA92: 5.723446573 | BB92: 5.723258863 | BC92: 5.723076693 | BD92: 5.722899821 | BE92: 5.72272802 | BF92: 5.722561075 | BG92: 5.722398783 | BH92: 5.716587049 | BI92: V3
B93: Rz | C93: =fc*10^3*Vreg/VFB*2*PI()*Co_tot*10^-6/(gm_POWER1*gm_EA1*10^-6)*10^-3 -> 21.16502606 | D93: Recommended compensation resister to achieve chosen fc | E93: =10^(-1*Gain1_at_fco/20)/(gm_EA1*10^-6)*10^-3/FB_Gain1 -> 21.20268217 | H93: Required Buck duty | I93: =IF(Reset=1,Vreg/I2,I92/(I91+I92)) -> 0.4694224962 | J93: =IF(Reset=1,Vreg/J87,J92/(J91+J92)) -> 0.9251135609 | K93: 0.890001727 | L93: 0.8574445846 | M93: 0.8271745537 | N93: 0.7989599616 | O93: 0.7714772593 | P93: 0.7468647877 | Q93: 0.723768995 | R93: 0.7020543739 | S93: 0.6816010343 | T93: 0.662302525 | U93: 0.6440640082 | V93: 0.6268007231 | W93: 0.6104366864 | X93: 0.5949035876 | Y93: 0.5801398475 | Z93: 0.5660898104 | AA93: 0.552703051 | AB93: 0.5399337747 | AC93: 0.5277402997 | AD93: 0.5160846063 | AE93: 0.5049319436 | AF93: 0.4942504869 | AG93: 0.4840110362 | AH93: 0.4741867514 | AI93: 0.4647529196 | AJ93: 0.4556867479 | AK93: 0.4469671817 | AL93: 0.4385747414 | AM93: 0.4304913787 | AN93: 0.4227003475 | AO93: 0.4151860883 | AP93: =IF(Reset=1,Vreg/AP87,AP92/(AP91+AP92)) -> 0.4079341258 | AQ93: 0.4009309753 | AR93: 0.3941640604 | AS93: 0.3876216369 | AT93: 0.3812927261 | AU93: 0.3751670527 | AV93: 0.36923499 | AW93: 0.3634875092 | AX93: 0.3579161338 | AY93: 0.3525128981 | AZ93: 0.3472703095 | BA93: 0.3421813134 | BB93: 0.3372392623 | BC93: 0.3324378864 | BD93: 0.3277712675 | BE93: 0.3232338143 | BF93: 0.3188202407 | BG93: 0.3145255449 | BH93: 0.1579953221 | BI93: Required Buck duty
B94: Actual Rz used = | C94: 22.1 | D94: Enter the closest available 1% standard resister value | H94: ton buck | I94: =I93/(fsw*10^3)*10^6 -> 0.2347112481 | J94: =J93/(fsw*10^3)*10^6 -> 0.4625567804 | K94: 0.4450008635 | L94: 0.4287222923 | M94: 0.4135872769 | N94: 0.3994799808 | O94: 0.3857386296 | P94: 0.3734323939 | Q94: 0.3618844975 | R94: 0.3510271869 | S94: 0.3408005172 | T94: 0.3311512625 | U94: 0.3220320041 | V94: 0.3134003615 | W94: 0.3052183432 | X94: 0.2974517938 | Y94: 0.2900699238 | Z94: 0.2830449052 | AA94: 0.2763515255 | AB94: 0.2699668873 | AC94: 0.2638701499 | AD94: 0.2580423031 | AE94: 0.2524659718 | AF94: 0.2471252435 | AG94: 0.2420055181 | AH94: 0.2370933757 | AI94: 0.2323764598 | AJ94: 0.227843374 | AK94: 0.2234835908 | AL94: 0.2192873707 | AM94: 0.2152456894 | AN94: 0.2113501737 | AO94: 0.2075930442 | AP94: =AP93/(fsw*10^3)*10^6 -> 0.2039670629 | AQ94: 0.2004654877 | AR94: 0.1970820302 | AS94: 0.1938108185 | AT94: 0.190646363 | AU94: 0.1875835264 | AV94: 0.184617495 | AW94: 0.1817437546 | AX94: 0.1789580669 | AY94: 0.1762564491 | AZ94: 0.1736351547 | BA94: 0.1710906567 | BB94: 0.1686196312 | BC94: 0.1662189432 | BD94: 0.1638856337 | BE94: 0.1616169072 | BF94: 0.1594101204 | BG94: 0.1572627724 | BH94: =IF(BH93>1,1000/fsw,IF(BH93*1000/fsw<0.16,0.16,BH93*1000/fsw)) -> 0.16 | BI94: ton buck
B95: Cz (min) | C95: =4*1000000000/(6.28*Rz*1000*fc*1000) -> 0.7205233882 | D95: Recommended range for the compensation capacitor | H95: toff buck | I95: =1/(fsw*10^-3)-I94 -> 0.2652887519 | J95: 0.03744321957 | K95: 0.05499913651 | L95: 0.07127770771 | M95: 0.08641272313 | N95: 0.1005200192 | O95: 0.1142613704 | P95: 0.1265676061 | Q95: 0.1381155025 | R95: 0.1489728131 | S95: 0.1591994828 | T95: 0.1688487375 | U95: 0.1779679959 | V95: 0.1865996385 | W95: 0.1947816568 | X95: 0.2025482062 | Y95: 0.2099300762 | Z95: 0.2169550948 | AA95: 0.2236484745 | AB95: 0.2300331127 | AC95: 0.2361298501 | AD95: 0.2419576969 | AE95: 0.2475340282 | AF95: 0.2528747565 | AG95: 0.2579944819 | AH95: 0.2629066243 | AI95: 0.2676235402 | AJ95: 0.272156626 | AK95: 0.2765164092 | AL95: 0.2807126293 | AM95: 0.2847543106 | AN95: 0.2886498263 | AO95: =1/(fsw*10^-3)-AO94 -> 0.2924069558 | AP95: 0.2960329371 | AQ95: 0.2995345123 | AR95: 0.3029179698 | AS95: 0.3061891815 | AT95: 0.309353637 | AU95: 0.3124164736 | AV95: 0.315382505 | AW95: 0.3182562454 | AX95: 0.3210419331 | AY95: 0.3237435509 | AZ95: 0.3263648453 | BA95: 0.3289093433 | BB95: 0.3313803688 | BC95: 0.3337810568 | BD95: 0.3361143663 | BE95: 0.3383830928 | BF95: 0.3405898796 | BG95: 0.3427372276 | BH95: =BH94/BH93-BH94 -> 0.8526882104 | BI95: toff buck
B96: Cz (max) | C96: =1000000000/(6.28*Rz*1000*1.5*fp_1*1000) -> 5.757299096 | H96: Actual fsw | I96: =1/(I94+I95)*10^3 -> 2000 | J96: 2000 | K96: 2000 | L96: 2000 | M96: 2000 | N96: 2000 | O96: 2000 | P96: 2000 | Q96: 2000 | R96: 2000 | S96: 2000 | T96: 2000 | U96: 2000 | V96: 2000 | W96: 2000 | X96: 2000 | Y96: 2000 | Z96: 2000 | AA96: 2000 | AB96: 2000 | AC96: 2000 | AD96: 2000 | AE96: 2000 | AF96: 2000 | AG96: 2000 | AH96: 2000 | AI96: 2000 | AJ96: 2000 | AK96: 2000 | AL96: 2000 | AM96: 2000 | AN96: 2000 | AO96: 2000 | AP96: 2000 | AQ96: 2000 | AR96: 2000 | AS96: 2000 | AT96: 2000 | AU96: 2000 | AV96: 2000 | AW96: 2000 | AX96: 2000 | AY96: 2000 | AZ96: 2000 | BA96: 2000 | BB96: 2000 | BC96: 2000 | BD96: 2000 | BE96: 2000 | BF96: 2000 | BG96: 2000 | BH96: =1/(BH94+BH95)*10^3 -> 987.4707632 | BI96: Actual fsw
B97: Cp | C97: =MAX(1/(2*PI()*Rz*10^3*fz_1*10^3)*10^12, 1/(2*PI()*Rz*10^3*fsw/2*10^3)*10^12, 1/(2*PI()*Rz*10^3*10*fc*10^3)*10^12) -> 18.00395284 | D97: Recommended HF compensation capacitor | H97: VREG_actual | I97: =I91*I93/(1-I93)-I154-Iout_PreReg*dcr*10^-3 -> 5.35 | J97: 5.35 | K97: 5.35 | L97: 5.35 | M97: 5.35 | N97: 5.35 | O97: 5.35 | P97: 5.35 | Q97: 5.35 | R97: 5.35 | S97: 5.35 | T97: 5.35 | U97: 5.35 | V97: 5.35 | W97: 5.35 | X97: 5.35 | Y97: 5.35 | Z97: 5.35 | AA97: 5.35 | AB97: 5.35 | AC97: 5.35 | AD97: 5.35 | AE97: 5.35 | AF97: 5.35 | AG97: 5.35 | AH97: 5.35 | AI97: 5.35 | AJ97: 5.35 | AK97: 5.35 | AL97: 5.35 | AM97: 5.35 | AN97: 5.35 | AO97: =AO91*AO93/(1-AO93)-AO154-Iout_PreReg*dcr*10^-3 -> 5.35 | AP97: 5.35 | AQ97: 5.35 | AR97: 5.35 | AS97: 5.35 | AT97: 5.35 | AU97: 5.35 | AV97: 5.35 | AW97: 5.35 | AX97: 5.35 | AY97: 5.35 | AZ97: 5.35 | BA97: 5.35 | BB97: 5.35 | BC97: 5.35 | BD97: 5.35 | BE97: 5.35 | BF97: 5.35 | BG97: 5.35 | BH97: 5.35 | BI97: VREG_actual
B98: Actual Cz used = | C98: 1.5 | D98: Enter actual Cz used | H98: New duty cycle | I98: =IF(I95*10^-6<0,(1/(I96*10^3))*(I96*10^3),I93) -> 0.4694224962 | J98: =IF(J95*10^-6<0,(1/(J96*10^3))*(J96*10^3),J93) -> 0.9251135609 | K98: =IF(K95*10^-6<0,(1/(K96*10^3))*(K96*10^3),K93) -> 0.890001727 | L98: 0.8574445846 | M98: 0.8271745537 | N98: 0.7989599616 | O98: 0.7714772593 | P98: 0.7468647877 | Q98: 0.723768995 | R98: 0.7020543739 | S98: 0.6816010343 | T98: 0.662302525 | U98: 0.6440640082 | V98: 0.6268007231 | W98: 0.6104366864 | X98: 0.5949035876 | Y98: 0.5801398475 | Z98: 0.5660898104 | AA98: 0.552703051 | AB98: 0.5399337747 | AC98: 0.5277402997 | AD98: 0.5160846063 | AE98: 0.5049319436 | AF98: 0.4942504869 | AG98: 0.4840110362 | AH98: 0.4741867514 | AI98: 0.4647529196 | AJ98: 0.4556867479 | AK98: 0.4469671817 | AL98: 0.4385747414 | AM98: 0.4304913787 | AN98: 0.4227003475 | AO98: 0.4151860883 | AP98: 0.4079341258 | AQ98: 0.4009309753 | AR98: 0.3941640604 | AS98: 0.3876216369 | AT98: 0.3812927261 | AU98: 0.3751670527 | AV98: 0.36923499 | AW98: 0.3634875092 | AX98: 0.3579161338 | AY98: 0.3525128981 | AZ98: 0.3472703095 | BA98: 0.3421813134 | BB98: 0.3372392623 | BC98: 0.3324378864 | BD98: 0.3277712675 | BE98: 0.3232338143 | BF98: 0.3188202407 | BG98: 0.3145255449 | BH98: 0.1579953221 | BI98: New duty cycle
B99: Actual Cp used = | C99: 22 | D99: Enter actual Cp used | H99: New VREG | I99: =(I2-Iout_PreReg*I108+I154)*I98-I154-Iout_PreReg*dcr*10^-3 -> 5.35 | J99: =(J87-Iout_PreReg*J108+J154)*J98-J154-Iout_PreReg*dcr*10^-3 -> 5.35 | K99: 5.35 | L99: 5.35 | M99: 5.35 | N99: 5.35 | O99: 5.35 | P99: 5.35 | Q99: 5.35 | R99: 5.35 | S99: 5.35 | T99: 5.35 | U99: 5.35 | V99: 5.35 | W99: 5.35 | X99: 5.35 | Y99: 5.35 | Z99: 5.35 | AA99: 5.35 | AB99: 5.35 | AC99: 5.35 | AD99: 5.35 | AE99: 5.35 | AF99: 5.35 | AG99: 5.35 | AH99: 5.35 | AI99: 5.35 | AJ99: 5.35 | AK99: 5.35 | AL99: 5.35 | AM99: 5.35 | AN99: 5.35 | AO99: 5.35 | AP99: =(AP87-Iout_PreReg*AP108+AP154)*AP98-AP154-Iout_PreReg*dcr*10^-3 -> 5.35 | AQ99: 5.35 | AR99: 5.35 | AS99: 5.35 | AT99: 5.35 | AU99: 5.35 | AV99: 5.35 | AW99: 5.35 | AX99: 5.35 | AY99: 5.35 | AZ99: 5.35 | BA99: 5.35 | BB99: 5.35 | BC99: 5.35 | BD99: 5.35 | BE99: 5.35 | BF99: 5.35 | BG99: 5.35 | BH99: 5.35 | BI99: New VREG
B100: Estimated cross over | C100: ='Control Loop1'!$B$21 -> 38.53528594 | H100: New V1 | I100: =IF(Reset=1,I2,I2-Iout_PreReg*(I108+dcr*10^-3)-I99) -> 6.4746244 | J100: =IF(Reset=1,J87,J87-Iout_PreReg*(J108+dcr*10^-3)-J99) -> 0.4652208909 | K100: 0.7101192791 | L100: 0.9550108974 | M100: 1.199896241 | N100: 1.444775733 | O100: 1.700441946 | P100: 1.945307651 | Q100: 2.190168628 | R100: 2.435025101 | S100: 2.679877263 | T100: 2.924725286 | U100: 3.169569323 | V100: 3.414409507 | W100: 3.65924596 | X100: 3.904078791 | Y100: 4.148908094 | Z100: 4.393733959 | AA100: 4.638556464 | AB100: 4.88337568 | AC100: 5.128191672 | AD100: 5.373004499 | AE100: 5.617814216 | AF100: 5.86262087 | AG100: 6.107424509 | AH100: 6.352225172 | AI100: 6.597022898 | AJ100: 6.841817723 | AK100: 7.086609677 | AL100: 7.331398793 | AM100: 7.576185096 | AN100: 7.820968613 | AO100: 8.065749368 | AP100: =IF(Reset=1,AP87,AP87-Iout_PreReg*(AP108+dcr*10^-3)-AP99) -> 8.310527383 | AQ100: 8.555302678 | AR100: 8.800075273 | AS100: 9.044845186 | AT100: 9.289612434 | AU100: 9.534377032 | AV100: 9.779138995 | AW100: 10.02389834 | AX100: 10.26865507 | AY100: 10.51340921 | AZ100: 10.75816076 | BA100: 11.00290974 | BB100: 11.24765616 | BC100: 11.49240002 | BD100: 11.73714134 | BE100: 11.98188012 | BF100: 12.22661637 | BG100: 12.47135011 | BH100: 30.46541488 | BI100: New V1
B101: Estimated phase margin | C101: ='Control Loop1'!$B$22 -> 66.71033927 | H101: Vin - VREG | I101: =I2-I99 -> 6.65 | J101: =J87-J99 -> 0.65 | K101: 0.8948979592 | L101: 1.139795918 | M101: 1.384693878 | N101: 1.629591837 | O101: 1.874489796 | P101: 2.119387755 | Q101: 2.364285714 | R101: 2.609183673 | S101: 2.854081633 | T101: 3.098979592 | U101: 3.343877551 | V101: 3.58877551 | W101: 3.833673469 | X101: 4.078571429 | Y101: 4.323469388 | Z101: 4.568367347 | AA101: 4.813265306 | AB101: 5.058163265 | AC101: 5.303061224 | AD101: 5.547959184 | AE101: 5.792857143 | AF101: 6.037755102 | AG101: 6.282653061 | AH101: 6.52755102 | AI101: 6.77244898 | AJ101: 7.017346939 | AK101: 7.262244898 | AL101: 7.507142857 | AM101: 7.752040816 | AN101: 7.996938776 | AO101: 8.241836735 | AP101: =AP87-AP99 -> 8.486734694 | AQ101: 8.731632653 | AR101: 8.976530612 | AS101: 9.221428571 | AT101: 9.466326531 | AU101: 9.71122449 | AV101: 9.956122449 | AW101: 10.20102041 | AX101: 10.44591837 | AY101: 10.69081633 | AZ101: 10.93571429 | BA101: 11.18061224 | BB101: 11.4255102 | BC101: 11.67040816 | BD101: 11.91530612 | BE101: 12.16020408 | BF101: 12.40510204 | BG101: 12.65 | BH101: 30.65
G102: Circuit Currents | H102: Ilpk | I102: =Iout_PreReg+I103/2 -> 0.9923209262 | J102: 0.8535468734 | K102: 0.8642716197 | L102: 0.8742110632 | M102: 0.8834480161 | N102: 0.8920540973 | O102: 0.9004335829 | P102: 0.9079351516 | Q102: 0.9149720858 | R102: 0.9215861217 | S102: 0.9278141585 | T102: 0.9336889366 | U102: 0.9392396057 | V102: 0.9444922028 | W102: 0.9494700555 | X102: 0.9541941247 | Y102: 0.9586832965 | Z102: 0.9629546324 | AA102: 0.9670235838 | AB102: 0.9709041771 | AC102: 0.9746091742 | AD102: 0.9781502115 | AE102: 0.9815379211 | AF102: 0.9847820364 | AG102: 0.9878914856 | AH102: 0.9908744726 | AI102: 0.9937385488 | AJ102: 0.9964906773 | AK102: 0.9991372883 | AL102: 1.00168433 | AM102: 1.00413731 | AN102: 1.006501341 | AO102: =Iout_PreReg+AO103/2 -> 1.00878117 | AP102: 1.010981212 | AQ102: 1.01310558 | AR102: 1.01515811 | AS102: 1.017142381 | AT102: 1.01906174 | AU102: 1.020919319 | AV102: 1.022718051 | AW102: 1.024460686 | AX102: 1.026149808 | AY102: 1.027787841 | AZ102: 1.029377068 | BA102: 1.030919637 | BB102: 1.032417571 | BC102: 1.033872779 | BD102: 1.035287062 | BE102: 1.036662121 | BF102: 1.037999566 | BG102: 1.039300918 | BH102: 1.349214459 | BI102: Ilpk | BJ102: Circuit Currents
B103: Inductor Calculation, Adjustable Buck | H103: ΔIL | I103: =I100*I98/(L_buck*10^-6*I96*10^3) -> 0.3233334412 | J103: 0.04578533563 | K103: 0.06723482817 | L103: 0.08711371513 | M103: 0.105587621 | N103: 0.1227997834 | O103: 0.1395587545 | P103: 0.1545618921 | Q103: 0.1686357603 | R103: 0.1818638322 | S103: 0.1943199058 | T103: 0.2060694619 | U103: 0.2171708002 | V103: 0.2276759945 | W103: 0.2376316999 | X103: 0.2470798382 | Y103: 0.2560581818 | Z103: 0.2646008536 | AA103: 0.2727387563 | AB103: 0.280499943 | AC103: 0.2879099372 | AD103: 0.2949920119 | AE103: 0.3017674309 | AF103: 0.3082556617 | AG103: 0.3144745601 | AH103: 0.3204405339 | AI103: 0.3261686864 | AJ103: 0.3316729434 | AK103: 0.3369661654 | AL103: 0.3420602478 | AM103: 0.3469662093 | AN103: 0.3516942713 | AO103: =AO100*AO98/(L_buck*10^-6*AO96*10^3) -> 0.3562539287 | AP103: 0.360654013 | AQ103: 0.3649027497 | AR103: 0.3690078086 | AS103: 0.3729763507 | AT103: 0.376815069 | AU103: 0.3805302266 | AV103: 0.3841276903 | AW103: 0.3876129616 | AX103: 0.3909912045 | AY103: 0.3942672712 | AZ103: 0.3974457253 | BA103: 0.4005308625 | BB103: 0.4035267304 | BC103: 0.4064371461 | BD103: 0.409265712 | BE103: 0.4120158313 | BF103: 0.4146907208 | BG103: 0.4172934242 | BH103: 1.037120506 | BI103: ΔIL
B104: Ripple Current | C104: 0.2 | D104: Select desired inductor ripple current, 20% to 35% | H104: IL RMS | I104: =SQRT((I102-I103/2)^2+I103^2/12) -> 0.835881841 | J104: =SQRT((J102-J103/2)^2+J103^2/12) -> 0.8307593519 | K104: =SQRT((K102-K103/2)^2+K103^2/12) -> 0.8308809298 | L104: 0.8310347822 | M104: 0.8312132527 | N104: 0.8314102827 | O104: 0.831630605 | P104: 0.831851664 | Q104: 0.8320794699 | R104: 0.8323116086 | S104: 0.8325461517 | T104: 0.8327815607 | U104: 0.8330166099 | V104: 0.833250326 | W104: 0.8334819402 | X104: 0.8337108491 | Y104: 0.8339365835 | Z104: 0.834158784 | AA104: 0.8343771799 | AB104: 0.8345915732 | AC104: 0.834801825 | AD104: 0.8350078442 | AE104: 0.8352095792 | AF104: 0.8354070098 | AG104: 0.8356001416 | AH104: 0.8357890008 | AI104: 0.8359736301 | AJ104: 0.8361540853 | AK104: 0.8363304325 | AL104: 0.8365027458 | AM104: 0.8366711053 | AN104: 0.8368355958 | AO104: 0.8369963049 | AP104: 0.8371533227 | AQ104: 0.8373067403 | AR104: 0.8374566493 | AS104: 0.8376031414 | AT104: 0.8377463075 | AU104: 0.8378862376 | AV104: 0.8380230205 | AW104: 0.8381567435 | AX104: 0.8382874921 | AY104: 0.8384153502 | AZ104: 0.8385403993 | BA104: 0.8386627194 | BB104: 0.838782388 | BC104: 0.8388994807 | BD104: 0.8390140709 | BE104: 0.8391262299 | BF104: 0.8392360269 | BG104: 0.8393435289 | BH104: 0.8829616761 | BI104: IL RMS
B105: L calculated | C105: =ROUNDUP((Vreg-Vout_sync_buck)*Vout_sync_buck/(Vreg*fsw*10^-3*k_ripple2*Iout_sync_buck),2) -> 4.52 | D105: Recommended minimum inductor value | H105: Isw buck RMS | I105: =SQRT(I98*((I102-I103/2)^2+I103^2/12)) -> 0.5726995473 | J105: =SQRT(J98*((J102-J103/2)^2+J103^2/12)) -> 0.7990478042 | K105: =SQRT(K98*((K102-K103/2)^2+K103^2/12)) -> 0.783852262 | L105: 0.7695241114 | M105: 0.7559812807 | N105: 0.7431524253 | O105: 0.730452581 | P105: 0.7188973485 | Q105: 0.7078883973 | R105: 0.6973829521 | S105: 0.6873428797 | T105: 0.6777340506 | U105: 0.668525806 | V105: 0.6596905102 | W105: 0.6512031717 | X105: 0.6430411226 | Y105: 0.6351837432 | Z105: 0.6276122277 | AA105: 0.6203093804 | AB105: 0.613259441 | AC105: 0.6064479321 | AD105: 0.5998615259 | AE105: 0.5934879286 | AF105: 0.5873157778 | AG105: 0.581334553 | AH105: 0.5755344962 | AI105: 0.5699065412 | AJ105: 0.5644422513 | AK105: 0.559133764 | AL105: 0.5539737406 | AM105: 0.5489553222 | AN105: 0.5440720896 | AO105: 0.5393180273 | AP105: 0.5346874914 | AQ105: 0.53017518 | AR105: 0.5257761073 | AS105: 0.521485579 | AT105: 0.517299171 | AU105: 0.5132127094 | AV105: 0.5092222525 | AW105: 0.5053240745 | AX105: 0.50151465 | AY105: 0.4977906409 | AZ105: 0.494148883 | BA105: 0.4905863751 | BB105: 0.4871002678 | BC105: 0.483687854 | BD105: 0.4803465597 | BE105: 0.4770739359 | BF105: 0.4738676505 | BG105: 0.4707254813 | BH105: 0.350965129 | BI105: Isw buck RMS
B106: Irms | C106: =IF(Topology="buck",MAX(J192:BG192),MAX(J45:BG45)) -> 0.7009698119 | D106: Maximum RMS inductor current, must be less than inductor DC rating | H106: I buck Diode avg | I106: =(I102-I103/2)*(1-I98) -> 0.4407264349 | J106: =(J102-J103/2)*(1-J98) -> 0.06220473562 | K106: =(K102-K103/2)*(1-K98) -> 0.0913705281 | L106: 0.1184142553 | M106: 0.1435581838 | N106: 0.1669947534 | O106: 0.1898233757 | P106: 0.2102678287 | Q106: 0.229452446 | R106: 0.2474897874 | S106: 0.2644794399 | T106: 0.2805098278 | U106: 0.2956597285 | V106: 0.3099995489 | W106: 0.3235924048 | X106: 0.3364950386 | Y106: 0.3487586014 | Z106: 0.3604293238 | AA106: 0.3715490919 | AB106: 0.3821559449 | AC106: 0.3922845062 | AD106: 0.401966357 | AE106: 0.4112303631 | AF106: 0.42010296 | AG106: 0.4286084029 | AH106: 0.4367689863 | AI106: 0.4446052384 | AJ106: 0.452136092 | AK106: 0.4593790364 | AL106: 0.4663502522 | AM106: 0.4730647314 | AN106: 0.4795363843 | AO106: 0.4857781352 | AP106: 0.4918020084 | AQ106: 0.4976192048 | AR106: 0.5032401712 | AS106: 0.5086746627 | AT106: 0.5139317991 | AU106: 0.5190201155 | AV106: 0.5239476083 | AW106: 0.5287217774 | AX106: 0.5333496638 | AY106: 0.5378378842 | AZ106: 0.5421926625 | BA106: 0.5464198585 | BB106: 0.5505249941 | BC106: 0.5545132771 | BD106: 0.5583896238 | BE106: 0.5621586784 | BF106: 0.5658248318 | BG106: 0.569392239 | BH106: 0.6994147268 | BI106: I buck Diode avg
B107: Ipk | C107: =IF(Topology="buck",MAX(J187:BG187),MAX(J43:BG43)) -> 0.7638438054 | D107: Maximum peak inductor current, must be less than inductor saturation current | H107: I cout RMS | I107: =SQRT(((I102-I103/2-Iout_PreReg)^2+I103^2/12)) -> 0.09333832467 | J107: =SQRT(((J102-J103/2-Iout_PreReg)^2+J103^2/12)) -> 0.01321708793 | K107: 0.01940902307 | L107: 0.02514756344 | M107: 0.03048052072 | N107: 0.03544924402 | O107: 0.04028714224 | P107: 0.044618175 | Q107: 0.0486809508 | R107: 0.05249956623 | S107: 0.05609532495 | T107: 0.05948712965 | U107: 0.06269180998 | V107: 0.06572439835 | W107: 0.06859836294 | X107: 0.07132580554 | Y107: 0.0739176301 | Z107: 0.07638368703 | AA107: 0.07873289719 | AB107: 0.08097335879 | AC107: 0.08311243988 | AD107: 0.08515685873 | AE107: 0.08711275374 | AF107: 0.08898574462 | AG107: 0.09078098596 | AH107: 0.09250321425 | AI107: 0.09415678945 | AJ107: 0.09574573158 | AK107: 0.09727375316 | AL107: 0.09874428808 | AM107: 0.1001605172 | AN107: 0.1015253911 | AO107: 0.1028416508 | AP107: =SQRT(((AP102-AP103/2-Iout_PreReg)^2+AP103^2/12)) -> 0.1041118458 | AQ107: 0.1053383504 | AR107: 0.1065233788 | AS107: 0.1076689982 | AT107: 0.1087771408 | AU107: 0.1098496144 | AV107: 0.1108881127 | AW107: 0.1118942239 | AX107: 0.1128694386 | AY107: 0.1138151576 | AZ107: 0.1147326982 | BA107: 0.1156233006 | BB107: 0.1164881332 | BC107: 0.1173282978 | BD107: 0.1181448345 | BE107: 0.1189387256 | BF107: 0.1197108996 | BG107: 0.1204622354 | BH107: 0.2993909018
B108: DCR < | C108: =ROUNDDOWN(0.033*Vout_sync_buck*Iout_sync_buck/C106^2*1000,0) -> 155 | D108: Recommended inductor DC resistance | G108: Buck | H108: Rds_On Buck | I108: =IF(I2>7,Buck_RdsON_factor_7V*(I89-150)+Rds_ON_150_7V,IF(I2<5,Buck_RdsON_factor_5V*(I89-150)+Rds_ON_150,Buck_RdsON_factor_6V*(I89-150)+Rds_ON_150_6V)) -> 0.1741294915 | J108: =IF(J87>7,Buck_RdsON_factor_7V*(J89-150)+Rds_ON_150_7V,IF(J87<5,Buck_RdsON_factor_5V*(J89-150)+Rds_ON_150,Buck_RdsON_factor_6V*(J89-150)+Rds_ON_150_6V)) -> 0.1854500976 | K108: 0.1854495811 | L108: 0.1854572147 | M108: 0.1854724021 | N108: 0.1854946339 | O108: 0.172531052 | P108: 0.1725698828 | Q108: 0.1726144037 | R108: 0.1726643482 | S108: 0.1727194819 | T108: 0.1727795984 | U108: 0.1728445145 | V108: 0.1729140677 | W108: 0.1729881127 | X108: 0.1730665197 | Y108: 0.1731491719 | Z108: 0.1732359643 | AA108: 0.1733268018 | AB108: 0.1734215985 | AC108: 0.1735202762 | AD108: 0.1736227639 | AE108: 0.1737289967 | AF108: 0.1738389152 | AG108: 0.1739524653 | AH108: 0.174069597 | AI108: 0.1741902645 | AJ108: 0.1743144255 | AK108: 0.1744420411 | AL108: 0.1745730751 | AM108: 0.1747074943 | AN108: 0.1748452676 | AO108: 0.1749863664 | AP108: =IF(AP87>7,Buck_RdsON_factor_7V*(AP89-150)+Rds_ON_150_7V,IF(AP87<5,Buck_RdsON_factor_5V*(AP89-150)+Rds_ON_150,Buck_RdsON_factor_6V*(AP89-150)+Rds_ON_150_6V)) -> 0.1751307639 | AQ108: 0.1752784353 | AR108: 0.1754293573 | AS108: 0.1755835083 | AT108: 0.1757408681 | AU108: 0.1759014177 | AV108: 0.1760651393 | AW108: 0.1762320164 | AX108: 0.1764020333 | AY108: 0.1765751754 | AZ108: 0.1767514288 | BA108: 0.1769307805 | BB108: 0.1771132183 | BC108: 0.1772987307 | BD108: 0.1774873067 | BE108: 0.177678936 | BF108: 0.177873609 | BG108: 0.1780713163 | BH108: 0.1852165618 | BI108: Rds_On Buck | BJ108: Buck
B109: Lout = | C109: 4.7 | D109: Enter select inductor value at total VREG current | H109: Conduction Losses | I109: =I105^2*I108 -> 0.05711182148 | J109: =J105^2*J108 -> 0.1184056949 | K109: =K105^2*K108 -> 0.1139447418 | L109: 0.1098217089 | M109: 0.1059989053 | N109: 0.1024441468 | O109: 0.09205583601 | P109: 0.08918642747 | Q109: 0.08649811048 | R109: 0.08397409398 | S109: 0.08159963252 | T109: 0.07936172006 | U109: 0.07724883769 | V109: 0.07525074444 | W109: 0.07335830277 | X109: 0.07156333218 | Y109: 0.06985848574 | Z109: 0.0682371454 | AA109: 0.06669333287 | AB109: 0.06522163335 | AC109: 0.06381713003 | AD109: 0.06247534762 | AE109: 0.06119220337 | AF109: 0.05996396462 | AG109: 0.05878721174 | AH109: 0.05765880571 | AI109: 0.05657585969 | AJ109: 0.055535714 | AK109: 0.05453591404 | AL109: 0.05357419076 | AM109: 0.05264844334 | AN109: 0.05175672375 | AO109: 0.05089722303 | AP109: 0.05006825905 | AQ109: 0.04926826546 | AR109: 0.04849578189 | AS109: 0.04774944506 | AT109: 0.04702798079 | AU109: 0.04633019684 | AV109: 0.04565497634 | AW109: 0.04500127192 | AX109: 0.04436810037 | AY109: 0.04375453778 | AZ109: 0.04315971509 | BA109: 0.04258281408 | BB109: 0.04202306368 | BC109: 0.04147973662 | BD109: 0.04095214634 | BE109: 0.04043964417 | BF109: 0.03994161676 | BG109: 0.03945748366 | BH109: 0.02281433186 | BI109: Conduction Losses
B110: Lout DCR | C110: 95 | D110: Enter select inductor DC resistance | H110: Switching Losses | I110: =IF(I98=1,0,0.5*I87*Iout_PreReg*I96*10^3*(I87/SLEW_rate+I87/1.5)*10^-9) -> 0.2126474766 | J110: 0.05316186916 | K110: 0.05759017979 | L110: 0.06219562285 | M110: 0.06697819834 | N110: 0.07193790625 | O110: 0.07707474658 | P110: 0.08238871934 | Q110: 0.08787982453 | R110: 0.09354806214 | S110: 0.09939343218 | T110: 0.1054159346 | U110: 0.1116155695 | V110: 0.1179923368 | W110: 0.1245462366 | X110: 0.1312772687 | Y110: 0.1381854333 | Z110: 0.1452707303 | AA110: 0.1525331598 | AB110: 0.1599727216 | AC110: 0.1675894159 | AD110: 0.1753832427 | AE110: 0.1833542018 | AF110: 0.1915022934 | AG110: 0.1998275174 | AH110: 0.2083298738 | AI110: 0.2170093626 | AJ110: 0.2258659839 | AK110: 0.2348997376 | AL110: 0.2441106237 | AM110: 0.2534986422 | AN110: 0.2630637932 | AO110: =IF(AO98=1,0,0.5*AO87*Iout_PreReg*AO96*10^3*(AO87/SLEW_rate+AO87/1.5)*10^-9) -> 0.2728060766 | AP110: 0.2827254924 | AQ110: 0.2928220407 | AR110: 0.3030957213 | AS110: 0.3135465344 | AT110: 0.3241744799 | AU110: 0.3349795579 | AV110: 0.3459617683 | AW110: 0.3571211111 | AX110: 0.3684575863 | AY110: 0.3799711939 | AZ110: 0.391661934 | BA110: 0.4035298065 | BB110: 0.4155748114 | BC110: 0.4277969488 | BD110: 0.4401962186 | BE110: 0.4527726208 | BF110: 0.4655261554 | BG110: 0.4784568224 | BH110: 0.9449242472 | BI110: Switching Losses
B111: Ripple | C111: =I44/Iout_sync_buck -> 0.1823612538 | D111: Actual inductor ripple current at nominal input voltage | H111: Total Buck FET Losses | I111: =I109+I110 -> 0.2697592981 | J111: =J109+J110 -> 0.1715675641 | K111: =K109+K110 -> 0.1715349215 | L111: 0.1720173317 | M111: 0.1729771037 | N111: 0.174382053 | O111: 0.1691305826 | P111: 0.1715751468 | Q111: 0.174377935 | R111: 0.1775221561 | S111: 0.1809930647 | T111: 0.1847776547 | U111: 0.1888644072 | V111: 0.1932430813 | W111: 0.1979045393 | X111: 0.2028406009 | Y111: 0.2080439191 | Z111: 0.2135078757 | AA111: 0.2192264926 | AB111: 0.225194355 | AC111: 0.231406546 | AD111: 0.2378585903 | AE111: 0.2445464052 | AF111: 0.251466258 | AG111: 0.2586147291 | AH111: 0.2659886795 | AI111: 0.2735852223 | AJ111: 0.2814016979 | AK111: 0.2894356516 | AL111: 0.2976848145 | AM111: 0.3061470856 | AN111: 0.3148205169 | AO111: 0.3237032996 | AP111: 0.3327937515 | AQ111: 0.3420903061 | AR111: 0.3515915032 | AS111: 0.3612959795 | AT111: 0.3712024607 | AU111: 0.3813097547 | AV111: 0.3916167446 | AW111: 0.402122383 | AX111: 0.4128256867 | AY111: 0.4237257317 | AZ111: 0.4348216491 | BA111: 0.4461126206 | BB111: 0.4575978751 | BC111: 0.4692766854 | BD111: 0.4811483649 | BE111: 0.4932122649 | BF111: 0.5054677721 | BG111: 0.5179143061 | BH111: 0.967738579 | BI111: Total Buck FET Losses
G112: 3V3 LDO | H112: Output voltage | I112: =IF(I99-3.3<I113*Iout_3V3,I99-I113*Iout_3V3,3.3) -> 3.3 | J112: 3.3 | K112: 3.3 | L112: 3.3 | M112: 3.3 | N112: 3.3 | O112: 3.3 | P112: 3.3 | Q112: 3.3 | R112: 3.3 | S112: 3.3 | T112: 3.3 | U112: 3.3 | V112: 3.3 | W112: 3.3 | X112: 3.3 | Y112: 3.3 | Z112: 3.3 | AA112: 3.3 | AB112: 3.3 | AC112: 3.3 | AD112: 3.3 | AE112: 3.3 | AF112: 3.3 | AG112: 3.3 | AH112: 3.3 | AI112: 3.3 | AJ112: 3.3 | AK112: 3.3 | AL112: 3.3 | AM112: 3.3 | AN112: 3.3 | AO112: =IF(AO99-3.3<AO113*Iout_3V3,AO99-AO113*Iout_3V3,3.3) -> 3.3 | AP112: 3.3 | AQ112: 3.3 | AR112: 3.3 | AS112: 3.3 | AT112: 3.3 | AU112: 3.3 | AV112: 3.3 | AW112: 3.3 | AX112: 3.3 | AY112: 3.3 | AZ112: 3.3 | BA112: 3.3 | BB112: 3.3 | BC112: 3.3 | BD112: 3.3 | BE112: 3.3 | BF112: 3.3 | BG112: 3.3 | BH112: 3.3 | BI112: Output voltage | BJ112: 5V0 LDO
B113: Output Capacitor, Adjustable Buck | H113: Series pass resistance | I113: =(Rds_ON_3V3_150-Rds_ON_3V3_min40)/190*(I89-150)+Rds_ON_3V3_150 -> 0.4927472382 | J113: 0.4900231928 | K113: 0.4900222872 | L113: 0.4900356703 | M113: 0.4900622964 | N113: 0.4901012726 | O113: 0.4899555858 | P113: 0.4900234032 | Q113: 0.4901011584 | R113: 0.4901883857 | S113: 0.490284676 | T113: 0.4903896685 | U113: 0.4905030436 | V113: 0.4906245173 | W113: 0.4907538359 | X113: 0.4908907727 | Y113: 0.4910351237 | Z113: 0.4911867053 | AA113: 0.4913453518 | AB113: 0.4915109129 | AC113: 0.4916832521 | AD113: 0.4918622454 | AE113: 0.4920477795 | AF113: 0.4922397508 | AG113: 0.4924380644 | AH113: 0.4926426333 | AI113: 0.4928533774 | AJ113: 0.4930702229 | AK113: 0.4932931017 | AL113: 0.4935219508 | AM113: 0.493756712 | AN113: 0.4939973313 | AO113: =(Rds_ON_3V3_150-Rds_ON_3V3_min40)/190*(AO89-150)+Rds_ON_3V3_150 -> 0.4942437584 | AP113: 0.4944959467 | AQ113: 0.4947538527 | AR113: 0.4950174359 | AS113: 0.4952866585 | AT113: 0.4955614851 | AU113: 0.4958418827 | AV113: 0.4961278203 | AW113: 0.4964192688 | AX113: 0.496716201 | AY113: 0.4970185912 | AZ113: 0.4973264153 | BA113: 0.4976396506 | BB113: 0.4979582758 | BC113: 0.4982822706 | BD113: 0.498611616 | BE113: 0.4989462939 | BF113: 0.4992862875 | BG113: 0.4996315806 | BH113: 0.5121106529 | BI113: Series pass resistance
B114: Vripple | C114: 0.005 | D114: Enter VREG maximum output switching frequency ripple | H114: Dropout | I114: =I99-I112 -> 2.05 | J114: =J99-J112 -> 2.05 | K114: 2.05 | L114: 2.05 | M114: 2.05 | N114: 2.05 | O114: 2.05 | P114: 2.05 | Q114: 2.05 | R114: 2.05 | S114: 2.05 | T114: 2.05 | U114: 2.05 | V114: 2.05 | W114: 2.05 | X114: 2.05 | Y114: 2.05 | Z114: 2.05 | AA114: 2.05 | AB114: 2.05 | AC114: 2.05 | AD114: 2.05 | AE114: 2.05 | AF114: 2.05 | AG114: 2.05 | AH114: 2.05 | AI114: 2.05 | AJ114: 2.05 | AK114: 2.05 | AL114: 2.05 | AM114: 2.05 | AN114: 2.05 | AO114: 2.05 | AP114: 2.05 | AQ114: 2.05 | AR114: 2.05 | AS114: 2.05 | AT114: 2.05 | AU114: 2.05 | AV114: 2.05 | AW114: 2.05 | AX114: 2.05 | AY114: 2.05 | AZ114: 2.05 | BA114: 2.05 | BB114: 2.05 | BC114: 2.05 | BD114: 2.05 | BE114: 2.05 | BF114: 2.05 | BG114: 2.05 | BH114: 2.05 | BI114: Dropout
B115: I Step | C115: 0.7 | D115: Enter worst case transient load step | H115: Power dissipated | I115: =(I99-I112)*Iout_3V3 -> 0 | J115: 0 | K115: 0 | L115: 0 | M115: 0 | N115: 0 | O115: 0 | P115: 0 | Q115: 0 | R115: 0 | S115: 0 | T115: 0 | U115: 0 | V115: 0 | W115: 0 | X115: 0 | Y115: 0 | Z115: 0 | AA115: 0 | AB115: 0 | AC115: 0 | AD115: 0 | AE115: 0 | AF115: 0 | AG115: 0 | AH115: 0 | AI115: 0 | AJ115: 0 | AK115: 0 | AL115: 0 | AM115: 0 | AN115: 0 | AO115: =(AO99-AO112)*Iout_3V3 -> 0 | AP115: 0 | AQ115: 0 | AR115: 0 | AS115: 0 | AT115: 0 | AU115: 0 | AV115: 0 | AW115: 0 | AX115: 0 | AY115: 0 | AZ115: 0 | BA115: 0 | BB115: 0 | BC115: 0 | BD115: 0 | BE115: 0 | BF115: 0 | BG115: 0 | BH115: 0 | BI115: Power dissipated
B116: V transient | C116: 0.05 | D116: Enter maximum ADJ Buck deviation due to load step | G116: Adj BUCK | H116: V1 | I116: =IF(Reset=1,Vreg-Vout_sync_buck,Vreg-Iout_sync_buck*(I128+DCR84*10^-3)-Vout_sync_buck) -> 1.844109356 | J116: 1.845201166 | K116: 1.845201529 | L116: 1.845196165 | M116: 1.845185493 | N116: 1.845169872 | O116: 1.845228264 | P116: 1.845201082 | Q116: 1.845169917 | R116: 1.845134956 | S116: 1.845096363 | T116: 1.845054281 | U116: 1.84500884 | V116: 1.844960153 | W116: 1.844908321 | X116: 1.844853436 | Y116: 1.84479558 | Z116: 1.844734825 | AA116: 1.844671239 | AB116: 1.844604881 | AC116: 1.844535807 | AD116: 1.844464065 | AE116: 1.844389702 | AF116: 1.844312759 | AG116: 1.844233274 | AH116: 1.844151282 | AI116: 1.844066815 | AJ116: 1.843979902 | AK116: 1.843890571 | AL116: 1.843798847 | AM116: 1.843704754 | AN116: 1.843608313 | AO116: =IF(Reset=1,Vreg-Vout_sync_buck,Vreg-Iout_sync_buck*(AO128+DDX84*10^-3)-Vout_sync_buck) -> 1.843509544 | AP116: 1.843408465 | AQ116: 1.843305095 | AR116: 1.84319945 | AS116: 1.843091544 | AT116: 1.842981392 | AU116: 1.842869008 | AV116: 1.842754402 | AW116: 1.842637589 | AX116: 1.842518577 | AY116: 1.842397377 | AZ116: 1.842274 | BA116: 1.842148454 | BB116: 1.842020747 | BC116: 1.841890889 | BD116: 1.841758885 | BE116: 1.841624745 | BF116: 1.841488474 | BG116: 1.841350079 | BH116: 1.836348407
B117: VIN min for transient | C117: 5.25 | D117: Minimum input voltage for load transient spec | H117: V3 | I117: =IF(Reset=1,Vout_sync_buck,Vout_sync_buck+Iout_sync_buck*(I132+dcr_2*10^-3)) -> 3.439390644 | J117: 3.438298834 | K117: 3.438298471 | L117: 3.438303835 | M117: 3.438314507 | N117: 3.438330128 | O117: 3.438271736 | P117: 3.438298918 | Q117: 3.438330083 | R117: 3.438365044 | S117: 3.438403637 | T117: 3.438445719 | U117: 3.43849116 | V117: 3.438539847 | W117: 3.438591679 | X117: 3.438646564 | Y117: 3.43870442 | Z117: 3.438765175 | AA117: 3.438828761 | AB117: 3.438895119 | AC117: 3.438964193 | AD117: 3.439035935 | AE117: 3.439110298 | AF117: 3.439187241 | AG117: 3.439266726 | AH117: 3.439348718 | AI117: 3.439433185 | AJ117: 3.439520098 | AK117: 3.439609429 | AL117: 3.439701153 | AM117: 3.439795246 | AN117: 3.439891687 | AO117: =IF(Reset=1,Vout_sync_buck,Vout_sync_buck+Iout_sync_buck*(AO132+dcr_2*10^-3)) -> 3.439990456 | AP117: 3.440091535 | AQ117: 3.440194905 | AR117: 3.44030055 | AS117: 3.440408456 | AT117: 3.440518608 | AU117: 3.440630992 | AV117: 3.440745598 | AW117: 3.440862411 | AX117: 3.440981423 | AY117: 3.441102623 | AZ117: 3.441226 | BA117: 3.441351546 | BB117: 3.441479253 | BC117: 3.441609111 | BD117: 3.441741115 | BE117: 3.441875255 | BF117: 3.442011526 | BG117: 3.442149921 | BH117: 3.447151593
B118: Output Capacitor | C118: =ROUNDUP(MAX(Y166:Y168),0) -> 15 | D118: Minimum output capacitance required | H118: Required Buck duty | I118: =IF(Reset=1,Vout_sync_buck/Vreg,I117/(I116+I117)) -> 0.6509682302 | J118: 0.6507615849 | K118: 0.6507615162 | L118: 0.6507625314 | M118: 0.6507645513 | N118: 0.650767508 | O118: 0.6507564562 | P118: 0.6507616008 | Q118: 0.6507674993 | R118: 0.6507741164 | S118: 0.6507814209 | T118: 0.6507893856 | U118: 0.6507979862 | V118: 0.6508072012 | W118: 0.6508170112 | X118: 0.6508273992 | Y118: 0.6508383496 | Z118: 0.6508498486 | AA118: 0.6508618835 | AB118: 0.6508744429 | AC118: 0.6508875165 | AD118: 0.6509010949 | AE118: 0.6509151694 | AF118: 0.6509297323 | AG118: 0.6509447763 | AH118: 0.6509602949 | AI118: 0.6509762818 | AJ118: 0.6509927317 | AK118: 0.6510096392 | AL118: 0.6510269996 | AM118: 0.6510448086 | AN118: 0.6510630619 | AO118: =IF(Reset=1,Vout_sync_buck/Vreg,AO117/(AO116+AO117)) -> 0.6510817557 | AP118: 0.6511008867 | AQ118: 0.6511204514 | AR118: 0.6511404467 | AS118: 0.6511608698 | AT118: 0.6511817181 | AU118: 0.651202989 | AV118: 0.6512246801 | AW118: 0.6512467893 | AX118: 0.6512693145 | AY118: 0.6512922538 | AZ118: 0.6513156052 | BA118: 0.6513393672 | BB118: 0.651363538 | BC118: 0.6513881161 | BD118: 0.6514131002 | BE118: 0.6514384887 | BF118: 0.6514642805 | BG118: 0.6514904744 | BH118: 0.6524371332
B119: ESR | C119: =ROUNDUP(C114/(2*C120)*1000,0) -> 68 | D119: Maximum series equivalent resistance for output capacitor | H119: ton buck | I119: =I118/(fsw*10^3)*10^6 -> 0.3254841151 | J119: 0.3253807924 | K119: 0.3253807581 | L119: 0.3253812657 | M119: 0.3253822756 | N119: 0.325383754 | O119: 0.3253782281 | P119: 0.3253808004 | Q119: 0.3253837497 | R119: 0.3253870582 | S119: 0.3253907105 | T119: 0.3253946928 | U119: 0.3253989931 | V119: 0.3254036006 | W119: 0.3254085056 | X119: 0.3254136996 | Y119: 0.3254191748 | Z119: 0.3254249243 | AA119: 0.3254309417 | AB119: 0.3254372214 | AC119: 0.3254437582 | AD119: 0.3254505474 | AE119: 0.3254575847 | AF119: 0.3254648662 | AG119: 0.3254723882 | AH119: 0.3254801474 | AI119: 0.3254881409 | AJ119: 0.3254963658 | AK119: 0.3255048196 | AL119: 0.3255134998 | AM119: 0.3255224043 | AN119: 0.3255315309 | AO119: =AO118/(fsw*10^3)*10^6 -> 0.3255408779 | AP119: 0.3255504433 | AQ119: 0.3255602257 | AR119: 0.3255702233 | AS119: 0.3255804349 | AT119: 0.3255908591 | AU119: 0.3256014945 | AV119: 0.3256123401 | AW119: 0.3256233947 | AX119: 0.3256346573 | AY119: 0.3256461269 | AZ119: 0.3256578026 | BA119: 0.3256696836 | BB119: 0.325681769 | BC119: 0.3256940581 | BD119: 0.3257065501 | BE119: 0.3257192444 | BF119: 0.3257321403 | BG119: 0.3257452372 | BH119: 0.3262185666
B120: I RMS | C120: =ROUNDUP(IF(Topology="Buck",MAX(J195:BG195),MAX(J48:BG48)),3) -> 0.037 | D120: Maximum RMS current in output capacitor | H120: toff buck | I120: =1/(fsw*10^-3)-I119 -> 0.1745158849 | J120: 0.1746192076 | K120: 0.1746192419 | L120: 0.1746187343 | M120: 0.1746177244 | N120: 0.174616246 | O120: 0.1746217719 | P120: 0.1746191996 | Q120: 0.1746162503 | R120: 0.1746129418 | S120: 0.1746092895 | T120: 0.1746053072 | U120: 0.1746010069 | V120: 0.1745963994 | W120: 0.1745914944 | X120: 0.1745863004 | Y120: 0.1745808252 | Z120: 0.1745750757 | AA120: 0.1745690583 | AB120: 0.1745627786 | AC120: 0.1745562418 | AD120: 0.1745494526 | AE120: 0.1745424153 | AF120: 0.1745351338 | AG120: 0.1745276118 | AH120: 0.1745198526 | AI120: 0.1745118591 | AJ120: 0.1745036342 | AK120: 0.1744951804 | AL120: 0.1744865002 | AM120: 0.1744775957 | AN120: 0.1744684691 | AO120: =1/(fsw*10^-3)-AO119 -> 0.1744591221 | AP120: 0.1744495567 | AQ120: 0.1744397743 | AR120: 0.1744297767 | AS120: 0.1744195651 | AT120: 0.1744091409 | AU120: 0.1743985055 | AV120: 0.1743876599 | AW120: 0.1743766053 | AX120: 0.1743653427 | AY120: 0.1743538731 | AZ120: 0.1743421974 | BA120: 0.1743303164 | BB120: 0.174318231 | BC120: 0.1743059419 | BD120: 0.1742934499 | BE120: 0.1742807556 | BF120: 0.1742678597 | BG120: 0.1742547628 | BH120: 0.1737814334
B121: Actual Capacitor value = | C121: 8.5 | D121: Enter minimum capacitance value of ceramic capacitor with tolerance & DC bias | H121: VREG_actual | I121: =I116*I118/(1-I118)-Iout_sync_buck*(I132+dcr_2*10^-3) -> 3.3 | J121: 3.3 | K121: 3.3 | L121: 3.3 | M121: 3.3 | N121: 3.3 | O121: 3.3 | P121: 3.3 | Q121: 3.3 | R121: 3.3 | S121: 3.3 | T121: 3.3 | U121: 3.3 | V121: 3.3 | W121: 3.3 | X121: 3.3 | Y121: 3.3 | Z121: 3.3 | AA121: 3.3 | AB121: 3.3 | AC121: 3.3 | AD121: 3.3 | AE121: 3.3 | AF121: 3.3 | AG121: 3.3 | AH121: 3.3 | AI121: 3.3 | AJ121: 3.3 | AK121: 3.3 | AL121: 3.3 | AM121: 3.3 | AN121: 3.3 | AO121: =AO116*AO118/(1-AO118)-Iout_sync_buck*(AO132+dcr_2*10^-3) -> 3.3 | AP121: 3.3 | AQ121: 3.3 | AR121: 3.3 | AS121: 3.3 | AT121: 3.3 | AU121: 3.3 | AV121: 3.3 | AW121: 3.3 | AX121: 3.3 | AY121: 3.3 | AZ121: 3.3 | BA121: 3.3 | BB121: 3.3 | BC121: 3.3 | BD121: 3.3 | BE121: 3.3 | BF121: 3.3 | BG121: 3.3 | BH121: 3.3
B122: Estimated ESR | C122: 3 | D122: Enter estimated equivalent series resistance of output capacitor used | H122: Ilpk | I122: =Iout_sync_buck+I123/2 -> 0.7638540747 | J122: 0.7638715976 | K122: 0.7638716035 | L122: 0.7638715174 | M122: 0.7638713463 | N122: 0.7638710957 | O122: 0.7638720322 | P122: 0.7638715963 | Q122: 0.7638710964 | R122: 0.7638705357 | S122: 0.7638699166 | T122: 0.7638692416 | U122: 0.7638685126 | V122: 0.7638677316 | W122: 0.7638669 | X122: 0.7638660194 | Y122: 0.763865091 | Z122: 0.763864116 | AA122: 0.7638630956 | AB122: 0.7638620305 | AC122: 0.7638609218 | AD122: 0.7638597702 | AE122: 0.7638585764 | AF122: 0.763857341 | AG122: 0.7638560647 | AH122: 0.763854748 | AI122: 0.7638533914 | AJ122: 0.7638519954 | AK122: 0.7638505604 | AL122: 0.7638490868 | AM122: 0.7638475749 | AN122: 0.7638460252 | AO122: =Iout_sync_buck+AO123/2 -> 0.7638444378 | AP122: 0.7638428131 | AQ122: 0.7638411514 | AR122: 0.7638394528 | AS122: 0.7638377177 | AT122: 0.7638359463 | AU122: 0.7638341386 | AV122: 0.763832295 | AW122: 0.7638304156 | AX122: 0.7638285006 | AY122: 0.76382655 | AZ122: 0.7638245641 | BA122: 0.763822543 | BB122: 0.7638204867 | BC122: 0.7638183955 | BD122: 0.7638162694 | BE122: 0.7638141085 | BF122: 0.763811913 | BG122: 0.7638096828 | BH122: 0.7637288239
B123: Number of capacitors = | C123: 2 | D123: Enter the number of parallel ceramic capacitors | H123: ΔIL | I123: =I116*I118/(L_buck2*10^-6*fsw*10^3) -> 0.1277081493 | J123: 0.1277431953 | K123: 0.1277432069 | L123: 0.1277430348 | M123: 0.1277426925 | N123: 0.1277421914 | O123: 0.1277440644 | P123: 0.1277431926 | Q123: 0.1277421929 | R123: 0.1277410714 | S123: 0.1277398333 | T123: 0.1277384832 | U123: 0.1277370253 | V123: 0.1277354631 | W123: 0.1277338 | X123: 0.1277320387 | Y123: 0.127730182 | Z123: 0.1277282321 | AA123: 0.1277261911 | AB123: 0.1277240611 | AC123: 0.1277218436 | AD123: 0.1277195404 | AE123: 0.1277171527 | AF123: 0.127714682 | AG123: 0.1277121294 | AH123: 0.127709496 | AI123: 0.1277067828 | AJ123: 0.1277039908 | AK123: 0.1277011208 | AL123: 0.1276981736 | AM123: 0.1276951499 | AN123: 0.1276920503 | AO123: 0.1276888756 | AP123: 0.1276856262 | AQ123: 0.1276823027 | AR123: 0.1276789057 | AS123: 0.1276754354 | AT123: 0.1276718925 | AU123: 0.1276682772 | AV123: 0.12766459 | AW123: 0.1276608312 | AX123: 0.1276570011 | AY123: 0.1276531 | AZ123: 0.1276491282 | BA123: 0.127645086 | BB123: 0.1276409735 | BC123: 0.1276367911 | BD123: 0.1276325389 | BE123: 0.1276282171 | BF123: 0.1276238259 | BG123: 0.1276193656 | BH123: 0.1274576479
H124: IL RMS | I124: =SQRT((I122-I123/2)^2+I123^2/12) -> 0.7009701237 | J124: =SQRT((J122-J123/2)^2+J123^2/12) -> 0.7009706558 | K124: 0.700970656 | L124: 0.7009706534 | M124: 0.7009706482 | N124: 0.7009706406 | O124: 0.700970669 | P124: 0.7009706558 | Q124: 0.7009706406 | R124: 0.7009706236 | S124: 0.7009706048 | T124: 0.7009705843 | U124: 0.7009705621 | V124: 0.7009705384 | W124: 0.7009705131 | X124: 0.7009704864 | Y124: 0.7009704582 | Z124: 0.7009704286 | AA124: 0.7009703976 | AB124: 0.7009703653 | AC124: 0.7009703316 | AD124: 0.7009702966 | AE124: 0.7009702604 | AF124: 0.7009702229 | AG124: 0.7009701841 | AH124: 0.7009701441 | AI124: 0.7009701029 | AJ124: 0.7009700605 | AK124: 0.700970017 | AL124: 0.7009699722 | AM124: 0.7009699263 | AN124: 0.7009698793 | AO124: 0.7009698311 | AP124: 0.7009697818 | AQ124: 0.7009697313 | AR124: 0.7009696797 | AS124: 0.7009696271 | AT124: 0.7009695733 | AU124: 0.7009695184 | AV124: 0.7009694625 | AW124: 0.7009694054 | AX124: 0.7009693473 | AY124: 0.7009692881 | AZ124: 0.7009692278 | BA124: 0.7009691665 | BB124: 0.7009691041 | BC124: 0.7009690406 | BD124: 0.7009689761 | BE124: 0.7009689105 | BF124: 0.7009688439 | BG124: 0.7009687762 | BH124: 0.7009663242
B125: Compensation Components, Adjustable Buck: | H125: I_hi_sw buck RMS | I125: =SQRT(I118*((I122-I123/2)^2+I123^2/12)) -> 0.5655609366 | J125: 0.5654715921 | K125: 0.5654715624 | L125: 0.5654720014 | M125: 0.5654728747 | N125: 0.5654741532 | O125: 0.5654693745 | P125: 0.565471599 | Q125: 0.5654741494 | R125: 0.5654770106 | S125: 0.565480169 | T125: 0.5654836128 | U125: 0.5654873315 | V125: 0.5654913159 | W125: 0.5654955575 | X125: 0.565500049 | Y125: 0.5655047836 | Z125: 0.5655097553 | AA125: 0.5655149587 | AB125: 0.5655203889 | AC125: 0.5655260412 | AD125: 0.5655319118 | AE125: 0.5655379968 | AF125: 0.5655442929 | AG125: 0.5655507969 | AH125: 0.565557506 | AI125: 0.5655644175 | AJ125: 0.565571529 | AK125: 0.5655788383 | AL125: 0.5655863433 | AM125: 0.565594042 | AN125: 0.5656019328 | AO125: 0.5656100138 | AP125: 0.5656182837 | AQ125: 0.565626741 | AR125: 0.5656353842 | AS125: 0.5656442123 | AT125: 0.565653224 | AU125: 0.5656624182 | AV125: 0.5656717938 | AW125: 0.5656813501 | AX125: 0.5656910859 | AY125: 0.5657010005 | AZ125: 0.5657110931 | BA125: 0.5657213629 | BB125: 0.5657318093 | BC125: 0.5657424314 | BD125: 0.5657532288 | BE125: 0.5657642008 | BF125: 0.5657753468 | BG125: 0.5657866663 | BH125: 0.5661955992
B126: fcMAX | C126: =ROUNDDOWN(fsw/22,0) -> 90 | D126: Recommended maximum 0dB crossover frequency | H126: I_lo_sw buck RMS | I126: =SQRT((1-I118)*((I122-I123/2)^2+I123^2/12)) -> 0.4141255139 | J126: =SQRT((1-J118)*((J122-J123/2)^2+J123^2/12)) -> 0.4142484024 | K126: 0.4142484432 | L126: 0.4142478396 | M126: 0.4142466386 | N126: 0.4142448805 | O126: 0.4142514518 | P126: 0.4142483929 | Q126: 0.4142448857 | R126: 0.4142409512 | S126: 0.4142366078 | T126: 0.4142318719 | U126: 0.4142267578 | V126: 0.4142212783 | W126: 0.4142154448 | X126: 0.4142092677 | Y126: 0.4142027559 | Z126: 0.4141959179 | AA126: 0.4141887611 | AB126: 0.4141812922 | AC126: 0.4141735173 | AD126: 0.4141654421 | AE126: 0.4141570717 | AF126: 0.4141484107 | AG126: 0.4141394634 | AH126: 0.4141302336 | AI126: 0.414120725 | AJ126: 0.4141109409 | AK126: 0.4141008843 | AL126: 0.4140905581 | AM126: 0.4140799648 | AN126: 0.4140691069 | AO126: 0.4140579867 | AP126: 0.4140466061 | AQ126: 0.4140349672 | AR126: 0.4140230718 | AS126: 0.4140109215 | AT126: 0.413998518 | AU126: 0.4139858626 | AV126: 0.4139729568 | AW126: 0.4139598018 | AX126: 0.4139463989 | AY126: 0.4139327492 | AZ126: 0.4139188537 | BA126: 0.4139047135 | BB126: 0.4138903295 | BC126: 0.4138757025 | BD126: 0.4138608335 | BE126: 0.4138457232 | BF126: 0.4138303723 | BG126: 0.4138147816 | BH126: 0.4132509299
B127: fc = | C127: 45 | D127: Choose fc considering recommended fcMAX | H127: I cout RMS | I127: =SQRT(((I122-I123/2-Iout_sync_buck)^2+I123^2/12)) -> 0.0368661672 | J127: 0.03687628408 | K127: 0.03687628745 | L127: 0.03687623778 | M127: 0.03687613895 | N127: 0.0368759943 | O127: 0.036876535 | P127: 0.0368762833 | Q127: 0.03687599472 | R127: 0.03687567097 | S127: 0.03687531356 | T127: 0.03687492383 | U127: 0.03687450296 | V127: 0.036874052 | W127: 0.03687357189 | X127: 0.03687306347 | Y127: 0.03687252747 | Z127: 0.03687196459 | AA127: 0.03687137542 | AB127: 0.03687076053 | AC127: 0.0368701204 | AD127: 0.03686945551 | AE127: 0.03686876625 | AF127: 0.03686805301 | AG127: 0.03686731614 | AH127: 0.03686655595 | AI127: 0.03686577272 | AJ127: 0.03686496674 | AK127: 0.03686413824 | AL127: 0.03686328744 | AM127: 0.03686241457 | AN127: 0.03686151981 | AO127: 0.03686060334 | AP127: 0.03685966533 | AQ127: 0.03685870592 | AR127: 0.03685772527 | AS127: 0.03685672351 | AT127: 0.03685570075 | AU127: 0.03685465712 | AV127: 0.03685359271 | AW127: 0.03685250763 | AX127: 0.03685140198 | AY127: 0.03685027583 | AZ127: 0.03684912927 | BA127: 0.03684796237 | BB127: 0.0368467752 | BC127: 0.03684556784 | BD127: 0.03684434033 | BE127: 0.03684309274 | BF127: 0.03684182513 | BG127: 0.03684053753 | BH127: 0.03679385366
B128: R_LOADTYP | C128: =Vout_sync_buck/Iout_sync_buck -> 4.714285714 | G128: Adj BUCK High Side FET | H128: Rds_On Buck | I128: =Buck_RdsON_factor_7V*(I89-150)+Adj_buck_hi_rdsON_150 -> 0.2941294915 | J128: 0.2925697623 | K128: 0.2925692438 | L128: 0.2925769067 | M128: 0.2925921522 | N128: 0.2926144692 | O128: 0.292531052 | P128: 0.2925698828 | Q128: 0.2926144037 | R128: 0.2926643482 | S128: 0.2927194819 | T128: 0.2927795984 | U128: 0.2928445145 | V128: 0.2929140677 | W128: 0.2929881127 | X128: 0.2930665197 | Y128: 0.2931491719 | Z128: 0.2932359643 | AA128: 0.2933268018 | AB128: 0.2934215985 | AC128: 0.2935202762 | AD128: 0.2936227639 | AE128: 0.2937289967 | AF128: 0.2938389152 | AG128: 0.2939524653 | AH128: 0.294069597 | AI128: 0.2941902645 | AJ128: 0.2943144255 | AK128: 0.2944420411 | AL128: 0.2945730751 | AM128: 0.2947074943 | AN128: 0.2948452676 | AO128: =Buck_RdsON_factor_7V*(AO89-150)+Adj_buck_hi_rdsON_150 -> 0.2949863664 | AP128: 0.2951307639 | AQ128: 0.2952784353 | AR128: 0.2954293573 | AS128: 0.2955835083 | AT128: 0.2957408681 | AU128: 0.2959014177 | AV128: 0.2960651393 | AW128: 0.2962320164 | AX128: 0.2964020333 | AY128: 0.2965751754 | AZ128: 0.2967514288 | BA128: 0.2969307805 | BB128: 0.2971132183 | BC128: 0.2972987307 | BD128: 0.2974873067 | BE128: 0.297678936 | BF128: 0.297873609 | BG128: 0.2980713163 | BH128: 0.3052165618 | BJ128: V5 LDO
B129: fP1 | C129: =wp_adj/(2*PI()) -> 2.409826543 | D129: Dominant pole formed by Co and RLOAD. | H129: Conduction Losses | I129: =I125^2*I128 -> 0.09408001591 | J129: =J125^2*J128 -> 0.09355155759 | K129: 0.09355138197 | L129: 0.09355397748 | M129: 0.09355914137 | N129: 0.09356670051 | O129: 0.093538446 | P129: 0.09355159839 | Q129: 0.09356667836 | R129: 0.09358359565 | S129: 0.09360227105 | T129: 0.09362263467 | U129: 0.09364462466 | V129: 0.09366818602 | W129: 0.09369326971 | X129: 0.09371983184 | Y129: 0.093747833 | Z129: 0.09377723772 | AA129: 0.09380801395 | AB129: 0.0938401327 | AC129: 0.09387356766 | AD129: 0.09390829488 | AE129: 0.09394429253 | AF129: 0.09398154068 | AG129: 0.09402002108 | AH129: 0.09405971699 | AI129: 0.09410061304 | AJ129: 0.09414269505 | AK129: 0.09418595 | AL129: 0.09423036584 | AM129: 0.09427593142 | AN129: 0.09432263643 | AO129: 0.09437047131 | AP129: 0.09441942718 | AQ129: 0.09446949579 | AR129: 0.09452066947 | AS129: 0.09457294106 | AT129: 0.09462630389 | AU129: 0.09468075173 | AV129: 0.09473627877 | AW129: 0.09479287957 | AX129: 0.09485054902 | AY129: 0.09490928237 | AZ129: 0.09496907513 | BA129: 0.09502992311 | BB129: 0.09509182237 | BC129: 0.09515476921 | BD129: 0.09521876015 | BE129: 0.09528379192 | BF129: 0.09534986143 | BG129: 0.09541696579 | BH129: 0.09784554909
B130: fZ1 | C130: =wz_adj/(2*PI()) -> 6241.370317 | D130: Zero formed by the output capacitance and its ESR | H130: Switching Losses | I130: =0.5*Vreg*Iout_sync_buck*fsw*10^3*(Vreg/SLEW_rate+Vreg/1.5)*10^-9 -> 0.03561911111 | J130: 0.03561911111 | K130: 0.03561911111 | L130: 0.03561911111 | M130: 0.03561911111 | N130: 0.03561911111 | O130: 0.03561911111 | P130: 0.03561911111 | Q130: 0.03561911111 | R130: 0.03561911111 | S130: 0.03561911111 | T130: 0.03561911111 | U130: 0.03561911111 | V130: 0.03561911111 | W130: 0.03561911111 | X130: 0.03561911111 | Y130: 0.03561911111 | Z130: 0.03561911111 | AA130: 0.03561911111 | AB130: 0.03561911111 | AC130: 0.03561911111 | AD130: 0.03561911111 | AE130: 0.03561911111 | AF130: 0.03561911111 | AG130: 0.03561911111 | AH130: 0.03561911111 | AI130: 0.03561911111 | AJ130: 0.03561911111 | AK130: 0.03561911111 | AL130: 0.03561911111 | AM130: 0.03561911111 | AN130: 0.03561911111 | AO130: 0.03561911111 | AP130: 0.03561911111 | AQ130: 0.03561911111 | AR130: 0.03561911111 | AS130: 0.03561911111 | AT130: 0.03561911111 | AU130: 0.03561911111 | AV130: 0.03561911111 | AW130: 0.03561911111 | AX130: 0.03561911111 | AY130: 0.03561911111 | AZ130: 0.03561911111 | BA130: 0.03561911111 | BB130: 0.03561911111 | BC130: 0.03561911111 | BD130: 0.03561911111 | BE130: 0.03561911111 | BF130: 0.03561911111 | BG130: 0.03561911111 | BH130: 0.03561911111
B131: fP2 | C131: =IF(fz_1_2>10*fc_2,MAX(fsw/2,5*fc_2),fz_1_2) -> 1000 | H131: Total Buck FET Losses | I131: =I129+I130 -> 0.129699127 | J131: =J129+J130 -> 0.1291706687 | K131: 0.1291704931 | L131: 0.1291730886 | M131: 0.1291782525 | N131: 0.1291858116 | O131: 0.1291575571 | P131: 0.1291707095 | Q131: 0.1291857895 | R131: 0.1292027068 | S131: 0.1292213822 | T131: 0.1292417458 | U131: 0.1292637358 | V131: 0.1292872971 | W131: 0.1293123808 | X131: 0.1293389429 | Y131: 0.1293669441 | Z131: 0.1293963488 | AA131: 0.1294271251 | AB131: 0.1294592438 | AC131: 0.1294926788 | AD131: 0.129527406 | AE131: 0.1295634036 | AF131: 0.1296006518 | AG131: 0.1296391322 | AH131: 0.1296788281 | AI131: 0.1297197241 | AJ131: 0.1297618062 | AK131: 0.1298050611 | AL131: 0.1298494769 | AM131: 0.1298950425 | AN131: 0.1299417475 | AO131: 0.1299895824 | AP131: 0.1300385383 | AQ131: 0.1300886069 | AR131: 0.1301397806 | AS131: 0.1301920522 | AT131: 0.130245415 | AU131: 0.1302998628 | AV131: 0.1303553899 | AW131: 0.1304119907 | AX131: 0.1304696601 | AY131: 0.1305283935 | AZ131: 0.1305881862 | BA131: 0.1306490342 | BB131: 0.1307109335 | BC131: 0.1307738803 | BD131: 0.1308378713 | BE131: 0.130902903 | BF131: 0.1309689725 | BG131: 0.1310360769 | BH131: 0.1334646602
B132: Rz | C132: =fc_2*10^3*Vout_sync_buck/VFB_adj*2*PI()*Number_Cout2*Co_2*10^-6/(gm_POWER2*gm_EA2*10^-6)*10^-3 -> 10.57460087 | D132: Recommended compensation resister to achieve chosen fc | G132: Adj BUCK Low Side FET | H132: Rds_On Buck | I132: =Buck_RdsON_factor_7V*(I89-150)+Adj_buck_lo_rdsON_150 -> 0.1041294915 | J132: 0.1025697623 | K132: 0.1025692438 | L132: 0.1025769067 | M132: 0.1025921522 | N132: 0.1026144692 | O132: 0.102531052 | P132: 0.1025698828 | Q132: 0.1026144037 | R132: 0.1026643482 | S132: 0.1027194819 | T132: 0.1027795984 | U132: 0.1028445145 | V132: 0.1029140677 | W132: 0.1029881127 | X132: 0.1030665197 | Y132: 0.1031491719 | Z132: 0.1032359643 | AA132: 0.1033268018 | AB132: 0.1034215985 | AC132: 0.1035202762 | AD132: 0.1036227639 | AE132: 0.1037289967 | AF132: 0.1038389152 | AG132: 0.1039524653 | AH132: 0.104069597 | AI132: 0.1041902645 | AJ132: 0.1043144255 | AK132: 0.1044420411 | AL132: 0.1045730751 | AM132: 0.1047074943 | AN132: 0.1048452676 | AO132: =Buck_RdsON_factor_7V*(AO89-150)+Adj_buck_lo_rdsON_150 -> 0.1049863664 | AP132: 0.1051307639 | AQ132: 0.1052784353 | AR132: 0.1054293573 | AS132: 0.1055835083 | AT132: 0.1057408681 | AU132: 0.1059014177 | AV132: 0.1060651393 | AW132: 0.1062320164 | AX132: 0.1064020333 | AY132: 0.1065751754 | AZ132: 0.1067514288 | BA132: 0.1069307805 | BB132: 0.1071132183 | BC132: 0.1072987307 | BD132: 0.1074873067 | BE132: 0.107678936 | BF132: 0.107873609 | BG132: 0.1080713163 | BH132: 0.1152165618 | BJ132: Buck Diode
B133: Actual Rz used = | C133: 10 | D133: Enter the closest available 1% standard resister value | H133: Conduction Losses | I133: =I126^2*I132 -> 0.01785820168 | J133: =J126^2*J132 -> 0.01760114957 | K133: 0.01760106407 | L133: 0.01760232772 | M133: 0.01760484179 | N133: 0.01760852193 | O133: 0.01759476586 | P133: 0.01760116944 | Q133: 0.01760851114 | R133: 0.0176167469 | S133: 0.01762583798 | T133: 0.01763575021 | U133: 0.01764645331 | V133: 0.01765792033 | W133: 0.01767012722 | X133: 0.01768305243 | Y133: 0.0176966766 | Z133: 0.01771098224 | AA133: 0.01772595358 | AB133: 0.0177415763 | AC133: 0.01775783738 | AD133: 0.01777472495 | AE133: 0.01779222818 | AF133: 0.01781033715 | AG133: 0.01782904275 | AH133: 0.0178483366 | AI133: 0.01786821098 | AJ133: 0.01788865878 | AK133: 0.01790967341 | AL133: 0.01793124875 | AM133: 0.01795337913 | AN133: 0.01797605929 | AO133: 0.01799928432 | AP133: 0.01802304963 | AQ133: 0.01804735094 | AR133: 0.01807218425 | AS133: 0.0180975458 | AT133: 0.01812343207 | AU133: 0.01814983975 | AV133: 0.01817676571 | AW133: 0.01820420702 | AX133: 0.0182321609 | AY133: 0.01826062474 | AZ133: 0.01828959605 | BA133: 0.01831907248 | BB133: 0.01834905181 | BC133: 0.0183795319 | BD133: 0.01841051076 | BE133: 0.01844198645 | BF133: 0.01847395715 | BG133: 0.01850642112 | BH133: 0.0196762617
B134: Cz (min) | C134: =MIN(4*1000000000/(6.28*Rz_adj*1000*fc_2*1000),1000000000/(6.28*Rz_adj*1000*1.5*fp_1_2*1000)) -> 1.415428167 | D134: Recommended range for the compensation capacitor | H134: Body Diode Losses | I134: =(I122-I123/2)*(2*td*10^-9*(fsw*10^3))*0.05 -> 0.0021 | J134: 0.0021 | K134: 0.0021 | L134: 0.0021 | M134: 0.0021 | N134: 0.0021 | O134: 0.0021 | P134: 0.0021 | Q134: 0.0021 | R134: 0.0021 | S134: 0.0021 | T134: 0.0021 | U134: 0.0021 | V134: 0.0021 | W134: 0.0021 | X134: 0.0021 | Y134: 0.0021 | Z134: 0.0021 | AA134: 0.0021 | AB134: 0.0021 | AC134: 0.0021 | AD134: 0.0021 | AE134: 0.0021 | AF134: 0.0021 | AG134: 0.0021 | AH134: 0.0021 | AI134: 0.0021 | AJ134: 0.0021 | AK134: 0.0021 | AL134: 0.0021 | AM134: 0.0021 | AN134: 0.0021 | AO134: =(AO122-AO123/2)*(2*td*10^-9*(fsw*10^3))*0.05 -> 0.0021 | AP134: 0.0021 | AQ134: 0.0021 | AR134: 0.0021 | AS134: 0.0021 | AT134: 0.0021 | AU134: 0.0021 | AV134: 0.0021 | AW134: 0.0021 | AX134: 0.0021 | AY134: 0.0021 | AZ134: 0.0021 | BA134: 0.0021 | BB134: 0.0021 | BC134: 0.0021 | BD134: 0.0021 | BE134: 0.0021 | BF134: 0.0021 | BG134: 0.0021 | BH134: 0.0021
B135: Cz (max) | C135: =MAX(4*1000000000/(6.28*Rz_adj*1000*fc_2*1000),1000000000/(6.28*Rz_adj*1000*1.5*fp_1_2*1000)) -> 4.405176498 | H135: Total Buck FET Losses | I135: =I133+I134 -> 0.01995820168 | J135: =J133+J134 -> 0.01970114957 | K135: 0.01970106407 | L135: 0.01970232772 | M135: 0.01970484179 | N135: 0.01970852193 | O135: 0.01969476586 | P135: 0.01970116944 | Q135: 0.01970851114 | R135: 0.0197167469 | S135: 0.01972583798 | T135: 0.01973575021 | U135: 0.01974645331 | V135: 0.01975792033 | W135: 0.01977012722 | X135: 0.01978305243 | Y135: 0.0197966766 | Z135: 0.01981098224 | AA135: 0.01982595358 | AB135: 0.0198415763 | AC135: 0.01985783738 | AD135: 0.01987472495 | AE135: 0.01989222818 | AF135: 0.01991033715 | AG135: 0.01992904275 | AH135: 0.0199483366 | AI135: 0.01996821098 | AJ135: 0.01998865878 | AK135: 0.02000967341 | AL135: 0.02003124875 | AM135: 0.02005337913 | AN135: 0.02007605929 | AO135: 0.02009928432 | AP135: 0.02012304963 | AQ135: 0.02014735094 | AR135: 0.02017218425 | AS135: 0.0201975458 | AT135: 0.02022343207 | AU135: 0.02024983975 | AV135: 0.02027676571 | AW135: 0.02030420702 | AX135: 0.0203321609 | AY135: 0.02036062474 | AZ135: 0.02038959605 | BA135: 0.02041907248 | BB135: 0.02044905181 | BC135: 0.0204795319 | BD135: 0.02051051076 | BE135: 0.02054198645 | BF135: 0.02057395715 | BG135: 0.02060642112 | BH135: 0.0217762617
B136: Cp | C136: =MAX(1/(2*PI()*Rz_adj*10^3*fz_1_2*10^3)*10^12, 1/(2*PI()*Rz_adj*10^3*fsw/2*10^3)*10^12, 1/(2*PI()*Rz_adj*10^3*15*fc_2*10^3)*10^12) -> 23.57851009 | D136: Recommended HF compensation capacitor | G136: V5A LDO | H136: Output voltage | I136: =IF(I99-5<I137*Iout_V5A,I99-I137*Iout_V5A,5) -> 5 | J136: 5 | K136: 5 | L136: 5 | M136: 5 | N136: 5 | O136: 5 | P136: 5 | Q136: 5 | R136: 5 | S136: 5 | T136: 5 | U136: 5 | V136: 5 | W136: 5 | X136: 5 | Y136: 5 | Z136: 5 | AA136: 5 | AB136: 5 | AC136: 5 | AD136: 5 | AE136: 5 | AF136: 5 | AG136: 5 | AH136: 5 | AI136: 5 | AJ136: 5 | AK136: 5 | AL136: 5 | AM136: 5 | AN136: 5 | AO136: =IF(AO99-5<AO137*Iout_V5A,AO99-AO137*Iout_V5A,5) -> 5 | AP136: 5 | AQ136: 5 | AR136: 5 | AS136: 5 | AT136: 5 | AU136: 5 | AV136: 5 | AW136: 5 | AX136: 5 | AY136: 5 | AZ136: 5 | BA136: 5 | BB136: 5 | BC136: 5 | BD136: 5 | BE136: 5 | BF136: 5 | BG136: 5 | BH136: 5
B137: Actual Cz used = | C137: 1.5 | D137: Enter actual Cp used | H137: Series pass resistance | I137: =(Rds_ON_V5A_150-Rds_ON_V5A_min40)/190*(I89-150)+Rds_ON_V5A_150 -> 0.6722272788 | J137: 0.6651140629 | K137: 0.6651116982 | L137: 0.665146645 | M137: 0.6652161729 | N137: 0.6653179504 | O137: 0.6649375228 | P137: 0.6651146122 | Q137: 0.6653176521 | R137: 0.6655454261 | S137: 0.665796866 | T137: 0.6660710297 | U137: 0.6663670826 | V137: 0.666684283 | W137: 0.6670219688 | X137: 0.6673795475 | Y137: 0.6677564869 | Z137: 0.6681523074 | AA137: 0.668566576 | AB137: 0.6689989005 | AC137: 0.6694489247 | AD137: 0.6699163244 | AE137: 0.6704008038 | AF137: 0.6709020925 | AG137: 0.6714199428 | AH137: 0.6719541273 | AI137: 0.6725044368 | AJ137: 0.6730706788 | AK137: 0.6736526753 | AL137: 0.674250262 | AM137: 0.6748632868 | AN137: 0.6754916084 | AO137: =(Rds_ON_V5A_150-Rds_ON_V5A_min40)/190*(AO89-150)+Rds_ON_V5A_150 -> 0.6761350959 | AP137: 0.6767936273 | AQ137: 0.6774670893 | AR137: 0.6781553761 | AS137: 0.6788583887 | AT137: 0.6795760351 | AU137: 0.6803082288 | AV137: 0.6810548888 | AW137: 0.6818159394 | AX137: 0.6825913092 | AY137: 0.6833809314 | AZ137: 0.684184743 | BA137: 0.6850026848 | BB137: 0.6858347008 | BC137: 0.6866807384 | BD137: 0.6875407479 | BE137: 0.6884146822 | BF137: 0.6893024969 | BG137: 0.69020415 | BH137: 0.7227903674
B138: Actual Cp used = | C138: 27 | D138: Enter actual Cz used | H138: Dropout | I138: =I99-I136 -> 0.35 | J138: 0.35 | K138: 0.35 | L138: 0.35 | M138: 0.35 | N138: 0.35 | O138: 0.35 | P138: 0.35 | Q138: 0.35 | R138: 0.35 | S138: 0.35 | T138: 0.35 | U138: 0.35 | V138: 0.35 | W138: 0.35 | X138: 0.35 | Y138: 0.35 | Z138: 0.35 | AA138: 0.35 | AB138: 0.35 | AC138: 0.35 | AD138: 0.35 | AE138: 0.35 | AF138: 0.35 | AG138: 0.35 | AH138: 0.35 | AI138: 0.35 | AJ138: 0.35 | AK138: 0.35 | AL138: 0.35 | AM138: 0.35 | AN138: 0.35 | AO138: =AO99-AO136 -> 0.35 | AP138: 0.35 | AQ138: 0.35 | AR138: 0.35 | AS138: 0.35 | AT138: 0.35 | AU138: 0.35 | AV138: 0.35 | AW138: 0.35 | AX138: 0.35 | AY138: 0.35 | AZ138: 0.35 | BA138: 0.35 | BB138: 0.35 | BC138: 0.35 | BD138: 0.35 | BE138: 0.35 | BF138: 0.35 | BG138: 0.35 | BH138: 0.35
B139: Estimated cross over | C139: ='Control Loop2'!$B$21 -> 42.29242874 | H139: Power dissipated | I139: =(I99-I136)*Iout_V5A -> 0 | J139: 0 | K139: 0 | L139: 0 | M139: 0 | N139: 0 | O139: 0 | P139: 0 | Q139: 0 | R139: 0 | S139: 0 | T139: 0 | U139: 0 | V139: 0 | W139: 0 | X139: 0 | Y139: 0 | Z139: 0 | AA139: 0 | AB139: 0 | AC139: 0 | AD139: 0 | AE139: 0 | AF139: 0 | AG139: 0 | AH139: 0 | AI139: 0 | AJ139: 0 | AK139: 0 | AL139: 0 | AM139: 0 | AN139: 0 | AO139: =(AO99-AO136)*Iout_V5A -> 0 | AP139: 0 | AQ139: 0 | AR139: 0 | AS139: 0 | AT139: 0 | AU139: 0 | AV139: 0 | AW139: 0 | AX139: 0 | AY139: 0 | AZ139: 0 | BA139: 0 | BB139: 0 | BC139: 0 | BD139: 0 | BE139: 0 | BF139: 0 | BG139: 0 | BH139: 0
B140: Estimated phase margin | C140: ='Control Loop2'!$B$22 -> 68.87593805 | G140: V5B LDO | H140: Output voltage | I140: =IF(I99-5<I141*Iout_V5B,I99-I141*Iout_V5B,5) -> 5 | J140: 5 | K140: 5 | L140: 5 | M140: 5 | N140: 5 | O140: 5 | P140: 5 | Q140: 5 | R140: 5 | S140: 5 | T140: 5 | U140: 5 | V140: 5 | W140: 5 | X140: 5 | Y140: 5 | Z140: 5 | AA140: 5 | AB140: 5 | AC140: 5 | AD140: 5 | AE140: 5 | AF140: 5 | AG140: 5 | AH140: 5 | AI140: 5 | AJ140: 5 | AK140: 5 | AL140: 5 | AM140: 5 | AN140: 5 | AO140: =IF(AO99-5<AO141*Iout_V5B,AO99-AO141*Iout_V5B,5) -> 5 | AP140: 5 | AQ140: 5 | AR140: 5 | AS140: 5 | AT140: 5 | AU140: 5 | AV140: 5 | AW140: 5 | AX140: 5 | AY140: 5 | AZ140: 5 | BA140: 5 | BB140: 5 | BC140: 5 | BD140: 5 | BE140: 5 | BF140: 5 | BG140: 5 | BH140: 5
H141: Series pass resistance | I141: =(Rds_ON_V5B_150-Rds_ON_V5B_min40)/190*(I89-150)+Rds_ON_V5B_150 -> 0.6722272788 | J141: 0.6651140629 | K141: 0.6651116982 | L141: 0.665146645 | M141: 0.6652161729 | N141: 0.6653179504 | O141: 0.6649375228 | P141: 0.6651146122 | Q141: 0.6653176521 | R141: 0.6655454261 | S141: 0.665796866 | T141: 0.6660710297 | U141: 0.6663670826 | V141: 0.666684283 | W141: 0.6670219688 | X141: 0.6673795475 | Y141: 0.6677564869 | Z141: 0.6681523074 | AA141: 0.668566576 | AB141: 0.6689989005 | AC141: 0.6694489247 | AD141: 0.6699163244 | AE141: 0.6704008038 | AF141: 0.6709020925 | AG141: 0.6714199428 | AH141: 0.6719541273 | AI141: 0.6725044368 | AJ141: 0.6730706788 | AK141: 0.6736526753 | AL141: 0.674250262 | AM141: 0.6748632868 | AN141: 0.6754916084 | AO141: =(Rds_ON_V5B_150-Rds_ON_V5B_min40)/190*(AO89-150)+Rds_ON_V5B_150 -> 0.6761350959 | AP141: 0.6767936273 | AQ141: 0.6774670893 | AR141: 0.6781553761 | AS141: 0.6788583887 | AT141: 0.6795760351 | AU141: 0.6803082288 | AV141: 0.6810548888 | AW141: 0.6818159394 | AX141: 0.6825913092 | AY141: 0.6833809314 | AZ141: 0.684184743 | BA141: 0.6850026848 | BB141: 0.6858347008 | BC141: 0.6866807384 | BD141: 0.6875407479 | BE141: 0.6884146822 | BF141: 0.6893024969 | BG141: 0.69020415 | BH141: 0.7227903674
H142: Dropout | I142: =I99-I140 -> 0.35 | J142: 0.35 | K142: 0.35 | L142: 0.35 | M142: 0.35 | N142: 0.35 | O142: 0.35 | P142: 0.35 | Q142: 0.35 | R142: 0.35 | S142: 0.35 | T142: 0.35 | U142: 0.35 | V142: 0.35 | W142: 0.35 | X142: 0.35 | Y142: 0.35 | Z142: 0.35 | AA142: 0.35 | AB142: 0.35 | AC142: 0.35 | AD142: 0.35 | AE142: 0.35 | AF142: 0.35 | AG142: 0.35 | AH142: 0.35 | AI142: 0.35 | AJ142: 0.35 | AK142: 0.35 | AL142: 0.35 | AM142: 0.35 | AN142: 0.35 | AO142: =AO99-AO140 -> 0.35 | AP142: 0.35 | AQ142: 0.35 | AR142: 0.35 | AS142: 0.35 | AT142: 0.35 | AU142: 0.35 | AV142: 0.35 | AW142: 0.35 | AX142: 0.35 | AY142: 0.35 | AZ142: 0.35 | BA142: 0.35 | BB142: 0.35 | BC142: 0.35 | BD142: 0.35 | BE142: 0.35 | BF142: 0.35 | BG142: 0.35 | BH142: 0.35
H143: Power dissipated | I143: =(I99-I140)*Iout_V5B -> 0.0175 | J143: 0.0175 | K143: 0.0175 | L143: 0.0175 | M143: 0.0175 | N143: 0.0175 | O143: 0.0175 | P143: 0.0175 | Q143: 0.0175 | R143: 0.0175 | S143: 0.0175 | T143: 0.0175 | U143: 0.0175 | V143: 0.0175 | W143: 0.0175 | X143: 0.0175 | Y143: 0.0175 | Z143: 0.0175 | AA143: 0.0175 | AB143: 0.0175 | AC143: 0.0175 | AD143: 0.0175 | AE143: 0.0175 | AF143: 0.0175 | AG143: 0.0175 | AH143: 0.0175 | AI143: 0.0175 | AJ143: 0.0175 | AK143: 0.0175 | AL143: 0.0175 | AM143: 0.0175 | AN143: 0.0175 | AO143: =(AO99-AO140)*Iout_V5B -> 0.0175 | AP143: 0.0175 | AQ143: 0.0175 | AR143: 0.0175 | AS143: 0.0175 | AT143: 0.0175 | AU143: 0.0175 | AV143: 0.0175 | AW143: 0.0175 | AX143: 0.0175 | AY143: 0.0175 | AZ143: 0.0175 | BA143: 0.0175 | BB143: 0.0175 | BC143: 0.0175 | BD143: 0.0175 | BE143: 0.0175 | BF143: 0.0175 | BG143: 0.0175 | BH143: 0.0175
G144: V5CAN LDO | H144: Output voltage | I144: =IF(I99-5<I145*Iout_V5CAN,I99-I145*Iout_sync_buck,5) -> 5 | J144: 5 | K144: 5 | L144: 5 | M144: 5 | N144: 5 | O144: 5 | P144: 5 | Q144: 5 | R144: 5 | S144: 5 | T144: 5 | U144: 5 | V144: 5 | W144: 5 | X144: 5 | Y144: 5 | Z144: 5 | AA144: 5 | AB144: 5 | AC144: 5 | AD144: 5 | AE144: 5 | AF144: 5 | AG144: 5 | AH144: 5 | AI144: 5 | AJ144: 5 | AK144: 5 | AL144: 5 | AM144: 5 | AN144: 5 | AO144: =IF(AO99-5<AO145*Iout_V5CAN,AO99-AO145*Iout_sync_buck,5) -> 5 | AP144: 5 | AQ144: 5 | AR144: 5 | AS144: 5 | AT144: 5 | AU144: 5 | AV144: 5 | AW144: 5 | AX144: 5 | AY144: 5 | AZ144: 5 | BA144: 5 | BB144: 5 | BC144: 5 | BD144: 5 | BE144: 5 | BF144: 5 | BG144: 5 | BH144: 5
H145: Series pass resistance | I145: =(Rds_ON_V5CAN_150-Rds_ON_V5CAN_min40)/190*(I89-150)+Rds_ON_V5CAN_150 -> 0.4876646227 | J145: 0.4835901825 | K145: 0.483588828 | L145: 0.4836088455 | M145: 0.483648671 | N145: 0.483706969 | O145: 0.4834890606 | P145: 0.4835904971 | Q145: 0.4837067981 | R145: 0.4838372667 | S145: 0.4839812912 | T145: 0.4841383317 | U145: 0.4843079105 | V145: 0.4844896024 | W145: 0.4846830284 | X145: 0.4848878489 | Y145: 0.4851037593 | Z145: 0.4853304847 | AA145: 0.4855677772 | AB145: 0.4858154121 | AC145: 0.4860731853 | AD145: 0.4863409112 | AE145: 0.4866184203 | AF145: 0.4869055578 | AG145: 0.4872021817 | AH145: 0.4875081618 | AI145: 0.4878233784 | AJ145: 0.488147721 | AK145: 0.4884810878 | AL145: 0.4888233846 | AM145: 0.4891745243 | AN145: 0.4895344261 | AO145: =(Rds_ON_V5CAN_150-Rds_ON_V5CAN_min40)/190*(AO89-150)+Rds_ON_V5CAN_150 -> 0.4899030148 | AP145: 0.4902802207 | AQ145: 0.4906659788 | AR145: 0.4910602285 | AS145: 0.4914629132 | AT145: 0.49187398 | AU145: 0.4922933795 | AV145: 0.4927210653 | AW145: 0.493156994 | AX145: 0.4936011248 | AY145: 0.4940534193 | AZ145: 0.4945138415 | BA145: 0.4949823574 | BB145: 0.495458935 | BC145: 0.4959435441 | BD145: 0.4964361564 | BE145: 0.4969367447 | BF145: 0.4974452838 | BG145: 0.4979617494 | BH145: 0.5166270892
H146: Dropout | I146: =I99-I144 -> 0.35 | J146: 0.35 | K146: 0.35 | L146: 0.35 | M146: 0.35 | N146: 0.35 | O146: 0.35 | P146: 0.35 | Q146: 0.35 | R146: 0.35 | S146: 0.35 | T146: 0.35 | U146: 0.35 | V146: 0.35 | W146: 0.35 | X146: 0.35 | Y146: 0.35 | Z146: 0.35 | AA146: 0.35 | AB146: 0.35 | AC146: 0.35 | AD146: 0.35 | AE146: 0.35 | AF146: 0.35 | AG146: 0.35 | AH146: 0.35 | AI146: 0.35 | AJ146: 0.35 | AK146: 0.35 | AL146: 0.35 | AM146: 0.35 | AN146: 0.35 | AO146: =AO99-AO144 -> 0.35 | AP146: 0.35 | AQ146: 0.35 | AR146: 0.35 | AS146: 0.35 | AT146: 0.35 | AU146: 0.35 | AV146: 0.35 | AW146: 0.35 | AX146: 0.35 | AY146: 0.35 | AZ146: 0.35 | BA146: 0.35 | BB146: 0.35 | BC146: 0.35 | BD146: 0.35 | BE146: 0.35 | BF146: 0.35 | BG146: 0.35 | BH146: 0.35
H147: Power dissipated | I147: =(I99-I144)*Iout_V5CAN -> 0.07 | J147: 0.07 | K147: 0.07 | L147: 0.07 | M147: 0.07 | N147: 0.07 | O147: 0.07 | P147: 0.07 | Q147: 0.07 | R147: 0.07 | S147: 0.07 | T147: 0.07 | U147: 0.07 | V147: 0.07 | W147: 0.07 | X147: 0.07 | Y147: 0.07 | Z147: 0.07 | AA147: 0.07 | AB147: 0.07 | AC147: 0.07 | AD147: 0.07 | AE147: 0.07 | AF147: 0.07 | AG147: 0.07 | AH147: 0.07 | AI147: 0.07 | AJ147: 0.07 | AK147: 0.07 | AL147: 0.07 | AM147: 0.07 | AN147: 0.07 | AO147: =(AO99-AO144)*Iout_V5CAN -> 0.07 | AP147: 0.07 | AQ147: 0.07 | AR147: 0.07 | AS147: 0.07 | AT147: 0.07 | AU147: 0.07 | AV147: 0.07 | AW147: 0.07 | AX147: 0.07 | AY147: 0.07 | AZ147: 0.07 | BA147: 0.07 | BB147: 0.07 | BC147: 0.07 | BD147: 0.07 | BE147: 0.07 | BF147: 0.07 | BG147: 0.07 | BH147: 0.07
G148: V5P LDO | H148: Output voltage | I148: =IF(I99-5<I149*Iout_V5P,I99-I149*Iout_V5P,5) -> 5 | J148: 5 | K148: 5 | L148: 5 | M148: 5 | N148: 5 | O148: 5 | P148: 5 | Q148: 5 | R148: 5 | S148: 5 | T148: 5 | U148: 5 | V148: 5 | W148: 5 | X148: 5 | Y148: 5 | Z148: 5 | AA148: 5 | AB148: 5 | AC148: 5 | AD148: 5 | AE148: 5 | AF148: 5 | AG148: 5 | AH148: 5 | AI148: 5 | AJ148: 5 | AK148: 5 | AL148: 5 | AM148: 5 | AN148: 5 | AO148: =IF(AO99-5<AO149*Iout_V5P,AO99-AO149*Iout_V5P,5) -> 5 | AP148: 5 | AQ148: 5 | AR148: 5 | AS148: 5 | AT148: 5 | AU148: 5 | AV148: 5 | AW148: 5 | AX148: 5 | AY148: 5 | AZ148: 5 | BA148: 5 | BB148: 5 | BC148: 5 | BD148: 5 | BE148: 5 | BF148: 5 | BG148: 5 | BH148: 5 | BI148: Output voltage
H149: Series pass resistance | I149: =(Rds_ON_V5P_150-Rds_ON_V5P_min40)/190*(I89-150)+Rds_ON_V5P_150 -> 0.6722272788 | J149: 0.6651140629 | K149: 0.6651116982 | L149: 0.665146645 | M149: 0.6652161729 | N149: 0.6653179504 | O149: 0.6649375228 | P149: 0.6651146122 | Q149: 0.6653176521 | R149: 0.6655454261 | S149: 0.665796866 | T149: 0.6660710297 | U149: 0.6663670826 | V149: 0.666684283 | W149: 0.6670219688 | X149: 0.6673795475 | Y149: 0.6677564869 | Z149: 0.6681523074 | AA149: 0.668566576 | AB149: 0.6689989005 | AC149: 0.6694489247 | AD149: 0.6699163244 | AE149: 0.6704008038 | AF149: 0.6709020925 | AG149: 0.6714199428 | AH149: 0.6719541273 | AI149: 0.6725044368 | AJ149: 0.6730706788 | AK149: 0.6736526753 | AL149: 0.674250262 | AM149: 0.6748632868 | AN149: 0.6754916084 | AO149: =(Rds_ON_V5P_150-Rds_ON_V5P_min40)/190*(AO89-150)+Rds_ON_V5P_150 -> 0.6761350959 | AP149: 0.6767936273 | AQ149: 0.6774670893 | AR149: 0.6781553761 | AS149: 0.6788583887 | AT149: 0.6795760351 | AU149: 0.6803082288 | AV149: 0.6810548888 | AW149: 0.6818159394 | AX149: 0.6825913092 | AY149: 0.6833809314 | AZ149: 0.684184743 | BA149: 0.6850026848 | BB149: 0.6858347008 | BC149: 0.6866807384 | BD149: 0.6875407479 | BE149: 0.6884146822 | BF149: 0.6893024969 | BG149: 0.69020415 | BH149: 0.7227903674 | BI149: Series pass resistance
H150: Dropout | I150: =I99-I148 -> 0.35 | J150: 0.35 | K150: 0.35 | L150: 0.35 | M150: 0.35 | N150: 0.35 | O150: 0.35 | P150: 0.35 | Q150: 0.35 | R150: 0.35 | S150: 0.35 | T150: 0.35 | U150: 0.35 | V150: 0.35 | W150: 0.35 | X150: 0.35 | Y150: 0.35 | Z150: 0.35 | AA150: 0.35 | AB150: 0.35 | AC150: 0.35 | AD150: 0.35 | AE150: 0.35 | AF150: 0.35 | AG150: 0.35 | AH150: 0.35 | AI150: 0.35 | AJ150: 0.35 | AK150: 0.35 | AL150: 0.35 | AM150: 0.35 | AN150: 0.35 | AO150: =AO99-AO148 -> 0.35 | AP150: 0.35 | AQ150: 0.35 | AR150: 0.35 | AS150: 0.35 | AT150: 0.35 | AU150: 0.35 | AV150: 0.35 | AW150: 0.35 | AX150: 0.35 | AY150: 0.35 | AZ150: 0.35 | BA150: 0.35 | BB150: 0.35 | BC150: 0.35 | BD150: 0.35 | BE150: 0.35 | BF150: 0.35 | BG150: 0.35 | BH150: 0.35 | BI150: Dropout
H151: Power dissipated | I151: =(I99-I148)*Iout_V5P -> 0.02625 | J151: 0.02625 | K151: 0.02625 | L151: 0.02625 | M151: 0.02625 | N151: 0.02625 | O151: 0.02625 | P151: 0.02625 | Q151: 0.02625 | R151: 0.02625 | S151: 0.02625 | T151: 0.02625 | U151: 0.02625 | V151: 0.02625 | W151: 0.02625 | X151: 0.02625 | Y151: 0.02625 | Z151: 0.02625 | AA151: 0.02625 | AB151: 0.02625 | AC151: 0.02625 | AD151: 0.02625 | AE151: 0.02625 | AF151: 0.02625 | AG151: 0.02625 | AH151: 0.02625 | AI151: 0.02625 | AJ151: 0.02625 | AK151: 0.02625 | AL151: 0.02625 | AM151: 0.02625 | AN151: 0.02625 | AO151: =(AO99-AO148)*Iout_V5P -> 0.02625 | AP151: 0.02625 | AQ151: 0.02625 | AR151: 0.02625 | AS151: 0.02625 | AT151: 0.02625 | AU151: 0.02625 | AV151: 0.02625 | AW151: 0.02625 | AX151: 0.02625 | AY151: 0.02625 | AZ151: 0.02625 | BA151: 0.02625 | BB151: 0.02625 | BC151: 0.02625 | BD151: 0.02625 | BE151: 0.02625 | BF151: 0.02625 | BG151: 0.02625 | BH151: 0.02625 | BI151: Power dissipated
G152: Buck Diode | H152: Tj Diode | I152: =I155*RTHavg_Vd+Ta -> 143.3844865 | J152: =J155*RTHavg_Vd+Ta -> 127.7349918 | K152: 129.0006879 | L152: 130.1649536 | M152: 131.2394605 | N152: 132.2341628 | O152: 133.1967792 | P152: 134.0536481 | Q152: 134.853273 | R152: 135.6011878 | S152: 136.3022375 | T152: 136.9606817 | U152: 137.5802801 | V152: 138.164364 | W152: 138.715895 | X152: 139.2375151 | Y152: 139.7315884 | Z152: 140.2002368 | AA152: 140.6453702 | AB152: 141.068712 | AC152: 141.4718217 | AD152: 141.8561136 | AE152: 142.2228732 | AF152: 142.573272 | AG152: 142.9083794 | AH152: 143.2291737 | AI152: 143.5365515 | AJ152: 143.8313363 | AK152: 144.1142855 | AL152: 144.3860972 | AM152: 144.6474156 | AN152: 144.8988361 | AO152: 145.1409102 | AP152: =AP155*RTHavg_Vd+Ta -> 145.3741489 | AQ152: 145.5990269 | AR152: 145.8159855 | AS152: 146.0254353 | AT152: 146.2277593 | AU152: 146.4233147 | AV152: 146.6124353 | AW152: 146.7954334 | AX152: 146.9726013 | AY152: 147.1442131 | AZ152: 147.3105258 | BA152: 147.4717812 | BB152: 147.6282062 | BC152: 147.7800145 | BD152: 147.9274075 | BE152: 148.0705749 | BF152: 148.2096957 | BG152: 148.3449391 | BH152: 153.188051 | BI152: Tj Diode
H153: I Buck Diode ON | I153: =I102-I103/2 -> 0.8306542056 | J153: 0.8306542056 | K153: 0.8306542056 | L153: 0.8306542056 | M153: 0.8306542056 | N153: 0.8306542056 | O153: 0.8306542056 | P153: 0.8306542056 | Q153: 0.8306542056 | R153: 0.8306542056 | S153: 0.8306542056 | T153: 0.8306542056 | U153: 0.8306542056 | V153: 0.8306542056 | W153: 0.8306542056 | X153: 0.8306542056 | Y153: 0.8306542056 | Z153: 0.8306542056 | AA153: 0.8306542056 | AB153: 0.8306542056 | AC153: 0.8306542056 | AD153: 0.8306542056 | AE153: 0.8306542056 | AF153: 0.8306542056 | AG153: 0.8306542056 | AH153: 0.8306542056 | AI153: 0.8306542056 | AJ153: 0.8306542056 | AK153: 0.8306542056 | AL153: 0.8306542056 | AM153: 0.8306542056 | AN153: 0.8306542056 | AO153: =AO102-AO103/2 -> 0.8306542056 | AP153: 0.8306542056 | AQ153: 0.8306542056 | AR153: 0.8306542056 | AS153: 0.8306542056 | AT153: 0.8306542056 | AU153: 0.8306542056 | AV153: 0.8306542056 | AW153: 0.8306542056 | AX153: 0.8306542056 | AY153: 0.8306542056 | AZ153: 0.8306542056 | BA153: 0.8306542056 | BB153: 0.8306542056 | BC153: 0.8306542056 | BD153: 0.8306542056 | BE153: 0.8306542056 | BF153: 0.8306542056 | BG153: 0.8306542056 | BH153: 0.8306542056 | BI153: I Buck Diode ON
H154: Vf buck diode | I154: =IF(I153<I_Vd1,Vd_1+(I152-25)*vd_temp_coeff/1000,IF(I153=0,0,IF(Reset=1,0.45,FORECAST(I153, OFFSET(Vd_1:Vd_3,MATCH(I153,I_Vd1:I_Vd3,1)-1,0,2), OFFSET(I_Vd1:I_Vd3,MATCH(I153,I_Vd1:I_Vd3,1)-1,0,2))+(I152-25)*vd_temp_coeff/1000))) -> 0.3476171208 | J154: =IF(J153<I_Vd1,Vd_1+(J152-25)*vd_temp_coeff/1000,IF(J153=0,0,IF(Reset=1,0.45,FORECAST(J153, OFFSET(Vd_1:Vd_3,MATCH(J153,I_Vd1:I_Vd3,1)-1,0,2), OFFSET(I_Vd1:I_Vd3,MATCH(J153,I_Vd1:I_Vd3,1)-1,0,2))+(J152-25)*vd_temp_coeff/1000))) -> 0.3663965145 | K154: =IF(K153<I_Vd1,Vd_1+(K152-25)*vd_temp_coeff/1000,IF(K153=0,0,IF(Reset=1,0.45,FORECAST(K153, OFFSET(Vd_1:Vd_3,MATCH(K153,I_Vd1:I_Vd3,1)-1,0,2), OFFSET(I_Vd1:I_Vd3,MATCH(K153,I_Vd1:I_Vd3,1)-1,0,2))+(K152-25)*vd_temp_coeff/1000))) -> 0.3648776791 | L154: =IF(L153<I_Vd1,Vd_1+(L152-25)*vd_temp_coeff/1000,IF(L153=0,0,IF(Reset=1,0.45,FORECAST(L153, OFFSET(Vd_1:Vd_3,MATCH(L153,I_Vd1:I_Vd3,1)-1,0,2), OFFSET(I_Vd1:I_Vd3,MATCH(L153,I_Vd1:I_Vd3,1)-1,0,2))+(L152-25)*vd_temp_coeff/1000))) -> 0.3634805604 | M154: =IF(M153<I_Vd1,Vd_1+(M152-25)*vd_temp_coeff/1000,IF(M153=0,0,IF(Reset=1,0.45,FORECAST(M153, OFFSET(Vd_1:Vd_3,MATCH(M153,I_Vd1:I_Vd3,1)-1,0,2), OFFSET(I_Vd1:I_Vd3,MATCH(M153,I_Vd1:I_Vd3,1)-1,0,2))+(M152-25)*vd_temp_coeff/1000))) -> 0.3621911521 | N154: =IF(N153<I_Vd1,Vd_1+(N152-25)*vd_temp_coeff/1000,IF(N153=0,0,IF(Reset=1,0.45,FORECAST(N153, OFFSET(Vd_1:Vd_3,MATCH(N153,I_Vd1:I_Vd3,1)-1,0,2), OFFSET(I_Vd1:I_Vd3,MATCH(N153,I_Vd1:I_Vd3,1)-1,0,2))+(N152-25)*vd_temp_coeff/1000))) -> 0.3609975093 | O154: =IF(O153<I_Vd1,Vd_1+(O152-25)*vd_temp_coeff/1000,IF(O153=0,0,IF(Reset=1,0.45,FORECAST(O153, OFFSET(Vd_1:Vd_3,MATCH(O153,I_Vd1:I_Vd3,1)-1,0,2), OFFSET(I_Vd1:I_Vd3,MATCH(O153,I_Vd1:I_Vd3,1)-1,0,2))+(O152-25)*vd_temp_coeff/1000))) -> 0.3598423696 | P154: =IF(P153<I_Vd1,Vd_1+(P152-25)*vd_temp_coeff/1000,IF(P153=0,0,IF(Reset=1,0.45,FORECAST(P153, OFFSET(Vd_1:Vd_3,MATCH(P153,I_Vd1:I_Vd3,1)-1,0,2), OFFSET(I_Vd1:I_Vd3,MATCH(P153,I_Vd1:I_Vd3,1)-1,0,2))+(P152-25)*vd_temp_coeff/1000))) -> 0.358814127 | Q154: =IF(Q153<I_Vd1,Vd_1+(Q152-25)*vd_temp_coeff/1000,IF(Q153=0,0,IF(Reset=1,0.45,FORECAST(Q153, OFFSET(Vd_1:Vd_3,MATCH(Q153,I_Vd1:I_Vd3,1)-1,0,2), OFFSET(I_Vd1:I_Vd3,MATCH(Q153,I_Vd1:I_Vd3,1)-1,0,2))+(Q152-25)*vd_temp_coeff/1000))) -> 0.3578545771 | R154: =IF(R153<I_Vd1,Vd_1+(R152-25)*vd_temp_coeff/1000,IF(R153=0,0,IF(Reset=1,0.45,FORECAST(R153, OFFSET(Vd_1:Vd_3,MATCH(R153,I_Vd1:I_Vd3,1)-1,0,2), OFFSET(I_Vd1:I_Vd3,MATCH(R153,I_Vd1:I_Vd3,1)-1,0,2))+(R152-25)*vd_temp_coeff/1000))) -> 0.3569570793 | S154: =IF(S153<I_Vd1,Vd_1+(S152-25)*vd_temp_coeff/1000,IF(S153=0,0,IF(Reset=1,0.45,FORECAST(S153, OFFSET(Vd_1:Vd_3,MATCH(S153,I_Vd1:I_Vd3,1)-1,0,2), OFFSET(I_Vd1:I_Vd3,MATCH(S153,I_Vd1:I_Vd3,1)-1,0,2))+(S152-25)*vd_temp_coeff/1000))) -> 0.3561158197 | T154: =IF(T153<I_Vd1,Vd_1+(T152-25)*vd_temp_coeff/1000,IF(T153=0,0,IF(Reset=1,0.45,FORECAST(T153, OFFSET(Vd_1:Vd_3,MATCH(T153,I_Vd1:I_Vd3,1)-1,0,2), OFFSET(I_Vd1:I_Vd3,MATCH(T153,I_Vd1:I_Vd3,1)-1,0,2))+(T152-25)*vd_temp_coeff/1000))) -> 0.3553256867 | U154: =IF(U153<I_Vd1,Vd_1+(U152-25)*vd_temp_coeff/1000,IF(U153=0,0,IF(Reset=1,0.45,FORECAST(U153, OFFSET(Vd_1:Vd_3,MATCH(U153,I_Vd1:I_Vd3,1)-1,0,2), OFFSET(I_Vd1:I_Vd3,MATCH(U153,I_Vd1:I_Vd3,1)-1,0,2))+(U152-25)*vd_temp_coeff/1000))) -> 0.3545821685 | V154: =IF(V153<I_Vd1,Vd_1+(V152-25)*vd_temp_coeff/1000,IF(V153=0,0,IF(Reset=1,0.45,FORECAST(V153, OFFSET(Vd_1:Vd_3,MATCH(V153,I_Vd1:I_Vd3,1)-1,0,2), OFFSET(I_Vd1:I_Vd3,MATCH(V153,I_Vd1:I_Vd3,1)-1,0,2))+(V152-25)*vd_temp_coeff/1000))) -> 0.3538812679 | W154: =IF(W153<I_Vd1,Vd_1+(W152-25)*vd_temp_coeff/1000,IF(W153=0,0,IF(Reset=1,0.45,FORECAST(W153, OFFSET(Vd_1:Vd_3,MATCH(W153,I_Vd1:I_Vd3,1)-1,0,2), OFFSET(I_Vd1:I_Vd3,MATCH(W153,I_Vd1:I_Vd3,1)-1,0,2))+(W152-25)*vd_temp_coeff/1000))) -> 0.3532194307 | X154: =IF(X153<I_Vd1,Vd_1+(X152-25)*vd_temp_coeff/1000,IF(X153=0,0,IF(Reset=1,0.45,FORECAST(X153, OFFSET(Vd_1:Vd_3,MATCH(X153,I_Vd1:I_Vd3,1)-1,0,2), OFFSET(I_Vd1:I_Vd3,MATCH(X153,I_Vd1:I_Vd3,1)-1,0,2))+(X152-25)*vd_temp_coeff/1000))) -> 0.3525934866 | Y154: =IF(Y153<I_Vd1,Vd_1+(Y152-25)*vd_temp_coeff/1000,IF(Y153=0,0,IF(Reset=1,0.45,FORECAST(Y153, OFFSET(Vd_1:Vd_3,MATCH(Y153,I_Vd1:I_Vd3,1)-1,0,2), OFFSET(I_Vd1:I_Vd3,MATCH(Y153,I_Vd1:I_Vd3,1)-1,0,2))+(Y152-25)*vd_temp_coeff/1000))) -> 0.3520005986 | Z154: =IF(Z153<I_Vd1,Vd_1+(Z152-25)*vd_temp_coeff/1000,IF(Z153=0,0,IF(Reset=1,0.45,FORECAST(Z153, OFFSET(Vd_1:Vd_3,MATCH(Z153,I_Vd1:I_Vd3,1)-1,0,2), OFFSET(I_Vd1:I_Vd3,MATCH(Z153,I_Vd1:I_Vd3,1)-1,0,2))+(Z152-25)*vd_temp_coeff/1000))) -> 0.3514382205 | AA154: =IF(AA153<I_Vd1,Vd_1+(AA152-25)*vd_temp_coeff/1000,IF(AA153=0,0,IF(Reset=1,0.45,FORECAST(AA153, OFFSET(Vd_1:Vd_3,MATCH(AA153,I_Vd1:I_Vd3,1)-1,0,2), OFFSET(I_Vd1:I_Vd3,MATCH(AA153,I_Vd1:I_Vd3,1)-1,0,2))+(AA152-25)*vd_temp_coeff/1000))) -> 0.3509040604 | AB154: =IF(AB153<I_Vd1,Vd_1+(AB152-25)*vd_temp_coeff/1000,IF(AB153=0,0,IF(Reset=1,0.45,FORECAST(AB153, OFFSET(Vd_1:Vd_3,MATCH(AB153,I_Vd1:I_Vd3,1)-1,0,2), OFFSET(I_Vd1:I_Vd3,MATCH(AB153,I_Vd1:I_Vd3,1)-1,0,2))+(AB152-25)*vd_temp_coeff/1000))) -> 0.3503960502 | AC154: =IF(AC153<I_Vd1,Vd_1+(AC152-25)*vd_temp_coeff/1000,IF(AC153=0,0,IF(Reset=1,0.45,FORECAST(AC153, OFFSET(Vd_1:Vd_3,MATCH(AC153,I_Vd1:I_Vd3,1)-1,0,2), OFFSET(I_Vd1:I_Vd3,MATCH(AC153,I_Vd1:I_Vd3,1)-1,0,2))+(AC152-25)*vd_temp_coeff/1000))) -> 0.3499123186 | AD154: =IF(AD153<I_Vd1,Vd_1+(AD152-25)*vd_temp_coeff/1000,IF(AD153=0,0,IF(Reset=1,0.45,FORECAST(AD153, OFFSET(Vd_1:Vd_3,MATCH(AD153,I_Vd1:I_Vd3,1)-1,0,2), OFFSET(I_Vd1:I_Vd3,MATCH(AD153,I_Vd1:I_Vd3,1)-1,0,2))+(AD152-25)*vd_temp_coeff/1000))) -> 0.3494511684 | AE154: =IF(AE153<I_Vd1,Vd_1+(AE152-25)*vd_temp_coeff/1000,IF(AE153=0,0,IF(Reset=1,0.45,FORECAST(AE153, OFFSET(Vd_1:Vd_3,MATCH(AE153,I_Vd1:I_Vd3,1)-1,0,2), OFFSET(I_Vd1:I_Vd3,MATCH(AE153,I_Vd1:I_Vd3,1)-1,0,2))+(AE152-25)*vd_temp_coeff/1000))) -> 0.3490110568 | AF154: =IF(AF153<I_Vd1,Vd_1+(AF152-25)*vd_temp_coeff/1000,IF(AF153=0,0,IF(Reset=1,0.45,FORECAST(AF153, OFFSET(Vd_1:Vd_3,MATCH(AF153,I_Vd1:I_Vd3,1)-1,0,2), OFFSET(I_Vd1:I_Vd3,MATCH(AF153,I_Vd1:I_Vd3,1)-1,0,2))+(AF152-25)*vd_temp_coeff/1000))) -> 0.3485905782 | AG154: =IF(AG153<I_Vd1,Vd_1+(AG152-25)*vd_temp_coeff/1000,IF(AG153=0,0,IF(Reset=1,0.45,FORECAST(AG153, OFFSET(Vd_1:Vd_3,MATCH(AG153,I_Vd1:I_Vd3,1)-1,0,2), OFFSET(I_Vd1:I_Vd3,MATCH(AG153,I_Vd1:I_Vd3,1)-1,0,2))+(AG152-25)*vd_temp_coeff/1000))) -> 0.3481884494 | AH154: =IF(AH153<I_Vd1,Vd_1+(AH152-25)*vd_temp_coeff/1000,IF(AH153=0,0,IF(Reset=1,0.45,FORECAST(AH153, OFFSET(Vd_1:Vd_3,MATCH(AH153,I_Vd1:I_Vd3,1)-1,0,2), OFFSET(I_Vd1:I_Vd3,MATCH(AH153,I_Vd1:I_Vd3,1)-1,0,2))+(AH152-25)*vd_temp_coeff/1000))) -> 0.3478034963 | AI154: =IF(AI153<I_Vd1,Vd_1+(AI152-25)*vd_temp_coeff/1000,IF(AI153=0,0,IF(Reset=1,0.45,FORECAST(AI153, OFFSET(Vd_1:Vd_3,MATCH(AI153,I_Vd1:I_Vd3,1)-1,0,2), OFFSET(I_Vd1:I_Vd3,MATCH(AI153,I_Vd1:I_Vd3,1)-1,0,2))+(AI152-25)*vd_temp_coeff/1000))) -> 0.3474346429 | AJ154: =IF(AJ153<I_Vd1,Vd_1+(AJ152-25)*vd_temp_coeff/1000,IF(AJ153=0,0,IF(Reset=1,0.45,FORECAST(AJ153, OFFSET(Vd_1:Vd_3,MATCH(AJ153,I_Vd1:I_Vd3,1)-1,0,2), OFFSET(I_Vd1:I_Vd3,MATCH(AJ153,I_Vd1:I_Vd3,1)-1,0,2))+(AJ152-25)*vd_temp_coeff/1000))) -> 0.3470809011 | AK154: =IF(AK153<I_Vd1,Vd_1+(AK152-25)*vd_temp_coeff/1000,IF(AK153=0,0,IF(Reset=1,0.45,FORECAST(AK153, OFFSET(Vd_1:Vd_3,MATCH(AK153,I_Vd1:I_Vd3,1)-1,0,2), OFFSET(I_Vd1:I_Vd3,MATCH(AK153,I_Vd1:I_Vd3,1)-1,0,2))+(AK152-25)*vd_temp_coeff/1000))) -> 0.346741362 | AL154: =IF(AL153<I_Vd1,Vd_1+(AL152-25)*vd_temp_coeff/1000,IF(AL153=0,0,IF(Reset=1,0.45,FORECAST(AL153, OFFSET(Vd_1:Vd_3,MATCH(AL153,I_Vd1:I_Vd3,1)-1,0,2), OFFSET(I_Vd1:I_Vd3,MATCH(AL153,I_Vd1:I_Vd3,1)-1,0,2))+(AL152-25)*vd_temp_coeff/1000))) -> 0.346415188 | AM154: =IF(AM153<I_Vd1,Vd_1+(AM152-25)*vd_temp_coeff/1000,IF(AM153=0,0,IF(Reset=1,0.45,FORECAST(AM153, OFFSET(Vd_1:Vd_3,MATCH(AM153,I_Vd1:I_Vd3,1)-1,0,2), OFFSET(I_Vd1:I_Vd3,MATCH(AM153,I_Vd1:I_Vd3,1)-1,0,2))+(AM152-25)*vd_temp_coeff/1000))) -> 0.346101606 | AN154: =IF(AN153<I_Vd1,Vd_1+(AN152-25)*vd_temp_coeff/1000,IF(AN153=0,0,IF(Reset=1,0.45,FORECAST(AN153, OFFSET(Vd_1:Vd_3,MATCH(AN153,I_Vd1:I_Vd3,1)-1,0,2), OFFSET(I_Vd1:I_Vd3,MATCH(AN153,I_Vd1:I_Vd3,1)-1,0,2))+(AN152-25)*vd_temp_coeff/1000))) -> 0.3457999013 | AO154: =IF(AO153<I_Vd1,Vd_1+(AO152-25)*vd_temp_coeff/1000,IF(AO153=0,0,IF(Reset=1,0.45,FORECAST(AO153, OFFSET(Vd_1:Vd_3,MATCH(AO153,I_Vd1:I_Vd3,1)-1,0,2), OFFSET(I_Vd1:I_Vd3,MATCH(AO153,I_Vd1:I_Vd3,1)-1,0,2))+(AO152-25)*vd_temp_coeff/1000))) -> 0.3455094125 | AP154: =IF(AP153<I_Vd1,Vd_1+(AP152-25)*vd_temp_coeff/1000,IF(AP153=0,0,IF(Reset=1,0.45,FORECAST(AP153, OFFSET(Vd_1:Vd_3,MATCH(AP153,I_Vd1:I_Vd3,1)-1,0,2), OFFSET(I_Vd1:I_Vd3,MATCH(AP153,I_Vd1:I_Vd3,1)-1,0,2))+(AP152-25)*vd_temp_coeff/1000))) -> 0.345229526 | AQ154: =IF(AQ153<I_Vd1,Vd_1+(AQ152-25)*vd_temp_coeff/1000,IF(AQ153=0,0,IF(Reset=1,0.45,FORECAST(AQ153, OFFSET(Vd_1:Vd_3,MATCH(AQ153,I_Vd1:I_Vd3,1)-1,0,2), OFFSET(I_Vd1:I_Vd3,MATCH(AQ153,I_Vd1:I_Vd3,1)-1,0,2))+(AQ152-25)*vd_temp_coeff/1000))) -> 0.3449596723 | AR154: =IF(AR153<I_Vd1,Vd_1+(AR152-25)*vd_temp_coeff/1000,IF(AR153=0,0,IF(Reset=1,0.45,FORECAST(AR153, OFFSET(Vd_1:Vd_3,MATCH(AR153,I_Vd1:I_Vd3,1)-1,0,2), OFFSET(I_Vd1:I_Vd3,MATCH(AR153,I_Vd1:I_Vd3,1)-1,0,2))+(AR152-25)*vd_temp_coeff/1000))) -> 0.3446993221 | AS154: =IF(AS153<I_Vd1,Vd_1+(AS152-25)*vd_temp_coeff/1000,IF(AS153=0,0,IF(Reset=1,0.45,FORECAST(AS153, OFFSET(Vd_1:Vd_3,MATCH(AS153,I_Vd1:I_Vd3,1)-1,0,2), OFFSET(I_Vd1:I_Vd3,MATCH(AS153,I_Vd1:I_Vd3,1)-1,0,2))+(AS152-25)*vd_temp_coeff/1000))) -> 0.3444479823 | AT154: =IF(AT153<I_Vd1,Vd_1+(AT152-25)*vd_temp_coeff/1000,IF(AT153=0,0,IF(Reset=1,0.45,FORECAST(AT153, OFFSET(Vd_1:Vd_3,MATCH(AT153,I_Vd1:I_Vd3,1)-1,0,2), OFFSET(I_Vd1:I_Vd3,MATCH(AT153,I_Vd1:I_Vd3,1)-1,0,2))+(AT152-25)*vd_temp_coeff/1000))) -> 0.3442051935 | AU154: =IF(AU153<I_Vd1,Vd_1+(AU152-25)*vd_temp_coeff/1000,IF(AU153=0,0,IF(Reset=1,0.45,FORECAST(AU153, OFFSET(Vd_1:Vd_3,MATCH(AU153,I_Vd1:I_Vd3,1)-1,0,2), OFFSET(I_Vd1:I_Vd3,MATCH(AU153,I_Vd1:I_Vd3,1)-1,0,2))+(AU152-25)*vd_temp_coeff/1000))) -> 0.343970527 | AV154: =IF(AV153<I_Vd1,Vd_1+(AV152-25)*vd_temp_coeff/1000,IF(AV153=0,0,IF(Reset=1,0.45,FORECAST(AV153, OFFSET(Vd_1:Vd_3,MATCH(AV153,I_Vd1:I_Vd3,1)-1,0,2), OFFSET(I_Vd1:I_Vd3,MATCH(AV153,I_Vd1:I_Vd3,1)-1,0,2))+(AV152-25)*vd_temp_coeff/1000))) -> 0.3437435823 | AW154: =IF(AW153<I_Vd1,Vd_1+(AW152-25)*vd_temp_coeff/1000,IF(AW153=0,0,IF(Reset=1,0.45,FORECAST(AW153, OFFSET(Vd_1:Vd_3,MATCH(AW153,I_Vd1:I_Vd3,1)-1,0,2), OFFSET(I_Vd1:I_Vd3,MATCH(AW153,I_Vd1:I_Vd3,1)-1,0,2))+(AW152-25)*vd_temp_coeff/1000))) -> 0.3435239846 | AX154: =IF(AX153<I_Vd1,Vd_1+(AX152-25)*vd_temp_coeff/1000,IF(AX153=0,0,IF(Reset=1,0.45,FORECAST(AX153, OFFSET(Vd_1:Vd_3,MATCH(AX153,I_Vd1:I_Vd3,1)-1,0,2), OFFSET(I_Vd1:I_Vd3,MATCH(AX153,I_Vd1:I_Vd3,1)-1,0,2))+(AX152-25)*vd_temp_coeff/1000))) -> 0.3433113831 | AY154: =IF(AY153<I_Vd1,Vd_1+(AY152-25)*vd_temp_coeff/1000,IF(AY153=0,0,IF(Reset=1,0.45,FORECAST(AY153, OFFSET(Vd_1:Vd_3,MATCH(AY153,I_Vd1:I_Vd3,1)-1,0,2), OFFSET(I_Vd1:I_Vd3,MATCH(AY153,I_Vd1:I_Vd3,1)-1,0,2))+(AY152-25)*vd_temp_coeff/1000))) -> 0.343105449 | AZ154: =IF(AZ153<I_Vd1,Vd_1+(AZ152-25)*vd_temp_coeff/1000,IF(AZ153=0,0,IF(Reset=1,0.45,FORECAST(AZ153, OFFSET(Vd_1:Vd_3,MATCH(AZ153,I_Vd1:I_Vd3,1)-1,0,2), OFFSET(I_Vd1:I_Vd3,MATCH(AZ153,I_Vd1:I_Vd3,1)-1,0,2))+(AZ152-25)*vd_temp_coeff/1000))) -> 0.3429058737 | BA154: =IF(BA153<I_Vd1,Vd_1+(BA152-25)*vd_temp_coeff/1000,IF(BA153=0,0,IF(Reset=1,0.45,FORECAST(BA153, OFFSET(Vd_1:Vd_3,MATCH(BA153,I_Vd1:I_Vd3,1)-1,0,2), OFFSET(I_Vd1:I_Vd3,MATCH(BA153,I_Vd1:I_Vd3,1)-1,0,2))+(BA152-25)*vd_temp_coeff/1000))) -> 0.3427123672 | BB154: =IF(BB153<I_Vd1,Vd_1+(BB152-25)*vd_temp_coeff/1000,IF(BB153=0,0,IF(Reset=1,0.45,FORECAST(BB153, OFFSET(Vd_1:Vd_3,MATCH(BB153,I_Vd1:I_Vd3,1)-1,0,2), OFFSET(I_Vd1:I_Vd3,MATCH(BB153,I_Vd1:I_Vd3,1)-1,0,2))+(BB152-25)*vd_temp_coeff/1000))) -> 0.3425246572 | BC154: =IF(BC153<I_Vd1,Vd_1+(BC152-25)*vd_temp_coeff/1000,IF(BC153=0,0,IF(Reset=1,0.45,FORECAST(BC153, OFFSET(Vd_1:Vd_3,MATCH(BC153,I_Vd1:I_Vd3,1)-1,0,2), OFFSET(I_Vd1:I_Vd3,MATCH(BC153,I_Vd1:I_Vd3,1)-1,0,2))+(BC152-25)*vd_temp_coeff/1000))) -> 0.3423424872 | BD154: =IF(BD153<I_Vd1,Vd_1+(BD152-25)*vd_temp_coeff/1000,IF(BD153=0,0,IF(Reset=1,0.45,FORECAST(BD153, OFFSET(Vd_1:Vd_3,MATCH(BD153,I_Vd1:I_Vd3,1)-1,0,2), OFFSET(I_Vd1:I_Vd3,MATCH(BD153,I_Vd1:I_Vd3,1)-1,0,2))+(BD152-25)*vd_temp_coeff/1000))) -> 0.3421656156 | BE154: =IF(BE153<I_Vd1,Vd_1+(BE152-25)*vd_temp_coeff/1000,IF(BE153=0,0,IF(Reset=1,0.45,FORECAST(BE153, OFFSET(Vd_1:Vd_3,MATCH(BE153,I_Vd1:I_Vd3,1)-1,0,2), OFFSET(I_Vd1:I_Vd3,MATCH(BE153,I_Vd1:I_Vd3,1)-1,0,2))+(BE152-25)*vd_temp_coeff/1000))) -> 0.3419938148 | BF154: =IF(BF153<I_Vd1,Vd_1+(BF152-25)*vd_temp_coeff/1000,IF(BF153=0,0,IF(Reset=1,0.45,FORECAST(BF153, OFFSET(Vd_1:Vd_3,MATCH(BF153,I_Vd1:I_Vd3,1)-1,0,2), OFFSET(I_Vd1:I_Vd3,MATCH(BF153,I_Vd1:I_Vd3,1)-1,0,2))+(BF152-25)*vd_temp_coeff/1000))) -> 0.3418268698 | BG154: =IF(BG153<I_Vd1,Vd_1+(BG152-25)*vd_temp_coeff/1000,IF(BG153=0,0,IF(Reset=1,0.45,FORECAST(BG153, OFFSET(Vd_1:Vd_3,MATCH(BG153,I_Vd1:I_Vd3,1)-1,0,2), OFFSET(I_Vd1:I_Vd3,MATCH(BG153,I_Vd1:I_Vd3,1)-1,0,2))+(BG152-25)*vd_temp_coeff/1000))) -> 0.3416645778 | BH154: =IF(BH153<I_Vd1,Vd_1+(BH152-25)*vd_temp_coeff/1000,IF(BH153=0,0,IF(Reset=1,0.45,FORECAST(BH153, OFFSET(Vd_1:Vd_3,MATCH(BH153,I_Vd1:I_Vd3,1)-1,0,2), OFFSET(I_Vd1:I_Vd3,MATCH(BH153,I_Vd1:I_Vd3,1)-1,0,2))+(BH152-25)*vd_temp_coeff/1000))) -> 0.3358528435 | BI154: Vf buck diode
H155: Pdiss buck diode | I155: =I154*I106 -> 0.1532040544 | J155: 0.02279159832 | K155: 0.03333906623 | L155: 0.04304127989 | M155: 0.05199550397 | N155: 0.06028469004 | O155: 0.06830649331 | P155: 0.07544706737 | Q155: 0.08211060805 | R155: 0.08834323167 | S155: 0.09418531253 | T155: 0.09967234719 | U155: 0.1048356677 | V155: 0.1097030334 | W155: 0.114299125 | X155: 0.1186459589 | Y155: 0.1227632365 | Z155: 0.1266686402 | AA155: 0.130378085 | AB155: 0.1339059337 | AC155: 0.1372651811 | AD155: 0.1404676131 | AE155: 0.1435239436 | AF155: 0.1464439337 | AG155: 0.1492364952 | AH155: 0.1519097805 | AI155: 0.1544712622 | AJ155: 0.1569278023 | AK155: 0.1592857128 | AL155: 0.1615508103 | AM155: 0.1637284633 | AN155: 0.1658236344 | AO155: =AO154*AO106 -> 0.1678409181 | AP155: 0.1697845742 | AQ155: 0.1716585578 | AR155: 0.1734665458 | AS155: 0.1752119612 | AT155: 0.1768979944 | AU155: 0.1785276226 | AV155: 0.1801036278 | AW155: 0.1816286117 | AX155: 0.1831050108 | AY155: 0.1845351088 | AZ155: 0.1859210486 | BA155: 0.1872648432 | BB155: 0.1885683849 | BC155: 0.1898334545 | BD155: 0.1910617294 | BE155: 0.1922547909 | BF155: 0.1934141311 | BG155: 0.1945411589 | BH155: 0.2349004248 | BI155: Pdiss buck diode
H156: Pout | I156: =I99*Iout_PreReg -> 4.444 | J156: 4.444 | K156: 4.444 | L156: 4.444 | M156: 4.444 | N156: 4.444 | O156: 4.444 | P156: 4.444 | Q156: 4.444 | R156: 4.444 | S156: 4.444 | T156: 4.444 | U156: 4.444 | V156: 4.444 | W156: 4.444 | X156: 4.444 | Y156: 4.444 | Z156: 4.444 | AA156: 4.444 | AB156: 4.444 | AC156: 4.444 | AD156: 4.444 | AE156: 4.444 | AF156: 4.444 | AG156: 4.444 | AH156: 4.444 | AI156: 4.444 | AJ156: 4.444 | AK156: 4.444 | AL156: 4.444 | AM156: 4.444 | AN156: 4.444 | AO156: =AO99*Iout_PreReg -> 4.444 | AP156: 4.444 | AQ156: 4.444 | AR156: 4.444 | AS156: 4.444 | AT156: 4.444 | AU156: 4.444 | AV156: 4.444 | AW156: 4.444 | AX156: 4.444 | AY156: 4.444 | AZ156: 4.444 | BA156: 4.444 | BB156: 4.444 | BC156: 4.444 | BD156: 4.444 | BE156: 4.444 | BF156: 4.444 | BG156: 4.444 | BH156: 4.444
H157: P loss | I157: =I88+I155+I104*dcr*10^-3 -> 0.6478909806 | J157: 0.4190972584 | K157: 0.4296165822 | L157: 0.4398068985 | M157: 0.449727498 | N157: 0.4594289235 | O157: 0.4622074083 | P157: 0.4718007257 | Q157: 0.4812754834 | R157: 0.4906609173 | S157: 0.4999825848 | T157: 0.5092629196 | U157: 0.5185216895 | V157: 0.5277763767 | W157: 0.5370424961 | X157: 0.5463338612 | Y157: 0.5556628091 | Z157: 0.5650403909 | AA157: 0.5744765333 | AB157: 0.5839801769 | AC157: 0.5935593946 | AD157: 0.6032214936 | AE157: 0.6129731032 | AF157: 0.6228202511 | AG157: 0.6327684295 | AH157: 0.642822653 | AI157: 0.6529875089 | AJ157: 0.6632672013 | AK157: 0.6736655904 | AL157: 0.6841862263 | AM157: 0.6948323797 | AN157: 0.7056070684 | AO157: =AO88+AO155+AO104*dcr*10^-3 -> 0.716513081 | AP157: 0.7275529986 | AQ157: 0.7387292133 | AR157: 0.7500439451 | AS157: 0.7614992569 | AT157: 0.7730970685 | AU157: 0.7848391682 | AV157: 0.7967272242 | AW157: 0.8087627942 | AX157: 0.8209473346 | AY157: 0.8332822084 | AZ157: 0.8457686925 | BA157: 0.8584079844 | BB157: 0.8712012084 | BC157: 0.8841494207 | BD157: 0.8972536149 | BE157: 0.9105147264 | BF157: 0.9239336362 | BG157: 0.9375111756 | BH157: 1.429308586
H158: Efficiency | I158: =I156/(I156+I157) -> 0.8727602411 | J158: =J156/(J156+J157) -> 0.9138209178 | K158: 0.9118485061 | L158: 0.909945887 | M158: 0.9081012381 | N158: 0.9063045614 | O158: 0.9057913028 | P158: 0.9040236267 | Q158: 0.9022845554 | R158: 0.9005684635 | S158: 0.8988704802 | T158: 0.8971863743 | U158: 0.8955124588 | V158: 0.8938455118 | W158: 0.8921827114 | X158: 0.890521581 | Y158: 0.8888599431 | Z158: 0.8871958805 | AA158: 0.8855277036 | AB158: 0.8838539222 | AC158: 0.8821732216 | AD158: 0.8804844419 | AE158: 0.8787865605 | AF158: 0.8770786765 | AG158: 0.8753599975 | AH158: 0.8736298281 | AI158: 0.8718875595 | AJ158: 0.8701326609 | AK158: 0.8683646716 | AL158: 0.8665831941 | AM158: 0.8647878879 | AN158: 0.8629784644 | AO158: 0.8611546818 | AP158: 0.859316341 | AQ158: 0.8574632818 | AR158: 0.8555953794 | AS158: 0.8537125414 | AT158: 0.8518147049 | AU158: 0.8499018342 | AV158: 0.8479739185 | AW158: 0.8460309696 | AX158: 0.8440730206 | AY158: 0.8421001236 | AZ158: 0.8401123486 | BA158: 0.838109782 | BB158: 0.8360925252 | BC158: 0.8340606933 | BD158: 0.8320144147 | BE158: 0.8299538291 | BF158: 0.8278790874 | BG158: 0.8257903505 | BH158: 0.7566433698
R162: Minimum off time for regulation | S162: 80
L163: Vin | M163: =Vin_min -> 3.5 | N163: =Vin_max -> 18 | R163: Maximum allowed Buck duty cycle | S163: =(1/(fsw*10^3)-t_off_min*10^-9)*fsw*10^3 -> 0.84 | T163: =IF(MAX(J12:BG12)>S163,"Increase Boost Duty Cycle","OK") -> OK | W163: Lx SLEW rate | X163: 0.9
L164: Ta | M164: =Ta -> 125 | N164: =Ta -> 125 | S164: -40C | T164: 150C | U164: Ohms/C
L165: Tjmax | M165: 155 | N165: 155 | Q165: Buck Fet | R165: Vin < 5.5V | S165: =1.25*Rds_ON_min40_7V -> 0.0992475 | T165: =1.1429*Rds_ON_150_7V -> 0.205722 | U165: =(Rds_ON_150-Rds_ON_min40)/190 -> 0.0005603921053 | X165: Pre_Reg | Y165: Adj Buck
L166: Vin | M166: 2 | N166: 18 | R166: 5V ≤ Vin ≤ 7V | S166: =1.1667*Rds_ON_min40_7V -> 0.0926336466 | T166: =1.0714*Rds_ON_150_7V -> 0.192852 | U166: =(T166-S166)/190 -> 0.0005274650179 | W166: C_Vripple | X166: =ROUNDUP(2*MAX(J23:BG23)/(8*C48*fsw),0) -> 1 | Y166: =ROUNDUP(2*MAX(J44:BG44)/(8*C114*fsw),0) -> 1
L167: 5V out | M167: 4.75 | N167: 4.75 | R167: Vin > 7V | S167: =Rds_ON_150_7V*0.4411 -> 0.079398 | T167: =V175 -> 0.18 | U167: =(T167-S167)/190 -> 0.0005294842105 | W167: C Istep up | X167: =IF(Vin_min_transient>Vreg,ROUNDUP(L_buck*I_step^2/(2*V_transient*D_max_IC*(Vin_min_transient-Vreg)),0),ROUNDUP(L_buck*I_step^2/(2*V_transient*D_max_IC*(0.7)),0)) -> 43 | Y167: =IF(Vin_min_transient2>Vout_sync_buck,ROUNDUP(L_buck2*I_step2^2/(2*V_transient2*D_max_IC*(Vin_min_transient2-Vout_sync_buck)),0),ROUNDUP(L_buck2*I_step2^2/(2*V_transient2*D_max_IC*(0.7)),0)) -> 15
L168: Vin | M168: 0 | N168: 14 | Q168: 3V3 | U168: =(Rds_ON_3V3_150-Rds_ON_3V3_min40)/190 -> 0.0009247368421 | W168: C Istep down | X168: =ROUNDUP(L_buck*I_step^2/(2*V_transient*D_max_IC*Vreg),0) -> 6 | Y168: =ROUNDUP(L_buck2*I_step2^2/(2*V_transient2*D_max_IC*Vout_sync_buck),0) -> 9
L169: Max buck duty | M169: =(1/(fsw*10^3)-t_off_min*10^-9)*fsw*10^3 -> 0.84 | N169: =(1/(fsw*10^3)-t_off_min*10^-9)*fsw*10^3 -> 0.84 | Q169: V5CAN | U169: =(Rds_ON_V5CAN_150-Rds_ON_V5CAN_min40)/190 -> 0.001383157895 | W169: ESR =
W170: ESL = | X170: 1.8 | Y170: 2.8
W171: Co_tot_min | X171: =C57*C55 -> 42.5 | Y171: =C123*C121 -> 17
S173: A4411 Operating at Vin nom
T174: Vout | U174: Pdiss_max | V174: Rds_ON at 150 | W174: Rds_ON at -40
L175: Boost Duty Cycle Slope | S175: Fet Power Loss | T175: =IF(Topology="Buck",I99,Vreg) -> 5.35 | U175: =IF(Topology="Buck",I111,I33) -> 0.2734530524 | V175: 0.18 | X175: =J31 -> 0.6000957038
L176: Vin | M176: 3.5 | N176: 6.5 | S176: 3V3 LDO | T176: =IF(Topology="Buck",I112,I34) -> 3.3 | U176: =IF(Topology="Buck",I115,I36) -> 0 | V176: 0.503 | W176: 0.3273 | X176: =J4 -> 153.9757843
L177: Duty | M177: 0.58 | N177: 0.2 | P177: Icc | Q177: 0.015 | S177: V5A LDO | T177: =IF(Topology="Buck",I136,I57) -> 5 | U177: =IF(Topology="Buck",I139,I59) -> 0 | V177: 0.699 | W177: 0.2402
M178: m | N178: b | P178: Rds_On at 25°C | Q178: =Rds_ON_150/Rds_on_coeff_150 -> 0.1315897152 | S178: V5SNR LDO | T178: =IF(Topology="Buck",I140,I60) -> 5 | U178: =IF(Topology="Buck",I143,I62) -> 0.0175 | V178: 0.699 | W178: 0.2402
M179: =(M177-N177)/(M176-N176) -> -0.1266666667 | N179: =M177-M179*M176 -> 1.023333333 | P179: Thermal coeff at 150C | Q179: =(150+40)*(1.34655999666222-0.667409045393858)/0.828125/(Rds_ON_150*1000)+0.667409045393858/0.828125 -> 1.563359261 | S179: V5CAN LDO | T179: =IF(Topology="Buck",I144,I63) -> 5 | U179: =IF(Topology="Buck",I147,I65) -> 0.07 | V179: 0.503 | W179: 0.2402
S180: V5P LDO | T180: =IF(Topology="Buck",I148,I66) -> 5 | U180: =IF(Topology="Buck",I151,I68) -> 0.02625 | V180: 0.699 | W180: 0.2402
L181: Dead Time | M181: 15 | N181: ns | S181: Adj Buck Hi side | V181: 0.3
S182: Adj Buck Lo side | V182: 0.11

Sheet Control Loop1
B1: Series RC with Parallel C | E1: No feedforward C
B2: Rz | C2: =Rz -> 22.1 | D2: kΩ | E2: Cz2 | F2: 39 | G2: pF
B3: Cz | C3: =Cz -> 1.5 | D3: nF | E3: Rz2 | F3: 0 | G3: kΩ
B4: Cp | C4: =Cp -> 22 | D4: pF
E5: AVOL | F5: 60 | G5: dB
B6: Ro_EA | C6: 1300 | D6: kΩ | F6: =10^(F5/20) -> 1000 | G6: V/V
B7: Cstray | C7: 25 | D7: pF | E7: gm_EA1 | F7: 750 | G7: uA/V
E8: RFB1 | F8: =(Vreg-VFB)/VFB*RFB_2 -> 56.875 | G8: kΩ
B9: Cp +Cstray | C9: =IF(Type=RCC,Cp+Cstray,IF(Type=RCRC,Cp+Cstray,Cstray)) -> 47 | D9: pF | E9: RFB2 | F9: 10 | G9: kΩ
E10: FB Gain | F10: =RFB_2/(RFB_1+RFB_2) -> 0.1495327103
E11: VFB | F11: 0.8 | G11: V
B12: Series RC
B13: Series RC with Parallel C | E13: Ri | F13: =1/gm_POWER1 -> 0.2222222222
E14: gmPOWER1 | F14: 4.5 | G14: A/V
E15: K | F15: =Vreg/(Iout_PreReg*Ri*(1+Vreg*(m_c*(1-Vreg/Vin_nom)-0.5)/(Iout_PreReg*fsw*10^3*L_buck*10^-6))) -> 20.19787517
E16: mc | F16: =(1+Se/Sn) -> 2.047781955
B17: No feedforward C | E17: Se (Slope Comp) | F17: =0.00072*fsw+0.0425 -> 1.4825 | G17: A/us
B18: Feedforward RC | E18: Sn (Inductor) | F18: =(Vin_nom-Vreg)/L_buck -> 1.414893617 | G18: A/us
E19: wn | F19: =PI()*fsw*10^3 -> 6283185.307
B20: Calculated | E20: Qp | F20: =1/(PI()*(m_c*(1-Vreg/Vin_nom)-0.5)) -> 0.5014234694
A21: fco | B21: =VLOOKUP(MIN(A34:A133),A34:H133,2,FALSE)/1000 -> 38.53528594
A22: PM | B22: =VLOOKUP(MIN(A34:A133),A34:H133,8,FALSE) -> 66.71033927
E23: wp | F23: =(1/(Vreg/Iout_PreReg*Number_Cout*Co*10^-6)+(m_c*(1-Vreg/Vin_nom)-0.5)/(fsw*10^3*L_buck*10^-6*Number_Cout*Co*10^-6))/(1000) -> 5.242252071 | G23: Rad
E24: wz | F24: =1/(ESR*10^-3*Co*10^-6*1000) -> 39215.68627 | G24: Rad
C32: Error Amplifier | E32: Control to Output | G32: Total System | I32: Error Amp
A33: Calculated | B33: Frequency | C33: Gain | D33: Phase | E33: Gain | F33: Phase | G33: Gain | H33: Phase | I33: ZCz | J33: ZCp | K33: ZT(s) | L33: RFB1 with or without feedforward C | M33: Tv(s) | N33: 1 + s/ωP | O33: 1 + s/ωZ | P33: fp(s) | Q33: fh(s) | R33: fp(s)fh(s) | S33: Gain | T33: Phase
A34: =ABS(G34) -> 65.09138059 | B34: 100 | C34: =20*LOG(IMABS(M34)) -> 39.04721215 | D34: =IF(180/PI()*IMARGUMENT(M34)>0,180/PI()*IMARGUMENT(M34),360+180/PI()*IMARGUMENT(M34)) -> 129.0735296 | E34: =S34 -> 26.04416844 | F34: =T34 -> -6.845182547 | G34: =C34+E34 -> 65.09138059 | H34: =D34+F34 -> 122.2283471 | I34: =IMDIV(1,COMPLEX(0,2*PI()*$B34*Cz*10^-9)) -> -1061032.95394597i | J34: =IMDIV(1,COMPLEX(0,2*PI()*$B34*Cp_Cstray*10^-12)) -> -33862753.8493394i | K34: =IMDIV(IMPRODUCT(IMDIV(IMPRODUCT(J34,IMSUM(Rz*10^3,I34)),IMSUM(J34,IMSUM(Rz*10^3,I34))),Ro_EA*10^3),IMSUM(IMDIV(IMPRODUCT(J34,IMSUM(Rz*10^3,I34)),IMSUM(J34,IMSUM(Rz*10^3,I34))),Ro_EA*10^3)) -> 503642.422573691-620317.183925498i | L34: =IF($E$1="Feedforward RC",IMDIV(IMPRODUCT(IMSUM(Rz_2*10^3,IMDIV(1,COMPLEX(0,2*PI()*$B34*Cz_2*10^-12))),RFB_1*10^3),IMSUM(IMSUM(Rz_2*10^3,IMDIV(1,COMPLEX(0,2*PI()*$B34*Cz_2*10^-12))),RFB_1*10^3)),RFB_1*10^3) -> 56875 | M34: =IMPRODUCT(-gm_EA1*10^-6,K34,IMDIV(RFB_2*10^3,IMSUM(L34,RFB_2*10^3))) -> -56.4832623447131+69.5682823094017i | N34: =COMPLEX(1,2*PI()*B34*1/(1/(Vreg/Iout_PreReg*Number_Cout*Co*10^-6)+(m_c*(1-Vreg/Vin_nom)-0.5)/(fsw*10^3*L_buck*10^-6*Number_Cout*Co*10^-6))) -> 1+0.119856604032916i | O34: =COMPLEX(1,2*PI()*B34*(ESR*10^-3*Co*10^-6)) -> 1+0.0000160221225333079i | P34: =IMPRODUCT(K,IMDIV(O34,N34)) -> 19.9118679174287-2.38624525570409i | Q34: =IMDIV(1,IMSUM(COMPLEX(1,2*PI()*B34/(wn*Qp)),IMPRODUCT(COMPLEX(0,2*PI()*B34/wn),COMPLEX(0,2*PI()*B34/wn)))) -> 0.999999970226787-0.000199432224697281i | R34: =IMPRODUCT(P34,Q34) -> 19.9113914303884-2.39021625277455i | S34: =20*LOG(IMABS(R34)) -> 26.04416844 | T34: =180/PI()*IMARGUMENT(R34) -> -6.845182547
A35: =ABS(G35) -> 64.55888914 | B35: 109.7498765 | C35: =20*LOG(IMABS(M35)) -> 38.52728062 | D35: =IF(180/PI()*IMARGUMENT(M35)>0,180/PI()*IMARGUMENT(M35),360+180/PI()*IMARGUMENT(M35)) -> 126.6347997 | E35: =S35 -> 26.03160852 | F35: -7.505336682 | G35: =C35+E35 -> 64.55888914 | H35: 119.129463 | I35: =IMDIV(1,COMPLEX(0,2*PI()*$B35*Cz*10^-9)) -> -966773.710646764i | J35: -30854480.1270244i | K35: 449088.159378584-603931.048447543i | L35: 56875 | M35: =IMPRODUCT(-gm_EA1*10^-6,K35,IMDIV(RFB_2*10^3,IMSUM(L35,RFB_2*10^3))) -> -50.3650272200282+67.7305848726217i | N35: 1+0.131542474962316i | O35: 1+0.000017584259700884i | P35: =IMPRODUCT(K,IMDIV(O35,N35)) -> 19.8543732757923-2.61133823484099i | Q35: 0.999999964138059-0.000218876619519731i | R35: =IMPRODUCT(P35,Q35) -> 19.8538010028907-2.61568379929862i | S35: =20*LOG(IMABS(R35)) -> 26.03160852 | T35: =180/PI()*IMARGUMENT(R35) -> -7.505336682
A36: 63.9904934 | B36: 120.450354 | C36: 37.97396529 | D36: 124.2840651 | E36: 26.01652811 | F36: -8.227559831 | G36: 63.9904934 | H36: 116.0565053 | I36: -880888.198732913i | J36: -28113453.1510503i | K36: 397775.175247254-583465.108998193i | L36: 56875 | M36: -44.6103000277295+65.4353393269002i | N36: 1+0.144367703881042i | O36: 1+0.0000192987033138294i | P36: 19.7855601282623-2.85600609291704i | Q36: 0.999999956804166-0.000240216818548187i | R36: 19.7848732129111-2.86075879385668i | S36: 26.01652811 | T36: -8.227559831
A37: 63.38793688 | B37: 132.1941148 | C37: 37.38950393 | D37: 122.0378871 | E37: 25.99843296 | F37: -9.017185928 | G37: 63.38793688 | H37: 113.0207012 | I37: -802632.518987084i | J37: -25615931.4570346i | K37: 350224.626595381-559652.734038228i | L37: 56875 | M37: -39.2775282163045+62.7647926024182i | N37: 1+0.158443376786512i | O37: 1+0.0000211803030625446i | P37: 19.7033051953043-3.12143041188193i | Q37: 0.999999947970465-0.000263637660260621i | R37: 19.70248124354-3.12662478275645i | S37: 25.99843296 | T37: -9.017185928
A38: 62.75314271 | B38: 145.0828778 | C38: 36.7764058 | D38: 119.9097651 | E38: 25.97673691 | F38: -9.87985006 | G38: 62.75314271 | H38: 110.029915 | I38: -731328.85814819i | J38: -23340282.7068571i | K38: 306765.135156151-533270.580393409i | L38: 56875 | M38: -34.4035665595684+59.8060463992609i | N38: 1+0.173891410423748i | O38: 1+0.0000232453564639114i | P38: 19.6051324537534-3.40869462711942i | Q38: 0.999999937330241-0.000289342004628883i | R38: 19.6041449465679-3.41436700182253i | S38: 25.97673691 | T38: -9.87985006
A39: 62.08808027 | B39: 159.2282793 | C39: 36.13733323 | D39: 117.910077 | E39: 25.95074704 | F39: -10.82145422 | G39: 62.08808027 | H39: 107.0886228 | I39: -666359.6180171i | J39: -21266796.3196947i | K39: 267543.337673632-505086.603916494i | L39: 56875 | M39: -30.0048602998466+56.6452266074573i | N39: 1+0.190845608269909i | O39: 1+0.0000255117500225888i | P39: 19.4881743241824-3.71871719982628i | Q39: 0.999999924514054-0.00031755249018261i | R39: 19.486991965192-3.72490543740115i | S39: 25.95074704 | T39: -10.82145422
A40: 61.39464165 | B40: 174.75284 | C40: 35.47499441 | D40: 116.0462165 | E40: 25.91964724 | F40: -11.84811299 | G40: 61.39464165 | H40: 104.1981036 | I40: -607162.066116524i | J40: -19377512.7483998i | K40: 232547.530643193-475818.588142934i | L40: 56875 | M40: -26.0800968945637+53.3628323150955i | N40: 1+0.209452819475996i | O40: 1+0.0000279991141553586i | P40: 19.349137597107-4.05216590153047i | Q40: 0.999999909076911-0.000348513462381618i | R40: 19.3477236034552-4.0589089680331i | S40: 25.91964724 | T40: -11.84811299
A41: 60.67453463 | B41: 191.7910262 | C41: 34.79205391 | D41: 114.3228781 | E41: 25.88248072 | F41: -12.96607384 | G41: 60.67453463 | H41: 101.3568043 | I41: -553223.461571507i | J41: -17656067.9224949i | K41: 201638.790495584-446105.391375535i | L41: 56875 | M41: -22.6136961303459+50.030511182303i | N41: 1+0.229874210803947i | O41: 1+0.0000307289932204053i | P41: 19.184279229705-4.4093503874018i | Q41: 0.999999890482819-0.000382493089998188i | R41: 19.1825905826423-4.41668775874413i | S41: 25.88248072 | T41: -12.96607384
A42: 59.92919579 | B42: 210.4904145 | C42: 34.09106406 | D42: 112.7424354 | E42: 25.83813173 | F42: -14.1816059 | G42: 59.92919579 | H42: 98.56082949 | I42: -504076.613993246i | J42: -16087551.5104227i | K42: 174584.407946118-416490.739667351i | L42: 56875 | M42: -19.5795597696581+46.7092418318525i | N42: 1+0.252286662576022i | O42: 1+0.0000337250321242393i | P42: 18.9893991104725-4.79009095191624i | Q42: 0.99999986808617-0.000419785687838644i | R42: 18.9873857938831-4.79806179800423i | S42: 25.83813173 | T42: -14.1816059
A43: 59.15972492 | B43: 231.01297 | C43: 33.37441731 | D43: 111.3053653 | E43: 25.78530761 | F43: -15.50085096 | G43: 59.15972492 | H43: 95.80451434 | I43: -459295.83689945i | J43: -14658377.7733867i | K43: 151089.67437865-387417.777392829i | L43: 56875 | M43: -16.944636378914+43.4487226982612i | N43: 1+0.276884300727547i | O43: 1+0.0000370131811225663i | P43: 18.7598591404639-5.19356289224266i | Q43: 0.999999841109326-0.000460714265920377i | R43: 18.7574634111818-5.20220500176662i | S43: 25.78530761 | T43: -15.50085096
A44: 58.36683989 | B44: 253.5364494 | C44: 32.64431771 | D44: 110.0106777 | E44: 25.72252218 | F44: -16.9296303 | G44: 58.36683989 | H44: 93.0810474 | I44: -418493.260621673i | J44: -13356167.892181i | K44: 130825.500764381-359231.793607001i | L44: 56875 | M44: -14.6720187773138+40.2876777877011i | N44: 1+0.303880178232891i | O44: 1+0.0000406219205889874i | P44: 18.4906402914255-5.61811859091743i | Q44: 0.999999808615625-0.000505633327181101i | R44: 18.4877960446102-5.62746699966958i | S44: 25.72252218 | T44: -16.9296303
A45: 57.55085107 | B45: 278.2559402 | C45: 31.9027685 | D45: 108.8563221 | E45: 25.64808256 | F45: -18.47320233 | G45: 57.55085107 | H45: 90.38311976 | I45: -381315.4727638i | J45: -12169642.7477809i | K45: 113450.671289727-332188.41999481i | L45: 56875 | M45: -12.7234397708105+37.2547760741843i | N45: 1+0.333508120468408i | O45: 1+0.0000445825076983707i | P45: 18.1764512307075-6.06109361481366i | Q45: 0.999999769476847-0.000554931937948979i | R45: 18.1730835461889-6.07117891089774i | S45: 25.64808256 | T45: -18.47320233
A46: 56.71165388 | B46: 305.3855509 | C46: 31.15157242 | D46: 107.8395537 | E46: 25.56008146 | F46: -20.13596817 | G46: 56.71165388 | H46: 87.70358557 | I46: -347440.457112945i | J46: -11088525.2270089i | K46: 98628.5437974683-306464.907311868i | L46: 56875 | M46: -11.0611450987815+34.3698961471254i | N46: 1+0.366024750495987i | O46: 1+0.0000489292471615465i | P46: 17.811902917452-6.51860905439278i | Q46: 0.999999722334054-0.00060903709776343i | R46: 17.8079278969532-6.52945535405552i | S46: 25.56008146 | T46: -20.13596817
A47: 55.84873938 | B47: 335.1602651 | C47: 30.39234129 | D47: 106.9572505 | E47: 25.45639809 | F47: -21.92112672 | G47: 55.84873938 | H47: 85.03612375 | I47: -316574.804489057i | J47: -10103451.2070976i | K47: 86038.6616092962-282172.60468336i | L47: 56875 | M47: -9.64919569450052+31.6455257588815i | N47: 1+0.401711711809249i | O47: 1+0.0000536997883563018i | P47: 17.3917622158962-6.98538994950518i | Q47: 0.999999665550395-0.00066841743772774i | R47: 17.3870872427766-6.99701257038219i | S47: 25.45639809 | T47: -21.92112672
A48: 54.96122308 | B48: 367.8379772 | C48: 29.62651217 | D48: 106.2061776 | E48: 25.33471092 | F48: -23.83028692 | G48: 54.96122308 | H48: 82.3758907 | I48: -288451.171374971i | J48: -9205888.4481374i | K48: 75384.0803292806-259369.321737324i | L48: 56875 | M48: -8.45428938272307+29.0881482322233i | N48: 1+0.440878107794753i | O48: 1+0.0000589354514282796i | P48: 16.9112927223383-7.45462836489664i | Q48: 0.999999597154282-0.000733587279417932i | R48: 16.9058172891552-7.46703127105114i | S48: 25.33471092 | T48: -23.83028692
A49: 54.04789343 | B49: 403.7017259 | C49: 28.85536763 | D49: 105.5832034 | E49: 25.19252581 | F49: -25.86305387 | G49: 54.04789343 | H49: 79.72014955 | I49: -262825.96431476i | J49: -8388062.69089661i | K49: 66395.3207893992-238070.747495059i | L49: 56875 | M49: -7.44620420068029+26.699523083558i | N49: 1+0.483863179037656i | O49: 1+0.0000646815851863128i | P49: 16.3666813406351-7.91792803319257i | Q49: 0.999999514770929-0.000805111089492481i | R49: 16.3602985873802-7.93110118782924i | S49: 25.19252581 | T49: -25.86305387
A50: 53.10728111 | B50: 443.0621458 | C50: 28.08005842 | D50: 105.085469 | E50: 25.02722269 | F50: -28.01661565 | G50: 53.10728111 | H50: 77.0688534 | I50: -239477.230023748i | J50: -7642890.31990688i | K50: 58831.8200158271-218260.488763464i | L50: 56875 | M50: -6.59796112327034+24.4778118239399i | N50: 1+0.531039241661374i | O50: 1+0.0000709879598921124i | P50: 15.7555338632454-8.36537294875543i | Q50: 0.999999415539898-0.000883608368571124i | R50: 15.7481329412207-8.37928978110157i | S50: 25.02722269 | T50: -28.01661565
A51: 52.13775027 | B51: 486.260158 | C51: 27.30162737 | D51: 104.7105191 | E51: 24.83612291 | F51: -30.28536933 | G51: 52.13775027 | H51: 74.42514975 | I51: -218202.732935341i | J51: -6963917.00857472i | K51: 52481.6353472936-199898.56836746i | L51: 56875 | M51: -5.88579088007032+22.4185310318647i | N51: 1+0.582814912151726i | O51: 1+0.0000779091983464639i | P51: 15.0774024282789-8.78576137145079i | Q51: 0.999999296015784-0.000969759016707341i | R51: 15.068871742717-8.80037663336681i | S51: 24.83612291 | T51: -30.28536933
A52: 51.1376109 | B52: 533.6699231 | C52: 26.52103366 | D52: 104.4563978 | E52: 24.61657723 | F52: -32.66063415 | G52: 51.1376109 | H52: 71.79576362 | I52: -198818.203533298i | J52: -6345261.81489247i | K52: 47160.0114497512-182928.403842421i | L52: 56875 | M52: -5.28897324670108+20.515335010365i | N52: 1+0.639638646597464i | O52: 1+0.0000855052490057978i | P52: 14.3342849322752-9.16703558967711i | Q52: 0.999999152048588-0.00106430922190064i | R52: 14.3245162169825-9.18228392811911i | S52: 24.61657723 | T52: -32.66063415
A53: 50.10524935 | B53: 585.7020818 | C53: 25.73917721 | D53: 104.3217161 | E53: 24.36607214 | F53: -35.13050502 | G53: 50.10524935 | H53: 69.19121109 | I53: -181155.74229733i | J53: -5781566.24353178i | K53: 42707.2759257222-167282.391701571i | L53: 56875 | M53: -4.78960103839876+18.7606420599893i | N53: 1+0.702002625002366i | O53: 1+0.0000938419052270395i | P53: 13.5310167190184-9.49691384861433i | Q53: 0.99999897863962-0.00116807792261622i | R53: 13.5199097635745-9.51270943074283i | S53: 24.36607214 | T53: -35.13050502
A54: 49.03927076 | B54: 642.8073117 | C54: 24.95692273 | D54: 104.3056935 | E54: 24.08234803 | F54: -37.67989674 | G54: 49.03927076 | H54: 66.62579675 | I54: -165062.365437782i | J54: -5267947.8331207i | K54: 38986.4021367674-152886.27287376i | L54: 56875 | M54: -4.37230678169354+17.1461240606086i | N54: 1+0.770447014312981i | O54: 1+0.000102991375138192i | P54: 12.6754658233422-9.76369459168157i | Q54: 0.999998769767947-0.00128196390024006i | R54: 12.6629335255784-9.77993206967578i | S54: 24.08234803 | T54: -37.67989674
A55: 47.93864375 | B55: 705.4802311 | C55: 24.1751238 | D55: 104.4081768 | E55: 23.76351994 | F55: -40.29081572 | G55: 47.93864375 | H55: 64.1173611 | I55: -150398.679823232i | J55: -4799957.86669888i | K55: 35880.4737751934-139662.469869524i | L55: 56875 | M55: -4.02397836731141+15.6630807330307i | N55: 1+0.845564647086308i | O55: 1+0.000113032907070598i | P55: 11.7784526067085-9.95716009706718i | Q55: 0.999998518181342-0.00140695356283817i | R55: 11.7644258913033-9.9737170782213i | S55: 23.76351994 | T55: -40.29081572
A56: 46.80283556 | B56: 774.2636827 | C56: 23.39464673 | D56: 104.6296382 | E56: 23.40818883 | F56: -42.94287139 | G56: 46.80283556 | H56: 61.68676681 | I56: -137037.675623867i | J56: -4373542.83905959i | K56: 33290.2049943996-127532.579812419i | L56: 56875 | M56: -3.73348093395136+14.3027192312993i | N56: 1+0.928006156321794i | O56: 1+0.000124053475970073i | P56: 10.8533473238614-10.0694675166199i | Q56: 0.999998215144479-0.00154412948755651i | R56: 10.8377793904881-10.0862085177167i | S56: 23.40818883 | T56: -42.94287139
A57: 45.6319247 | B57: 849.7534359 | C57: 22.61639458 | D57: 104.9711512 | E57: 23.01553012 | F57: -45.61400653 | G57: 45.6319247 | H57: 59.3571447 | I57: -124863.626213103i | J57: -3985009.34722668i | K57: 31131.6100071344-116419.189647171i | L57: 56875 | M57: -3.49139551481882+13.0563577174398i | N57: 1+1.01848561093313i | O57: 1+0.000136148536732277i | P57: 9.91535248301058-10.0958939201268i | Q57: 0.99999785013564-0.00169467979554253i | R57: 9.89822185890328-10.1126755628429i | S57: 23.01553012 | T57: -45.61400653
A58: 44.42667973 | B58: 932.6033469 | C58: 21.84133129 | D58: 105.4343445 | E58: 22.58534844 | F58: -48.28139095 | G58: 44.42667973 | H58: 57.15295356 | I58: -113771.085798905i | J58: -3630992.09996506i | K58: 29333.8733428583-106247.157177095i | L58: 56875 | M58: -3.28978018798411+11.9155690292069i | N58: 1+1.11778670067155i | O58: 1+0.00014942285098736i | P58: 8.98053953068511-10.0353096281631i | Q58: 0.999997410481395-0.00185990844044466i | R58: 8.96185151833102-10.051986622815i | S58: 22.58534844 | T58: -48.28139095
A59: 43.18859684 | B59: 1023.531022 | C59: 21.070506 | D59: 106.0213294 | E59: 22.11809084 | F59: -50.92239415 | G59: 43.18859684 | H59: 55.09893525 | I59: -103663.976102782i | J59: -3308424.76923772i | K59: 27837.4426689424-96944.4781160987i | L59: 56875 | M59: -3.12195618717111+10.8722779195625i | N59: 1+1.22676952407158i | O59: 1+0.000163991394495082i | P59: 8.06476375893339-9.89029412058144i | Q59: 0.999996880916583-0.00204124649941283i | R59: 8.04455007601069-9.90672544272057i | S59: 22.11809084 | T59: -50.92239415
A60: 41.91989398 | B60: 1123.324033 | C60: 20.30507735 | D60: 106.7345982 | E60: 21.61481663 | F60: -53.51553836 | G60: 41.91989398 | H60: 53.21905986 | I60: -94454.7541757011i | J60: -3014513.43113939i | K60: 26592.3468676239-88442.837316499i | L60: 56875 | M60: -2.98231927487371+9.91882287661672i | N60: 1+1.34637803821306i | O60: 1+0.000179980353009836i | P60: 7.1826098136379-9.66687288943249i | Q60: 0.999996243054303-0.00224026456414458i | R60: 7.16092647618258-9.68292751775956i | S60: 21.61481663 | T60: -53.51553836
A61: 40.62346545 | B61: 1232.846739 | C61: 19.54633722 | D61: 107.5768878 | E61: 21.07712823 | F61: -56.0413368 | G61: 40.62346545 | H61: 51.53555097 | I61: -86063.6541429428i | J61: -2746712.36626413i | K61: 25556.7301447814-80677.9228401353i | L61: 56875 | M61: -2.86617534333997+9.04799134655724i | N61: 1+1.4776482348258i | O61: 1+0.0001975282152413i | P61: 6.34651293646044-9.37392398762587i | Q61: 0.999995474747524-0.00245868633896822i | R61: 6.32343667803616-9.3894856529101i | S61: 21.07712823 | T61: -56.0413368
A62: 39.30280538 | B62: 1353.047775 | C62: 18.79573327 | D62: 108.5510026 | E62: 20.50707211 | F62: -58.48294285 | G62: 39.30280538 | H62: 50.06805973 | I62: -78417.9963102543i | J62: -2502702.00990172i | K62: 24695.5861501803-73589.5649452979i | L62: 56875 | M62: -2.7695984467492+8.253035320968i | N62: 1+1.62171711355431i | O62: 1+0.000216786972377373i | P62: 5.56616063980749-9.02235933016163i | Q62: 0.999994549320152-0.0026984035633014i | R62: 5.54178433388197-9.03732989987381i | S62: 20.50707211 | T62: -58.48294285
A63: 37.96191124 | B63: 1484.968262 | C63: 18.05488895 | D63: 109.6595924 | E63: 19.90702229 | F63: -60.82656805 | G63: 37.96191124 | H63: 48.83302435 | I63: -71451.5576471059i | J63: -2280368.86107784i | K63: 23979.6727699127-67121.7483221043i | L63: 56875 | M63: -2.68930909569115+7.52767270902105i | N63: 1+1.77983253010481i | O63: 1+0.000237923434559143i | P63: 4.84821959943779-8.62421340833979i | Q63: 0.999993434640862-0.00296149238715312i | R63: 4.82264722678096-8.63851475271646i | S63: 19.90702229 | T63: -60.82656805
A64: 36.60517836 | B64: 1629.750835 | C64: 17.32561915 | D64: 110.9048796 | E64: 19.27955921 | F64: -63.06166174 | G64: 36.60517836 | H64: 47.84321787 | I64: -65103.9981944816i | J64: -2077787.17641962i | K64: 23384.5872106311-61222.5347670147i | L64: 56875 | M64: -2.62257052829508+6.8660786654596i | N64: 1+1.95336400457441i | O64: 1+0.000261120675710528i | P64: 4.19637170063702-8.19176734702671i | Q64: 0.999992092007529-0.00325023134073409i | R64: 4.1697133767939-8.20534174541099i | S64: 19.27955921 | T64: -63.06166174
A65: 35.23729452 | B65: 1788.649529 | C65: 16.6099392 | D65: 112.2883345 | E65: 18.62735531 | F65: -65.18087543 | G65: 35.23729452 | H65: 47.1074591 | I65: -59320.3384290213i | J65: -1893202.29028792i | K65: 22889.9813790505-55843.9245973557i | L65: 56875 | M65: -2.56710071540754+6.26287004830158i | N65: 1+2.143814583579i | O65: 1+0.000286579619237019i | P65: 3.61159710647186-7.73680624749046i | Q65: 0.999990474803565-0.00356712105280006i | R65: 3.58396458085312-7.7496155569639i | S65: 18.62735531 | T65: -65.18087543
A66: 33.86313968 | B66: 1963.04065 | C66: 15.91006426 | D66: 113.8103015 | E66: 17.95307542 | F66: -67.17985554 | G66: 33.86313968 | H66: 46.63044599 | I66: =IMDIV(1,COMPLEX(0,2*PI()*$B66*Cz*10^-9)) -> -54050.4830566909i | J66: =IMDIV(1,COMPLEX(0,2*PI()*$B66*Cp_Cstray*10^-12)) -> -1725015.4167029i | K66: =IMDIV(IMPRODUCT(IMDIV(IMPRODUCT(J66,IMSUM(Rz*10^3,I66)),IMSUM(J66,IMSUM(Rz*10^3,I66))),Ro_EA*10^3),IMSUM(IMDIV(IMPRODUCT(J66,IMSUM(Rz*10^3,I66)),IMSUM(J66,IMSUM(Rz*10^3,I66))),Ro_EA*10^3)) -> 22478.8987782713-50941.6781056034i | L66: =IF($E$1="Feedforward RC",IMDIV(IMPRODUCT(IMSUM(Rz_2*10^3,IMDIV(1,COMPLEX(0,2*PI()*$B66*Cz_2*10^-12))),RFB_1*10^3),IMSUM(IMSUM(Rz_2*10^3,IMDIV(1,COMPLEX(0,2*PI()*$B66*Cz_2*10^-12))),RFB_1*10^3)),RFB_1*10^3) -> 56875 | M66: =IMPRODUCT(-gm_EA1*10^-6,K66,IMDIV(RFB_2*10^3,IMSUM(L66,RFB_2*10^3))) -> -2.52099799382482+5.71308539502095i | N66: =COMPLEX(1,2*PI()*B66*1/(1/(Vreg/Iout_PreReg*Number_Cout*Co*10^-6)+(m_c*(1-Vreg/Vin_nom)-0.5)/(fsw*10^3*L_buck*10^-6*Number_Cout*Co*10^-6))) -> 1+2.35283385892395i | O66: =COMPLEX(1,2*PI()*B66*(ESR*10^-3*Co*10^-6)) -> 1+0.000314520778328097i | P66: =IMPRODUCT(K,IMDIV(O66,N66)) -> 3.09261878946472-7.27006554917789i | Q66: =IMDIV(1,IMSUM(COMPLEX(1,2*PI()*B66/(wn*Qp)),IMPRODUCT(COMPLEX(0,2*PI()*B66/wn),COMPLEX(0,2*PI()*B66/wn)))) -> 0.999988526879494-0.00391490588717066i | R66: 3.06412168505808-7.28208945034541i | S66: 17.95307542 | T66: -67.17985554
A67: 32.48769238 | B67: 2154.43469 | C67: 15.22839572 | D67: 115.4695851 | E67: 17.25929666 | F67: -69.05691692 | G67: 32.48769238 | H67: 46.4126682 | I67: -49248.7871113079i | J67: -1571769.80142472i | K67: 22137.2157963575-46475.1128991638i | L67: 56875 | M67: -2.48267840706813+5.21216219429875i | N67: 1+2.5822322555793i | O67: 1+0.000345186165937001i | P67: 2.63642155137499-6.80088074217487i | Q67: 0.999986180603609-0.00429659768304723i | R67: 2.60716446918101-6.81211440083726i | S67: 17.25929666 | T67: -69.05691692
A68: 31.11594078 | B68: 2364.489413 | C68: 14.56749132 | D68: 117.2630146 | E68: 16.54844946 | F68: -70.81264934 | G68: 31.11594078 | H68: 46.45036525 | I68: -44873.6605996842i | J68: -1432138.10424524i | K68: 21853.1720916377-42406.8887621884i | L68: 56875 | M68: -2.45082303831451+4.75591275837627i | N68: 1+2.83399671271464i | O68: 1+0.000378841390981141i | P68: 2.23877281330007-6.33702300228296i | Q68: 0.999983354514056-0.00471550180240088i | R68: 2.20885330444955-6.34747445669193i | S68: 16.54844946 | T68: -70.81264934
A69: 29.75279428 | B69: 2595.024211 | C69: 13.93001584 | D69: 119.1850164 | E69: 15.82277843 | F69: -72.44950131 | G69: 29.75279428 | H69: 46.73551506 | I69: -40887.2082689993i | J69: -1304910.90220211i | K69: 21616.9766192952-38702.7884547118i | L69: 56875 | M69: -2.42433382646302+4.34049963978077i | N69: 1+3.1103078936157i | O69: 1+0.000415777958919475i | P69: 1.89469423130335-5.88468459229817i | Q69: 0.99997995049088-0.00517524570692682i | R69: 1.86420155494117-5.89437211544726i | S69: 15.82277843 | T69: -72.44950131
A70: 28.40299148 | B70: 2848.035868 | C70: 13.31867073 | D70: 121.2272343 | E70: 15.08432075 | F70: -73.97137531 | G70: 28.40299148 | H70: 47.255859 | I70: -37254.9013762495i | J70: -1188986.21413562i | K70: 21420.4775971519-35331.5004186502i | L70: 56875 | M70: -2.40229655295162+3.9624112619047i | N70: 1+3.41355907354653i | O70: 1+0.000456315796633345i | P70: 1.59885553071845-5.44857119467543i | Q70: 0.999975850349875-0.00567981030796882i | R70: 1.56787006808156-5.45752080971172i | S70: 15.08432075 | T70: -73.97137531
A71: 27.0710014 | B71: 3125.71585 | C71: 12.73610297 | D71: 123.3782475 | E71: 14.33489843 | F71: -75.38325709 | G71: 27.0710014 | H71: 47.99499039 | I71: -33945.2786167941i | J71: -1083359.95585513i | K71: 21256.8863216669-32264.4075175627i | L71: 56875 | M71: -2.3839498678505+3.61843822626872i | N71: 1+3.74637686915494i | O71: 1+0.000500806023480077i | P71: 1.34588050978583-5.03206039296138i | Q71: 0.99997091174013-0.00623356435551038i | R71: 1.31447368816347-5.04030365185356i | S71: 14.33489843 | T71: -75.38325709
A72: 25.76091778 | B72: 3430.469286 | C72: 12.18479658 | D72: 125.6234386 | E72: 13.5761212 | F72: -76.69089187 | G72: 25.76091778 | H72: 48.93254675 | I72: -30929.6736215864i | J72: -987117.243242122i | K72: 21120.5461937152-29475.3845599569i | L72: 56875 | M72: -2.36865938621105+3.30565060485498i | N72: 1+4.11164398896928i | O72: 1+0.000549633992520871i | P72: 1.13056819737443-4.6373924940842i | Q72: 0.999964963202913-0.00684130215690082i | R72: 1.09880278261373-4.64496457335159i | S72: 13.5761212 | T72: -76.69089187
A73: 24.47634993 | B73: 3764.935807 | C73: 11.66695332 | D73: 127.9450619 | E73: 12.80939661 | F73: -77.90051262 | G73: 24.47634993 | H73: 50.04454933 | I73: -28181.9666627972i | J73: -899424.467961613i | K73: 21006.7395915811-26940.6063355237i | L73: 56875 | M73: -2.35589602896237+3.0213764114606i | N73: 1+4.51252420204073i | O73: 1+0.000603222628264676i | P73: 0.948039776520935-4.26586862070248i | Q73: 0.999957798220579-0.00750828494251089i | R73: 0.915970410423854-4.27280674623486i | S73: 12.80939661 | T73: -77.90051262
A74: 23.22031781 | B74: 4132.0124 | C74: 11.18437294 | D74: 130.322543 | E74: 12.03594487 | F74: -79.01861972 | G74: 23.22031781 | H74: 51.30392326 | I74: -25678.3584172292i | J74: -819522.077145612i | K74: 20911.526340846-24638.3671448814i | L74: 56875 | M74: -2.3452179073846+2.76318136204278i | N74: 1+4.95248974099724i | O74: 1+0.000662036089837958i | P74: 0.793825194295195-3.9180394085914i | Q74: 0.999949168049148-0.00824028622403954i | R74: 0.761499076448074-3.92438159381759i | S74: 12.03594487 | T74: -79.01861972
A75: 21.99516137 | B75: 4534.878508 | C75: 10.73834526 | D75: 132.7330169 | E75: 11.25681611 | F75: -80.05180845 | G75: 21.99516137 | H75: 52.68120845 | I75: -23397.1638279639i | J75: -746717.994509489i | K75: 20831.6084886512-22548.9122599603i | L75: 56875 | M75: -2.33625515760574+2.52884997307966i | N75: 1+5.43535137686149i | O75: 1+0.000726583791309008i | P75: 0.663903735295337-3.59387463302347i | Q75: 0.999938773086142-0.00904364152173303i | R75: 0.631361372663412-3.59965869855785i | S75: 11.25681611 | T75: -80.05180845
A76: 20.8024755 | B76: 4977.023564 | C76: 10.32956698 | D76: 135.1520777 | E76: 10.47290853 | F76: -81.00663832 | G76: 20.8024755 | H76: 54.14543933 | I76: -21318.6242787732i | J76: -680381.625918294i | K76: 20764.2169074562-20654.2813628194i | L76: 56875 | M76: -2.32869722326612+2.31636800330685i | N76: 1+5.96529142612648i | O76: 1+0.000797424813988901i | P76: 0.554711474121947-3.2929093137031i | Q76: 0.999926252474594-0.00992530286927331i | R76: 0.521987443263862-3.29817214917555i | S76: 10.47290853 | T76: -81.00663832
A77: 19.64308051 | B77: 5462.277218 | C77: 9.958094058 | D77: 137.5546762 | E77: 9.684986454 | F77: -81.88953813 | G77: 19.64308051 | H77: 55.66513804 | I77: -19424.7364544376i | J77: -619938.397482052i | K77: 20707.0159461352-18938.1637359122i | L77: 56875 | M77: -2.32228216218339+2.12390621337333i | N77: 1+6.54689997598012i | O77: 1+0.000875172748926349i | P77: 0.463126372194153-3.01436540505851i | Q77: 0.999911171583161-0.0108928985394099i | R77: 0.430250056893705-3.01914243233504i | S77: 9.684986454 | T77: -81.88953813
A78: 18.51703362 | B78: 5994.842503 | C78: 9.623336222 | D78: 139.916079 | E78: 8.893697399 | F78: -82.7067403 | G78: 18.51703362 | H78: 57.20933872 | I78: -17699.0964046424i | J78: -564864.778871566i | K78: 20658.0229291468-17385.7647861164i | L78: 56875 | M78: -2.31678761822207+1.9498053965738i | N78: 1+7.1852146414447i | O78: 1+0.000960501011539833i | P78: 0.386439457397074-2.7572503677895i | Q78: 0.999893006929006-0.0119547984692952i | R78: 0.35343573857646-2.76157516693892i | S78: 8.893697399 | T78: -82.7067403
A79: 17.42368202 | B79: 6579.332247 | C79: 9.324094178 | D79: 142.2127881 | E79: 8.099587844 | F79: -83.46423875 | G79: 17.42368202 | H79: 58.74854933 | I79: -16126.7574608077i | J79: -514683.74874918i | K79: 20615.5397917797-15983.6833546898i | L79: 56875 | M79: -2.31202315421829+1.79256261921755i | N79: 1+7.88576419878819i | O79: 1+0.0010541486744198i | P79: 0.322318368857067-2.52043509040814i | Q79: 0.999871128021831-0.0131201859015114i | R79: 0.289208254112425-2.52433915387107i | S79: 8.099587844 | T79: -83.46423875
A80: 16.36175177 | B80: 7220.809018 | C80: 9.058634319 | D80: 144.4233288 | E80: 7.303117453 | F80: -84.16776536 | G80: 16.36175177 | H80: 60.25556349 | I80: -14694.1007751955i | J80: -468960.663038156i | K80: 20578.0945440945-14719.7991773719i | L80: 56875 | M80: -2.30782368718817+1.65081859933143i | N80: 1+8.65461647313938i | O80: 1+0.00115692686882187i | P80: 0.268767724025287-2.30271410731995i | Q80: 0.999844775501502-0.0143991357943162i | R80: 0.235568911563325-2.30622669263283i | S80: 7.303117453 | T80: -84.16776536
A81: 15.32946244 | B81: 7924.828984 | C81: 8.82479076 | D81: 146.5288385 | E81: 6.504671681 | F81: -84.82278071 | G81: 15.32946244 | H81: 61.70605777 | I81: -13388.7173609659i | J81: -427299.490243594i | K81: 20544.3905898755-13583.1697987244i | L81: 56875 | M81: -2.30404380447202+1.52334614565134i | N81: 1+9.49843089508634i | O81: 1+0.00126972581029775i | P81: 0.224089314008054-2.10285110001607i | Q81: 0.999813034814203-0.0158027005917239i | R81: 0.190816690785294-2.10599915640453i | S81: 6.504671681 | T81: -84.82278071
A82: 14.32465487 | B82: 8697.490026 | C82: 8.620082065 | D82: 148.513418 | E82: 5.704572803 | F82: -85.43447566 | G82: 14.32465487 | H82: 63.07894238 | I82: -12199.300611469i | J82: -389339.381217097i | K82: 20513.2622001452-12563.9362008827i | L82: 56875 | M82: -2.30055277010974+1.40903957393077i | N82: 1+10.4245161814783i | O82: 1+0.00139352250931645i | P82: 0.186844033655857-1.91961245856816i | Q82: 0.999774804519023-0.0173430039793304i | R82: 0.15351011071611-1.92242060733647i | S82: 5.704572803 | T82: -85.43447566
A83: 13.34491935 | B83: 9545.484567 | C83: 8.441829887 | D83: 150.3642481 | E83: 4.903089465 | F83: -86.00778086 | G83: 13.34491935 | H83: 64.35646721 | I83: -11115.5483678275i | J83: -354751.543654068i | K83: 20483.6346630835-11653.236369529i | L83: 56875 | M83: -2.29723005567292+1.30690501340512i | N83: 1+11.4408936400349i | O83: 1+0.00152938923366159i | P83: 0.155816653755401-1.7517913501336i | Q83: 0.99972875813305-0.0190333432833709i | R83: 0.122431943627402-1.75428190283748i | S83: 4.903089465 | T83: -86.00778086
A84: 12.38771357 | B84: 10476.15753 | C84: 8.287268717 | D84: 152.0714957 | E84: 4.100444853 | F84: -86.54738234 | G84: 12.38771357 | H84: 65.52411335 | I84: -10128.0736865647i | J84: -323236.394252064i | K84: 20454.4878122718-10843.125980735i | L84: 56875 | M84: -2.29396124997441+1.21605151185813i | N84: 1+12.5563666460757i | O84: 1+0.00167850279590197i | P84: 0.129983983985606-1.5982243710965i | Q84: 0.999673298202582-0.0208883011957094i | R84: 0.0965573259426154-1.6004173729299i | S84: 4.100444853 | T84: -86.54738234
A85: 11.45046276 | B85: 11497.56995 | C85: 8.153639113 | D85: 153.628059 | E85: 3.296823647 | F85: -87.05774106 | G85: 11.45046276 | H85: 66.57031795 | I85: -9228.32353439107i | J85: -294520.963863544i | K85: 20424.8217815611-10126.5053437251i | L85: 56875 | M85: -2.29063421849284+1.13568284228693i | N85: 1+13.7805968931462i | O85: 1+0.00184215474637906i | P85: 0.10848660045984-1.45780249763337i | Q85: 0.999606501023674-0.0229238675226795i | R85: 0.0750254397636353-1.45971578629979i | S85: 3.296823647 | T85: -87.05774106
A86: 10.53063817 | B86: 12618.56883 | C86: 8.038260296 | D86: 155.0292025 | E86: 2.492377876 | F86: -87.54311553 | G86: 10.53063817 | H86: 67.48608697 | I86: -8408.50470592118i | J86: -268356.533167698i | K86: 20393.6239561918-9497.05166929512i | L86: 56875 | M86: -2.28713539695609+1.06508990683684i | N86: 1+15.1241880779854i | O86: 1+0.00202176255999818i | P86: 0.0906040722152155-1.32947772100373i | Q86: 0.99952605011866-0.0251575716559521i | R86: 0.057114699394797-1.33112699363469i | S86: 2.492377876 | T86: -87.54311553
A87: 9.625812885 | B87: 13848.86371 | C87: 7.938581074 | D87: 156.2721346 | E87: 1.687231811 | F87: -88.00758641 | G87: 9.625812885 | H87: 68.26454822 | I87: -7661.51632265725i | J87: -244516.478382678i | K87: 20359.8361956946-8949.15564438369i | L87: 56875 | M87: -2.283346115405+1.0036436236692i | N87: 1+16.5987777446737i | O87: 1+0.00221888191371808i | P87: 0.0757334780068357-1.21226646935598i | Q87: 0.999429156196626-0.0276086264422282i | R87: 0.0422212339193194-1.21366535185737i | S87: 1.687231811 | T87: -88.00758641
A88: 8.733696413 | B88: 15199.11083 | C88: 7.852210404 | D88: 157.3555707 | E88: 0.881486009 | F88: -88.45508243 | G88: 8.733696413 | H88: 68.90048831 | I88: -6980.88832857618i | J88: -222794.308358814i | K88: 20322.3215058747-8477.86117298513i | L88: 56875 | M88: -2.27913886047193+0.950788168932913i | N88: 1+18.217138083473i | O88: 1+0.00243522016108046i | P88: 0.0633709283447543-1.10525067930888i | Q88: 0.999312460873416-0.0302980840765314i | R88: 0.0298403803446854-1.10641079393717i | S88: 0.881486009 | T88: -88.45508243
A89: 7.852150881 | B89: 16681.00537 | C89: 7.776930257 | D89: 158.2793136 | E89: 0.07522062392 | F89: -88.88940713 | G89: 7.852150881 | H89: 69.3899065 | I89: -6360.7254495999i | J89: -203001.876051061i | K89: 20279.8294489514-8078.80698530942i | L89: 56875 | M89: -2.27437339614408+0.906034428259001i | N89: 1+19.9932865574283i | O89: 1+0.00267265112048962i | P89: 0.0530957757223453-1.00757718530074i | Q89: 0.999171920887547-0.0332490045491796i | R89: 0.0195508698017963-1.00850821336794i | S89: 0.07522062392 | T89: -88.88940713
A90: 6.979192162 | B90: 18307.3828 | C90: 7.710694104 | D90: 159.0438738 | E90: -0.7315019412 | F90: -89.3142663 | G90: 6.979192162 | H90: 69.72960752 | I90: -5795.65613155139i | J90: -184967.748879299i | K90: 20230.9597209325-7748.16861490445i | L90: 56875 | M90: -2.26889267898309+0.868953489521995i | N90: 1+21.9426073149264i | O90: 1+0.00293323130533099i | P90: 0.0445571924725761-0.918455937731028i | Q90: 0.99900266890677-0.0364866370231004i | R90: 0.0110013857773928-0.919165675175082i | S90: -0.7315019412 | T90: -89.3142663
A91: 6.112979376 | B91: 20092.33003 | C91: 7.651614329 | D91: 159.6501413 | E91: -1.538634954 | F91: -89.73329569 | G91: 6.112979376 | H91: 69.91684564 | I91: -5280.78601432198i | J91: -168535.72386134i | K91: 20174.1235173358-7482.5989936279i | L91: 56875 | M91: -2.26251852530869+0.839169980593784i | N91: 1+24.0819844398307i | O91: 1+0.00321921773650635i | P91: 0.0374628094620879-0.837157436550801i | Q91: 0.998798846258936-0.0400386142847439i | R91: 0.00389918717068926-0.837651840742104i | S91: -1.538634954 | T91: -89.73329569
A92: 5.251795766 | B92: 22051.3074 | C92: 7.597941554 | D92: 160.099115 | E92: -2.346145788 | F92: -90.15008909 | G92: 5.251795766 | H92: 69.94902588 | I92: -4811.65553926576i | J92: -153563.474657418i | K92: 20107.502583524-7279.16561774158i | L92: 56875 | M92: -2.25504701871297+0.816355022550458i | N92: 1+26.4299481933372i | O92: 1+0.00353308749166907i | P92: 0.0315691322432824-0.763009669576557i | Q92: 0.998553402020693-0.0439351600702511i | R92: -0.00199948756762464-0.763292896208743i | S92: -2.346145788 | T92: -90.15008909
A93: 4.394023487 | B93: 24201.28265 | C93: 7.54803832 | D93: 160.3916896 | E93: -3.154014833 | F93: -90.56822669 | G93: 4.394023487 | H93: 69.82346295 | I93: -4384.20132263575i | J93: -139921.318807524i | K93: 20029.0062438902-7135.28190400999i | L93: 56875 | M93: -2.24624369090358+0.800218531290841i | N93: 1+29.0068355142329i | O93: 1+0.00387755916048575i | P93: 0.0266734792501469-0.695394769312888i | Q93: 0.99825785183784-0.0482093085816634i | R93: -0.00689749092258681-0.695469198585671i | S93: -3.154014833 | T93: -90.56822669
A94: 3.538114238 | B94: 26560.87783 | C94: 7.500349071 | D94: 160.5285003 | E94: -3.962234833 | F94: -90.99130377 | G94: 3.538114238 | H94: 69.53719648 | I94: -3994.72096049797i | J94: -127491.094483978i | K94: 19936.2272741061-7048.63000535466i | L94: 56875 | M94: -2.23583857279695+0.790500561348187i | N94: 1+31.8349661677307i | O94: 1+0.00425561639175939i | P94: 0.0226072158810155-0.633745544065837i | Q94: 0.997901988609611-0.0528971348270168i | R94: -0.0109635378058796-0.6336117956423i | S94: -3.962234833 | T94: -90.99130377
A95: 2.682557193 | B95: 29150.53063 | C95: 7.453367849 | D95: 160.5098196 | E95: -4.770810656 | F95: -91.42295978 | G95: 2.682557193 | H95: 69.08685987 | I95: -3639.84096027964i | J95: -116165.137030201i | K95: 19826.3982801719-7017.07203590942i | L95: 56875 | M95: -2.22352130244919+0.786961349821618i | N95: 1+34.9388360685977i | O95: 1+0.00467053373636797i | P95: 0.0192300868577315-0.577541994921962i | Q95: 0.997473535724515-0.0580379934793655i | R95: -0.0143378758050696-0.577198931359856i | S95: -4.770810656 | T95: -91.42295978
A96: 1.825845324 | B96: 31992.67138 | C96: 7.405604784 | D96: 160.3355082 | E96: -5.579759459 | F96: -91.86690789 | G96: 1.825845324 | H96: 68.46860029 | I96: -3316.48752119045i | J96: -105845.346420972i | K96: 19696.3513387257-7038.54644226728i | L96: 56875 | M96: -2.20893659873559+0.789369694459883i | N96: 1+38.3453294530502i | O96: 1+0.0051259050098575i | P96: 0.0164254759379287-0.526307896739789i | Q96: 0.996957731868347-0.0636747626700129i | R96: -0.0171370251803242-0.52575261528019i | S96: -5.579759459 | T96: -91.86690789
A97: 0.9664409282 | B97: 35111.91734 | C97: 7.355552215 | D97: 160.0050138 | E97: -6.389111286 | F97: -92.32696517 | G97: 0.9664409282 | H97: 67.67804865 | I97: -3021.85991043051i | J97: -96442.3375669315i | K97: 19542.4850902383-7110.94627380268i | L97: 56875 | M97: -2.19168057086785+0.797489301734881i | N97: 1+42.0839517371471i | O97: 1+0.00562567442035328i | P97: 0.0140964463037966-0.479607496223962i | Q97: 0.996336834522293-0.0698540874027522i | R97: -0.0194577352719056-0.478835308993119i | S97: -6.389111286 | T97: -92.32696517
A98: 0.1027411222 | B98: 38535.28594 | C98: 7.301651218 | D98: 159.5174227 | E98: -7.198910096 | F98: -92.80708347 | G98: 0.1027411222 | H98: 66.71033927 | I98: =IMDIV(1,COMPLEX(0,2*PI()*$B98*Cz*10^-9)) -> -2753.40620458276i | J98: =IMDIV(1,COMPLEX(0,2*PI()*$B98*Cp_Cstray*10^-12)) -> -87874.6661037051i | K98: =IMDIV(IMPRODUCT(IMDIV(IMPRODUCT(J98,IMSUM(Rz*10^3,I98)),IMSUM(J98,IMSUM(Rz*10^3,I98))),Ro_EA*10^3),IMSUM(IMDIV(IMPRODUCT(J98,IMSUM(Rz*10^3,I98)),IMSUM(J98,IMSUM(Rz*10^3,I98))),Ro_EA*10^3)) -> 19360.7452894204-7231.97653184356i | L98: =IF($E$1="Feedforward RC",IMDIV(IMPRODUCT(IMSUM(Rz_2*10^3,IMDIV(1,COMPLEX(0,2*PI()*$B98*Cz_2*10^-12))),RFB_1*10^3),IMSUM(IMSUM(Rz_2*10^3,IMDIV(1,COMPLEX(0,2*PI()*$B98*Cz_2*10^-12))),RFB_1*10^3)),RFB_1*10^3) -> 56875 | M98: =IMPRODUCT(-gm_EA1*10^-6,K98,IMDIV(RFB_2*10^3,IMSUM(L98,RFB_2*10^3))) -> -2.17129853713126+0.81106278861797i | N98: =COMPLEX(1,2*PI()*B98*1/(1/(Vreg/Iout_PreReg*Number_Cout*Co*10^-6)+(m_c*(1-Vreg/Vin_nom)-0.5)/(fsw*10^3*L_buck*10^-6*Number_Cout*Co*10^-6))) -> 1+46.1870850785885i | O98: =COMPLEX(1,2*PI()*B98*(ESR*10^-3*Co*10^-6)) -> 1+0.00617417073140361i | P98: =IMPRODUCT(K,IMDIV(O98,N98)) -> 0.0121624365395237-0.437042361501726i | Q98: =IMDIV(1,IMSUM(COMPLEX(1,2*PI()*B98/(wn*Qp)),IMPRODUCT(COMPLEX(0,2*PI()*B98/wn),COMPLEX(0,2*PI()*B98/wn)))) -> 0.995589527128891-0.0766266149598593i | R98: -0.0213802823128208-0.436046764364485i | S98: -7.198910096 | T98: -92.80708347
A99: =ABS(G99) -> 0.766955883 | B99: 42292.42874 | C99: =20*LOG(IMABS(M99)) -> 7.24225938 | D99: =IF(180/PI()*IMARGUMENT(M99)>0,180/PI()*IMARGUMENT(M99),360+180/PI()*IMARGUMENT(M99)) -> 158.8715616 | E99: =S99 -> -8.009215263 | F99: -93.31138101 | G99: =C99+E99 -> -0.766955883 | H99: 65.56018057 | I99: -2508.80118607312i | J99: -80068.1229597805i | K99: 19146.6269747649-7398.98886591008i | L99: 56875 | M99: -2.14728526819794+0.829793143840384i | N99: 1+50.6902688554735i | O99: 1+0.00677614475565881i | P99: 0.0105565060489022-0.398248403883506i | Q99: 0.994690212543339-0.0840472115893275i | R99: =IMPRODUCT(P99,Q99) -> -0.0229712146208114-0.397021034401466i | S99: =20*LOG(IMABS(R99)) -> -8.009215263 | T99: =180/PI()*IMARGUMENT(R99) -> -93.31138101
A100: 1.644482699 | B100: 46415.88834 | C100: 7.175620904 | D100: 158.066154 | E100: -8.820103603 | F100: -93.84417501 | G100: -1.644482699 | H100: 64.22197897 | I100: -2285.9262032482i | J100: -72955.0915930275i | K100: 18895.208780382-7608.79395290782i | L100: 56875 | M100: -2.11908883518303+0.85332268630742i | N100: 1+55.6325074913933i | O100: 1+0.00743681050413779i | P100: 0.00922304019447726-0.362893082485917i | Q100: 0.993608172856653-0.0921751456909795i | R100: -0.02428563463257-0.36142366770479i | S100: -8.820103603 | T100: -93.84417501
A101: 2.531831468 | B101: 50941.38015 | C101: 7.099840512 | D101: 157.1000335 | E101: -9.63167198 | F101: -94.41001504 | G101: -2.531831468 | H101: 62.69001842 | I101: -2082.85081962824i | J101: -66473.9623285608i | K101: 18601.2321580068-7857.45529810898i | L101: 56875 | M101: -2.0861194943559+0.88120993997484i | N101: 1+61.0566082930874i | O101: 1+0.00816189034749703i | P101: 0.00811583957017829-0.330672795214578i | Q101: 0.99230657307456-0.101074217373973i | R101: -0.025369093031671-0.328949090361252i | S101: -9.63167198 | T101: -94.41001504
A102: 3.431177514 | B102: 55908.10183 | C102: 7.012863072 | D102: 155.9724146 | E102: -10.44404059 | F102: -95.01371742 | G102: -3.431177514 | H102: 60.95869718 | I102: -1897.81609338988i | J102: -60568.5987252088i | K102: 18259.2398284437-8140.07325442678i | L102: 56875 | M102: -2.0477652144049+0.912905411711415i | N102: 1+67.0095522268564i | O102: 1+0.00895766458046765i | P102: 0.00719652989060601-0.301310454544185i | Q102: 0.990741283636613-0.11081280729031i | R102: -0.0262591580724122-0.299318174188164i | S102: -10.44404059 | T102: -95.01371742
A103: 4.344895535 | B103: 61359.07273 | C103: 6.912461452 | D103: 154.6832212 | E103: -11.25735699 | F103: -95.66040038 | G103: -4.344895535 | H103: 59.0228208 | I103: -1729.21934225345i | J103: -55187.8513485145i | K103: 17863.7877440996-8450.57490754263i | L103: 56875 | M103: -2.00341544793641+0.947728027014128i | N103: 1+73.5429008452175i | O103: 1+0.00983102581876414i | P103: 0.00643323923726642-0.27455324305776i | Q103: 0.988859494651702-0.12146380863418i | R103: -0.0269867128735245-0.272275986924696i | S103: -11.25735699 | T103: -95.66040038
A104: 5.275565476 | B104: 67341.50658 | C104: 6.796235588 | D104: 153.2334655 | E104: -12.07180106 | F104: -96.35551978 | G104: -5.275565476 | H104: 56.8779457 | I104: -1575.60026181586i | J104: -50285.1147388041i | K104: 17409.7420055422-8781.53384883022i | L104: 56875 | M104: -1.9524944305281+0.98484491762582i | N104: 1+80.7132428884044i | O104: 1+0.010789538699624i | P104: 0.00579949808053975-0.250170541406748i | Q104: 0.986598093461251-0.133104394634156i | R104: -0.0275770247199515-0.247589717873259i | S104: -12.07180106 | T104: -96.35551978
A105: 6.225964902 | B105: 73907.22034 | C105: 6.661626094 | D105: 151.6256662 | E105: -12.887591 | F105: -97.10490523 | G105: -6.225964902 | H105: 54.52076101 | I105: -1435.62827709243i | J105: -45817.9237369925i | K105: 16892.6651508385-9124.05278089239i | L105: 56875 | M105: -1.89450450289778+1.02325825580102i | N105: 1+88.5826844289648i | O105: 1+0.0118415054030769i | P105: 0.00527332481384589-0.227952019918134i | Q105: 0.98388177740824-0.145815559184421i | R105: -0.0280506230608833-0.225046771327344i | S105: -12.887591 | T105: -97.10490523
A106: 7.199044756 | B106: 81113.08308 | C106: 6.505945702 | D106: 149.8642827 | E106: -13.70499046 | F106: -97.91479588 | G106: -7.199044756 | H106: 51.94948686 | I106: -1308.09101771287i | J106: -41747.5856716874i | K106: 16309.2838468226-9467.74940616981i | L106: 56875 | M106: -1.82907856226048+1.06180367171998i | N106: 1+97.2193868048499i | O106: 1+0.0129960375614562i | P106: 0.00483646568957297-0.207705884269886i | Q106: 0.980620876507823-0.159681349850753i | R106: -0.0284240167484506-0.204453019658386i | S106: -13.70499046 | T106: -97.91479588
A107: 8.197886055 | B107: 89021.50854 | C107: 6.326431162 | D107: 147.9561323 | E107: -14.52431722 | F107: -98.79187528 | G107: -8.197886055 | H107: 49.16425702 | I107: -1191.88381694917i | J107: -38038.8452217821i | K107: 15658.011945829-9800.88907656523i | L107: 56875 | M107: -1.75603872289671+1.09916513008208i | N107: 1+106.698157000315i | O107: 1+0.0142631351799996i | P107: 0.00447376320852849-0.189257265304956i | Q107: 0.976708867558174-0.17478768975631i | R107: -0.028710275975125-0.185631208008896i | S107: -14.52431722 | T107: -98.79187528
A108: 9.225636565 | B108: 97700.99573 | C108: 6.120316813 | D108: 145.9107474 | E108: -15.34595338 | F108: -99.74330406 | G108: -9.225636565 | H108: 46.1674433 | I108: -1086.00014362086i | J108: -34659.5790517296i | K108: 14939.480573953-10110.7024131595i | L108: 56875 | M108: -1.67545576530314+1.13391055100854i | N108: 1+117.10109558823i | O108: 1+0.0156537732521101i | P108: 0.00417263133755138-0.172446743024829i | Q108: 0.972019574182146-0.191220657348619i | R108: -0.0289195002228904-0.168419503031332i | S108: -15.34595338 | T108: -99.74330406
A109: 10.28542885 | B109: 107226.7222 | C109: 5.884928648 | D109: 143.7406206 | E109: -16.1703575 | F109: -100.776749 | G109: -10.28542885 | H109: 42.96387155 | I109: -989.52288400339i | J109: -31580.5175745764i | K109: 14157.0043918615-10383.9090045774i | L109: 56875 | M109: -1.58770142712466+1.16455054256943i | N109: 1+128.518307845967i | O109: 1+0.0171799968194992i | P109: 0.00392261954449225-0.15712899499755i | Q109: 0.966404069227019-0.2090640606647i | R109: -0.0290591902525244-0.152670178929598i | S109: -16.1703575 | T109: -100.776749
A110: 11.38028427 | B110: 117681.1952 | C110: 5.617794609 | D110: 141.4612849 | E110: -16.99807888 | F110: -101.9004067 | G110: -11.38028427 | H110: 39.56087814 | I110: -901.616398227882i | J110: -28774.9914328048i | K110: 13316.8971340045-10607.437897412i | L110: 56875 | M110: -1.49348379072948+1.18961920344808i | N110: 1+141.048684204205i | O110: 1+0.0188550253005749i | P110: 0.00371505065833859-0.14317155975927i | Q110: 0.959687330730064-0.228396106021943i | R110: -0.0291345396922773-0.138248435125872i | S110: -16.99807888 | T110: -101.9004067
A111: 12.51301095 | B111: 129154.9665 | C111: 5.316763301 | D111: 139.0911823 | E111: -17.82977425 | F111: -103.1230182 | G111: -12.51301095 | H111: 35.96816404 | I111: -821.519282368244i | J111: -26218.7005011141i | K111: 12428.5482341801-10769.2946037669i | L111: 56875 | M111: -1.39385587673048+1.2077713574318i | N111: 1+154.800756788534i | O111: 1+0.0206933669907212i | P111: 0.003542720080542-0.130453706228795i | Q111: 0.951664755286981-0.249284921863547i | R111: -0.029148660125556-0.125031341112968i | S111: -17.82977425 | T111: -103.1230182
A112: 13.68610702 | B112: 141747.4163 | C112: 4.980120186 | D112: 136.6512955 | E112: -18.66622721 | F112: -104.4538724 | G112: -13.68610702 | H112: 32.19742315 | I112: -748.537773524664i | J112: -23889.5034103615i | K112: 11504.1927067642-10859.4809492732i | L112: 56875 | M112: -1.29018983627262+1.21788571393718i | N112: 1+169.893639472808i | O112: 1+0.0227109447262115i | P112: 0.00339964597274531-0.118865400652191i | Q112: 0.942098709340525-0.271782660593073i | R112: -0.029102752758576-0.112906905367221i | S112: -18.66622721 | T112: -104.4538724
A113: 14.90168211 | B113: 155567.6144 | C113: 4.606688441 | D113: 134.1645442 | E113: -19.50837055 | F113: -105.9027922 | G113: -14.90168211 | H113: 28.26175204 | I113: -682.039740781286i | J113: -21767.2257696154i | K113: 10558.3501590734-10870.8410645902i | L113: 56875 | M113: -1.1841140365316+1.21915974556152i | N113: 1+186.458059586528i | O113: 1+0.024925233800198i | P113: 0.00328086179466277-0.108306363120768i | Q113: 0.930715406829797-0.295917871620425i | R113: -0.0289962398376747-0.101773266453559i | S113: -19.50837055 | T113: -105.9027922
A114: 16.16140993 | B114: 170735.2647 | C114: 4.195901875 | D114: 131.6549827 | E114: -20.3573118 | F114: -107.4800987 | G114: -16.16140993 | H114: 24.17488403 | I114: -621.449209990571i | J114: -19833.485425231i | K114: 9606.96918097965-10799.6977498177i | L114: 56875 | M114: -1.07741710440893+1.21118105605432i | N114: 1+204.637490212446i | O114: 1+0.0273554133253431i | P114: 0.00318224402155249-0.0986852062404606i | Q114: 0.917202548272745-0.321685829179815i | R114: -0.02882687007145-0.0915380054472975i | S114: -20.3573118 | T114: -107.4800987
A115: 17.46652187 | B115: 187381.7423 | C115: 3.747839986 | D115: 129.1468701 | E115: -21.21436185 | F115: -109.196545 | G115: -17.46652187 | H115: 19.95032511 | I115: -566.241374960799i | J115: -18071.5332434298i | K115: 8666.37538374209-10646.1667084058i | L115: 56875 | M115: -0.971929949578553+1.19396262150346i | N115: 1+224.589392881757i | O115: 1+0.0300225323541165i | P115: 0.0031003690820213-0.0899186490597855i | Q115: 0.901208347828362-0.349036527003305i | R115: -0.02859081448259-0.0821175792149447i | S115: -21.21436185 | T115: -109.196545
A116: 18.81784652 | B116: 205651.2308 | C116: 3.263220096 | D116: 126.6637059 | E116: -22.08106662 | F116: -111.0632122 | G116: -18.81784652 | H116: 15.60049376 | I116: -515.938051835909i | J116: -16466.1080373162i | K116: 7752.16619947565-10414.0897665063i | L116: 56875 | M116: -0.869401816763625+1.1679353009166i | N116: 1+246.486581430563i | O116: 1+0.032949692195618i | P116: 0.00303239456444925-0.0819307998771999i | Q116: 0.882342812954547-0.377860145409761i | R116: -0.0282827724051526-0.0734368734823272i | S116: -22.08106662 | T116: -111.0632122
A117: 20.21589375 | B117: 225701.972 | C117: 2.743347532 | D117: 124.2273297 | E117: -22.95924128 | F117: -113.0913551 | G117: -20.21589375 | H117: 11.13597461 | I117: -470.103537295661i | J117: -15003.3043817765i | K117: 6878.20814370029-10110.5987210753i | L117: 56875 | M117: -0.771387829200033+1.13389892198975i | N117: 1+270.518718830646i | O117: 1+0.036162246508067i | P117: 0.00297596057812019-0.074652502040835i | Q117: 0.860182418158284-0.407969991524193i | R117: -0.0278961116584281-0.0654288723388837i | S117: -22.95924128 | T117: -113.0913551
A118: 21.66097548 | B118: 247707.6356 | C118: 2.190030597 | D118: 121.857173 | E118: -23.85100608 | F118: -115.2921878 | G118: -21.66097548 | H118: 6.564985162 | I118: -428.340834701956i | J118: -13670.452171339i | K118: 6055.86817985833-9745.38857986667i | L118: 56875 | M118: -0.679162786526169+1.09294077531215i | N118: 1+296.893959959398i | O118: 1+0.0396880209000591i | P118: 0.00292910785160256-0.0680207373200762i | Q118: 0.834279604787451-0.439083256439285i | R118: -0.0274230719070855-0.0580344360626877i | S118: -23.85100608 | T118: -115.2921878
A119: 23.1533509 | B119: 271858.8243 | C119: 1.605471336 | D119: 119.5697238 | E119: -24.75882223 | F119: -117.6765946 | G119: -23.1533509 | H119: 1.893129206 | I119: -390.288215503843i | J119: -12456.0068777822i | K119: 5293.5584637297-9329.82376194846i | L119: 56875 | M119: -0.593670108081836+1.04633537517179i | N119: 1+325.840754537784i | O119: 1+0.0435575539426775i | P119: 0.00289020972976567-0.0619780818672744i | Q119: 0.804178789266641-0.470800475435557i | R119: -0.026855065048487-0.0512021709519756i | S119: -24.75882223 | T119: -117.6765946
A120: 24.69338059 | B120: 298364.724 | C120: 0.992144947 | D120: 117.3782288 | E120: -25.68552553 | F120: -120.2547531 | G120: -24.69338059 | H120: -2.876524266 | I120: -355.616086117878i | J120: -11349.4495569535i | K120: 4596.61024478931-8876.01332811196i | L120: 56875 | M120: -0.515507691004409+0.995440747077978i | N120: 1+357.609825852544i | O120: 1+0.0478043616799858i | P120: 0.0028579157118054-0.0564722101981123i | Q120: 0.769440677967694-0.502585363103948i | R120: -0.0261831096648347-0.0448883623069078i | S120: -25.68552553 | T120: -120.2547531
A121: 26.28167412 | B121: 327454.9163 | C121: 0.3526802013 | D121: 115.2926259 | E121: -26.63435433 | F121: -123.0356585 | G121: -26.28167412 | H121: -7.743032641 | I121: -324.024133146168i | J121: -10341.1957387075i | K121: 3967.43640989271-8395.9732348584i | L121: 56875 | M121: -0.44494613942722+0.941604474937392i | N121: 1+392.476342401354i | O121: 1+0.0524652279289679i | P121: 0.00283110457228063-0.0514554430007986i | Q121: 0.729676521349777-0.533747737722226i | R121: -0.025398435759292-0.0390569243140443i | S121: -26.63435433 | T121: -123.0356585
A122: 27.91921652 | B122: 359381.3664 | C122: -0.3102492082 | D122: 113.3196734 | E122: -27.60896731 | F122: -126.0265414 | G122: -27.91921652 | H122: -12.70686794 | I122: -295.238722205396i | J122: -9422.51241081048i | K122: 3405.90567529784-7900.95568865308i | L122: 56875 | M122: -0.381970729939945+0.886088488447075i | N122: 1+430.742301270716i | O122: 1+0.0575805228833541i | P122: 0.00280884543913996-0.0468843349379692i | Q122: 0.684593293502936-0.563433491956312i | R122: -0.0244932878020278-0.0336792988630193i | S122: -27.60896731 | T122: -126.0265414
A123: 29.60746128 | B123: 394420.6059 | C123: -0.9940157963 | D123: 111.4632268 | E123: -28.61344548 | F123: -129.2321771 | G123: -29.60746128 | H123: -17.76895036 | I123: -269.010527836683i | J123: -8585.44237776647i | K123: 2909.83856086249-7400.98182483901i | L123: 56875 | M123: -0.326337034863083+0.830016653252974i | N123: 1+472.739143890249i | O123: 1+0.0631945527809259i | P123: 0.00279036547847597-0.0427192989319646i | Q123: 0.634049426357634-0.590626829941947i | R123: -0.0234619344745728-0.0287342116991441i | S123: -28.61344548 | T123: -129.2321771
A124: 31.34838012 | B124: 432876.1281 | C124: -1.696108786 | D124: 109.7246084 | E124: -29.65227133 | F124: -132.6541002 | G124: -31.34838012 | H124: -22.9294918 | I124: -245.112373967755i | J124: -7822.73533939644i | K124: 2475.54221685159-6904.57573166176i | L124: 56875 | M124: -0.277630902824478+0.774344941868609i | N124: 1+518.830626819792i | O124: 1+0.0693559436629519i | P124: 0.00277502306477916-0.0389242637253115i | Q124: 0.578118467141903-0.614170914583285i | R124: -0.022301858571162-0.0242071741331894i | S124: -29.65227133 | T124: -132.6541002
A125: 33.14446185 | B125: 475081.0162 | C125: -2.414183783 | D125: 108.1030233 | E125: -30.73027807 | F125: -136.2897498 | G125: -33.14446185 | H125: -28.18672645 | I125: -223.33726622247i | J125: -7127.78509220653i | K125: 2098.32016840577-6418.6716635522i | L125: 56875 | M125: -0.235325626363264+0.719851027688098i | N125: 1+569.415972434709i | O125: 1+0.0761180625496955i | P125: 0.00276228550567977-0.0354663617852359i | Q125: 0.517154830415607-0.632813086224602i | R125: -0.0210150485662241-0.0200896107303849i | S125: -30.73027807 | T125: -136.2897498
A126: 34.99865512 | B126: 521400.8288 | C126: -3.146093511 | D126: 106.59598 | E126: -31.8525616 | F126: -140.1315975 | G126: -34.99865512 | H126: -33.53561759 | I126: -203.496599034564i | J126: -6494.57230961374i | K126: 1772.91610812847-5948.65329134472i | L126: 56875 | M126: -0.198831713061137+0.667138686879782i | N126: 1+624.933326799124i | O126: 1+0.0835394796800144i | P126: 0.002751710548133-0.0323156448753618i | Q126: 0.451851989975031-0.645279202956027i | R126: -0.0196092476811743-0.0163775100335236i | S126: -31.8525616 | T126: -140.1315975
A127: 36.91425266 | B127: 572236.7659 | C127: -3.889902655 | D127: 105.1996866 | E127: -33.02435001 | F127: -144.1663291 | G127: -36.91425266 | H127: -38.96664253 | I127: -185.418522036463i | J127: -5917.61240541902i | K127: 1493.87210710452-5498.48166067171i | L127: 56875 | M127: -0.167537058740694+0.616652148860379i | N127: 1+685.863554677505i | O127: 1+0.0916844758187478i | P127: 0.00274293102418136-0.02944482485097i | Q127: 0.38327983387125-0.650377738137236i | R127: -0.0180989484391524-0.0130695488526214i | S127: -33.02435001 | T127: -144.1663291
A128: 38.89471874 | B128: 628029.1442 | C128: -4.643890309 | D128: 103.9094074 | E128: -34.25082843 | F128: -148.3741769 | G128: -38.89471874 | H128: -44.46476943 | I128: -168.946451573604i | J128: -5391.9080289448i | K128: 1255.79791091072-5070.87338445504i | L128: 56875 | M128: -0.140837148887184+0.568696080499631i | N128: 1+752.734404555242i | O128: 1+0.100623599025954i | P128: 0.00273564210335737-0.0268290374478048i | Q128: 0.312885913442144-0.647127807943032i | R128: -0.0165058723144597-0.0101647379662922i | S128: -34.25082843 | T128: -148.3741769
A129: 40.94346644 | B129: 689261.2104 | C129: -5.406543434 | D129: 102.7197679 | E129: -35.53692301 | F129: -152.7285139 | G129: -40.94346644 | H129: -50.00874604 | I129: -153.937714451737i | J129: -4912.90578037457i | K129: 1053.55856148441-4667.4988310518i | L129: 56875 | M129: -0.118156100353392+0.52345781282824i | N129: 1+826.125079743529i | O129: 1+0.110434275710453i | P129: 0.00272959070923921-0.0244456270299014i | Q129: 0.242446746590271-0.634896981265797i | R129: -0.0148586744194559-0.00765977164314592i | S129: -35.53692301 | T129: -152.7285139
A130: 43.06359849 | B130: 756463.3276 | C130: -6.176544293 | D130: 101.6250074 | E130: -36.88705419 | F130: -157.1958214 | G130: -43.06359849 | H130: -55.57081396 | I130: -140.262312169964i | J130: -4476.45677138182i | K130: =IMDIV(IMPRODUCT(IMDIV(IMPRODUCT(J130,IMSUM(Rz*10^3,I130)),IMSUM(J130,IMSUM(Rz*10^3,I130))),Ro_EA*10^3),IMSUM(IMDIV(IMPRODUCT(J130,IMSUM(Rz*10^3,I130)),IMSUM(J130,IMSUM(Rz*10^3,I130))),Ro_EA*10^3)) -> 882.393118109529-4289.17896798104i | L130: 56875 | M130: =IMPRODUCT(-gm_EA1*10^-6,K130,IMDIV(RFB_2*10^3,IMSUM(L130,RFB_2*10^3))) -> -0.098959975862751+0.481029416969837i | N130: 1+906.671255161374i | O130: 1+0.121201481260341i | P130: =IMPRODUCT(K,IMDIV(O130,N130)) -> 0.00272456673277536-0.0222739504406587i | Q130: 0.173961681166329-0.613526552061167i | R130: -0.0131916898053552-0.00554640789829271i | S130: -36.88705419 | T130: -157.1958214
A131: 45.25763198 | B131: 830217.5681 | C131: -6.952754314 | D131: 100.6191827 | E131: -38.30487766 | F131: -161.7361188 | G131: -45.25763198 | H131: -61.11693606 | I131: -127.801794935915i | J131: -4078.7806894441i | K131: 737.979045640409-3936.06746012513i | L131: 56875 | M131: -0.0827640051185506+0.441428126369174i | N131: 1+995.070583247648i | O131: 1+0.133018476059154i | P131: 0.00272039573735412-0.0202951982647482i | Q131: 0.109493256290175-0.583417112829399i | R131: -0.0115427009882388-0.00380931277190253i | S131: -38.30487766 | T131: -161.7361188
A132: 47.52723323 | B132: 911162.7561 | C132: -7.734196245 | D132: 99.69632517 | E132: -39.79303698 | F132: -166.3039012 | G132: -47.52723323 | H132: -66.60757606 | I132: -116.448235710315i | J132: -3716.43305458452i | K132: 616.456252686734-3607.81088698661i | L132: 56875 | M132: -0.0691352806751478+0.404614305082611i | N132: 1+1092.08873669275i | O132: 1+0.14598761326269i | P132: 0.00271693290236989-0.0184922319576549i | Q132: 0.0509724263253817-0.545549119316851i | R132: -0.0099499321965045-0.0024248142831843i | S132: -39.79303698 | T132: -166.3039012
A133: 49.87299141 | B133: 1000000 | C133: -8.520035939 | D133: 98.8505595 | E133: -41.35295547 | F133: -170.849561 | G133: -49.87299141 | H133: -71.99900152 | I133: -106.103295394597i | J133: -3386.27538493395i | K133: 514.422914426342-3303.68442727228i | L133: 56875 | M133: -0.0576922894683749+0.370506664740817i | N133: 1+1198.56604032916i | O133: 1+0.160221225333079i | P133: 0.00271405799502818-0.0168494354358862i | Q133: -0.501423469424107i | R133: -0.00844870237409955-0.00136089237608527i | S133: -41.35295547 | T133: -170.849561
A135: =ABS(G135) -> 0.2451743717 | B135: =fc*1000 -> 40000 | C135: =20*LOG(IMABS(M135)) -> 7.278591063 | D135: =IF(180/PI()*IMARGUMENT(M135)>0,180/PI()*IMARGUMENT(M135),360+180/PI()*IMARGUMENT(M135)) -> 159.2775215 | E135: =S135 -> -7.523765435 | F135: =T135 -> -93.00615791 | G135: =C135+E135 -> -0.2451743717 | H135: =D135+F135 -> 66.27136354 | I135: -2652.58238486492i | J135: -84656.8846233487i | K135: =IMDIV(IMPRODUCT(IMDIV(IMPRODUCT(J135,IMSUM(Rz*10^3,I135)),IMSUM(J135,IMSUM(Rz*10^3,I135))),Ro_EA*10^3),IMSUM(IMDIV(IMPRODUCT(J135,IMSUM(Rz*10^3,I135)),IMSUM(J135,IMSUM(Rz*10^3,I135))),Ro_EA*10^3)) -> 19279.0429892576-7293.58817942426i | L135: =IF($E$1="Feedforward RC",IMDIV(IMPRODUCT(IMSUM(Rz_2*10^3,IMDIV(1,COMPLEX(0,2*PI()*$B135*Cz_2*10^-12))),RFB_1*10^3),IMSUM(IMSUM(Rz_2*10^3,IMDIV(1,COMPLEX(0,2*PI()*$B135*Cz_2*10^-12))),RFB_1*10^3)),RFB_1*10^3) -> 56875 | M135: =IMPRODUCT(-gm_EA1*10^-6,K135,IMDIV(RFB_2*10^3,IMSUM(L135,RFB_2*10^3))) -> -2.16213566234665+0.817972506103656i | N135: =COMPLEX(1,2*PI()*B135*1/(1/(Vreg/Iout_PreReg*Number_Cout*Co*10^-6)+(m_c*(1-Vreg/Vin_nom)-0.5)/(fsw*10^3*L_buck*10^-6*Number_Cout*Co*10^-6))) -> 1+47.9426416131665i | O135: =COMPLEX(1,2*PI()*B135*(ESR*10^-3*Co*10^-6)) -> 1+0.00640884901332318i | P135: =IMPRODUCT(K,IMDIV(O135,N135)) -> 0.0114824320629586-0.421052992886405i | Q135: =IMDIV(1,IMSUM(COMPLEX(1,2*PI()*B135/(wn*Qp)),IMPRODUCT(COMPLEX(0,2*PI()*B135/wn),COMPLEX(0,2*PI()*B135/wn)))) -> 0.995248769487349-0.0795211058296368i | R135: =IMPRODUCT(P135,Q135) -> -0.0220547232258235-0.41996556875442i | S135: =20*LOG(IMABS(R135)) -> -7.523765435 | T135: =180/PI()*IMARGUMENT(R135) -> -93.00615791
C136: =20*LOG(IMABS((-gm_EA1*10^-6*Rz*10^3))) -> 24.38907074

Sheet Control Loop2
B1: Series RC with Parallel C | E1: No feedforward C
B2: Rz | C2: =Rz_adj -> 10 | D2: kΩ | E2: Cz2 | F2: 39 | G2: pF
B3: Cz | C3: =Cz_adj -> 1.5 | D3: nF | E3: Rz2 | F3: 0 | G3: kΩ
B4: Cp | C4: =Cp_adj -> 27 | D4: pF
E5: AVOL2 | F5: 60 | G5: dB
B6: Ro_EA | C6: 1300 | D6: kΩ | F6: =10^(F5/20) -> 1000 | G6: V/V
B7: Cstray | C7: 25 | D7: pF | E7: gm_EA2 | F7: 750 | G7: uA/V
B9: Cp +Cstray | C9: =IF(Type=RCC,C4+Cstray_adj,IF(Type=RCRC,C4+Cstray_adj,Cstray_adj)) -> 52 | D9: pF
E10: FB gain | F10: =RFB2_adj/(RFB1_adj+RFB2_adj) -> 0.2424242424
E11: VFB | F11: 0.8 | G11: V
B12: Series RC
B13: Series RC with Parallel C | E13: Ri | F13: =1/gm_POWER2 -> 0.4
E14: gmPOWER2 | F14: 2.5 | G14: A/V
E15: K | F15: =Vout_sync_buck/(Iout_sync_buck*Ri_adj*(1+Vout_sync_buck*(mc_adj*(1-Vout_sync_buck/Vreg)-0.5)/(Iout_sync_buck*fsw*10^3*L_buck2*10^-6))) -> 9.71237484
E16: mc | F16: =(1+Se_adj/Sn_adj) -> 2.415731707
B17: No feedforward C | E17: Se (Slope Comp) | F17: =0.0003*fsw+0.0175 -> 0.6175 | G17: A/us
B18: Feedforward RC | E18: Sn (Inductor) | F18: =(Vreg-Vout_sync_buck)/L_buck2 -> 0.4361702128 | G18: A/us
E19: wn | F19: =PI()*fsw*10^3 -> 6283185.307
B20: Calculated | E20: Qp | F20: =1/(PI()*(mc_adj*(1-Vout_sync_buck/Vreg)-0.5)) -> 0.7478133236
A21: fco | B21: =VLOOKUP(MIN(A34:A133),A34:H133,2,FALSE)/1000 -> 42.29242874
A22: PM | B22: =VLOOKUP(MIN(A34:A133),A34:H133,8,FALSE) -> 68.87593805
E23: wp | F23: =(1/(Vout_sync_buck/Iout_sync_buck*Number_Cout2*Co_2*10^-6)+(mc_adj*(1-Vout_sync_buck/Vreg)-0.5)/(fsw*10^3*L_buck2*10^-6*Number_Cout2*Co_2*10^-6))/(1000) -> 15.14138673 | G23: Rad
E24: wz | F24: =1/(ESR_2*10^-3*Co_2*10^-6*1000) -> 39215.68627 | G24: Rad
V31: SIMPLIS Data
C32: Error Amplifier | E32: Control to Output | G32: Total System | I32: Error Amp | V32: freq | W32: Comp_Gain | X32: Comp_Phase | Y32: Plant_Gain | Z32: Plant_Phase
A33: Calculated | B33: Frequency | C33: Gain | D33: Phase | E33: Gain | F33: Phase | G33: Gain | H33: Phase | I33: ZCz | J33: ZCp | K33: ZT(s) | L33: RFB1 with or without feedforward C | M33: Tv(s) | N33: 1 + s/ωP | O33: 1 + s/ωZ | P33: fp(s) | Q33: fh(s) | R33: fp(s)fh(s) | S33: Gain | T33: Phase | V33: 100 | W33: 32.5730433 | X33: 115.0905728 | Y33: 23.39172044 | Z33: -5.41859912 | AA33: =W33+Y33 -> 55.96476374 | AB33: =X33+Z33 -> 109.6719737
A34: =ABS(G34) -> 63.01108907 | B34: 100 | C34: =20*LOG(IMABS(M34)) -> 43.27205239 | D34: =IF(180/PI()*IMARGUMENT(M34)>0,180/PI()*IMARGUMENT(M34),360+180/PI()*IMARGUMENT(M34)) -> 128.590206 | E34: =S34 -> 19.73903668 | F34: =T34 -> -2.382969823 | G34: =C34+E34 -> 63.01108907 | H34: =D34+F34 -> 126.2072361 | I34: =IMDIV(1,COMPLEX(0,2*PI()*$B34*Cz_adj*10^-9)) -> -1061032.95394597i | J34: =IMDIV(1,COMPLEX(0,2*PI()*$B34*Cp_Cstray_adj*10^-12)) -> -30606719.8253645i | K34: =IMDIV(IMPRODUCT(IMDIV(IMPRODUCT(J34,IMSUM(Rz_adj*10^3,I34)),IMSUM(J34,IMSUM(Rz_adj*10^3,I34))),Ro_adj*10^3),IMSUM(IMDIV(IMPRODUCT(J34,IMSUM(Rz_adj*10^3,I34)),IMSUM(J34,IMSUM(Rz_adj*10^3,I34))),Ro_adj*10^3)) -> 500003.540715018-626563.253597912i | L34: =IF($E$1="Feedforward RC",IMDIV(IMPRODUCT(IMSUM(Rz_2_adj*10^3,IMDIV(1,COMPLEX(0,2*PI()*$B34*Cz_2_adj*10^-12))),RFB1_adj*10^3),IMSUM(IMSUM(Rz_2_adj*10^3,IMDIV(1,COMPLEX(0,2*PI()*$B34*Cz_2_adj*10^-12))),RFB1_adj*10^3)),RFB1_adj*10^3) -> 4750 | M34: =IMPRODUCT(-gm_EA2*10^-6,K34,IMDIV(RFB2_adj*10^3,IMSUM(L34,RFB2_adj*10^3))) -> -90.9097346754577+113.920591563257i | N34: =COMPLEX(1,2*PI()*B34*1/(1/(Vout_sync_buck/Iout_sync_buck*Number_Cout2*Co_2*10^-6)+(mc_adj*(1-Vout_sync_buck/Vreg)-0.5)/(fsw*10^3*L_buck2*10^-6*Number_Cout2*Co_2*10^-6))) -> 1+0.0414967626082054i | O34: =COMPLEX(1,2*PI()*B34*(ESR_2*10^-3*Co_2*10^-6)) -> 1+0.0000160221225333079i | P34: =IMPRODUCT(K_adj,IMDIV(O34,N34)) -> 9.69568550853018-0.402183947011514i | Q34: =IMDIV(1,IMSUM(COMPLEX(1,2*PI()*B34/(wn_adj*Qp_adj)),IMPRODUCT(COMPLEX(0,2*PI()*B34/wn_adj),COMPLEX(0,2*PI()*B34/wn_adj)))) -> 0.999999992118102-0.000133723212813844i | R34: =IMPRODUCT(P34,Q34) -> 9.69563165078024-0.403480482058174i | S34: =20*LOG(IMABS(R34)) -> 19.73903668 | T34: =180/PI()*IMARGUMENT(R34) -> -2.382969823 | V34: 109.6478196 | W34: 31.89869781 | X34: 113.2488045 | Y34: 23.38397323 | Z34: -5.93785745 | AA34: =W34+Y34 -> 55.28267104 | AB34: =X34+Z34 -> 107.3109471
A35: =ABS(G35) -> 62.49135609 | B35: 109.7498765 | C35: =20*LOG(IMABS(M35)) -> 42.75384589 | D35: =IF(180/PI()*IMARGUMENT(M35)>0,180/PI()*IMARGUMENT(M35),360+180/PI()*IMARGUMENT(M35)) -> 126.0855625 | E35: =S35 -> 19.7375102 | F35: -2.615000834 | G35: =C35+E35 -> 62.49135609 | H35: 123.4705617 | I35: -966773.710646764i | J35: -27887703.1917336i | K35: 444800.150788909-610296.229585574i | L35: 4750 | M35: -80.8727546888924+110.962950833741i | N35: 1+0.045542645734464i | O35: 1+0.000017584259700884i | P35: 9.69227954551671-0.441241268779355i | Q35: 0.999999990506226-0.000146761061044531i | R35: =IMPRODUCT(P35,Q35) -> 9.69221469646362-0.44266371382035i | S35: =20*LOG(IMABS(R35)) -> 19.7375102 | T35: =180/PI()*IMARGUMENT(R35) -> -2.615000834 | V35: 120.2264435 | W35: 31.20611037 | X35: 111.5357657 | Y35: 23.37467728 | Z35: -6.50610407 | AA35: 54.58078765 | AB35: 105.0296616
A36: 61.93774552 | B36: 120.450354 | C36: 42.20207324 | D36: 123.6618826 | E36: 19.73567227 | F36: -2.869556383 | G36: 61.93774552 | H36: 120.7923262 | I36: -880888.198732913i | J36: -25410236.5019108i | K36: 392829.453516844-589872.676929883i | L36: 4750 | M36: -71.4235370030624+107.249577623615i | N36: 1+0.0499829974708616i | O36: 1+0.0000192987033138294i | P36: 9.68818022791545-0.484056851588633i | Q36: 0.999999988564716-0.00016107008340286i | R36: 9.6881021500509-0.485617322050638i | S36: 19.73567227 | T36: -2.869556383 | V36: 131.8256739 | W36: 30.49758905 | X36: 109.9511166 | Y36: 23.36352737 | Z36: -7.12771869 | AA36: 53.86111642 | AB36: 102.8233979
A37: 61.3523994 | B37: 132.1941148 | C37: 41.61893989 | D37: 121.3353226 | E37: 19.73345951 | F37: -3.148801081 | G37: 61.3523994 | H37: 118.1865215 | I37: -802632.518987084i | J37: -23152861.1246274i | K37: 344628.558492577-566028.01141371i | L37: 4750 | M37: -62.6597379077412+102.914183893402i | N37: 1+0.0548562780199133i | O37: 1+0.0000211803030625446i | P37: 9.68324718858416-0.530981188869942i | Q37: 0.99999998622616-0.000176774217803595i | R37: 9.68315319142433-0.532692930003853i | S37: 19.73345951 | T37: -3.148801081 | V37: 144.5439771 | W37: 29.7752562 | X37: 108.492949 | Y37: 23.35016002 | Z37: -7.80739688 | AA37: 53.12541622 | AB37: 100.6855521
A38: 60.73772301 | B38: 145.0828778 | C38: 41.00692728 | D38: 119.1189327 | E38: 19.73079572 | F38: -3.45510051 | G38: 60.73772301 | H38: 115.6638322 | I38: -731328.85814819i | J38: -21096024.7542747i | K38: 300540.254976819-539544.639353566i | L38: 4750 | M38: -54.6436827230579+98.0990253370118i | N38: 1+0.0602046974063987i | O38: 1+0.0000232453564639114i | P38: 9.67731199342953-0.582393872656464i | Q38: 0.99999998340936-0.000194009485957302i | R38: 9.67719884294087-0.584271353319471i | S38: 19.73079572 | T38: -3.45510051 | V38: 158.4893192 | W38: 29.0410329 | X38: 107.1581701 | Y38: 23.33414321 | Z38: -8.55014866 | AA38: 52.37517611 | AB38: 98.60802144
A39: 60.09626298 | B39: 159.2282793 | C39: 40.36867362 | D39: 117.0225787 | E39: 19.72758935 | F39: -3.79103761 | G39: 60.09626298 | H39: 113.2315411 | I39: -666359.6180171i | J39: -19221912.0581855i | K39: 260722.708962164-511199.017342665i | L39: 4750 | M39: -47.4041289022116+92.9452758804844i | N39: 1+0.0660745810804054i | O39: 1+0.0000255117500225888i | P39: 9.67017268625823-0.63870482954064i | Q39: 0.999999980016516-0.000212925171526218i | R39: 9.6700364966791-0.640763839955002i | S39: 19.72758935 | T39: -3.79103761 | V39: 173.7800829 | W39: 28.29663557 | X39: 105.9428513 | Y39: 23.31496463 | Z39: -9.36128789 | AA39: 51.6116002 | AB39: 96.58156341
A40: 59.43059551 | B40: 174.75284 | C40: 39.7068651 | D40: 115.053064 | E40: 19.72373041 | F40: -4.159429657 | G40: 59.43059551 | H40: 110.8936344 | I40: -607162.066116524i | J40: -17514290.3687459i | K40: 225172.693366654-481719.105734057i | L40: 4750 | M40: -40.9404897030279+87.5852919516466i | N40: 1+0.0725167711662158i | O40: 1+0.0000279991141553586i | P40: 9.66158734393529-0.700355180630689i | Q40: 0.999999975929822-0.000233685113149059i | R40: 9.66142344879953-0.702612932904682i | S40: 19.72373041 | T40: -4.159429657 | V40: 190.5460718 | W40: 27.54358149 | X40: 104.8425302 | Y40: 23.29201846 | Z40: -10.2464094 | AA40: 50.83559995 | AB40: 94.5961208
A41: 58.74323138 | B41: 191.7910262 | C41: 39.02414453 | D41: 113.2144015 | E41: 19.71908685 | F41: -4.563345575 | G41: 58.74323138 | H41: 108.6510559 | I41: -553223.461571507i | J41: -15958369.0837935i | K41: 193756.689903019-451754.593633638i | L41: 4750 | M41: -35.2284890732761+82.1371988424795i | N41: 1+0.0795870668324645i | O41: 1+0.0000307289932204053i | P41: 9.65126649443227-0.767817540009685i | Q41: 0.999999971007386-0.000256469123534456i | R41: 9.65106929312531-0.770292769607472i | S41: 19.71908685 | T41: -4.563345575 | V41: 208.9296131 | W41: 26.78320056 | X41: 103.8524656 | Y41: 23.26459064 | Z41: -11.2113502 | AA41: 50.0477912 | AB41: 92.6411154
A42: 58.03654083 | B42: 210.4904145 | C42: 38.32304059 | D42: 111.5081817 | E42: 19.71350024 | F42: -5.00612321 | G42: 58.03654083 | H42: 106.5020585 | I42: -504076.613993246i | J42: -14540671.5574975i | K42: 166244.603047826-421859.843240376i | L42: 4750 | M42: -30.226291463241+76.7017896800682i | N42: 1+0.087346707597843i | O42: 1+0.0000337250321242393i | P42: 9.63886424368097-0.841595506514613i | Q42: 0.999999965078294-0.000281474546914632i | R42: 9.63862701936151-0.844308572070424i | S42: 19.71350024 | T42: -5.00612321 | V42: 229.0867653 | W42: 26.01665083 | X42: 102.9678439 | Y42: 23.23184282 | Z42: -12.2621296 | AA42: 49.24849365 | AB42: 90.7057143
A43: 57.31269853 | B43: 231.01297 | C43: 37.60591785 | D43: 109.933989 | E43: 19.70678068 | F43: -5.491386035 | G43: 57.31269853 | H43: 104.442603 | I43: -459295.83689945i | J43: -13248918.3720995i | K43: 142342.006883378-392487.821879762i | L43: 4750 | M43: -25.8803648878869+71.3614221599566i | N43: 1+0.0958629037585157i | O43: 1+0.0000370131811225663i | P43: 9.62396795875966-0.922222028316522i | Q43: 0.99999995793668-0.00030891796834939i | R43: 9.62368266298826-0.925195006154081i | S43: 19.70678068 | T43: -5.491386035 | V43: 251.1886432 | W43: 25.24493603 | X43: 102.1839449 | Y43: 23.1927954 | Z43: -13.4048641 | AA43: 48.43773143 | AB43: 88.7790808
A44: 56.57364668 | B44: 253.5364494 | C44: 36.87494595 | D44: 108.4898255 | E44: 19.69870073 | F44: -6.023058575 | G44: 56.57364668 | H44: 102.4667669 | I44: -418493.260621673i | J44: -12071920.9794713i | K44: 121718.298246053-363992.443566405i | L44: 4750 | M44: -22.1305996811005+66.1804442848008i | N44: 1+0.105209418531551i | O44: 1+0.0000406219205889874i | P44: 9.6060863701933-1.01025622605241i | Q44: 0.999999949334581-0.00033903708968581i | R44: 9.60574336916619-1.01351299443358i | S44: 19.69870073 | T44: -6.023058575 | V44: 275.4228703 | W44: 24.46892376 | X44: 101.4962694 | Y44: 23.14631013 | Z44: -14.6456497 | AA44: 47.61523389 | AB44: 86.8506197
A45: 55.82107311 | B45: 278.2559402 | C45: 36.1320848 | D45: 107.1725119 | E45: 19.68898831 | F45: -6.605379543 | G45: 55.82107311 | H45: 100.5671324 | I45: -381315.4727638i | J45: -10999484.7912635i | K45: 104029.477029421-336636.584963183i | L45: 4750 | M45: -18.9144503689856+61.2066518114877i | N45: 1+0.115467206956619i | O45: 1+0.0000445825076983707i | P45: 9.58463599269766-1.10627814574659i | Q45: 0.999999938973322-0.000372092788422584i | R45: 9.58422376965914-1.10984445216665i | S45: 19.68898831 | T45: -6.605379543 | V45: 301.995172 | W45: 23.68936354 | X45: 100.9006362 | Y45: 23.09107331 | Z45: -15.9904077 | AA45: 46.78043685 | AB45: 84.9102285
A46: 55.05640076 | B46: 305.3855509 | C46: 35.37908232 | D46: 105.9780505 | E46: 19.67731844 | F46: -7.242911397 | G46: 55.05640076 | H46: 98.73513908 | I46: -347440.457112945i | J46: -10022320.878258i | K46: 88935.3142222023-310603.335460755i | L46: 4750 | M46: -16.1700571313095+56.4733337201372i | N46: 1+0.126725117089821i | O46: 1+0.0000489292471615465i | P46: 9.55892583216537-1.21088077614498i | Q46: 0.99999992649315-0.000408371377312248i | R46: 9.55843064046853-1.21478427884466i | S46: 19.67731844 | T46: -7.242911397 | V46: 331.1311215 | W46: 22.90690401 | X46: 100.3932548 | Y46: 23.02558085 | Z46: -17.4446862 | AA46: 45.93248486 | AB46: 82.9485686
A47: 54.28078498 | B47: 335.1602651 | C47: 34.61748144 | D47: 104.9019371 | E47: 19.66330354 | F47: -7.940544587 | G47: 54.28078498 | H47: 96.96139253 | I47: -316574.804489057i | J47: -9131965.51410742i | K47: 76111.3470358094-286008.556226704i | L47: 4750 | M47: -13.8384267337835+52.0015556775824i | N47: 1+0.139080659563041i | O47: 1+0.0000536997883563018i | P47: 9.52814046141182-1.32465850730909i | Q47: 0.999999911460736-0.000448187084273411i | R47: 9.52754592296323-1.32892877951675i | S47: 19.66330354 | T47: -7.940544587 | V47: 363.0780548 | W47: 22.12210906 | X47: 99.97077736 | Y47: 22.94812704 | Z47: -19.0134145 | AA47: 45.0702361 | AB47: 80.95736286
A48: 53.49511565 | B48: 367.8379772 | C48: 33.84863328 | D48: 103.9394234 | E48: 19.64648237 | F48: -8.703494275 | G48: 53.49511565 | H48: 95.23592912 | I48: -288451.171374971i | J48: -8320706.86658574i | K48: 65256.4989604679-262913.384709279i | L48: 4750 | M48: -11.8648179928123+47.8024335835052i | N48: 1+0.152640852174398i | O48: 1+0.0000589354514282796i | P48: 9.49132172684678-1.44819103345161i | Q48: 0.999999893354139-0.000491884774093404i | R48: 9.49060837151727-1.45285951565149i | S48: 19.64648237 | T48: -8.703494275 | V48: 398.1071706 | W48: 21.33547287 | X48: 99.63033584 | Y48: 22.85679948 | Z48: -20.7006086 | AA48: 44.19227235 | AB48: 78.92972724
A49: 52.70002145 | B49: 403.7017259 | C49: 33.07371412 | D49: 103.0857288 | E49: 19.62630734 | F49: -9.537286717 | G49: 52.70002145 | H49: 93.5484421 | I49: -262825.96431476i | J49: -7581518.20138733i | K49: 56097.2423797616-241335.824690301i | L49: 4750 | M49: -10.1994986145021+43.8792408527819i | N49: 1+0.167523146825209i | O49: 1+0.0000646815851863128i | P49: 9.44734961608363-1.58202152504367i | Q49: 0.999999871544677-0.000539842935496277i | R49: 9.44649435937718-1.58712140677399i | S49: 19.62630734 | T49: -9.537286717 | V49: 436.5158322 | W49: 20.54743363 | X49: 99.36956785 | Y49: 22.74948281 | Z49: -22.5090305 | AA49: 43.29691644 | AB49: 76.86053735
A50: 51.89587452 | B50: 443.0621458 | C50: 32.29374431 | D50: 102.336209 | E50: 19.60213022 | F50: -10.4477318 | G50: 51.89587452 | H50: 91.88847721 | I50: -239477.230023748i | J50: -6907997.01991583i | K50: 48389.1883325922-221260.96089356i | L50: 4750 | M50: -8.79803424228948+40.2292656170108i | N50: 1+0.183856446832179i | O50: 1+0.0000709879598921124i | P50: 9.39492319974465-1.72662773609064i | Q50: 0.999999845275102-0.000592476959449849i | R50: 9.39389875896494-1.73219374446999i | S50: 19.60213022 | T50: -10.4477318 | V50: 478.6300923 | W50: 19.75838638 | X50: 99.18663367 | Y50: 22.62387475 | Z50: -24.4398106 | AA50: 42.38226113 | AB50: 74.74682307
A51: 51.08279414 | B51: 486.260158 | C51: 31.50960778 | D51: 101.6864857 | E51: 19.57318636 | F51: -11.44087746 | G51: 51.08279414 | H51: 90.24560824 | I51: -218202.732935341i | J51: -6294309.60390409i | K51: 41916.8732749311-202649.623518786i | L51: 4750 | M51: -7.6212496863511+36.8453860943247i | N51: 1+0.201782223426256i | O51: 1+0.0000779091983464639i | P51: 9.33254308811229-1.88238461120278i | Q51: 0.999999813633301-0.000650242737108354i | R51: 9.33131734191516-1.88845267875077i | S51: 19.57318636 | T51: -11.44087746 | V51: 524.8074602 | W51: 18.96869477 | X51: 99.08022735 | Y51: 22.47751737 | Z51: -26.4920517 | AA51: 41.44621214 | AB51: 72.58817565
A52: 50.26064884 | B52: 533.6699231 | C52: 30.72207128 | D52: 101.132545 | E52: 19.53857757 | F52: -12.52294094 | G52: 50.26064884 | H52: 88.6096041 | I52: -198818.203533298i | J52: -5735140.48653742i | K52: 36492.3667310818-185445.515136398i | L52: 4750 | M52: -6.63497576928759+33.7173663884359i | N52: 1+0.221455741108761i | O52: 1+0.0000855052490057978i | P52: 9.25849753965326-2.04951697516839i | Q52: 0.999999775520636-0.000713640608556342i | R52: 9.25703284277022-2.05612375491264i | S52: 19.53857757 | T52: -12.52294094 | V52: 575.4399373 | W52: 18.17870231 | X52: 99.04958339 | Y52: 22.30784658 | Z52: -28.6624427 | AA52: 40.48654889 | AB52: 70.38714069
A53: 49.4290568 | B53: 585.7020818 | C53: 29.93180276 | D53: 100.6708103 | E53: 19.49725403 | F53: -13.70021107 | G53: 49.4290568 | H53: 86.97059923 | I53: -181155.74229733i | J53: -5225646.41242297i | K53: 31953.1777847376-169580.92165799i | L53: 4750 | M53: -5.8096686881341+30.8328948469072i | N53: 1+0.243047402478215i | O53: 1+0.0000938419052270395i | P53: 9.17085523456584-2.22804111550568i | Q53: 0.999999729613788-0.000783219696558489i | R53: 9.16910770920663-2.23522330752808i | S53: 19.49725403 | T53: -13.70021107 | V53: 630.9573445 | W53: 17.38874306 | X53: 99.0944802 | Y53: 22.11226122 | Z53: -30.9449194 | AA53: 39.50100428 | AB53: 68.1495608
A54: 48.58738491 | B54: 642.8073117 | C54: 29.13938876 | D54: 100.2981944 | E54: 19.44799615 | F54: -14.97891529 | G54: 48.58738491 | H54: 85.31927907 | I54: -165062.365437782i | J54: -4761414.38762834i | K54: 28159.8089193393-154981.1826683i | L54: 4750 | M54: -5.11996525806168+28.1783968487818i | N54: 1+0.266744224176134i | O54: 1+0.000102991375138192i | P54: 9.0674687621039-2.41769462934807i | Q54: 0.999999674318816-0.000859582662855626i | R54: 9.06538760061247-2.42548808089431i | S54: 19.44799615 | T54: -14.97891529 | V54: 691.8309709 | W54: 16.59915211 | X54: 99.21524101 | Y54: 21.88821144 | Z54: -33.3304207 | AA54: 38.48736355 | AB54: 65.88482031
A55: 47.73474771 | B55: 705.4802311 | C55: 28.34535053 | D55: 100.0121367 | E55: 19.38939718 | F55: -16.36504503 | G55: 47.73474771 | H55: 83.64709171 | I55: -150398.679823232i | J55: -4338423.45643937i | K55: 24993.1993090085-141568.113167747i | L55: 4750 | M55: -4.54421805618336+25.7396569395903i | N55: 1+0.292751456735711i | O55: 1+0.000113032907070598i | P55: 8.94599398892633-2.61785495424433i | Q55: 0.999999607715811-0.000943390928208214i | R55: 8.94352081893913-2.62629349687418i | S55: 19.38939718 | T55: -16.36504503 | V55: 758.577575 | W55: 15.81027613 | X55: 99.41273241 | Y55: 21.63330308 | Z55: -35.8067882 | AA55: 37.44357921 | AB55: 63.60594421
A56: 46.8700076 | B56: 774.2636827 | C56: 27.55015917 | D56: 99.81062875 | E56: 19.31984843 | F56: -17.86413372 | G56: 46.8700076 | H56: 81.94649503 | I56: -137037.675623867i | J56: -3953009.8737654i | K56: 22352.2168945861-129262.563250091i | L56: 4750 | M56: -4.06403943537928+23.5022842272892i | N56: 1+0.321294362363736i | O56: 1+0.000124053475970073i | P56: 8.80393151080809-2.82744870720022i | Q56: 0.999999527492235-0.00103537040140673i | R56: 8.80099989417916-2.83656270131105i | S56: 19.31984843 | T56: -17.86413372 | V56: 831.7637711 | W56: 15.02248413 | X56: 99.68836027 | Y56: 21.34541154 | Z56: -38.3588556 | AA56: 36.36789567 | AB56: 61.32950467
A57: 45.9917788 | B57: 849.7534359 | C57: 26.75424976 | D57: 99.69222977 | E57: 19.23752904 | F57: -19.48098345 | G57: 45.9917788 | H57: 80.21124632 | I57: -124863.626213103i | J57: -3601835.37153181i | K57: 20151.2970159772-117986.284722214i | L57: 4750 | M57: -3.66387218472312+21.4520517676752i | N57: 1+0.352620166054079i | O57: 1+0.000136148536732277i | P57: 8.63869704896605-3.04485646227459i | Q57: 0.999999430862621-0.00113631776687877i | R57: 8.63523220786498-3.05467103427239i | S57: 19.23752904 | T57: -19.48098345 | V57: 912.0108394 | W57: 14.23617876 | X57: 100.0440622 | Y57: 21.02279576 | Z57: -40.9687567 | AA57: 35.25897452 | AB57: 59.0753055
A58: 45.09843783 | B58: 932.6033469 | C58: 25.95803475 | D58: 99.656077 | E58: 19.14040308 | F58: -21.21934 | G58: 45.09843783 | H58: 78.43673701 | I58: -113771.085798905i | J58: -3281858.24419919i | K58: 18318.2813675076-107663.25096884i | L58: 4750 | M58: -3.3305966122741+19.5751365397891i | N58: 1+0.387000196932308i | O58: 1+0.00014942285098736i | P58: 8.44772748871769-3.26782095102571i | Q58: 0.999999314471863-0.00124710738536354i | R58: 8.44364637392073-3.27835393418322i | S58: 19.14040308 | T58: -21.21934 | V58: 1000 | W58: 13.45180837 | X58: 100.4822955 | Y58: 20.6642006 | Z58: -43.6164588 | AA58: 34.11600897 | AB58: 56.8658367
A59: 44.18814402 | B59: 1023.531022 | C59: 25.16191695 | D59: 99.70188978 | E59: 19.02622707 | F59: -23.08152094 | G59: 44.18814402 | H59: 76.62036884 | I59: -103663.976102782i | J59: -2990307.00296486i | K59: 16792.4808024466-98220.5526631215i | L59: 4750 | M59: -3.05317832771756+17.8582823023857i | N59: 1+0.42473223837878i | O59: 1+0.000163991394495082i | P59: 8.22862768021655-3.49337070751004i | Q59: 0.999999174278714-0.00136869886743767i | R59: 8.22383951313261-3.50463033634597i | S59: 19.02622707 | T59: -23.08152094 | V59: 1096.478196 | W59: 12.66987989 | X59: 101.0060183 | Y59: 20.26893558 | Z59: -46.2804939 | AA59: 32.93881547 | AB59: 54.7255244
A60: 43.25887387 | B60: 1123.324033 | C60: 24.36630225 | D60: 99.82996955 | E60: 18.89257162 | F60: -25.06800985 | G60: 43.25887387 | H60: 74.7619597 | I60: -94454.7541757011i | J60: -2724656.37045292i | K60: 15522.965618136-89588.9695818601i | L60: 4750 | M60: -2.82235738511563+16.2889035603382i | N60: 1+0.466143107285812i | O60: 1+0.000179980353009836i | P60: 7.97935947171436-3.71777538164308i | Q60: 0.999999005415472-0.0015021453855089i | R60: 7.97376689643299-3.72975784201096i | S60: 18.89257162 | T60: -25.06800985 | V60: 1202.264435 | W60: 11.89097289 | X60: 101.6186616 | Y60: 19.83692005 | Z60: -48.9388303 | AA60: 31.72789294 | AB60: 52.6798313
